Workbook

Sheet Шаблон
A1: Код ИУСПТ | B1: Учеб. заведения корп.обуч | C1: Место обучения | D1: Категория обучающихся | E1: Код программы ИУСПТ | F1: Сокращенное название в ИУСПТ | G1: Образовательная программа | H1: Вид обучения в ИУСПТ | I1: Вид обучения (дополнительно) | J1: Направление обучения | K1: Модульное обучение | L1: Краткосрочное обучение | M1: Теория, продолжительность дни | N1: Теория, продолжительность часы | O1: Практика, продолжительность дни | P1: Практика, продолжительность часы | Q1: Начало обучения | R1: Окончание обучения | S1: Мин. План | T1: Опт. План | U1: Макс. План | V1: Суточные | W1: Проживание | X1: Проезд | Y1: ВСЕГО ком. расходы: ∑ 22+23+24 | Z1: Стоимость обучения на 1 работника | AA1: ВСЕГО расходы на Обучение и ком. расходы: ∑ 25+(26х28) | AB1: Итоговое значение ФИО: ∑ 30:48 | AC1: Количество иногородних: ∑ 31+32+33+34+35+36+39+40+41+42+44+46 | AD1: Администрация | AI1: Алмазное линейное производственное управление магистральных газопроводов | AN1: Бардымское линейное производственное управление магистральных газопроводов | AS1: Березниковское линейное производственное управление магистральных газопроводов | AX1: Воткинское линейное производственное управление магистральных газопроводов | BC1: Горнозаводское линейное производственное управление магистральных газопроводов | BH1: Гремячинское линейное производственное управление магистральных газопроводов | BM1: Инженерно-технический центр филиал | BR1: Культурно-спортивный центр | BW1: Кунгурское линейное производственное управление магистральных газопроводов | CB1: Можгинское линейное производственное управление магистральных газопроводов | CG1: Очерское линейное производственное управление магистральных газопроводов | CL1: Пермское линейное производственное управление магистральных газопроводов | CQ1: Служба корпоративной защиты | CV1: Увинское линейное производственное управление магистральных газопроводов | DA1: Управление аварийно-восстановительных работ №1 | DF1: Управление аварийно-восстановительных работ №2 | DK1: Управление материально-технического снабжения и комплектации | DP1: Чайковское линейное производственное управление магистральных газопроводов
AD2: Кол-во, чел. | AE2: Суточные, руб. | AF2: Проживание, руб. | AG2: Проезд, руб. | AH2: Всего ком. расходы, руб. | AI2: Кол-во, чел. | AJ2: Суточные, руб. | AK2: Проживание, руб. | AL2: Проезд, руб. | AM2: Всего ком. расходы, руб. | AN2: Кол-во, чел. | AO2: Суточные, руб. | AP2: Проживание, руб. | AQ2: Проезд, руб. | AR2: Всего ком. расходы, руб. | AS2: Кол-во, чел. | AT2: Суточные, руб. | AU2: Проживание, руб. | AV2: Проезд, руб. | AW2: Всего ком. расходы, руб. | AX2: Кол-во, чел. | AY2: Суточные, руб. | AZ2: Проживание, руб. | BA2: Проезд, руб. | BB2: Всего ком. расходы, руб. | BC2: Кол-во, чел. | BD2: Суточные, руб. | BE2: Проживание, руб. | BF2: Проезд, руб. | BG2: Всего ком. расходы, руб. | BH2: Кол-во, чел. | BI2: Суточные, руб. | BJ2: Проживание, руб. | BK2: Проезд, руб. | BL2: Всего ком. расходы, руб. | BM2: Кол-во, чел. | BN2: Суточные, руб. | BO2: Проживание, руб. | BP2: Проезд, руб. | BQ2: Всего ком. расходы, руб. | BR2: Кол-во, чел. | BS2: Суточные, руб. | BT2: Проживание, руб. | BU2: Проезд, руб. | BV2: Всего ком. расходы, руб. | BW2: Кол-во, чел. | BX2: Суточные, руб. | BY2: Проживание, руб. | BZ2: Проезд, руб. | CA2: Всего ком. расходы, руб. | CB2: Кол-во, чел. | CC2: Суточные, руб. | CD2: Проживание, руб. | CE2: Проезд, руб. | CF2: Всего ком. расходы, руб. | CG2: Кол-во, чел. | CH2: Суточные, руб. | CI2: Проживание, руб. | CJ2: Проезд, руб. | CK2: Всего ком. расходы, руб. | CL2: Кол-во, чел. | CM2: Суточные, руб. | CN2: Проживание, руб. | CO2: Проезд, руб. | CP2: Всего ком. расходы, руб. | CQ2: Кол-во, чел. | CR2: Суточные, руб. | CS2: Проживание, руб. | CT2: Проезд, руб. | CU2: Всего ком. расходы, руб. | CV2: Кол-во, чел. | CW2: Суточные, руб. | CX2: Проживание, руб. | CY2: Проезд, руб. | CZ2: Всего ком. расходы, руб. | DA2: Кол-во, чел. | DB2: Суточные, руб. | DC2: Проживание, руб. | DD2: Проезд, руб. | DE2: Всего ком. расходы, руб. | DF2: Кол-во, чел. | DG2: Суточные, руб. | DH2: Проживание, руб. | DI2: Проезд, руб. | DJ2: Всего ком. расходы, руб. | DK2: Кол-во, чел. | DL2: Суточные, руб. | DM2: Проживание, руб. | DN2: Проезд, руб. | DO2: Всего ком. расходы, руб. | DP2: Кол-во, чел. | DQ2: Суточные, руб. | DR2: Проживание, руб. | DS2: Проезд, руб. | DT2: Всего ком. расходы, руб.
A3: 1 | B3: 2 | C3: 3 | D3: =C3+1 -> 4 | E3: =D3+1 -> 5 | F3: 6 | G3: 7 | H3: 8 | I3: 9 | J3: 10 | K3: 11 | L3: 12 | M3: 13 | N3: 14 | O3: 15 | P3: 16 | Q3: 17 | R3: 18 | S3: 19 | T3: 20 | U3: 21 | V3: 22 | W3: 23 | X3: 24 | Y3: 25 | Z3: 26 | AA3: 27 | AB3: 28 | AC3: 29 | AD3: =AC3+1 -> 30 | AI3: =AD3+1 -> 31 | AN3: =AI3+1 -> 32 | AS3: =AN3+1 -> 33 | AX3: =AS3+1 -> 34 | BC3: =AX3+1 -> 35 | BH3: =BC3+1 -> 36 | BM3: =BH3+1 -> 37 | BR3: =BM3+1 -> 38 | BW3: =BR3+1 -> 39 | CB3: =BW3+1 -> 40 | CG3: =CB3+1 -> 41 | CL3: =CG3+1 -> 42 | CQ3: =CL3+1 -> 43 | CV3: =CQ3+1 -> 44 | DA3: =CV3+1 -> 45 | DF3: =DA3+1 -> 46 | DK3: =DF3+1 -> 47 | DP3: =DK3+1 -> 48
A4: 34243 | B4: УПЦ ООО "Газпром трансгаз Чайковский" | C4: ООО "Газпром трансгаз Чайковский" | D4: Обучение рабочих | E4: СварСоед40 | F4: Методы контроля сварных соединений 40ч. | G4: Методы контроля сварных соединений (40ч.) | H4: Повышение квалификации (РАБ) | J4: Другие целевые программы (руководители, специалисты, рабочие) | M4: 5 | N4: 40 | O4: 0 | P4: 0 | Q4: 28.10.2024 | R4: 01.11.2024 | S4: 7 | T4: 20 | U4: 20 | V4: 2500 | W4: 10000 | X4: 2000 | Y4: =SUM(V4,W4,X4) -> 14500 | Z4: 0 | AA4: =Y4+(Z4*AB4) -> 14500 | AB4: =SUM(AD4,AI4,AN4,AS4,AX4,BC4,BH4,BM4,BR4,BW4,CB4,CG4,CL4,CQ4,CV4,DA4,DF4,DK4,DP4) -> 8 | AC4: =SUM(AI4,AN4,AS4,AX4,BC4,BH4,BW4,CB4,CG4,CL4,CV4,DF4) -> 0 | AH4: =SUM(AE4,AF4,AG4) -> 0 | AM4: =SUM(AJ4,AK4,AL4) -> 0 | AR4: =SUM(AO4,AP4,AQ4) -> 0 | AW4: =SUM(AT4,AU4,AV4) -> 0 | BB4: =SUM(AY4,AZ4,BA4) -> 0 | BG4: =SUM(BD4,BE4,BF4) -> 0 | BL4: =SUM(BI4,BJ4,BK4) -> 0 | BM4: 8 | BN4: 2500 | BO4: 10000 | BP4: 2000 | BQ4: =SUM(BN4,BO4,BP4) -> 14500 | BV4: =SUM(BS4,BT4,BU4) -> 0 | CA4: =SUM(BX4,BY4,BZ4) -> 0 | CF4: =SUM(CC4,CD4,CE4) -> 0 | CK4: =SUM(CH4,CI4,CJ4) -> 0 | CP4: =SUM(CM4,CN4,CO4) -> 0 | CU4: =SUM(CR4,CS4,CT4) -> 0 | CZ4: =SUM(CW4,CX4,CY4) -> 0 | DE4: =SUM(DB4,DC4,DD4) -> 0 | DJ4: =SUM(DG4,DH4,DI4) -> 0 | DO4: =SUM(DL4,DM4,DN4) -> 0 | DT4: =SUM(DQ4,DR4,DS4) -> 0
A5: 35262 | B5: УПЦ ООО "Газпром трансгаз Чайковский" | C5: УПЦ ООО "Газпром трансгаз Чайковский" | D5: Обучение ИТР | E5: ЭнергетМен | F5: Энергетический менеджмент 16ч. | G5: Функционирование системы энергетического менеджмента ПАО Газпром в соответствии с требованиями ISO 50001:2018 | H5: Повышение квалификации | J5: Прочие экономические, медицинские и др. (таможенные, аудиторские и т.д.) | M5: 2 | N5: 16 | O5: 0 | P5: 0 | Q5: 18.09.2024 | R5: 19.09.2024 | S5: 7 | T5: 20 | U5: 30 | V5: 0 | W5: 0 | X5: 0 | Y5: =SUM(V5,W5,X5) -> 0 | Z5: 0 | AA5: =Y5+(Z5*AB5) -> 0 | AB5: =SUM(AD5,AI5,AN5,AS5,AX5,BC5,BH5,BM5,BR5,BW5,CB5,CG5,CL5,CQ5,CV5,DA5,DF5,DK5,DP5) -> 11 | AC5: =SUM(AI5,AN5,AS5,AX5,BC5,BH5,BW5,CB5,CG5,CL5,CV5,DF5) -> 3 | AH5: =SUM(AE5,AF5,AG5) -> 0 | AM5: =SUM(AJ5,AK5,AL5) -> 0 | AR5: =SUM(AO5,AP5,AQ5) -> 0 | AW5: =SUM(AT5,AU5,AV5) -> 0 | BB5: =SUM(AY5,AZ5,BA5) -> 0 | BG5: =SUM(BD5,BE5,BF5) -> 0 | BL5: =SUM(BI5,BJ5,BK5) -> 0 | BQ5: =SUM(BN5,BO5,BP5) -> 0 | BR5: 5 | BS5: 0 | BT5: 0 | BU5: 0 | BV5: =SUM(BS5,BT5,BU5) -> 0 | CA5: =SUM(BX5,BY5,BZ5) -> 0 | CF5: =SUM(CC5,CD5,CE5) -> 0 | CG5: 2 | CH5: 0 | CI5: 0 | CJ5: 0 | CK5: =SUM(CH5,CI5,CJ5) -> 0 | CL5: 1 | CM5: 0 | CN5: 0 | CO5: 0 | CP5: =SUM(CM5,CN5,CO5) -> 0 | CU5: =SUM(CR5,CS5,CT5) -> 0 | CZ5: =SUM(CW5,CX5,CY5) -> 0 | DA5: 1 | DB5: 0 | DC5: 0 | DD5: 0 | DE5: =SUM(DB5,DC5,DD5) -> 0 | DJ5: =SUM(DG5,DH5,DI5) -> 0 | DK5: 1 | DL5: 0 | DM5: 0 | DN5: 0 | DO5: =SUM(DL5,DM5,DN5) -> 0 | DP5: 1 | DQ5: 0 | DR5: 0 | DS5: 0 | DT5: =SUM(DQ5,DR5,DS5) -> 0
A6: 35271 | B6: УПЦ ООО "Газпром трансгаз Чайковский" | C6: УПЦ ООО "Газпром трансгаз Чайковский" | E6: ПожБез ИТР | F6: Обучение мерам ПБ отв. работников | G6: Обучение мерам пожарной безопасности работников, ответственных за пожарную безопасность организации и проведение противопожарного инструктажа | J6: Прочие технические (ГНВП, сварочное, противопожарные и т.д.) | L6: Краткосрочный семинар (от 16 до 40 час) | M6: 6 | N6: 32 | O6: 0 | P6: 0 | Q6: 07.11.2024 | R6: 14.11.2024 | S6: 7 | T6: 20 | U6: 30 | V6: 0 | W6: 0 | X6: 0 | Y6: 0 | Z6: 0 | AA6: 0 | AB6: 27 | AC6: 27 | AH6: 0 | AI6: 3 | AJ6: 0 | AK6: 0 | AL6: 0 | AM6: 0 | AN6: 3 | AO6: 0 | AP6: 0 | AQ6: 0 | AR6: 0 | AW6: 0 | BB6: 0 | BC6: 11 | BD6: 0 | BE6: 0 | BF6: 0 | BG6: 0 | BL6: 0 | BQ6: 0 | BV6: 0 | BW6: 1 | BX6: 0 | BY6: 0 | BZ6: 0 | CA6: 0 | CF6: 0 | CG6: 3 | CH6: 0 | CI6: 0 | CJ6: 0 | CK6: 0 | CL6: 4 | CM6: 0 | CN6: 0 | CO6: 0 | CP6: 0 | CU6: 0 | CV6: 2 | CW6: 0 | CX6: 0 | CY6: 0 | CZ6: 0 | DE6: 0 | DJ6: 0 | DO6: 0 | DT6: 0
A7: 35273 | B7: УПЦ ООО "Газпром трансгаз Чайковский" | C7: УПЦ ООО "Газпром трансгаз Чайковский" | D7: Обучение ИТР | E7: Экол16ч | F7: Экологический менеджмент 16ч | G7: Функционирование системы экологического менеджмента ПАО Газпром в соответствии с требованиями ISO14001:2015 | H7: Повышение квалификации | J7: Прочие экономические, медицинские и др. (таможенные, аудиторские и т.д.) | M7: 2 | N7: 16 | O7: 0 | P7: 0 | Q7: 06.06.2024 | R7: 07.06.2024 | S7: 7 | T7: 20 | U7: 30 | V7: 3000 | W7: 4400 | X7: 0 | Y7: 7400 | Z7: 0 | AA7: 7400 | AB7: 28 | AC7: 16 | AD7: 5 | AE7: 0 | AF7: 0 | AG7: 0 | AH7: 0 | AM7: 0 | AN7: 2 | AO7: 0 | AP7: 0 | AQ7: 0 | AR7: 0 | AW7: 0 | AX7: 3 | AY7: 3000 | AZ7: 4400 | BA7: 0 | BB7: 7400 | BG7: 0 | BL7: 0 | BM7: 4 | BN7: 0 | BO7: 0 | BP7: 0 | BQ7: 0 | BV7: 0 | CA7: 0 | CF7: 0 | CG7: 4 | CH7: 0 | CI7: 0 | CJ7: 0 | CK7: 0 | CL7: 1 | CM7: 0 | CN7: 0 | CO7: 0 | CP7: 0 | CU7: 0 | CV7: 5 | CW7: 0 | CX7: 0 | CY7: 0 | CZ7: 0 | DE7: 0 | DF7: 1 | DG7: 0 | DH7: 0 | DI7: 0 | DJ7: 0 | DK7: 2 | DL7: 0 | DM7: 0 | DN7: 0 | DO7: 0 | DP7: 1 | DQ7: 0 | DR7: 0 | DS7: 0 | DT7: 0
A8: 39761 | B8: УПЦ ООО "Газпром трансгаз Чайковский" | C8: УПЦ ООО "Газпром трансгаз Чайковский" | D8: Обучение ИТР | E8: МенКач | F8: Менеджмент качества | G8: Функционирование системы менеджмента качества | H8: Повышение квалификации | J8: Обязательное обучение | M8: 2 | N8: 16 | O8: 0 | P8: 0 | Q8: 14.05.2024 | R8: 15.05.2024 | S8: 7 | T8: 20 | U8: 30 | V8: 36000 | W8: 108900 | X8: 21800 | Y8: 166700 | Z8: 0 | AA8: 166700 | AB8: 24 | AC8: 21 | AH8: 0 | AI8: 8 | AJ8: 12000 | AK8: 40000 | AL8: 0 | AM8: 52000 | AR8: 0 | AS8: 1 | AT8: 2000 | AU8: 7800 | AV8: 2500 | AW8: 12300 | AX8: 2 | AY8: 3000 | AZ8: 7200 | BA8: 0 | BB8: 10200 | BC8: 2 | BD8: 4000 | BE8: 12000 | BF8: 5800 | BG8: 21800 | BH8: 2 | BI8: 4000 | BJ8: 12000 | BK8: 5000 | BL8: 21000 | BM8: 1 | BN8: 0 | BO8: 0 | BP8: 0 | BQ8: 0 | BV8: 0 | BW8: 1 | BX8: 2000 | BY8: 7500 | BZ8: 3000 | CA8: 12500 | CB8: 1 | CC8: 3000 | CD8: 10000 | CE8: 500 | CF8: 13500 | CG8: 2 | CH8: 3000 | CI8: 6000 | CJ8: 2000 | CK8: 11000 | CL8: 2 | CM8: 3000 | CN8: 6400 | CO8: 3000 | CP8: 12400 | CU8: 0 | CZ8: 0 | DE8: 0 | DJ8: 0 | DO8: 0 | DP8: 2 | DQ8: 0 | DR8: 0 | DS8: 0 | DT8: 0
A9: 39762 | B9: УПЦ ООО "Газпром трансгаз Чайковский" | C9: УПЦ ООО "Газпром трансгаз Чайковский" | E9: ПожБез ИТР | F9: Обучение мерам ПБ отв. работников | G9: Обучение мерам пожарной безопасности работников, ответственных за пожарную безопасность организации и проведение противопожарного инструктажа | J9: Прочие технические (ГНВП, сварочное, противопожарные и т.д.) | L9: Краткосрочный семинар (от 16 до 40 час) | M9: 6 | N9: 32 | O9: 0 | P9: 0 | Q9: 18.01.2024 | R9: 25.01.2024 | S9: 7 | T9: 20 | U9: 30 | V9: 0 | W9: 0 | X9: 0 | Y9: 0 | Z9: 0 | AA9: 0 | AB9: 22 | AC9: 20 | AH9: 0 | AI9: 1 | AJ9: 0 | AK9: 0 | AL9: 0 | AM9: 0 | AN9: 3 | AO9: 0 | AP9: 0 | AQ9: 0 | AR9: 0 | AS9: 1 | AT9: 0 | AU9: 0 | AV9: 0 | AW9: 0 | BB9: 0 | BC9: 8 | BD9: 0 | BE9: 0 | BF9: 0 | BG9: 0 | BL9: 0 | BM9: 1 | BN9: 0 | BO9: 0 | BP9: 0 | BQ9: 0 | BV9: 0 | BW9: 3 | BX9: 0 | BY9: 0 | BZ9: 0 | CA9: 0 | CF9: 0 | CK9: 0 | CL9: 3 | CM9: 0 | CN9: 0 | CO9: 0 | CP9: 0 | CU9: 0 | CV9: 1 | CW9: 0 | CX9: 0 | CY9: 0 | CZ9: 0 | DE9: 0 | DJ9: 0 | DO9: 0 | DP9: 1 | DQ9: 0 | DR9: 0 | DS9: 0 | DT9: 0
A10: 39763 | B10: УПЦ ООО "Газпром трансгаз Чайковский" | C10: УПЦ ООО "Газпром трансгаз Чайковский" | E10: ПожБез ИТР | F10: Обучение мерам ПБ отв. работников | G10: Обучение мерам пожарной безопасности работников, ответственных за пожарную безопасность организации и проведение противопожарного инструктажа | J10: Прочие технические (ГНВП, сварочное, противопожарные и т.д.) | L10: Краткосрочный семинар (от 16 до 40 час) | M10: 6 | N10: 32 | O10: 0 | P10: 0 | Q10: 12.03.2024 | R10: 19.03.2024 | S10: 7 | T10: 20 | U10: 30 | V10: 0 | W10: 0 | X10: 0 | Y10: 0 | Z10: 0 | AA10: 0 | AB10: 28 | AC10: 27 | AH10: 0 | AI10: 3 | AJ10: 0 | AK10: 0 | AL10: 0 | AM10: 0 | AN10: 7 | AO10: 0 | AP10: 0 | AQ10: 0 | AR10: 0 | AS10: 1 | AT10: 0 | AU10: 0 | AV10: 0 | AW10: 0 | BB10: 0 | BC10: 7 | BD10: 0 | BE10: 0 | BF10: 0 | BG10: 0 | BL10: 0 | BM10: 1 | BN10: 0 | BO10: 0 | BP10: 0 | BQ10: 0 | BV10: 0 | BW10: 2 | BX10: 0 | BY10: 0 | BZ10: 0 | CA10: 0 | CF10: 0 | CG10: 2 | CH10: 0 | CI10: 0 | CJ10: 0 | CK10: 0 | CL10: 5 | CM10: 0 | CN10: 0 | CO10: 0 | CP10: 0 | CU10: 0 | CZ10: 0 | DE10: 0 | DJ10: 0 | DO10: 0 | DT10: 0
A11: 39764 | B11: УПЦ ООО "Газпром трансгаз Чайковский" | C11: УПЦ ООО "Газпром трансгаз Чайковский" | E11: ПожБез ИТР | F11: Обучение мерам ПБ отв. работников | G11: Обучение мерам пожарной безопасности работников, ответственных за пожарную безопасность организации и проведение противопожарного инструктажа | J11: Прочие технические (ГНВП, сварочное, противопожарные и т.д.) | L11: Краткосрочный семинар (от 16 до 40 час) | M11: 6 | N11: 32 | O11: 0 | P11: 0 | Q11: 16.05.2024 | R11: 23.05.2024 | S11: 7 | T11: 20 | U11: 30 | V11: 0 | W11: 0 | X11: 0 | Y11: 0 | Z11: 0 | AA11: 0 | AB11: 18 | AC11: 0 | AH11: 0 | AM11: 0 | AR11: 0 | AW11: 0 | BB11: 0 | BG11: 0 | BL11: 0 | BM11: 3 | BN11: 0 | BO11: 0 | BP11: 0 | BQ11: 0 | BR11: 2 | BS11: 0 | BT11: 0 | BU11: 0 | BV11: 0 | CA11: 0 | CF11: 0 | CK11: 0 | CP11: 0 | CU11: 0 | CZ11: 0 | DA11: 10 | DB11: 0 | DC11: 0 | DD11: 0 | DE11: 0 | DJ11: 0 | DK11: 1 | DL11: 0 | DM11: 0 | DN11: 0 | DO11: 0 | DP11: 2 | DQ11: 0 | DR11: 0 | DS11: 0 | DT11: 0
A12: 39765 | B12: УПЦ ООО "Газпром трансгаз Чайковский" | C12: УПЦ ООО "Газпром трансгаз Чайковский" | E12: ПсихПед | F12: Психолого-педагогический минимум знаний | G12: Психолого-педагогический минимум знаний для внештатных преподавателей | J12: Периодическое обучение по плану общеста/организации (руководители, специалисты, рабочие) | L12: Семинар (от 40 до 72 час) | M12: 10 | N12: 76 | O12: 0 | P12: 0 | Q12: 29.01.2024 | R12: 15.02.2024 | S12: 7 | T12: 15 | U12: 20 | V12: 34000 | W12: 122100 | X12: 11500 | Y12: 167600 | Z12: 0 | AA12: 167600 | AB12: 19 | AC12: 9 | AD12: 5 | AE12: 0 | AF12: 0 | AG12: 0 | AH12: 0 | AM12: 0 | AN12: 1 | AO12: 2500 | AP12: 10000 | AQ12: 0 | AR12: 12500 | AS12: 1 | AT12: 11000 | AU12: 54600 | AV12: 2500 | AW12: 68100 | AX12: 1 | AY12: 2500 | AZ12: 5500 | BA12: 0 | BB12: 8000 | BC12: 1 | BD12: 3500 | BE12: 12000 | BF12: 2500 | BG12: 18000 | BL12: 0 | BM12: 3 | BN12: 0 | BO12: 0 | BP12: 0 | BQ12: 0 | BV12: 0 | CA12: 0 | CB12: 1 | CC12: 3000 | CD12: 6500 | CE12: 500 | CF12: 10000 | CG12: 1 | CH12: 3000 | CI12: 7500 | CJ12: 1000 | CK12: 11500 | CL12: 2 | CM12: 6000 | CN12: 16000 | CO12: 3000 | CP12: 25000 | CU12: 0 | CZ12: 0 | DA12: 1 | DB12: 0 | DC12: 0 | DD12: 0 | DE12: 0 | DF12: 1 | DG12: 2500 | DH12: 10000 | DI12: 2000 | DJ12: 14500 | DO12: 0 | DP12: 1 | DQ12: 0 | DR12: 0 | DS12: 0 | DT12: 0
A13: 39786 | B13: УПЦ ООО "Газпром трансгаз Чайковский" | C13: ООО "Газпром трансгаз Чайковский" | D13: Обучение рабочих | E13: СпЭлГазСвар | F13: Подготовка к аттест.электрогазосварщиков | G13: Подготовка к аттестации электрогазосварщиков на право выполнения сварочных и наплавочных работ при строительстве, изготовлении, монтаже и ремонте объектов и оборудования, подконтрольных Ростехнадзору | H13: Повышение квалификации (РАБ) | J13: Прочие технические (ГНВП, сварочное, противопожарные и т.д.) | M13: 8 | N13: 64 | O13: 0 | P13: 0 | Q13: 16.01.2024 | R13: 25.01.2024 | S13: 7 | T13: 20 | U13: 20 | V13: 42000 | W13: 77000 | X13: 11500 | Y13: 130500 | Z13: 0 | AA13: 130500 | AB13: 14 | AC13: 7 | AH13: 0 | AI13: 1 | AJ13: 6000 | AK13: 12100 | AL13: 1500 | AM13: 19600 | AN13: 1 | AO13: 6000 | AP13: 12100 | AQ13: 0 | AR13: 18100 | AW13: 0 | BB13: 0 | BG13: 0 | BL13: 0 | BQ13: 0 | BV13: 0 | CA13: 0 | CF13: 0 | CK13: 0 | CP13: 0 | CU13: 0 | CZ13: 0 | DA13: 7 | DB13: 0 | DC13: 0 | DD13: 0 | DE13: 0 | DF13: 5 | DG13: 30000 | DH13: 52800 | DI13: 10000 | DJ13: 92800 | DO13: 0 | DT13: 0
A14: 39787 | B14: УПЦ ООО "Газпром трансгаз Чайковский" | C14: ООО "Газпром трансгаз Чайковский" | D14: Обучение рабочих | E14: СпЭлГазСвар | F14: Подготовка к аттест.электрогазосварщиков | G14: Подготовка к аттестации электрогазосварщиков на право выполнения сварочных и наплавочных работ при строительстве, изготовлении, монтаже и ремонте объектов и оборудования, подконтрольных Ростехнадзору | H14: Повышение квалификации (РАБ) | J14: Прочие технические (ГНВП, сварочное, противопожарные и т.д.) | M14: 8 | N14: 64 | O14: 0 | P14: 0 | Q14: 13.02.2024 | R14: 22.02.2024 | S14: 7 | T14: 20 | U14: 20 | V14: 30000 | W14: 83000 | X14: 8000 | Y14: 121000 | Z14: 0 | AA14: 121000 | AB14: 14 | AC14: 6 | AH14: 0 | AM14: 0 | AR14: 0 | AW14: 0 | BB14: 0 | BG14: 0 | BL14: 0 | BM14: 2 | BN14: 0 | BO14: 0 | BP14: 0 | BQ14: 0 | BV14: 0 | CA14: 0 | CF14: 0 | CK14: 0 | CP14: 0 | CU14: 0 | CV14: 2 | CW14: 6000 | CX14: 11000 | CY14: 0 | CZ14: 17000 | DA14: 6 | DB14: 0 | DC14: 0 | DD14: 0 | DE14: 0 | DF14: 4 | DG14: 24000 | DH14: 72000 | DI14: 8000 | DJ14: 104000 | DO14: 0 | DT14: 0
A15: 39788 | B15: УПЦ ООО "Газпром трансгаз Чайковский" | C15: ООО "Газпром трансгаз Чайковский" | D15: Обучение рабочих | E15: СпЭлГазСвар | F15: Подготовка к аттест.электрогазосварщиков | G15: Подготовка к аттестации электрогазосварщиков на право выполнения сварочных и наплавочных работ при строительстве, изготовлении, монтаже и ремонте объектов и оборудования, подконтрольных Ростехнадзору | H15: Повышение квалификации (РАБ) | J15: Прочие технические (ГНВП, сварочное, противопожарные и т.д.) | M15: 8 | N15: 64 | O15: 0 | P15: 0 | Q15: 09.04.2024 | R15: 18.04.2024 | S15: 7 | T15: 20 | U15: 20 | V15: 36500 | W15: 88100 | X15: 6500 | Y15: 131100 | Z15: 0 | AA15: 131100 | AB15: 11 | AC15: 6 | AH15: 0 | AI15: 1 | AJ15: 6500 | AK15: 13200 | AL15: 1500 | AM15: 21200 | AN15: 1 | AO15: 6000 | AP15: 12100 | AQ15: 0 | AR15: 18100 | AW15: 0 | AX15: 2 | AY15: 11000 | AZ15: 22000 | BA15: 0 | BB15: 33000 | BG15: 0 | BL15: 0 | BM15: 1 | BN15: 0 | BO15: 0 | BP15: 0 | BQ15: 0 | BV15: 0 | BW15: 1 | BX15: 7000 | BY15: 24000 | BZ15: 3000 | CA15: 34000 | CF15: 0 | CK15: 0 | CP15: 0 | CU15: 0 | CZ15: 0 | DA15: 4 | DB15: 0 | DC15: 0 | DD15: 0 | DE15: 0 | DF15: 1 | DG15: 6000 | DH15: 16800 | DI15: 2000 | DJ15: 24800 | DO15: 0 | DT15: 0
A16: 39789 | B16: УПЦ ООО "Газпром трансгаз Чайковский" | C16: ООО "Газпром трансгаз Чайковский" | D16: Обучение рабочих | E16: СпЭлГазСвар | F16: Подготовка к аттест.электрогазосварщиков | G16: Подготовка к аттестации электрогазосварщиков на право выполнения сварочных и наплавочных работ при строительстве, изготовлении, монтаже и ремонте объектов и оборудования, подконтрольных Ростехнадзору | H16: Повышение квалификации (РАБ) | J16: Прочие технические (ГНВП, сварочное, противопожарные и т.д.) | M16: 8 | N16: 64 | O16: 0 | P16: 0 | Q16: 28.05.2024 | R16: 06.06.2024 | S16: 7 | T16: 20 | U16: 20 | V16: 41000 | W16: 82500 | X16: 12200 | Y16: 135700 | Z16: 0 | AA16: 135700 | AB16: 10 | AC16: 7 | AH16: 0 | AM16: 0 | AR16: 0 | AS16: 1 | AT16: 6000 | AU16: 12100 | AV16: 2500 | AW16: 20600 | AX16: 1 | AY16: 5500 | AZ16: 11000 | BA16: 0 | BB16: 16500 | BC16: 2 | BD16: 12000 | BE16: 24200 | BF16: 5600 | BG16: 41800 | BL16: 0 | BM16: 1 | BN16: 0 | BO16: 0 | BP16: 0 | BQ16: 0 | BV16: 0 | CA16: 0 | CF16: 0 | CG16: 1 | CH16: 6500 | CI16: 13200 | CJ16: 1100 | CK16: 20800 | CL16: 2 | CM16: 11000 | CN16: 22000 | CO16: 3000 | CP16: 36000 | CU16: 0 | CZ16: 0 | DA16: 2 | DB16: 0 | DC16: 0 | DD16: 0 | DE16: 0 | DJ16: 0 | DO16: 0 | DT16: 0
A17: 39790 | B17: УПЦ ООО "Газпром трансгаз Чайковский" | C17: ООО "Газпром трансгаз Чайковский" | D17: Обучение рабочих | E17: СпЭлГазСвар | F17: Подготовка к аттест.электрогазосварщиков | G17: Подготовка к аттестации электрогазосварщиков на право выполнения сварочных и наплавочных работ при строительстве, изготовлении, монтаже и ремонте объектов и оборудования, подконтрольных Ростехнадзору | H17: Повышение квалификации (РАБ) | J17: Прочие технические (ГНВП, сварочное, противопожарные и т.д.) | M17: 8 | N17: 64 | O17: 0 | P17: 0 | Q17: 18.06.2024 | R17: 27.06.2024 | S17: 7 | T17: 20 | U17: 20 | V17: 32000 | W17: 68400 | X17: 6500 | Y17: 106900 | Z17: 0 | AA17: 106900 | AB17: 10 | AC17: 7 | AH17: 0 | AI17: 1 | AJ17: 6000 | AK17: 11000 | AL17: 1500 | AM17: 18500 | AN17: 1 | AO17: 6000 | AP17: 12100 | AQ17: 0 | AR17: 18100 | AW17: 0 | AX17: 2 | AY17: 11000 | AZ17: 22000 | BA17: 0 | BB17: 33000 | BC17: 1 | BD17: 3000 | BE17: 6500 | BF17: 3000 | BG17: 12500 | BL17: 0 | BQ17: 0 | BV17: 0 | CA17: 0 | CB17: 1 | CC17: 0 | CD17: 0 | CE17: 0 | CF17: 0 | CK17: 0 | CP17: 0 | CU17: 0 | CZ17: 0 | DA17: 3 | DB17: 0 | DC17: 0 | DD17: 0 | DE17: 0 | DF17: 1 | DG17: 6000 | DH17: 16800 | DI17: 2000 | DJ17: 24800 | DO17: 0 | DT17: 0
A18: 39791 | B18: УПЦ ООО "Газпром трансгаз Чайковский" | C18: ООО "Газпром трансгаз Чайковский" | D18: Обучение рабочих | E18: СпЭлГазСвар | F18: Подготовка к аттест.электрогазосварщиков | G18: Подготовка к аттестации электрогазосварщиков на право выполнения сварочных и наплавочных работ при строительстве, изготовлении, монтаже и ремонте объектов и оборудования, подконтрольных Ростехнадзору | H18: Повышение квалификации (РАБ) | J18: Прочие технические (ГНВП, сварочное, противопожарные и т.д.) | M18: 8 | N18: 64 | O18: 0 | P18: 0 | Q18: 09.07.2024 | R18: 18.07.2024 | S18: 7 | T18: 20 | U18: 20 | V18: 18500 | W18: 37400 | X18: 1000 | Y18: 56900 | Z18: 0 | AA18: 56900 | AB18: 12 | AC18: 5 | AH18: 0 | AM18: 0 | AN18: 2 | AO18: 12000 | AP18: 24200 | AQ18: 0 | AR18: 36200 | AW18: 0 | BB18: 0 | BG18: 0 | BL18: 0 | BM18: 2 | BN18: 0 | BO18: 0 | BP18: 0 | BQ18: 0 | BV18: 0 | CA18: 0 | CB18: 1 | CC18: 0 | CD18: 0 | CE18: 0 | CF18: 0 | CG18: 1 | CH18: 6500 | CI18: 13200 | CJ18: 1000 | CK18: 20700 | CL18: 1 | CM18: 0 | CN18: 0 | CO18: 0 | CP18: 0 | CU18: 0 | CZ18: 0 | DA18: 5 | DB18: 0 | DC18: 0 | DD18: 0 | DE18: 0 | DJ18: 0 | DO18: 0 | DT18: 0
A19: 39792 | B19: УПЦ ООО "Газпром трансгаз Чайковский" | C19: ООО "Газпром трансгаз Чайковский" | D19: Обучение рабочих | E19: СПсв1УрТПАК | F19: Сварщик 1 ур. Т, ПАК гр.НГДО | G19: Специальная подготовка сварщиков (I уровень), вид сварки – Термитная сварка (Т), пайка (ПАК),КТС группа технических устройств – нефтегазодобывающее оборудование(НГДО | H19: Повышение квалификации (РАБ) | J19: (РАБ) Курсы целевого назначения (в части получения допуска к работе на опасных производственных объектах) | M19: 3 | N19: 24 | O19: 1 | P19: 8 | Q19: 05.11.2024 | R19: 08.11.2024 | S19: 5 | T19: 20 | U19: 20 | V19: 26500 | W19: 51900 | X19: 17500 | Y19: 95900 | Z19: 0 | AA19: 95900 | AB19: 12 | AC19: 12 | AH19: 0 | AI19: 1 | AJ19: 3000 | AK19: 5500 | AL19: 1500 | AM19: 10000 | AR19: 0 | AS19: 1 | AT19: 3000 | AU19: 5500 | AV19: 2500 | AW19: 11000 | AX19: 2 | AY19: 5000 | AZ19: 8800 | BA19: 0 | BB19: 13800 | BC19: 1 | BD19: 3000 | BE19: 6500 | BF19: 3000 | BG19: 12500 | BH19: 2 | BI19: 5000 | BJ19: 8800 | BK19: 5000 | BL19: 18800 | BQ19: 0 | BV19: 0 | BW19: 1 | BX19: 2500 | BY19: 8000 | BZ19: 3000 | CA19: 13500 | CB19: 1 | CC19: 0 | CD19: 0 | CE19: 0 | CF19: 0 | CG19: 1 | CH19: 2500 | CI19: 4400 | CJ19: 1000 | CK19: 7900 | CL19: 1 | CM19: 2500 | CN19: 4400 | CO19: 1500 | CP19: 8400 | CU19: 0 | CZ19: 0 | DE19: 0 | DF19: 1 | DG19: 0 | DH19: 0 | DI19: 0 | DJ19: 0 | DO19: 0 | DT19: 0
A20: 39793 | B20: УПЦ ООО "Газпром трансгаз Чайковский" | C20: ООО "Газпром трансгаз Чайковский" | D20: Обучение рабочих | E20: СПсв1УрТПАК | F20: Сварщик 1 ур. Т, ПАК гр.НГДО | G20: Специальная подготовка сварщиков (I уровень), вид сварки – Термитная сварка (Т), пайка (ПАК),КТС группа технических устройств – нефтегазодобывающее оборудование(НГДО | H20: Повышение квалификации (РАБ) | J20: (РАБ) Курсы целевого назначения (в части получения допуска к работе на опасных производственных объектах) | M20: 3 | N20: 24 | O20: 1 | P20: 8 | Q20: 19.11.2024 | R20: 22.11.2024 | S20: 5 | T20: 20 | U20: 20 | V20: 20000 | W20: 53700 | X20: 9500 | Y20: 83200 | Z20: 0 | AA20: 83200 | AB20: 7 | AC20: 7 | AH20: 0 | AM20: 0 | AN20: 1 | AO20: 2500 | AP20: 4400 | AQ20: 0 | AR20: 6900 | AW20: 0 | BB20: 0 | BC20: 1 | BD20: 3000 | BE20: 6500 | BF20: 3000 | BG20: 12500 | BL20: 0 | BQ20: 0 | BV20: 0 | BW20: 1 | BX20: 7000 | BY20: 24000 | BZ20: 3000 | CA20: 34000 | CB20: 1 | CC20: 0 | CD20: 0 | CE20: 0 | CF20: 0 | CK20: 0 | CL20: 1 | CM20: 2500 | CN20: 4400 | CO20: 1500 | CP20: 8400 | CU20: 0 | CV20: 1 | CW20: 2500 | CX20: 4400 | CY20: 0 | CZ20: 6900 | DE20: 0 | DF20: 1 | DG20: 2500 | DH20: 10000 | DI20: 2000 | DJ20: 14500 | DO20: 0 | DT20: 0
A21: 39794 | B21: УПЦ ООО "Газпром трансгаз Чайковский" | C21: ООО "Газпром трансгаз Чайковский" | D21: Обучение рабочих | E21: СварщикПК | F21: Сварщик РД сварки плав.покр.электр. ПТК | G21: Сварщик ручной дуговой сварки плавящимся покрытым электродом ПТК | H21: Повышение квалификации (РАБ) | J21: (РАБ) Повышение квалификации на ПТК | M21: 10 | N21: 80 | O21: 50 | P21: 400 | Q21: 09.09.2024 | R21: 20.09.2024 | S21: 7 | T21: 20 | U21: 20 | V21: 13000 | W21: 48000 | X21: 5000 | Y21: 66000 | Z21: 0 | AA21: 66000 | AB21: 3 | AC21: 3 | AH21: 0 | AM21: 0 | AR21: 0 | AW21: 0 | BB21: 0 | BG21: 0 | BL21: 0 | BQ21: 0 | BV21: 0 | BW21: 1 | BX21: 7000 | BY21: 24000 | BZ21: 3000 | CA21: 34000 | CF21: 0 | CK21: 0 | CP21: 0 | CU21: 0 | CZ21: 0 | DE21: 0 | DF21: 2 | DG21: 6000 | DH21: 24000 | DI21: 2000 | DJ21: 32000 | DO21: 0 | DT21: 0
A22: 39795 | B22: УПЦ ООО "Газпром трансгаз Чайковский" | C22: ООО "Газпром трансгаз Чайковский" | D22: Обучение рабочих | E22: МонтНарТрПК | F22: Монтажник наруж. трубопроводов ПТК | G22: Монтажник наружных трубопроводов ПТК | H22: Повышение квалификации (РАБ) | J22: (РАБ) Повышение квалификации на ПТК | M22: 9 | N22: 72 | O22: 23 | P22: 184 | Q22: 07.10.2024 | R22: 18.10.2024 | S22: 7 | T22: 20 | U22: 20 | V22: 35500 | W22: 74600 | X22: 9000 | Y22: 119100 | Z22: 0 | AA22: 119100 | AB22: 8 | AC22: 6 | AH22: 0 | AM22: 0 | AN22: 1 | AO22: 6000 | AP22: 12100 | AQ22: 0 | AR22: 18100 | AW22: 0 | BB22: 0 | BG22: 0 | BL22: 0 | BQ22: 0 | BV22: 0 | CA22: 0 | CF22: 0 | CK22: 0 | CL22: 2 | CM22: 11500 | CN22: 12100 | CO22: 3000 | CP22: 26600 | CU22: 0 | CZ22: 0 | DE22: 0 | DF22: 3 | DG22: 18000 | DH22: 50400 | DI22: 6000 | DJ22: 74400 | DO22: 0 | DP22: 2 | DQ22: 0 | DR22: 0 | DS22: 0 | DT22: 0
A23: 39796 | B23: УПЦ ООО "Газпром трансгаз Чайковский" | C23: ООО "Газпром трансгаз Чайковский" | D23: Обучение ИТР | E23: СпецСвар | F23: СП спец. свар. производства II-III ур. | G23: Специальная подготовка специалистов сварочного производства II-III уровень | H23: Повышение квалификации | J23: Прочие технические (ГНВП, сварочное, противопожарные и т.д.) | M23: 4 | N23: 32 | O23: 0 | P23: 0 | Q23: 12.03.2024 | R23: 15.03.2024 | S23: 7 | T23: 20 | U23: 20 | V23: 19000 | W23: 80400 | X23: 14300 | Y23: 113700 | Z23: 0 | AA23: 113700 | AB23: 14 | AC23: 8 | AH23: 0 | AM23: 0 | AN23: 1 | AO23: 2000 | AP23: 7500 | AQ23: 0 | AR23: 9500 | AS23: 2 | AT23: 6000 | AU23: 26000 | AV23: 5000 | AW23: 37000 | BB23: 0 | BC23: 2 | BD23: 6000 | BE23: 30000 | BF23: 5800 | BG23: 41800 | BL23: 0 | BM23: 1 | BN23: 0 | BO23: 0 | BP23: 0 | BQ23: 0 | BV23: 0 | CA23: 0 | CB23: 1 | CC23: 0 | CD23: 0 | CE23: 0 | CF23: 0 | CK23: 0 | CL23: 1 | CM23: 2500 | CN23: 6400 | CO23: 1500 | CP23: 10400 | CU23: 0 | CZ23: 0 | DA23: 5 | DB23: 0 | DC23: 0 | DD23: 0 | DE23: 0 | DF23: 1 | DG23: 2500 | DH23: 10500 | DI23: 2000 | DJ23: 15000 | DO23: 0 | DT23: 0
A24: 39797 | B24: УПЦ ООО "Газпром трансгаз Чайковский" | C24: ООО "Газпром трансгаз Чайковский" | D24: Обучение ИТР | E24: СпецСвар | F24: СП спец. свар. производства II-III ур. | G24: Специальная подготовка специалистов сварочного производства II-III уровень | H24: Повышение квалификации | J24: Прочие технические (ГНВП, сварочное, противопожарные и т.д.) | M24: 4 | N24: 32 | O24: 0 | P24: 0 | Q24: 26.03.2024 | R24: 29.03.2024 | S24: 7 | T24: 20 | U24: 20 | V24: 21500 | W24: 76800 | X24: 17300 | Y24: 115600 | Z24: 0 | AA24: 115600 | AB24: 14 | AC24: 8 | AH24: 0 | AM24: 0 | AR24: 0 | AS24: 1 | AT24: 3000 | AU24: 13000 | AV24: 2500 | AW24: 18500 | BB24: 0 | BC24: 2 | BD24: 6000 | BE24: 30000 | BF24: 5800 | BG24: 41800 | BL24: 0 | BM24: 2 | BN24: 0 | BO24: 0 | BP24: 0 | BQ24: 0 | BV24: 0 | CA24: 0 | CF24: 0 | CK24: 0 | CL24: 2 | CM24: 5000 | CN24: 12800 | CO24: 3000 | CP24: 20800 | CU24: 0 | CZ24: 0 | DA24: 4 | DB24: 0 | DC24: 0 | DD24: 0 | DE24: 0 | DF24: 3 | DG24: 7500 | DH24: 21000 | DI24: 6000 | DJ24: 34500 | DO24: 0 | DT24: 0
A25: 39798 | B25: УПЦ ООО "Газпром трансгаз Чайковский" | C25: ООО "Газпром трансгаз Чайковский" | D25: Обучение ИТР | E25: СпецСварПер | F25: СП спец. свар. производства II ур. | G25: Специальная подготовка специалистов сварочного производства II уровень (первичная аттестация) | H25: Повышение квалификации | J25: Прочие технические (ГНВП, сварочное, противопожарные и т.д.) | M25: 8 | N25: 64 | O25: 0 | P25: 0 | Q25: 03.12.2024 | R25: 12.12.2024 | S25: 7 | T25: 15 | U25: 15 | V25: 32000 | W25: 95500 | X25: 8500 | Y25: 136000 | Z25: 0 | AA25: 136000 | AB25: 7 | AC25: 6 | AH25: 0 | AI25: 1 | AJ25: 6000 | AK25: 22000 | AL25: 1500 | AM25: 29500 | AR25: 0 | AW25: 0 | BB25: 0 | BG25: 0 | BL25: 0 | BQ25: 0 | BV25: 0 | CA25: 0 | CF25: 0 | CK25: 0 | CL25: 2 | CM25: 11000 | CN25: 32000 | CO25: 3000 | CP25: 46000 | CU25: 0 | CV25: 1 | CW25: 3000 | CX25: 7900 | CY25: 0 | CZ25: 10900 | DA25: 1 | DB25: 0 | DC25: 0 | DD25: 0 | DE25: 0 | DF25: 2 | DG25: 12000 | DH25: 33600 | DI25: 4000 | DJ25: 49600 | DO25: 0 | DT25: 0
A26: 39886 | B26: УПЦ ООО "Газпром трансгаз Чайковский" | C26: УПЦ ООО "Газпром трансгаз Чайковский" | D26: Обучение рабочих | E26: СлесКИППК | F26: Слесарь по КИПиА ПТК | G26: Слесарь по контрольно-измерительным приборам и автоматике ПТК | H26: Повышение квалификации (РАБ) | J26: (РАБ) Повышение квалификации на ПТК | M26: 14 | N26: 112 | O26: 28 | P26: 224 | Q26: 29.01.2024 | R26: 16.02.2024 | S26: 7 | T26: 20 | U26: 20 | V26: 52500 | W26: 112200 | X26: 12700 | Y26: 177400 | Z26: 0 | AA26: 177400 | AB26: 9 | AC26: 6 | AH26: 0 | AM26: 0 | AR26: 0 | AW26: 0 | AX26: 1 | AY26: 13500 | AZ26: 28600 | BA26: 0 | BB26: 42100 | BC26: 3 | BD26: 19500 | BE26: 41800 | BF26: 8200 | BG26: 69500 | BH26: 1 | BI26: 13500 | BJ26: 28600 | BK26: 2500 | BL26: 44600 | BM26: 1 | BN26: 0 | BO26: 0 | BP26: 0 | BQ26: 0 | BV26: 0 | CA26: 0 | CF26: 0 | CK26: 0 | CP26: 0 | CU26: 0 | CZ26: 0 | DE26: 0 | DF26: 1 | DG26: 6000 | DH26: 13200 | DI26: 2000 | DJ26: 21200 | DO26: 0 | DP26: 2 | DQ26: 0 | DR26: 0 | DS26: 0 | DT26: 0
A27: 39887 | B27: УПЦ ООО "Газпром трансгаз Чайковский" | C27: УПЦ ООО "Газпром трансгаз Чайковский" | D27: Обучение рабочих | E27: СлесКИППК | F27: Слесарь по КИПиА ПТК | G27: Слесарь по контрольно-измерительным приборам и автоматике ПТК | H27: Повышение квалификации (РАБ) | J27: (РАБ) Повышение квалификации на ПТК | M27: 14 | N27: 112 | O27: 28 | P27: 224 | Q27: 18.03.2024 | R27: 29.03.2024 | S27: 7 | T27: 20 | U27: 20 | V27: 98000 | W27: 235200 | X27: 24100 | Y27: 357300 | Z27: 0 | AA27: 357300 | AB27: 18 | AC27: 15 | AH27: 0 | AI27: 1 | AJ27: 6500 | AK27: 13200 | AL27: 1500 | AM27: 21200 | AN27: 2 | AO27: 12000 | AP27: 24200 | AQ27: 0 | AR27: 36200 | AW27: 0 | AX27: 2 | AY27: 12000 | AZ27: 31200 | BA27: 0 | BB27: 43200 | BC27: 2 | BD27: 15000 | BE27: 30800 | BF27: 5600 | BG27: 51400 | BH27: 2 | BI27: 12000 | BJ27: 24200 | BK27: 5000 | BL27: 41200 | BQ27: 0 | BV27: 0 | BW27: 3 | BX27: 21000 | BY27: 72000 | BZ27: 9000 | CA27: 102000 | CF27: 0 | CK27: 0 | CL27: 2 | CM27: 13000 | CN27: 26400 | CO27: 3000 | CP27: 42400 | CU27: 0 | CV27: 1 | CW27: 6500 | CX27: 13200 | CY27: 0 | CZ27: 19700 | DE27: 0 | DJ27: 0 | DO27: 0 | DP27: 3 | DQ27: 0 | DR27: 0 | DS27: 0 | DT27: 0
A28: 39888 | B28: УПЦ ООО "Газпром трансгаз Чайковский" | C28: УПЦ ООО "Газпром трансгаз Чайковский" | D28: Обучение рабочих | E28: СлесКИППК | F28: Слесарь по КИПиА ПТК | G28: Слесарь по контрольно-измерительным приборам и автоматике ПТК | H28: Повышение квалификации (РАБ) | J28: (РАБ) Повышение квалификации на ПТК | M28: 14 | N28: 112 | O28: 28 | P28: 224 | Q28: 02.09.2024 | R28: 13.09.2024 | S28: 7 | T28: 20 | U28: 20 | V28: 100000 | W28: 231700 | X28: 26100 | Y28: 357800 | Z28: 0 | AA28: 357800 | AB28: 18 | AC28: 15 | AD28: 1 | AE28: 0 | AF28: 0 | AG28: 0 | AH28: 0 | AI28: 2 | AJ28: 13000 | AK28: 26400 | AL28: 3000 | AM28: 42400 | AN28: 1 | AO28: 6000 | AP28: 12100 | AQ28: 0 | AR28: 18100 | AW28: 0 | AX28: 2 | AY28: 12500 | AZ28: 28800 | BA28: 0 | BB28: 41300 | BC28: 2 | BD28: 15000 | BE28: 26400 | BF28: 5600 | BG28: 47000 | BH28: 2 | BI28: 12000 | BJ28: 24200 | BK28: 5000 | BL28: 41200 | BQ28: 0 | BV28: 0 | BW28: 3 | BX28: 21000 | BY28: 72000 | BZ28: 8500 | CA28: 101500 | CF28: 0 | CG28: 1 | CH28: 7500 | CI28: 15400 | CJ28: 1000 | CK28: 23900 | CL28: 2 | CM28: 13000 | CN28: 26400 | CO28: 3000 | CP28: 42400 | CU28: 0 | CZ28: 0 | DE28: 0 | DJ28: 0 | DO28: 0 | DP28: 2 | DQ28: 0 | DR28: 0 | DS28: 0 | DT28: 0
A29: 39889 | B29: УПЦ ООО "Газпром трансгаз Чайковский" | C29: УПЦ ООО "Газпром трансгаз Чайковский" | D29: Обучение рабочих | E29: СлесКИППК | F29: Слесарь по КИПиА ПТК | G29: Слесарь по контрольно-измерительным приборам и автоматике ПТК | H29: Повышение квалификации (РАБ) | J29: (РАБ) Повышение квалификации на ПТК | M29: 14 | N29: 112 | O29: 28 | P29: 224 | Q29: 30.09.2024 | R29: 11.10.2024 | S29: 7 | T29: 20 | U29: 20 | V29: 61000 | W29: 151200 | X29: 21100 | Y29: 233300 | Z29: 0 | AA29: 233300 | AB29: 12 | AC29: 11 | AH29: 0 | AI29: 2 | AJ29: 13000 | AK29: 26400 | AL29: 3000 | AM29: 42400 | AR29: 0 | AS29: 2 | AT29: 13000 | AU29: 24200 | AV29: 4800 | AW29: 42000 | AX29: 1 | AY29: 0 | AZ29: 0 | BA29: 0 | BB29: 0 | BC29: 1 | BD29: 7500 | BE29: 15400 | BF29: 2800 | BG29: 25700 | BL29: 0 | BQ29: 0 | BV29: 0 | BW29: 3 | BX29: 21000 | BY29: 72000 | BZ29: 9000 | CA29: 102000 | CF29: 0 | CK29: 0 | CL29: 1 | CM29: 6500 | CN29: 13200 | CO29: 1500 | CP29: 21200 | CU29: 0 | CV29: 1 | CW29: 0 | CX29: 0 | CY29: 0 | CZ29: 0 | DE29: 0 | DJ29: 0 | DO29: 0 | DP29: 1 | DQ29: 0 | DR29: 0 | DS29: 0 | DT29: 0
A30: 39890 | B30: УПЦ ООО "Газпром трансгаз Чайковский" | C30: УПЦ ООО "Газпром трансгаз Чайковский" | E30: АТСSi-2000 | F30: Экспл. АТС Si-2000 | G30: Эксплуатация цифровой АТС Si-2000 | J30: Периодическое обучение по плану общеста/организации (руководители, специалисты, рабочие) | L30: Краткосрочный семинар (от 16 до 40 час) | M30: 9 | N30: 72 | O30: 0 | P30: 0 | Q30: 11.03.2024 | R30: 22.03.2024 | S30: 7 | T30: 15 | U30: 16 | V30: 28500 | W30: 70200 | X30: 4500 | Y30: 103200 | Z30: 0 | AA30: 103200 | AB30: 7 | AC30: 5 | AH30: 0 | AM30: 0 | AN30: 1 | AO30: 6000 | AP30: 12100 | AQ30: 0 | AR30: 18100 | AW30: 0 | AX30: 2 | AY30: 13000 | AZ30: 26400 | BA30: 0 | BB30: 39400 | BC30: 1 | BD30: 3000 | BE30: 12500 | BF30: 3000 | BG30: 18500 | BL30: 0 | BM30: 1 | BN30: 0 | BO30: 0 | BP30: 0 | BQ30: 0 | BV30: 0 | CA30: 0 | CF30: 0 | CK30: 0 | CL30: 1 | CM30: 6500 | CN30: 19200 | CO30: 1500 | CP30: 27200 | CU30: 0 | CZ30: 0 | DE30: 0 | DJ30: 0 | DO30: 0 | DP30: 1 | DQ30: 0 | DR30: 0 | DS30: 0 | DT30: 0
A31: 39891 | B31: УПЦ ООО "Газпром трансгаз Чайковский" | C31: УПЦ ООО "Газпром трансгаз Чайковский" | D31: Обучение ИТР | E31: Оборуд КИИ | F31: Эксплуатация оборудования КИИ | G31: Эксплуатация оборудования критической информационной инфраструктуры | H31: Повышение квалификации | J31: Периодическое обучение по плану общеста/организации (руководители, специалисты, рабочие) | M31: 2 | N31: 16 | O31: 0 | P31: 0 | Q31: 28.02.2024 | R31: 29.02.2024 | S31: 7 | T31: 15 | U31: 20 | V31: 19500 | W31: 55100 | X31: 17900 | Y31: 92500 | Z31: 0 | AA31: 92500 | AB31: 12 | AC31: 12 | AH31: 0 | AM31: 0 | AN31: 2 | AO31: 2000 | AP31: 5000 | AQ31: 0 | AR31: 7000 | AS31: 2 | AT31: 4000 | AU31: 15600 | AV31: 4900 | AW31: 24500 | BB31: 0 | BC31: 1 | BD31: 2000 | BE31: 9000 | BF31: 3000 | BG31: 14000 | BL31: 0 | BQ31: 0 | BV31: 0 | BW31: 1 | BX31: 2000 | BY31: 6000 | BZ31: 3000 | CA31: 11000 | CB31: 1 | CC31: 2000 | CD31: 3900 | CE31: 500 | CF31: 6400 | CG31: 2 | CH31: 3000 | CI31: 6000 | CJ31: 2000 | CK31: 11000 | CL31: 3 | CM31: 4500 | CN31: 9600 | CO31: 4500 | CP31: 18600 | CU31: 0 | CZ31: 0 | DE31: 0 | DJ31: 0 | DO31: 0 | DT31: 0
A32: 39893 | B32: УПЦ ООО "Газпром трансгаз Чайковский" | C32: УПЦ ООО "Газпром трансгаз Чайковский" | D32: Обучение рабочих | E32: МонтеЭХЗПК | F32: Монтер ЭХЗ ПТК | G32: Монтер по защите подземных трубопроводов от коррозии ПТК | H32: Повышение квалификации (РАБ) | J32: (РАБ) Повышение квалификации на ПТК | M32: 10 | N32: 80 | O32: 50 | P32: 400 | Q32: 01.04.2024 | R32: 12.04.2024 | S32: 7 | T32: 20 | U32: 20 | V32: 77500 | W32: 168100 | X32: 14200 | Y32: 259800 | Z32: 0 | AA32: 259800 | AB32: 15 | AC32: 14 | AH32: 0 | AI32: 1 | AJ32: 6500 | AK32: 13200 | AL32: 1500 | AM32: 21200 | AR32: 0 | AS32: 1 | AT32: 7000 | AU32: 14300 | AV32: 2400 | AW32: 23700 | AX32: 4 | AY32: 25500 | AZ32: 52800 | BA32: 0 | BB32: 78300 | BC32: 1 | BD32: 6000 | BE32: 12100 | BF32: 2800 | BG32: 20900 | BH32: 2 | BI32: 6000 | BJ32: 12100 | BK32: 2500 | BL32: 20600 | BQ32: 0 | BV32: 0 | BW32: 1 | BX32: 7000 | BY32: 24000 | BZ32: 3000 | CA32: 34000 | CB32: 2 | CC32: 6500 | CD32: 13200 | CE32: 500 | CF32: 20200 | CK32: 0 | CL32: 1 | CM32: 6500 | CN32: 13200 | CO32: 1500 | CP32: 21200 | CU32: 0 | CV32: 1 | CW32: 6500 | CX32: 13200 | CY32: 0 | CZ32: 19700 | DE32: 0 | DJ32: 0 | DO32: 0 | DP32: 1 | DQ32: 0 | DR32: 0 | DS32: 0 | DT32: 0
A33: 39894 | B33: УПЦ ООО "Газпром трансгаз Чайковский" | C33: УПЦ ООО "Газпром трансгаз Чайковский" | D33: Обучение рабочих | E33: ЭлекЭлОбПК | F33: Электромонтер по рем. электрооборуд. ПТК | G33: Электромонтер по ремонту и обслуживанию электрооборудования ПТК | H33: Повышение квалификации (РАБ) | J33: (РАБ) Повышение квалификации на ПТК | M33: 10 | N33: 76 | O33: 43 | P33: 340 | Q33: 15.04.2024 | R33: 26.04.2024 | S33: 7 | T33: 15 | U33: 20 | V33: 84500 | W33: 193200 | X33: 19300 | Y33: 297000 | Z33: 0 | AA33: 297000 | AB33: 14 | AC33: 13 | AH33: 0 | AI33: 2 | AJ33: 13000 | AK33: 26400 | AL33: 3000 | AM33: 42400 | AN33: 1 | AO33: 6000 | AP33: 12100 | AQ33: 0 | AR33: 18100 | AS33: 1 | AT33: 7000 | AU33: 14300 | AV33: 2500 | AW33: 23800 | AX33: 1 | AY33: 6500 | AZ33: 13200 | BA33: 0 | BB33: 19700 | BC33: 1 | BD33: 7500 | BE33: 15400 | BF33: 2800 | BG33: 25700 | BH33: 1 | BI33: 6000 | BJ33: 12100 | BK33: 2500 | BL33: 20600 | BQ33: 0 | BV33: 0 | BW33: 1 | BX33: 7000 | BY33: 24000 | BZ33: 3000 | CA33: 34000 | CB33: 1 | CC33: 6000 | CD33: 12100 | CE33: 500 | CF33: 18600 | CK33: 0 | CL33: 2 | CM33: 13000 | CN33: 26400 | CO33: 3000 | CP33: 42400 | CU33: 0 | CV33: 1 | CW33: 6500 | CX33: 13200 | CY33: 0 | CZ33: 19700 | DE33: 0 | DF33: 1 | DG33: 6000 | DH33: 24000 | DI33: 2000 | DJ33: 32000 | DO33: 0 | DP33: 1 | DQ33: 0 | DR33: 0 | DS33: 0 | DT33: 0
A34: 39895 | B34: УПЦ ООО "Газпром трансгаз Чайковский" | C34: УПЦ ООО "Газпром трансгаз Чайковский" | D34: Обучение рабочих | E34: ЭлекСтанОбПК | F34: Эл.монтер станц.оборуд. телеф. связи ПТК | G34: Электромонтер станционного оборудования телефонной связи ПТК | H34: Повышение квалификации (РАБ) | J34: (РАБ) Повышение квалификации на ПТК | M34: 10 | N34: 80 | O34: 42 | P34: 336 | Q34: 13.05.2024 | R34: 24.05.2024 | S34: 7 | T34: 20 | U34: 20 | V34: 71000 | W34: 145200 | X34: 14400 | Y34: 230600 | Z34: 0 | AA34: 230600 | AB34: 11 | AC34: 11 | AH34: 0 | AI34: 1 | AJ34: 6500 | AK34: 13200 | AL34: 1500 | AM34: 21200 | AN34: 2 | AO34: 12000 | AP34: 24200 | AQ34: 0 | AR34: 36200 | AW34: 0 | AX34: 1 | AY34: 6500 | AZ34: 13200 | BA34: 0 | BB34: 19700 | BC34: 2 | BD34: 13000 | BE34: 28600 | BF34: 5400 | BG34: 47000 | BL34: 0 | BQ34: 0 | BV34: 0 | BW34: 1 | BX34: 7000 | BY34: 13200 | BZ34: 3000 | CA34: 23200 | CF34: 0 | CK34: 0 | CL34: 3 | CM34: 19500 | CN34: 39600 | CO34: 4500 | CP34: 63600 | CU34: 0 | CV34: 1 | CW34: 6500 | CX34: 13200 | CY34: 0 | CZ34: 19700 | DE34: 0 | DJ34: 0 | DO34: 0 | DT34: 0
A35: 39896 | B35: УПЦ ООО "Газпром трансгаз Чайковский" | C35: УПЦ ООО "Газпром трансгаз Чайковский" | D35: Обучение ИТР | E35: ДиспУпр | F35: Диспетчерское управление | G35: Диспетчерское управление технологическими процессами в транспорте газа | H35: Повышение квалификации | J35: Прочие технические (ГНВП, сварочное, противопожарные и т.д.) | M35: 9 | N35: 72 | O35: 0 | P35: 0 | Q35: 14.10.2024 | R35: 25.10.2024 | S35: 7 | T35: 15 | U35: 20 | V35: 71500 | W35: 255060 | X35: 13900 | Y35: 340460 | Z35: 0 | AA35: 340460 | AB35: 13 | AC35: 11 | AD35: 1 | AE35: 0 | AF35: 0 | AG35: 0 | AH35: 0 | AI35: 1 | AJ35: 6500 | AK35: 24000 | AL35: 1500 | AM35: 32000 | AN35: 2 | AO35: 12000 | AP35: 55000 | AQ35: 0 | AR35: 67000 | AW35: 0 | AX35: 1 | AY35: 6500 | AZ35: 13200 | BA35: 0 | BB35: 19700 | BC35: 1 | BD35: 6000 | BE35: 30000 | BF35: 2800 | BG35: 38800 | BH35: 1 | BI35: 7000 | BJ35: 26000 | BK35: 2500 | BL35: 35500 | BQ35: 0 | BV35: 0 | BW35: 1 | BX35: 7000 | BY35: 30000 | BZ35: 3000 | CA35: 40000 | CB35: 1 | CC35: 6500 | CD35: 15600 | CE35: 500 | CF35: 22600 | CG35: 2 | CH35: 13500 | CI35: 42060 | CJ35: 2100 | CK35: 57660 | CL35: 1 | CM35: 6500 | CN35: 19200 | CO35: 1500 | CP35: 27200 | CU35: 0 | CZ35: 0 | DE35: 0 | DJ35: 0 | DO35: 0 | DP35: 1 | DQ35: 0 | DR35: 0 | DS35: 0 | DT35: 0
A36: 39897 | B36: УПЦ ООО "Газпром трансгаз Чайковский" | C36: УПЦ ООО "Газпром трансгаз Чайковский" | E36: ЦифрСвязь | F36: Орг. тех. экспуат. цифровых систем связи | G36: Организация технической экспуатации цифровых систем связи | J36: Периодическое обучение по плану общеста/организации (руководители, специалисты, рабочие) | L36: Краткосрочный семинар (от 16 до 40 час) | M36: 5 | N36: 40 | O36: 0 | P36: 0 | Q36: 02.09.2024 | R36: 06.09.2024 | S36: 7 | T36: 15 | U36: 20 | V36: 31500 | W36: 108640 | X36: 13300 | Y36: 153440 | Z36: 0 | AA36: 153440 | AB36: 12 | AC36: 10 | AD36: 1 | AE36: 0 | AF36: 0 | AG36: 0 | AH36: 0 | AM36: 0 | AN36: 1 | AO36: 1500 | AP36: 2200 | AQ36: 0 | AR36: 3700 | AW36: 0 | AX36: 2 | AY36: 4000 | AZ36: 6600 | BA36: 0 | BB36: 10600 | BC36: 1 | BD36: 3000 | BE36: 12500 | BF36: 2800 | BG36: 18300 | BL36: 0 | BQ36: 0 | BV36: 0 | BW36: 2 | BX36: 14000 | BY36: 65000 | BZ36: 6000 | CA36: 85000 | CF36: 0 | CK36: 0 | CL36: 3 | CM36: 7000 | CN36: 17600 | CO36: 4500 | CP36: 29100 | CU36: 0 | CV36: 1 | CW36: 2000 | CX36: 4740 | CY36: 0 | CZ36: 6740 | DE36: 0 | DJ36: 0 | DO36: 0 | DP36: 1 | DQ36: 0 | DR36: 0 | DS36: 0 | DT36: 0
A37: 39898 | B37: УПЦ ООО "Газпром трансгаз Чайковский" | C37: УПЦ ООО "Газпром трансгаз Чайковский" | D37: Обучение рабочих | E37: ЭлТелСвРПК | F37: Эл.монтер лин. сооруж. телеф. связи. ПТК | G37: Электромонтер линейных сооружений телефонной связи и радиофикации ПТК | H37: Повышение квалификации (РАБ) | J37: (РАБ) Повышение квалификации на ПТК | M37: 10 | N37: 80 | O37: 22 | P37: 176 | Q37: 16.09.2024 | R37: 27.09.2024 | S37: 7 | T37: 20 | U37: 20 | V37: 59000 | W37: 130700 | X37: 12800 | Y37: 202500 | Z37: 0 | AA37: 202500 | AB37: 12 | AC37: 9 | AH37: 0 | AI37: 1 | AJ37: 6500 | AK37: 13200 | AL37: 1500 | AM37: 21200 | AN37: 1 | AO37: 6000 | AP37: 12100 | AQ37: 0 | AR37: 18100 | AW37: 0 | BB37: 0 | BC37: 1 | BD37: 6000 | BE37: 13200 | BF37: 2800 | BG37: 22000 | BL37: 0 | BM37: 1 | BN37: 0 | BO37: 0 | BP37: 0 | BQ37: 0 | BV37: 0 | BW37: 1 | BX37: 7000 | BY37: 24000 | BZ37: 3000 | CA37: 34000 | CF37: 0 | CG37: 1 | CH37: 7500 | CI37: 15400 | CJ37: 1000 | CK37: 23900 | CL37: 3 | CM37: 19500 | CN37: 39600 | CO37: 4500 | CP37: 63600 | CU37: 0 | CV37: 1 | CW37: 6500 | CX37: 13200 | CY37: 0 | CZ37: 19700 | DE37: 0 | DJ37: 0 | DO37: 0 | DP37: 2 | DQ37: 0 | DR37: 0 | DS37: 0 | DT37: 0
A38: 39899 | B38: УПЦ ООО "Газпром трансгаз Чайковский" | C38: УПЦ ООО "Газпром трансгаз Чайковский" | D38: Обучение рабочих | E38: РабЛюльки | F38: Рабочие люльки | G38: Рабочий люльки по управлению подъемником (вышкой) из люльки | H38: Повышение квалификации (РАБ) | J38: (РАБ) Курсы целевого назначения (в части получения допуска к работе на опасных производственных объектах) | M38: 4 | N38: 28 | O38: 0 | P38: 0 | Q38: 12.11.2024 | R38: 14.11.2024 | S38: 7 | T38: 14 | U38: 30 | V38: 11000 | W38: 31000 | X38: 7000 | Y38: 49000 | Z38: 0 | AA38: 49000 | AB38: 4 | AC38: 4 | AH38: 0 | AM38: 0 | AR38: 0 | AW38: 0 | BB38: 0 | BG38: 0 | BH38: 1 | BI38: 3500 | BJ38: 6600 | BK38: 2500 | BL38: 12600 | BQ38: 0 | BV38: 0 | BW38: 2 | BX38: 5000 | BY38: 20000 | BZ38: 4000 | CA38: 29000 | CB38: 1 | CC38: 2500 | CD38: 4400 | CE38: 500 | CF38: 7400 | CK38: 0 | CP38: 0 | CU38: 0 | CZ38: 0 | DE38: 0 | DJ38: 0 | DO38: 0 | DT38: 0
A39: 39900 | B39: УПЦ ООО "Газпром трансгаз Чайковский" | C39: УПЦ ООО "Газпром трансгаз Чайковский" | E39: ВЛ6-10кВ | F39: Экспл. микропроцессорных устройств | G39: Эксплуатация микропроцессорных устройств релейной защиты и автоматики вдольтрассовой ВЛ 6-10 кВ | J39: (РАБ) Другие виды повышения квалификации | L39: Краткосрочный семинар (от 16 до 40 час) | M39: 5 | N39: 40 | O39: 0 | P39: 0 | Q39: 28.10.2024 | R39: 01.11.2024 | S39: 7 | T39: 15 | U39: 15 | V39: 0 | W39: 0 | X39: 0 | Y39: 0 | Z39: 0 | AA39: 0 | AB39: 3 | AC39: 0 | AH39: 0 | AM39: 0 | AR39: 0 | AW39: 0 | BB39: 0 | BG39: 0 | BL39: 0 | BM39: 1 | BN39: 0 | BO39: 0 | BP39: 0 | BQ39: 0 | BV39: 0 | CA39: 0 | CF39: 0 | CK39: 0 | CP39: 0 | CU39: 0 | CZ39: 0 | DE39: 0 | DJ39: 0 | DO39: 0 | DP39: 2 | DQ39: 0 | DR39: 0 | DS39: 0 | DT39: 0
A40: 39904 | B40: УПЦ ООО "Газпром трансгаз Чайковский" | C40: Горнозаводское ЛПУМГ | D40: Обучение рабочих | E40: ВысРаб24 | F40: Высота 1,2 группа 24ч. | G40: (24ч) Обучение персонала безопасным методам и приемам выполнения работ на высоте "Работники 1,2 групп по безопасности работ на высоте" | H40: Повышение квалификации (РАБ) | J40: (РАБ) Курсы целевого назначения (в части получения допуска к работе на опасных производственных объектах) | M40: 3 | N40: 24 | O40: 0 | P40: 0 | Q40: 05.02.2024 | R40: 07.02.2024 | S40: 7 | T40: 20 | U40: 30 | V40: 0 | W40: 0 | X40: 0 | Y40: 0 | Z40: 0 | AA40: 0 | AB40: 29 | AC40: 29 | AH40: 0 | AM40: 0 | AR40: 0 | AW40: 0 | BB40: 0 | BC40: 29 | BD40: 0 | BE40: 0 | BF40: 0 | BG40: 0 | BL40: 0 | BQ40: 0 | BV40: 0 | CA40: 0 | CF40: 0 | CK40: 0 | CP40: 0 | CU40: 0 | CZ40: 0 | DE40: 0 | DJ40: 0 | DO40: 0 | DT40: 0
A41: 39905 | B41: УПЦ ООО "Газпром трансгаз Чайковский" | C41: Гремячинское ЛПУМГ | D41: Обучение рабочих | E41: ВысРаб24 | F41: Высота 1,2 группа 24ч. | G41: (24ч) Обучение персонала безопасным методам и приемам выполнения работ на высоте "Работники 1,2 групп по безопасности работ на высоте" | H41: Повышение квалификации (РАБ) | J41: (РАБ) Курсы целевого назначения (в части получения допуска к работе на опасных производственных объектах) | M41: 3 | N41: 24 | O41: 0 | P41: 0 | Q41: 12.02.2024 | R41: 14.02.2024 | S41: 7 | T41: 20 | U41: 30 | V41: 0 | W41: 0 | X41: 0 | Y41: 0 | Z41: 0 | AA41: 0 | AB41: 21 | AC41: 21 | AH41: 0 | AM41: 0 | AR41: 0 | AW41: 0 | BB41: 0 | BG41: 0 | BH41: 21 | BI41: 0 | BJ41: 0 | BK41: 0 | BL41: 0 | BQ41: 0 | BV41: 0 | CA41: 0 | CF41: 0 | CK41: 0 | CP41: 0 | CU41: 0 | CZ41: 0 | DE41: 0 | DJ41: 0 | DO41: 0 | DT41: 0
A42: 39906 | B42: УПЦ ООО "Газпром трансгаз Чайковский" | C42: ООО "Газпром трансгаз Чайковский" | D42: Обучение ИТР | E42: КурсТребПБ | F42: Требования промышленной безопасности | G42: Требования промышленной безопасности | H42: Повышение квалификации | J42: Предаттестационная подготовка по промышленной безопасности, экологической безопасности и др. | M42: 15 | N42: 60 | O42: 0 | P42: 0 | Q42: 15.01.2024 | R42: 02.02.2024 | S42: 7 | T42: 30 | U42: 30 | V42: 0 | W42: 0 | X42: 0 | Y42: 0 | Z42: 0 | AA42: 0 | AB42: 30 | AC42: 24 | AH42: 0 | AM42: 0 | AN42: 1 | AO42: 0 | AP42: 0 | AQ42: 0 | AR42: 0 | AS42: 4 | AT42: 0 | AU42: 0 | AV42: 0 | AW42: 0 | AX42: 2 | AY42: 0 | AZ42: 0 | BA42: 0 | BB42: 0 | BC42: 10 | BD42: 0 | BE42: 0 | BF42: 0 | BG42: 0 | BL42: 0 | BM42: 1 | BN42: 0 | BO42: 0 | BP42: 0 | BQ42: 0 | BV42: 0 | BW42: 1 | BX42: 0 | BY42: 0 | BZ42: 0 | CA42: 0 | CF42: 0 | CG42: 6 | CH42: 0 | CI42: 0 | CJ42: 0 | CK42: 0 | CP42: 0 | CU42: 0 | CZ42: 0 | DA42: 2 | DB42: 0 | DC42: 0 | DD42: 0 | DE42: 0 | DJ42: 0 | DO42: 0 | DP42: 3 | DQ42: 0 | DR42: 0 | DS42: 0 | DT42: 0
A43: 39907 | B43: УПЦ ООО "Газпром трансгаз Чайковский" | C43: ООО "Газпром трансгаз Чайковский" | D43: Обучение ИТР | E43: ПовАудитБез | F43: Поведенческий аудит безопасности | G43: Поведенческий аудит безопасности | H43: Повышение квалификации | J43: Другие целевые программы (руководители, специалисты, рабочие) | M43: 3 | N43: 24 | O43: 0 | P43: 0 | Q43: 04.03.2024 | R43: 06.03.2024 | S43: 7 | T43: 20 | U43: 30 | V43: 0 | W43: 0 | X43: 0 | Y43: 0 | Z43: 0 | AA43: 0 | AB43: 48 | AC43: 37 | AH43: 0 | AI43: 5 | AJ43: 0 | AK43: 0 | AL43: 0 | AM43: 0 | AN43: 4 | AO43: 0 | AP43: 0 | AQ43: 0 | AR43: 0 | AS43: 2 | AT43: 0 | AU43: 0 | AV43: 0 | AW43: 0 | AX43: 1 | AY43: 0 | AZ43: 0 | BA43: 0 | BB43: 0 | BC43: 2 | BD43: 0 | BE43: 0 | BF43: 0 | BG43: 0 | BH43: 1 | BI43: 0 | BJ43: 0 | BK43: 0 | BL43: 0 | BM43: 1 | BN43: 0 | BO43: 0 | BP43: 0 | BQ43: 0 | BV43: 0 | BW43: 1 | BX43: 0 | BY43: 0 | BZ43: 0 | CA43: 0 | CB43: 18 | CC43: 0 | CD43: 0 | CE43: 0 | CF43: 0 | CK43: 0 | CL43: 1 | CM43: 0 | CN43: 0 | CO43: 0 | CP43: 0 | CU43: 0 | CZ43: 0 | DA43: 6 | DB43: 0 | DC43: 0 | DD43: 0 | DE43: 0 | DF43: 2 | DG43: 0 | DH43: 0 | DI43: 0 | DJ43: 0 | DO43: 0 | DP43: 4 | DQ43: 0 | DR43: 0 | DS43: 0 | DT43: 0
A44: 39908 | B44: УПЦ ООО "Газпром трансгаз Чайковский" | C44: Можгинское ЛПУМГ | D44: Обучение рабочих | E44: ВысРаб24 | F44: Высота 1,2 группа 24ч. | G44: (24ч) Обучение персонала безопасным методам и приемам выполнения работ на высоте "Работники 1,2 групп по безопасности работ на высоте" | H44: Повышение квалификации (РАБ) | J44: (РАБ) Курсы целевого назначения (в части получения допуска к работе на опасных производственных объектах) | M44: 3 | N44: 24 | O44: 0 | P44: 0 | Q44: 11.03.2024 | R44: 13.03.2024 | S44: 7 | T44: 20 | U44: 30 | V44: 0 | W44: 0 | X44: 0 | Y44: 0 | Z44: 0 | AA44: 0 | AB44: 15 | AC44: 13 | AH44: 0 | AM44: 0 | AR44: 0 | AW44: 0 | BB44: 0 | BG44: 0 | BL44: 0 | BQ44: 0 | BV44: 0 | CA44: 0 | CB44: 13 | CC44: 0 | CD44: 0 | CE44: 0 | CF44: 0 | CK44: 0 | CP44: 0 | CU44: 0 | CZ44: 0 | DE44: 0 | DJ44: 0 | DK44: 2 | DL44: 0 | DM44: 0 | DN44: 0 | DO44: 0 | DT44: 0
A45: 39909 | B45: УПЦ ООО "Газпром трансгаз Чайковский" | C45: Алмазное ЛПУМГ | D45: Обучение рабочих | E45: ВысРаб24 | F45: Высота 1,2 группа 24ч. | G45: (24ч) Обучение персонала безопасным методам и приемам выполнения работ на высоте "Работники 1,2 групп по безопасности работ на высоте" | H45: Повышение квалификации (РАБ) | J45: (РАБ) Курсы целевого назначения (в части получения допуска к работе на опасных производственных объектах) | M45: 3 | N45: 24 | O45: 0 | P45: 0 | Q45: 11.03.2024 | R45: 13.03.2024 | S45: 7 | T45: 20 | U45: 30 | V45: 2000 | W45: 3300 | X45: 0 | Y45: 5300 | Z45: 0 | AA45: 5300 | AB45: 16 | AC45: 12 | AH45: 0 | AI45: 11 | AJ45: 0 | AK45: 0 | AL45: 0 | AM45: 0 | AR45: 0 | AW45: 0 | AX45: 1 | AY45: 2000 | AZ45: 3300 | BA45: 0 | BB45: 5300 | BG45: 0 | BL45: 0 | BM45: 4 | BN45: 0 | BO45: 0 | BP45: 0 | BQ45: 0 | BV45: 0 | CA45: 0 | CF45: 0 | CK45: 0 | CP45: 0 | CU45: 0 | CZ45: 0 | DE45: 0 | DJ45: 0 | DO45: 0 | DT45: 0
A46: 39910 | B46: УПЦ ООО "Газпром трансгаз Чайковский" | C46: Бардымское ЛПУМГ | D46: Обучение рабочих | E46: ВысРаб24 | F46: Высота 1,2 группа 24ч. | G46: (24ч) Обучение персонала безопасным методам и приемам выполнения работ на высоте "Работники 1,2 групп по безопасности работ на высоте" | H46: Повышение квалификации (РАБ) | J46: (РАБ) Курсы целевого назначения (в части получения допуска к работе на опасных производственных объектах) | M46: 3 | N46: 24 | O46: 0 | P46: 0 | Q46: 18.03.2024 | R46: 20.03.2024 | S46: 7 | T46: 20 | U46: 30 | V46: 2000 | W46: 5400 | X46: 0 | Y46: 7400 | Z46: 0 | AA46: 7400 | AB46: 9 | AC46: 9 | AH46: 0 | AM46: 0 | AN46: 8 | AO46: 0 | AP46: 0 | AQ46: 0 | AR46: 0 | AW46: 0 | BB46: 0 | BG46: 0 | BL46: 0 | BQ46: 0 | BV46: 0 | CA46: 0 | CF46: 0 | CK46: 0 | CP46: 0 | CU46: 0 | CV46: 1 | CW46: 2000 | CX46: 5400 | CY46: 0 | CZ46: 7400 | DE46: 0 | DJ46: 0 | DO46: 0 | DT46: 0
A47: 39911 | B47: УПЦ ООО "Газпром трансгаз Чайковский" | C47: Гремячинское ЛПУМГ | D47: Обучение рабочих | E47: ВысРаб24 | F47: Высота 1,2 группа 24ч. | G47: (24ч) Обучение персонала безопасным методам и приемам выполнения работ на высоте "Работники 1,2 групп по безопасности работ на высоте" | H47: Повышение квалификации (РАБ) | J47: (РАБ) Курсы целевого назначения (в части получения допуска к работе на опасных производственных объектах) | M47: 3 | N47: 24 | O47: 0 | P47: 0 | Q47: 25.03.2024 | R47: 27.03.2024 | S47: 7 | T47: 20 | U47: 30 | V47: 0 | W47: 0 | X47: 0 | Y47: 0 | Z47: 0 | AA47: 0 | AB47: 23 | AC47: 23 | AH47: 0 | AM47: 0 | AR47: 0 | AW47: 0 | BB47: 0 | BG47: 0 | BH47: 23 | BI47: 0 | BJ47: 0 | BK47: 0 | BL47: 0 | BQ47: 0 | BV47: 0 | CA47: 0 | CF47: 0 | CK47: 0 | CP47: 0 | CU47: 0 | CZ47: 0 | DE47: 0 | DJ47: 0 | DO47: 0 | DT47: 0
A48: 39913 | B48: УПЦ ООО "Газпром трансгаз Чайковский" | C48: Кунгурское ЛПУМГ | D48: Обучение рабочих | E48: ВысРаб24 | F48: Высота 1,2 группа 24ч. | G48: (24ч) Обучение персонала безопасным методам и приемам выполнения работ на высоте "Работники 1,2 групп по безопасности работ на высоте" | H48: Повышение квалификации (РАБ) | J48: (РАБ) Курсы целевого назначения (в части получения допуска к работе на опасных производственных объектах) | M48: 3 | N48: 24 | O48: 0 | P48: 0 | Q48: 01.04.2024 | R48: 03.04.2024 | S48: 7 | T48: 20 | U48: 30 | V48: 0 | W48: 0 | X48: 0 | Y48: 0 | Z48: 0 | AA48: 0 | AB48: 16 | AC48: 16 | AH48: 0 | AM48: 0 | AR48: 0 | AW48: 0 | BB48: 0 | BG48: 0 | BL48: 0 | BQ48: 0 | BV48: 0 | BW48: 16 | BX48: 0 | BY48: 0 | BZ48: 0 | CA48: 0 | CF48: 0 | CK48: 0 | CP48: 0 | CU48: 0 | CZ48: 0 | DE48: 0 | DJ48: 0 | DO48: 0 | DT48: 0
A49: 39914 | B49: УПЦ ООО "Газпром трансгаз Чайковский" | C49: Воткинское ЛПУМГ | D49: Обучение рабочих | E49: ВысРаб24 | F49: Высота 1,2 группа 24ч. | G49: (24ч) Обучение персонала безопасным методам и приемам выполнения работ на высоте "Работники 1,2 групп по безопасности работ на высоте" | H49: Повышение квалификации (РАБ) | J49: (РАБ) Курсы целевого назначения (в части получения допуска к работе на опасных производственных объектах) | M49: 3 | N49: 24 | O49: 0 | P49: 0 | Q49: 08.04.2024 | R49: 10.04.2024 | S49: 7 | T49: 20 | U49: 30 | V49: 5000 | W49: 10900 | X49: 500 | Y49: 16400 | Z49: 0 | AA49: 16400 | AB49: 14 | AC49: 14 | AH49: 0 | AM49: 0 | AR49: 0 | AW49: 0 | AX49: 13 | AY49: 3000 | AZ49: 5500 | BA49: 500 | BB49: 9000 | BG49: 0 | BL49: 0 | BQ49: 0 | BV49: 0 | CA49: 0 | CF49: 0 | CK49: 0 | CP49: 0 | CU49: 0 | CV49: 1 | CW49: 2000 | CX49: 5400 | CY49: 0 | CZ49: 7400 | DE49: 0 | DJ49: 0 | DO49: 0 | DT49: 0
A50: 39915 | B50: УПЦ ООО "Газпром трансгаз Чайковский" | C50: Кунгурское ЛПУМГ | D50: Обучение рабочих | E50: ВысРаб24 | F50: Высота 1,2 группа 24ч. | G50: (24ч) Обучение персонала безопасным методам и приемам выполнения работ на высоте "Работники 1,2 групп по безопасности работ на высоте" | H50: Повышение квалификации (РАБ) | J50: (РАБ) Курсы целевого назначения (в части получения допуска к работе на опасных производственных объектах) | M50: 3 | N50: 24 | O50: 0 | P50: 0 | Q50: 22.04.2024 | R50: 24.04.2024 | S50: 7 | T50: 20 | U50: 30 | V50: 4000 | W50: 10800 | X50: 0 | Y50: 14800 | Z50: 0 | AA50: 14800 | AB50: 13 | AC50: 12 | AH50: 0 | AM50: 0 | AR50: 0 | AW50: 0 | BB50: 0 | BG50: 0 | BL50: 0 | BQ50: 0 | BV50: 0 | BW50: 10 | BX50: 0 | BY50: 0 | BZ50: 0 | CA50: 0 | CF50: 0 | CK50: 0 | CP50: 0 | CU50: 0 | CV50: 2 | CW50: 4000 | CX50: 10800 | CY50: 0 | CZ50: 14800 | DE50: 0 | DJ50: 0 | DK50: 1 | DL50: 0 | DM50: 0 | DN50: 0 | DO50: 0 | DT50: 0
A51: 39916 | B51: УПЦ ООО "Газпром трансгаз Чайковский" | C51: Гремячинское ЛПУМГ | D51: Обучение рабочих | E51: ВысРаб24 | F51: Высота 1,2 группа 24ч. | G51: (24ч) Обучение персонала безопасным методам и приемам выполнения работ на высоте "Работники 1,2 групп по безопасности работ на высоте" | H51: Повышение квалификации (РАБ) | J51: (РАБ) Курсы целевого назначения (в части получения допуска к работе на опасных производственных объектах) | M51: 3 | N51: 24 | O51: 0 | P51: 0 | Q51: 15.04.2024 | R51: 17.04.2024 | S51: 7 | T51: 20 | U51: 30 | V51: 0 | W51: 0 | X51: 0 | Y51: 0 | Z51: 0 | AA51: 0 | AB51: 20 | AC51: 20 | AH51: 0 | AM51: 0 | AR51: 0 | AW51: 0 | BB51: 0 | BG51: 0 | BH51: 20 | BI51: 0 | BJ51: 0 | BK51: 0 | BL51: 0 | BQ51: 0 | BV51: 0 | CA51: 0 | CF51: 0 | CK51: 0 | CP51: 0 | CU51: 0 | CZ51: 0 | DE51: 0 | DJ51: 0 | DO51: 0 | DT51: 0
A52: 39917 | B52: УПЦ ООО "Газпром трансгаз Чайковский" | C52: Пермское ЛПУМГ | D52: Обучение рабочих | E52: ВысРаб24 | F52: Высота 1,2 группа 24ч. | G52: (24ч) Обучение персонала безопасным методам и приемам выполнения работ на высоте "Работники 1,2 групп по безопасности работ на высоте" | H52: Повышение квалификации (РАБ) | J52: (РАБ) Курсы целевого назначения (в части получения допуска к работе на опасных производственных объектах) | M52: 3 | N52: 24 | O52: 0 | P52: 0 | Q52: 22.04.2024 | R52: 24.04.2024 | S52: 7 | T52: 20 | U52: 30 | V52: 0 | W52: 0 | X52: 0 | Y52: 0 | Z52: 0 | AA52: 0 | AB52: 11 | AC52: 11 | AH52: 0 | AM52: 0 | AR52: 0 | AW52: 0 | BB52: 0 | BG52: 0 | BL52: 0 | BQ52: 0 | BV52: 0 | CA52: 0 | CF52: 0 | CK52: 0 | CL52: 11 | CM52: 0 | CN52: 0 | CO52: 0 | CP52: 0 | CU52: 0 | CZ52: 0 | DE52: 0 | DJ52: 0 | DO52: 0 | DT52: 0
A53: 39918 | B53: УПЦ ООО "Газпром трансгаз Чайковский" | C53: ООО "Газпром трансгаз Чайковский" | D53: Обучение ИТР | E53: КурсТребПБ | F53: Требования промышленной безопасности | G53: Требования промышленной безопасности | H53: Повышение квалификации | J53: Предаттестационная подготовка по промышленной безопасности, экологической безопасности и др. | M53: 15 | N53: 60 | O53: 0 | P53: 0 | Q53: 01.04.2024 | R53: 19.04.2024 | S53: 7 | T53: 30 | U53: 30 | V53: 0 | W53: 0 | X53: 0 | Y53: 0 | Z53: 0 | AA53: 0 | AB53: 30 | AC53: 25 | AD53: 3 | AE53: 0 | AF53: 0 | AG53: 0 | AH53: 0 | AM53: 0 | AR53: 0 | AW53: 0 | AX53: 5 | AY53: 0 | AZ53: 0 | BA53: 0 | BB53: 0 | BC53: 14 | BD53: 0 | BE53: 0 | BF53: 0 | BG53: 0 | BL53: 0 | BM53: 1 | BN53: 0 | BO53: 0 | BP53: 0 | BQ53: 0 | BV53: 0 | BW53: 1 | BX53: 0 | BY53: 0 | BZ53: 0 | CA53: 0 | CB53: 5 | CC53: 0 | CD53: 0 | CE53: 0 | CF53: 0 | CK53: 0 | CP53: 0 | CU53: 0 | CZ53: 0 | DE53: 0 | DJ53: 0 | DO53: 0 | DP53: 1 | DQ53: 0 | DR53: 0 | DS53: 0 | DT53: 0
A54: 39920 | B54: УПЦ ООО "Газпром трансгаз Чайковский" | C54: Увинское ЛПУМГ | D54: Обучение рабочих | E54: ВысРаб24 | F54: Высота 1,2 группа 24ч. | G54: (24ч) Обучение персонала безопасным методам и приемам выполнения работ на высоте "Работники 1,2 групп по безопасности работ на высоте" | H54: Повышение квалификации (РАБ) | J54: (РАБ) Курсы целевого назначения (в части получения допуска к работе на опасных производственных объектах) | M54: 3 | N54: 24 | O54: 0 | P54: 0 | Q54: 20.05.2024 | R54: 22.05.2024 | S54: 7 | T54: 20 | U54: 30 | V54: 0 | W54: 0 | X54: 0 | Y54: 0 | Z54: 0 | AA54: 0 | AB54: 11 | AC54: 11 | AH54: 0 | AM54: 0 | AR54: 0 | AW54: 0 | BB54: 0 | BG54: 0 | BL54: 0 | BQ54: 0 | BV54: 0 | CA54: 0 | CF54: 0 | CK54: 0 | CP54: 0 | CU54: 0 | CV54: 11 | CW54: 0 | CX54: 0 | CY54: 0 | CZ54: 0 | DE54: 0 | DJ54: 0 | DO54: 0 | DT54: 0
A55: 39921 | B55: УПЦ ООО "Газпром трансгаз Чайковский" | C55: УАВР №2 | D55: Обучение рабочих | E55: ВысРаб24 | F55: Высота 1,2 группа 24ч. | G55: (24ч) Обучение персонала безопасным методам и приемам выполнения работ на высоте "Работники 1,2 групп по безопасности работ на высоте" | H55: Повышение квалификации (РАБ) | J55: (РАБ) Курсы целевого назначения (в части получения допуска к работе на опасных производственных объектах) | M55: 3 | N55: 24 | O55: 0 | P55: 0 | Q55: 27.05.2024 | R55: 29.05.2024 | S55: 7 | T55: 20 | U55: 30 | V55: 0 | W55: 0 | X55: 0 | Y55: 0 | Z55: 0 | AA55: 0 | AB55: 11 | AC55: 11 | AH55: 0 | AM55: 0 | AR55: 0 | AW55: 0 | BB55: 0 | BG55: 0 | BL55: 0 | BQ55: 0 | BV55: 0 | CA55: 0 | CF55: 0 | CK55: 0 | CP55: 0 | CU55: 0 | CZ55: 0 | DE55: 0 | DF55: 11 | DG55: 0 | DH55: 0 | DI55: 0 | DJ55: 0 | DO55: 0 | DT55: 0
A56: 39924 | B56: УПЦ ООО "Газпром трансгаз Чайковский" | C56: ООО "Газпром трансгаз Чайковский" | D56: Обучение ИТР | E56: ПовАудитБез | F56: Поведенческий аудит безопасности | G56: Поведенческий аудит безопасности | H56: Повышение квалификации | J56: Другие целевые программы (руководители, специалисты, рабочие) | M56: 3 | N56: 24 | O56: 0 | P56: 0 | Q56: 03.06.2024 | R56: 05.06.2024 | S56: 7 | T56: 20 | U56: 30 | V56: 0 | W56: 0 | X56: 0 | Y56: 0 | Z56: 0 | AA56: 0 | AB56: 42 | AC56: 32 | AH56: 0 | AI56: 5 | AJ56: 0 | AK56: 0 | AL56: 0 | AM56: 0 | AN56: 4 | AO56: 0 | AP56: 0 | AQ56: 0 | AR56: 0 | AS56: 1 | AT56: 0 | AU56: 0 | AV56: 0 | AW56: 0 | BB56: 0 | BC56: 5 | BD56: 0 | BE56: 0 | BF56: 0 | BG56: 0 | BH56: 2 | BI56: 0 | BJ56: 0 | BK56: 0 | BL56: 0 | BQ56: 0 | BV56: 0 | CA56: 0 | CB56: 15 | CC56: 0 | CD56: 0 | CE56: 0 | CF56: 0 | CK56: 0 | CP56: 0 | CU56: 0 | CZ56: 0 | DA56: 6 | DB56: 0 | DC56: 0 | DD56: 0 | DE56: 0 | DJ56: 0 | DO56: 0 | DP56: 4 | DQ56: 0 | DR56: 0 | DS56: 0 | DT56: 0
A57: 39975 | B57: УПЦ ООО "Газпром трансгаз Чайковский" | C57: Горнозаводское ЛПУМГ | D57: Обучение рабочих | E57: ВысРаб24 | F57: Высота 1,2 группа 24ч. | G57: (24ч) Обучение персонала безопасным методам и приемам выполнения работ на высоте "Работники 1,2 групп по безопасности работ на высоте" | H57: Повышение квалификации (РАБ) | J57: (РАБ) Курсы целевого назначения (в части получения допуска к работе на опасных производственных объектах) | M57: 3 | N57: 24 | O57: 0 | P57: 0 | Q57: 09.09.2024 | R57: 11.09.2024 | S57: 7 | T57: 20 | U57: 30 | V57: 0 | W57: 0 | X57: 0 | Y57: 0 | Z57: 0 | AA57: 0 | AB57: 30 | AC57: 30 | AH57: 0 | AM57: 0 | AR57: 0 | AW57: 0 | BB57: 0 | BC57: 30 | BD57: 0 | BE57: 0 | BF57: 0 | BG57: 0 | BL57: 0 | BQ57: 0 | BV57: 0 | CA57: 0 | CF57: 0 | CK57: 0 | CP57: 0 | CU57: 0 | CZ57: 0 | DE57: 0 | DJ57: 0 | DO57: 0 | DT57: 0
A58: 39985 | B58: УПЦ ООО "Газпром трансгаз Чайковский" | C58: ООО "Газпром трансгаз Чайковский" | E58: МашТКПП | F58: Машинист ТК КПП | G58: Машинист технологических компрессоров КПП | I58: Переподготовка | J58: (РАБ) Переподготовка | M58: 20 | N58: 160 | O58: 23 | P58: 184 | Q58: 13.05.2024 | R58: 07.06.2024 | S58: 7 | T58: 15 | U58: 20 | V58: 7500 | W58: 18200 | X58: 3000 | Y58: 28700 | Z58: 0 | AA58: 28700 | AB58: 5 | AC58: 1 | AH58: 0 | AM58: 0 | AR58: 0 | AW58: 0 | BB58: 0 | BC58: 1 | BD58: 7500 | BE58: 18200 | BF58: 3000 | BG58: 28700 | BL58: 0 | BQ58: 0 | BV58: 0 | CA58: 0 | CF58: 0 | CK58: 0 | CP58: 0 | CU58: 0 | CZ58: 0 | DE58: 0 | DJ58: 0 | DO58: 0 | DP58: 4 | DQ58: 0 | DR58: 0 | DS58: 0 | DT58: 0
A59: 39987 | B59: УПЦ ООО "Газпром трансгаз Чайковский" | C59: ООО "Газпром трансгаз Чайковский" | D59: Обучение рабочих | E59: ПрСосуды | F59: Правила ПБ (сосуды под давлением) | G59: Правила промышленной безопасности опасных производственных объектов, на которых используется оборудование, работающие под избыточным давлением (сосуды, цистерны, бочки, баллоны) | H59: Повышение квалификации (РАБ) | J59: (РАБ) Курсы целевого назначения (в части получения допуска к работе на опасных производственных объектах) | M59: 4 | N59: 32 | O59: 0 | P59: 0 | Q59: 29.01.2024 | R59: 01.02.2024 | S59: 7 | T59: 20 | U59: 20 | V59: 28500 | W59: 60800 | X59: 15700 | Y59: 105000 | Z59: 0 | AA59: 105000 | AB59: 23 | AC59: 14 | AH59: 0 | AM59: 0 | AN59: 3 | AO59: 6000 | AP59: 9900 | AQ59: 0 | AR59: 15900 | AW59: 0 | AX59: 3 | AY59: 3000 | AZ59: 5500 | BA59: 0 | BB59: 8500 | BC59: 3 | BD59: 9000 | BE59: 18500 | BF59: 8600 | BG59: 36100 | BH59: 1 | BI59: 0 | BJ59: 0 | BK59: 0 | BL59: 0 | BM59: 4 | BN59: 0 | BO59: 0 | BP59: 0 | BQ59: 0 | BV59: 0 | BW59: 1 | BX59: 3000 | BY59: 4400 | BZ59: 2600 | CA59: 10000 | CB59: 1 | CC59: 2500 | CD59: 5500 | CE59: 500 | CF59: 8500 | CK59: 0 | CP59: 0 | CU59: 0 | CZ59: 0 | DE59: 0 | DF59: 2 | DG59: 5000 | DH59: 17000 | DI59: 4000 | DJ59: 26000 | DO59: 0 | DP59: 5 | DQ59: 0 | DR59: 0 | DS59: 0 | DT59: 0
A60: 39988 | B60: УПЦ ООО "Газпром трансгаз Чайковский" | C60: ООО "Газпром трансгаз Чайковский" | D60: Обучение рабочих | E60: ПрСосуды | F60: Правила ПБ (сосуды под давлением) | G60: Правила промышленной безопасности опасных производственных объектов, на которых используется оборудование, работающие под избыточным давлением (сосуды, цистерны, бочки, баллоны) | H60: Повышение квалификации (РАБ) | J60: (РАБ) Курсы целевого назначения (в части получения допуска к работе на опасных производственных объектах) | M60: 4 | N60: 32 | O60: 0 | P60: 0 | Q60: 25.03.2024 | R60: 28.03.2024 | S60: 7 | T60: 20 | U60: 20 | V60: 37000 | W60: 98300 | X60: 26100 | Y60: 161400 | Z60: 0 | AA60: 161400 | AB60: 26 | AC60: 15 | AH60: 0 | AM60: 0 | AR60: 0 | AW60: 0 | BB60: 0 | BC60: 4 | BD60: 12000 | BE60: 24000 | BF60: 11600 | BG60: 47600 | BH60: 1 | BI60: 0 | BJ60: 0 | BK60: 0 | BL60: 0 | BM60: 7 | BN60: 0 | BO60: 0 | BP60: 0 | BQ60: 0 | BV60: 0 | BW60: 3 | BX60: 10000 | BY60: 30000 | BZ60: 8000 | CA60: 48000 | CB60: 2 | CC60: 2500 | CD60: 5500 | CE60: 500 | CF60: 8500 | CK60: 0 | CP60: 0 | CU60: 0 | CV60: 2 | CW60: 5000 | CX60: 8800 | CY60: 0 | CZ60: 13800 | DA60: 1 | DB60: 0 | DC60: 0 | DD60: 0 | DE60: 0 | DF60: 3 | DG60: 7500 | DH60: 30000 | DI60: 6000 | DJ60: 43500 | DO60: 0 | DP60: 3 | DQ60: 0 | DR60: 0 | DS60: 0 | DT60: 0
A61: 39989 | B61: УПЦ ООО "Газпром трансгаз Чайковский" | C61: ООО "Газпром трансгаз Чайковский" | D61: Обучение рабочих | E61: ТОЗапорА | F61: Обслуживание и эксплуатация ТА | G61: Обслуживание и эксплуатация трубопроводной арматуры | H61: Повышение квалификации (РАБ) | J61: Другие целевые программы (руководители, специалисты, рабочие) | M61: 5 | N61: 40 | O61: 0 | P61: 0 | Q61: 26.02.2024 | R61: 01.03.2024 | S61: 7 | T61: 20 | U61: 20 | V61: 42500 | W61: 95300 | X61: 26000 | Y61: 163800 | Z61: 0 | AA61: 163800 | AB61: 18 | AC61: 15 | AH61: 0 | AI61: 2 | AJ61: 6000 | AK61: 11000 | AL61: 3000 | AM61: 20000 | AR61: 0 | AW61: 0 | BB61: 0 | BC61: 2 | BD61: 6000 | BE61: 12000 | BF61: 6000 | BG61: 24000 | BL61: 0 | BM61: 2 | BN61: 0 | BO61: 0 | BP61: 0 | BQ61: 0 | BV61: 0 | BW61: 4 | BX61: 14000 | BY61: 41500 | BZ61: 12000 | CA61: 67500 | CB61: 2 | CC61: 2500 | CD61: 4400 | CE61: 500 | CF61: 7400 | CK61: 0 | CL61: 3 | CM61: 8000 | CN61: 15400 | CO61: 4500 | CP61: 27900 | CU61: 0 | CV61: 2 | CW61: 6000 | CX61: 11000 | CY61: 0 | CZ61: 17000 | DE61: 0 | DJ61: 0 | DO61: 0 | DP61: 1 | DQ61: 0 | DR61: 0 | DS61: 0 | DT61: 0
A62: 39990 | B62: УПЦ ООО "Газпром трансгаз Чайковский" | C62: ООО "Газпром трансгаз Чайковский" | D62: Обучение рабочих | E62: ТОЗапорА | F62: Обслуживание и эксплуатация ТА | G62: Обслуживание и эксплуатация трубопроводной арматуры | H62: Повышение квалификации (РАБ) | J62: Другие целевые программы (руководители, специалисты, рабочие) | M62: 5 | N62: 40 | O62: 0 | P62: 0 | Q62: 16.09.2024 | R62: 20.09.2024 | S62: 7 | T62: 20 | U62: 20 | V62: 25500 | W62: 65500 | X62: 21800 | Y62: 112800 | Z62: 0 | AA62: 112800 | AB62: 18 | AC62: 10 | AH62: 0 | AM62: 0 | AR62: 0 | AW62: 0 | AX62: 2 | AY62: 0 | AZ62: 0 | BA62: 0 | BB62: 0 | BC62: 3 | BD62: 9000 | BE62: 18500 | BF62: 8800 | BG62: 36300 | BH62: 1 | BI62: 3500 | BJ62: 6600 | BK62: 2500 | BL62: 12600 | BQ62: 0 | BV62: 0 | BW62: 3 | BX62: 10500 | BY62: 36000 | BZ62: 9000 | CA62: 55500 | CF62: 0 | CK62: 0 | CL62: 1 | CM62: 2500 | CN62: 4400 | CO62: 1500 | CP62: 8400 | CU62: 0 | CZ62: 0 | DE62: 0 | DJ62: 0 | DO62: 0 | DP62: 8 | DQ62: 0 | DR62: 0 | DS62: 0 | DT62: 0
A63: 39991 | B63: УПЦ ООО "Газпром трансгаз Чайковский" | C63: ООО "Газпром трансгаз Чайковский" | D63: Обучение рабочих | E63: МашТКПК | F63: Машинист ТК ПТК | G63: Машинист технологических компрессоров ПТК | H63: Повышение квалификации (РАБ) | J63: (РАБ) Повышение квалификации на ПТК | M63: 15 | N63: 120 | O63: 25 | P63: 200 | Q63: 11.03.2024 | R63: 29.03.2024 | S63: 7 | T63: 15 | U63: 20 | V63: 140500 | W63: 324100 | X63: 20300 | Y63: 484900 | Z63: 0 | AA63: 484900 | AB63: 17 | AC63: 15 | AH63: 0 | AM63: 0 | AN63: 4 | AO63: 38000 | AP63: 79200 | AQ63: 0 | AR63: 117200 | AW63: 0 | AX63: 2 | AY63: 20000 | AZ63: 41800 | BA63: 0 | BB63: 61800 | BC63: 2 | BD63: 15000 | BE63: 33600 | BF63: 5800 | BG63: 54400 | BH63: 3 | BI63: 30000 | BJ63: 59400 | BK63: 7500 | BL63: 96900 | BQ63: 0 | BV63: 0 | BW63: 2 | BX63: 21000 | BY63: 76000 | BZ63: 6000 | CA63: 103000 | CF63: 0 | CG63: 1 | CH63: 10000 | CI63: 20900 | CJ63: 1000 | CK63: 31900 | CP63: 0 | CU63: 0 | CV63: 1 | CW63: 6500 | CX63: 13200 | CY63: 0 | CZ63: 19700 | DE63: 0 | DJ63: 0 | DO63: 0 | DP63: 2 | DQ63: 0 | DR63: 0 | DS63: 0 | DT63: 0
A64: 39992 | B64: УПЦ ООО "Газпром трансгаз Чайковский" | C64: ООО "Газпром трансгаз Чайковский" | D64: Обучение рабочих | E64: МашТКПК | F64: Машинист ТК ПТК | G64: Машинист технологических компрессоров ПТК | H64: Повышение квалификации (РАБ) | J64: (РАБ) Повышение квалификации на ПТК | M64: 15 | N64: 120 | O64: 25 | P64: 200 | Q64: 30.09.2024 | R64: 18.10.2024 | S64: 7 | T64: 15 | U64: 20 | V64: 67000 | W64: 155200 | X64: 13500 | Y64: 235700 | Z64: 0 | AA64: 235700 | AB64: 12 | AC64: 9 | AH64: 0 | AM64: 0 | AN64: 2 | AO64: 19000 | AP64: 39600 | AQ64: 0 | AR64: 58600 | AW64: 0 | BB64: 0 | BC64: 1 | BD64: 7500 | BE64: 18200 | BF64: 3000 | BG64: 28700 | BH64: 3 | BI64: 30000 | BJ64: 59400 | BK64: 7500 | BL64: 96900 | BQ64: 0 | BV64: 0 | BW64: 2 | BX64: 10500 | BY64: 38000 | BZ64: 3000 | CA64: 51500 | CF64: 0 | CK64: 0 | CP64: 0 | CU64: 0 | CV64: 1 | CW64: 0 | CX64: 0 | CY64: 0 | CZ64: 0 | DE64: 0 | DJ64: 0 | DO64: 0 | DP64: 3 | DQ64: 0 | DR64: 0 | DS64: 0 | DT64: 0
A65: 39993 | B65: УПЦ ООО "Газпром трансгаз Чайковский" | C65: ООО "Газпром трансгаз Чайковский" | D65: Обучение рабочих | E65: МашТКПТК без | F65: Машинист ТК ПТК (без повышения разряда) | G65: Машинист технологических компрессоров ПТК | H65: Повышение квалификации (РАБ) | J65: (РАБ) Повышение квалификации на ПТК | M65: 10 | N65: 80 | O65: 30 | P65: 240 | Q65: 15.01.2024 | R65: 26.01.2024 | S65: 7 | T65: 15 | U65: 20 | V65: 106500 | W65: 264300 | X65: 22500 | Y65: 393300 | Z65: 0 | AA65: 393300 | AB65: 18 | AC65: 16 | AH65: 0 | AI65: 3 | AJ65: 19500 | AK65: 39600 | AL65: 4500 | AM65: 63600 | AR65: 0 | AW65: 0 | AX65: 4 | AY65: 26000 | AZ65: 52800 | BA65: 0 | BB65: 78800 | BG65: 0 | BL65: 0 | BQ65: 0 | BV65: 0 | BW65: 5 | BX65: 35000 | BY65: 109200 | BZ65: 15000 | CA65: 159200 | CF65: 0 | CK65: 0 | CL65: 2 | CM65: 13000 | CN65: 36300 | CO65: 3000 | CP65: 52300 | CU65: 0 | CV65: 2 | CW65: 13000 | CX65: 26400 | CY65: 0 | CZ65: 39400 | DE65: 0 | DJ65: 0 | DO65: 0 | DP65: 2 | DQ65: 0 | DR65: 0 | DS65: 0 | DT65: 0
A66: 39994 | B66: УПЦ ООО "Газпром трансгаз Чайковский" | C66: ООО "Газпром трансгаз Чайковский" | D66: Обучение рабочих | E66: МашТКПТК без | F66: Машинист ТК ПТК (без повышения разряда) | G66: Машинист технологических компрессоров ПТК | H66: Повышение квалификации (РАБ) | J66: (РАБ) Повышение квалификации на ПТК | M66: 10 | N66: 80 | O66: 30 | P66: 240 | Q66: 05.02.2024 | R66: 16.02.2024 | S66: 7 | T66: 15 | U66: 20 | V66: 91500 | W66: 216100 | X66: 27000 | Y66: 334600 | Z66: 0 | AA66: 334600 | AB66: 14 | AC66: 14 | AH66: 0 | AI66: 3 | AJ66: 19500 | AK66: 39600 | AL66: 4500 | AM66: 63600 | AR66: 0 | AW66: 0 | BB66: 0 | BC66: 2 | BD66: 12000 | BE66: 26400 | BF66: 6000 | BG66: 44400 | BH66: 1 | BI66: 6000 | BJ66: 12100 | BK66: 2500 | BL66: 20600 | BQ66: 0 | BV66: 0 | BW66: 4 | BX66: 28000 | BY66: 85200 | BZ66: 11000 | CA66: 124200 | CF66: 0 | CK66: 0 | CL66: 2 | CM66: 13000 | CN66: 26400 | CO66: 3000 | CP66: 42400 | CU66: 0 | CV66: 2 | CW66: 13000 | CX66: 26400 | CY66: 0 | CZ66: 39400 | DE66: 0 | DJ66: 0 | DO66: 0 | DT66: 0
A67: 39995 | B67: УПЦ ООО "Газпром трансгаз Чайковский" | C67: ООО "Газпром трансгаз Чайковский" | D67: Обучение рабочих | E67: МашТКПТК без | F67: Машинист ТК ПТК (без повышения разряда) | G67: Машинист технологических компрессоров ПТК | H67: Повышение квалификации (РАБ) | J67: (РАБ) Повышение квалификации на ПТК | M67: 10 | N67: 80 | O67: 30 | P67: 240 | Q67: 01.04.2024 | R67: 12.04.2024 | S67: 7 | T67: 15 | U67: 20 | V67: 108000 | W67: 265400 | X67: 32300 | Y67: 405700 | Z67: 0 | AA67: 405700 | AB67: 16 | AC67: 16 | AH67: 0 | AI67: 1 | AJ67: 6500 | AK67: 13200 | AL67: 1500 | AM67: 21200 | AN67: 3 | AO67: 18000 | AP67: 36300 | AQ67: 0 | AR67: 54300 | AW67: 0 | BB67: 0 | BC67: 6 | BD67: 42000 | BE67: 92400 | BF67: 16800 | BG67: 151200 | BL67: 0 | BQ67: 0 | BV67: 0 | BW67: 4 | BX67: 28000 | BY67: 96000 | BZ67: 11500 | CA67: 135500 | CF67: 0 | CG67: 1 | CH67: 7000 | CI67: 14300 | CJ67: 1000 | CK67: 22300 | CL67: 1 | CM67: 6500 | CN67: 13200 | CO67: 1500 | CP67: 21200 | CU67: 0 | CZ67: 0 | DE67: 0 | DJ67: 0 | DO67: 0 | DT67: 0
A68: 39996 | B68: УПЦ ООО "Газпром трансгаз Чайковский" | C68: ООО "Газпром трансгаз Чайковский" | D68: Обучение рабочих | E68: МашТКПТК без | F68: Машинист ТК ПТК (без повышения разряда) | G68: Машинист технологических компрессоров ПТК | H68: Повышение квалификации (РАБ) | J68: (РАБ) Повышение квалификации на ПТК | M68: 10 | N68: 80 | O68: 30 | P68: 240 | Q68: 15.04.2024 | R68: 26.04.2024 | S68: 7 | T68: 15 | U68: 20 | V68: 120500 | W68: 289600 | X68: 33000 | Y68: 443100 | Z68: 0 | AA68: 443100 | AB68: 18 | AC68: 18 | AH68: 0 | AI68: 2 | AJ68: 13000 | AK68: 26400 | AL68: 3000 | AM68: 42400 | AR68: 0 | AW68: 0 | AX68: 3 | AY68: 19500 | AZ68: 39600 | BA68: 0 | BB68: 59100 | BC68: 5 | BD68: 35000 | BE68: 77000 | BF68: 14000 | BG68: 126000 | BH68: 2 | BI68: 12000 | BJ68: 24200 | BK68: 5000 | BL68: 41200 | BQ68: 0 | BV68: 0 | BW68: 4 | BX68: 28000 | BY68: 96000 | BZ68: 11000 | CA68: 135000 | CF68: 0 | CK68: 0 | CP68: 0 | CU68: 0 | CV68: 2 | CW68: 13000 | CX68: 26400 | CY68: 0 | CZ68: 39400 | DE68: 0 | DJ68: 0 | DO68: 0 | DT68: 0
A69: 39997 | B69: УПЦ ООО "Газпром трансгаз Чайковский" | C69: ООО "Газпром трансгаз Чайковский" | D69: Обучение рабочих | E69: МашТКПТК без | F69: Машинист ТК ПТК (без повышения разряда) | G69: Машинист технологических компрессоров ПТК | H69: Повышение квалификации (РАБ) | J69: (РАБ) Повышение квалификации на ПТК | M69: 10 | N69: 80 | O69: 30 | P69: 240 | Q69: 17.06.2024 | R69: 28.06.2024 | S69: 7 | T69: 15 | U69: 20 | V69: 107500 | W69: 263200 | X69: 35000 | Y69: =SUM(V69,W69,X69) -> 405700 | Z69: 0 | AA69: =Y69+(Z69*AB69) -> 405700 | AB69: =SUM(AD69,AI69,AN69,AS69,AX69,BC69,BH69,BM69,BR69,BW69,CB69,CG69,CL69,CQ69,CV69,DA69,DF69,DK69,DP69) -> 16 | AC69: =SUM(AI69,AN69,AS69,AX69,BC69,BH69,BW69,CB69,CG69,CL69,CV69,DF69) -> 16 | AH69: =SUM(AE69,AF69,AG69) -> 0 | AI69: 2 | AJ69: 13000 | AK69: 26400 | AL69: 3000 | AM69: =SUM(AJ69,AK69,AL69) -> 42400 | AR69: =SUM(AO69,AP69,AQ69) -> 0 | AW69: =SUM(AT69,AU69,AV69) -> 0 | BB69: =SUM(AY69,AZ69,BA69) -> 0 | BC69: 5 | BD69: 35000 | BE69: 77000 | BF69: 14000 | BG69: =SUM(BD69,BE69,BF69) -> 126000 | BH69: 2 | BI69: 12000 | BJ69: 24200 | BK69: 5000 | BL69: =SUM(BI69,BJ69,BK69) -> 41200 | BQ69: =SUM(BN69,BO69,BP69) -> 0 | BV69: =SUM(BS69,BT69,BU69) -> 0 | BW69: 4 | BX69: 28000 | BY69: 96000 | BZ69: 11500 | CA69: =SUM(BX69,BY69,BZ69) -> 135500 | CF69: =SUM(CC69,CD69,CE69) -> 0 | CK69: =SUM(CH69,CI69,CJ69) -> 0 | CL69: 1 | CM69: 6500 | CN69: 13200 | CO69: 1500 | CP69: =SUM(CM69,CN69,CO69) -> 21200 | CU69: =SUM(CR69,CS69,CT69) -> 0 | CV69: 2 | CW69: 13000 | CX69: 26400 | CY69: 0 | CZ69: =SUM(CW69,CX69,CY69) -> 39400 | DE69: =SUM(DB69,DC69,DD69) -> 0 | DJ69: =SUM(DG69,DH69,DI69) -> 0 | DO69: =SUM(DL69,DM69,DN69) -> 0 | DT69: =SUM(DQ69,DR69,DS69) -> 0
A70: 39998 | B70: УПЦ ООО "Газпром трансгаз Чайковский" | C70: ООО "Газпром трансгаз Чайковский" | D70: Обучение рабочих | E70: МашТКПТК без | F70: Машинист ТК ПТК (без повышения разряда) | G70: Машинист технологических компрессоров ПТК | H70: Повышение квалификации (РАБ) | J70: (РАБ) Повышение квалификации на ПТК | M70: 10 | N70: 80 | O70: 30 | P70: 240 | Q70: 21.10.2024 | R70: 01.11.2024 | S70: 7 | T70: 15 | U70: 20 | V70: 113000 | W70: 242900 | X70: 26700 | Y70: 382600 | Z70: 0 | AA70: 382600 | AB70: 18 | AC70: 18 | AH70: 0 | AI70: 2 | AJ70: 13000 | AK70: 26400 | AL70: 3000 | AM70: 42400 | AR70: 0 | AW70: 0 | AX70: 4 | AY70: 26000 | AZ70: 52800 | BA70: 0 | BB70: 78800 | BC70: 4 | BD70: 28000 | BE70: 61600 | BF70: 11200 | BG70: 100800 | BH70: 1 | BI70: 6000 | BJ70: 12100 | BK70: 2500 | BL70: 20600 | BQ70: 0 | BV70: 0 | BW70: 3 | BX70: 14000 | BY70: 37200 | BZ70: 5500 | CA70: 56700 | CF70: 0 | CK70: 0 | CL70: 3 | CM70: 19500 | CN70: 39600 | CO70: 4500 | CP70: 63600 | CU70: 0 | CV70: 1 | CW70: 6500 | CX70: 13200 | CY70: 0 | CZ70: 19700 | DE70: 0 | DJ70: 0 | DO70: 0 | DT70: 0
A71: 39999 | B71: УПЦ ООО "Газпром трансгаз Чайковский" | C71: ООО "Газпром трансгаз Чайковский" | D71: Обучение ИТР | E71: Б 8.1-8.6 | F71: Треб. ПБ к оборудованию под давлением | G71: Требования промышленной безопасности к оборудованию, работающему под давлением | H71: Повышение квалификации | J71: Предаттестационная подготовка по промышленной безопасности, экологической безопасности и др. | M71: 10 | N71: 40 | O71: 0 | P71: 0 | Q71: 08.04.2024 | R71: 19.04.2024 | S71: 7 | T71: 30 | U71: 30 | V71: 15000 | W71: 51960 | X71: 7300 | Y71: 74260 | Z71: 0 | AA71: 74260 | AB71: 17 | AC71: 11 | AH71: 0 | AM71: 0 | AR71: 0 | AW71: 0 | AX71: 2 | AY71: 0 | AZ71: 0 | BA71: 0 | BB71: 0 | BC71: 3 | BD71: 3000 | BE71: 12500 | BF71: 2800 | BG71: 18300 | BH71: 1 | BI71: 3000 | BJ71: 10000 | BK71: 2500 | BL71: 15500 | BM71: 3 | BN71: 0 | BO71: 0 | BP71: 0 | BQ71: 0 | BV71: 0 | CA71: 0 | CF71: 0 | CK71: 0 | CL71: 2 | CM71: 0 | CN71: 0 | CO71: 0 | CP71: 0 | CU71: 0 | CV71: 1 | CW71: 6500 | CX71: 18960 | CY71: 0 | CZ71: 25460 | DE71: 0 | DF71: 2 | DG71: 2500 | DH71: 10500 | DI71: 2000 | DJ71: 15000 | DO71: 0 | DP71: 3 | DQ71: 0 | DR71: 0 | DS71: 0 | DT71: 0
A72: 40000 | B72: УПЦ ООО "Газпром трансгаз Чайковский" | C72: ООО "Газпром трансгаз Чайковский" | D72: Обучение ИТР | E72: ОбсЭксплТА | F72: Обслуживание и эксплуатация трубопроводн | G72: Обслуживание и эксплуатация трубопроводной арматуры | H72: Повышение квалификации | J72: Прочие технические (ГНВП, сварочное, противопожарные и т.д.) | M72: 5 | N72: 40 | O72: 0 | P72: 0 | Q72: 20.05.2024 | R72: 24.05.2024 | S72: 7 | T72: 20 | U72: 21 | V72: 46500 | W72: 182900 | X72: 24000 | Y72: 253400 | Z72: 0 | AA72: 253400 | AB72: 21 | AC72: 18 | AD72: 2 | AE72: 0 | AF72: 0 | AG72: 0 | AH72: 0 | AM72: 0 | AN72: 3 | AO72: 7500 | AP72: 30000 | AQ72: 0 | AR72: 37500 | AW72: 0 | AX72: 3 | AY72: 6000 | AZ72: 33000 | BA72: 0 | BB72: 39000 | BC72: 4 | BD72: 12000 | BE72: 50000 | BF72: 12000 | BG72: 74000 | BL72: 0 | BQ72: 0 | BV72: 0 | BW72: 2 | BX72: 7000 | BY72: 30000 | BZ72: 6000 | CA72: 43000 | CB72: 1 | CC72: 0 | CD72: 0 | CE72: 0 | CF72: 0 | CK72: 0 | CL72: 4 | CM72: 11000 | CN72: 32000 | CO72: 6000 | CP72: 49000 | CU72: 0 | CV72: 1 | CW72: 3000 | CX72: 7900 | CY72: 0 | CZ72: 10900 | DE72: 0 | DJ72: 0 | DO72: 0 | DP72: 1 | DQ72: 0 | DR72: 0 | DS72: 0 | DT72: 0
A73: 40016 | B73: УПЦ ООО "Газпром трансгаз Чайковский" | C73: УПЦ ООО "Газпром трансгаз Чайковский" | D73: Обучение рабочих | E73: РабЛюльки | F73: Рабочие люльки | G73: Рабочий люльки по управлению подъемником (вышкой) из люльки | H73: Повышение квалификации (РАБ) | J73: (РАБ) Курсы целевого назначения (в части получения допуска к работе на опасных производственных объектах) | M73: 4 | N73: 28 | O73: 0 | P73: 0 | Q73: 03.09.2024 | R73: 05.09.2024 | S73: 7 | T73: 14 | U73: 30 | V73: 26500 | W73: 48300 | X73: 10500 | Y73: 85300 | Z73: 0 | AA73: 85300 | AB73: 14 | AC73: 11 | AH73: 0 | AI73: 2 | AJ73: 5500 | AK73: 9900 | AL73: 3000 | AM73: 18400 | AR73: 0 | AW73: 0 | AX73: 2 | AY73: 4000 | AZ73: 6600 | BA73: 0 | BB73: 10600 | BC73: 1 | BD73: 3000 | BE73: 6500 | BF73: 3000 | BG73: 12500 | BH73: 1 | BI73: 3500 | BJ73: 6600 | BK73: 2500 | BL73: 12600 | BM73: 1 | BN73: 0 | BO73: 0 | BP73: 0 | BQ73: 0 | BV73: 0 | CA73: 0 | CB73: 2 | CC73: 5500 | CD73: 9900 | CE73: 1000 | CF73: 16400 | CG73: 2 | CH73: 2500 | CI73: 4400 | CJ73: 1000 | CK73: 7900 | CP73: 0 | CU73: 0 | CV73: 1 | CW73: 2500 | CX73: 4400 | CY73: 0 | CZ73: 6900 | DA73: 1 | DB73: 0 | DC73: 0 | DD73: 0 | DE73: 0 | DJ73: 0 | DO73: 0 | DP73: 1 | DQ73: 0 | DR73: 0 | DS73: 0 | DT73: 0
A74: 40017 | B74: УПЦ ООО "Газпром трансгаз Чайковский" | C74: Кунгурское ЛПУМГ | D74: Обучение рабочих | E74: РабЛюльки | F74: Рабочие люльки | G74: Рабочий люльки по управлению подъемником (вышкой) из люльки | H74: Повышение квалификации (РАБ) | J74: (РАБ) Курсы целевого назначения (в части получения допуска к работе на опасных производственных объектах) | M74: 4 | N74: 28 | O74: 0 | P74: 0 | Q74: 15.10.2024 | R74: 17.10.2024 | S74: 7 | T74: 14 | U74: 30 | V74: 46500 | W74: 103900 | X74: 29000 | Y74: 179400 | Z74: 0 | AA74: 179400 | AB74: 16 | AC74: 16 | AH74: 0 | AI74: 1 | AJ74: 3000 | AK74: 5500 | AL74: 1500 | AM74: 10000 | AR74: 0 | AW74: 0 | BB74: 0 | BC74: 2 | BD74: 10500 | BE74: 13000 | BF74: 6000 | BG74: 29500 | BH74: 1 | BI74: 3500 | BJ74: 6600 | BK74: 2500 | BL74: 12600 | BQ74: 0 | BV74: 0 | BW74: 8 | BX74: 24500 | BY74: 70000 | BZ74: 17500 | CA74: 112000 | CB74: 1 | CC74: 2500 | CD74: 4400 | CE74: 500 | CF74: 7400 | CG74: 1 | CH74: 2500 | CI74: 4400 | CJ74: 1000 | CK74: 7900 | CP74: 0 | CU74: 0 | CZ74: 0 | DE74: 0 | DF74: 2 | DG74: 0 | DH74: 0 | DI74: 0 | DJ74: 0 | DO74: 0 | DT74: 0
A75: 40019 | B75: УПЦ ООО "Газпром трансгаз Чайковский" | C75: УПЦ ООО "Газпром трансгаз Чайковский" | D75: Обучение рабочих | E75: РабЛюльки | F75: Рабочие люльки | G75: Рабочий люльки по управлению подъемником (вышкой) из люльки | H75: Повышение квалификации (РАБ) | J75: (РАБ) Курсы целевого назначения (в части получения допуска к работе на опасных производственных объектах) | M75: 4 | N75: 28 | O75: 0 | P75: 0 | Q75: 12.11.2024 | R75: 14.11.2024 | S75: 7 | T75: 14 | U75: 30 | V75: 38400 | W75: 75900 | X75: 17700 | Y75: 132000 | Z75: 0 | AA75: 132000 | AB75: 18 | AC75: 17 | AH75: 0 | AI75: 2 | AJ75: 5500 | AK75: 9900 | AL75: 1500 | AM75: 16900 | AN75: 2 | AO75: 3000 | AP75: 4400 | AQ75: 0 | AR75: 7400 | AS75: 1 | AT75: 2000 | AU75: 3300 | AV75: 2400 | AW75: 7700 | AX75: 2 | AY75: 5000 | AZ75: 9800 | BA75: 0 | BB75: 14800 | BC75: 2 | BD75: 7400 | BE75: 9800 | BF75: 5800 | BG75: 23000 | BH75: 1 | BI75: 3500 | BJ75: 6600 | BK75: 2500 | BL75: 12600 | BQ75: 0 | BV75: 0 | CA75: 0 | CF75: 0 | CK75: 0 | CL75: 1 | CM75: 2000 | CN75: 3300 | CO75: 1500 | CP75: 6800 | CU75: 0 | CV75: 4 | CW75: 5000 | CX75: 8800 | CY75: 0 | CZ75: 13800 | DA75: 1 | DB75: 0 | DC75: 0 | DD75: 0 | DE75: 0 | DF75: 2 | DG75: 5000 | DH75: 20000 | DI75: 4000 | DJ75: 29000 | DO75: 0 | DT75: 0
A76: 40020 | B76: УПЦ ООО "Газпром трансгаз Чайковский" | C76: УПЦ ООО "Газпром трансгаз Чайковский" | E76: ОперГРСПП | F76: Оператор ГРС КПП | G76: Оператор газораспределительной станции КПП | I76: Переподготовка | J76: (РАБ) Переподготовка | M76: 18 | N76: 144 | O76: 34 | P76: 272 | Q76: 30.01.2024 | R76: 22.02.2024 | S76: 7 | T76: 14 | U76: 20 | V76: 112500 | W76: 237600 | X76: 10900 | Y76: 361000 | Z76: 0 | AA76: 361000 | AB76: 11 | AC76: 10 | AH76: 0 | AI76: 3 | AJ76: 39000 | AK76: 82500 | AL76: 4500 | AM76: 126000 | AR76: 0 | AS76: 2 | AT76: 25000 | AU76: 52800 | AV76: 4800 | AW76: 82600 | AX76: 3 | AY76: 36000 | AZ76: 75900 | BA76: 500 | BB76: 112400 | BG76: 0 | BH76: 1 | BI76: 0 | BJ76: 0 | BK76: 0 | BL76: 0 | BQ76: 0 | BV76: 0 | CA76: 0 | CF76: 0 | CG76: 1 | CH76: 12500 | CI76: 26400 | CJ76: 1100 | CK76: 40000 | CP76: 0 | CU76: 0 | CZ76: 0 | DE76: 0 | DJ76: 0 | DO76: 0 | DP76: 1 | DQ76: 0 | DR76: 0 | DS76: 0 | DT76: 0
A77: 40021 | B77: УПЦ ООО "Газпром трансгаз Чайковский" | C77: УПЦ ООО "Газпром трансгаз Чайковский" | D77: Обучение рабочих | E77: ОУиДефектоск | F77: Запуск и прием ВТУ | G77: Технология и безопасное проведение работ по запуску и приему ВТУ в в рабочей среде на камерах запуска-приема со всеми видами затворов. Эксплуатация камер запуска-приема ВТУ | H77: Повышение квалификации (РАБ) | J77: (РАБ) Курсы целевого назначения (в части получения допуска к работе на опасных производственных объектах) | M77: 2 | N77: 16 | O77: 0 | P77: 0 | Q77: 17.04.2024 | R77: 18.04.2024 | S77: 7 | T77: 16 | U77: 20 | V77: 29000 | W77: 48400 | X77: 18500 | Y77: 95900 | Z77: 0 | AA77: 95900 | AB77: 18 | AC77: 18 | AH77: 0 | AM77: 0 | AN77: 5 | AO77: 5000 | AP77: 5500 | AQ77: 0 | AR77: 10500 | AS77: 2 | AT77: 4000 | AU77: 6600 | AV77: 5000 | AW77: 15600 | AX77: 3 | AY77: 4500 | AZ77: 6600 | BA77: 0 | BB77: 11100 | BC77: 1 | BD77: 3000 | BE77: 6500 | BF77: 3000 | BG77: 12500 | BL77: 0 | BQ77: 0 | BV77: 0 | BW77: 1 | BX77: 3500 | BY77: 10000 | BZ77: 2500 | CA77: 16000 | CF77: 0 | CG77: 2 | CH77: 3000 | CI77: 4400 | CJ77: 2000 | CK77: 9400 | CL77: 4 | CM77: 6000 | CN77: 8800 | CO77: 6000 | CP77: 20800 | CU77: 0 | CZ77: 0 | DE77: 0 | DJ77: 0 | DO77: 0 | DT77: 0
A78: 40022 | B78: УПЦ ООО "Газпром трансгаз Чайковский" | C78: УПЦ ООО "Газпром трансгаз Чайковский" | D78: Обучение рабочих | E78: ОУиДефектоск | F78: Запуск и прием ВТУ | G78: Технология и безопасное проведение работ по запуску и приему ВТУ в в рабочей среде на камерах запуска-приема со всеми видами затворов. Эксплуатация камер запуска-приема ВТУ | H78: Повышение квалификации (РАБ) | J78: (РАБ) Курсы целевого назначения (в части получения допуска к работе на опасных производственных объектах) | M78: 2 | N78: 16 | O78: 0 | P78: 0 | Q78: 06.06.2024 | R78: 07.06.2024 | S78: 7 | T78: 16 | U78: 20 | V78: 22500 | W78: 36700 | X78: 13500 | Y78: 72700 | Z78: 0 | AA78: 72700 | AB78: 17 | AC78: 17 | AH78: 0 | AM78: 0 | AN78: 5 | AO78: 5000 | AP78: 5500 | AQ78: 0 | AR78: 10500 | AW78: 0 | AX78: 4 | AY78: 3000 | AZ78: 4400 | BA78: 0 | BB78: 7400 | BC78: 1 | BD78: 2000 | BE78: 3600 | BF78: 3000 | BG78: 8600 | BL78: 0 | BQ78: 0 | BV78: 0 | BW78: 1 | BX78: 3500 | BY78: 10000 | BZ78: 2500 | CA78: 16000 | CF78: 0 | CG78: 2 | CH78: 3000 | CI78: 4400 | CJ78: 2000 | CK78: 9400 | CL78: 4 | CM78: 6000 | CN78: 8800 | CO78: 6000 | CP78: 20800 | CU78: 0 | CZ78: 0 | DE78: 0 | DJ78: 0 | DO78: 0 | DT78: 0
A79: 40023 | B79: УПЦ ООО "Газпром трансгаз Чайковский" | C79: УПЦ ООО "Газпром трансгаз Чайковский" | E79: ИзолПлен | F79: Изолировщик-пленочник | G79: Изолировщик-пленочник КПП | I79: Переподготовка | J79: (РАБ) Переподготовка | M79: 5 | N79: 40 | O79: 15 | P79: 120 | Q79: 21.10.2024 | R79: 25.10.2024 | S79: 7 | T79: 12 | U79: 20 | V79: 30000 | W79: 53900 | X79: 6000 | Y79: 89900 | Z79: 0 | AA79: 89900 | AB79: 12 | AC79: 12 | AH79: 0 | AI79: 2 | AJ79: 6000 | AK79: 11000 | AL79: 3000 | AM79: 20000 | AN79: 3 | AO79: 6000 | AP79: 9900 | AQ79: 0 | AR79: 15900 | AW79: 0 | AX79: 5 | AY79: 12000 | AZ79: 22000 | BA79: 0 | BB79: 34000 | BG79: 0 | BL79: 0 | BQ79: 0 | BV79: 0 | CA79: 0 | CF79: 0 | CK79: 0 | CL79: 2 | CM79: 6000 | CN79: 11000 | CO79: 3000 | CP79: 20000 | CU79: 0 | CZ79: 0 | DE79: 0 | DJ79: 0 | DO79: 0 | DT79: 0
A80: 40025 | B80: УПЦ ООО "Газпром трансгаз Чайковский" | C80: УПЦ ООО "Газпром трансгаз Чайковский" | D80: Обучение рабочих | E80: ОперГРСПК | F80: Оператор ГРС ПТК | G80: Оператор газораспределительной станции ПТК | H80: Повышение квалификации (РАБ) | J80: (РАБ) Повышение квалификации на ПТК | M80: 17 | N80: 136 | O80: 35 | P80: 280 | Q80: 01.10.2024 | R80: 23.10.2024 | S80: 7 | T80: 10 | U80: 20 | V80: 63000 | W80: 132000 | X80: 6000 | Y80: 201000 | Z80: 0 | AA80: 201000 | AB80: 9 | AC80: 9 | AH80: 0 | AM80: 0 | AR80: 0 | AS80: 1 | AT80: 12500 | AU80: 26400 | AV80: 2500 | AW80: 41400 | AX80: 4 | AY80: 37500 | AZ80: 79200 | BA80: 1000 | BB80: 117700 | BG80: 0 | BH80: 1 | BI80: 0 | BJ80: 0 | BK80: 0 | BL80: 0 | BQ80: 0 | BV80: 0 | BW80: 1 | BX80: 13000 | BY80: 26400 | BZ80: 2500 | CA80: 41900 | CB80: 2 | CC80: 0 | CD80: 0 | CE80: 0 | CF80: 0 | CK80: 0 | CP80: 0 | CU80: 0 | CZ80: 0 | DE80: 0 | DJ80: 0 | DO80: 0 | DT80: 0
A81: 40026 | B81: УПЦ ООО "Газпром трансгаз Чайковский" | C81: ООО "Газпром трансгаз Чайковский" | D81: Обучение ИТР | E81: КурсТребПБ | F81: Требования промышленной безопасности | G81: Требования промышленной безопасности | H81: Повышение квалификации | J81: Предаттестационная подготовка по промышленной безопасности, экологической безопасности и др. | M81: 15 | N81: 60 | O81: 0 | P81: 0 | Q81: 09.09.2024 | R81: 27.09.2024 | S81: 7 | T81: 30 | U81: 30 | V81: 0 | W81: 0 | X81: 0 | Y81: 0 | Z81: 0 | AA81: 0 | AB81: 19 | AC81: 16 | AD81: 3 | AE81: 0 | AF81: 0 | AG81: 0 | AH81: 0 | AM81: 0 | AR81: 0 | AW81: 0 | AX81: 3 | AY81: 0 | AZ81: 0 | BA81: 0 | BB81: 0 | BC81: 8 | BD81: 0 | BE81: 0 | BF81: 0 | BG81: 0 | BL81: 0 | BQ81: 0 | BV81: 0 | BW81: 1 | BX81: 0 | BY81: 0 | BZ81: 0 | CA81: 0 | CB81: 3 | CC81: 0 | CD81: 0 | CE81: 0 | CF81: 0 | CG81: 1 | CH81: 0 | CI81: 0 | CJ81: 0 | CK81: 0 | CP81: 0 | CU81: 0 | CZ81: 0 | DE81: 0 | DJ81: 0 | DO81: 0 | DT81: 0
A82: 40028 | B82: УПЦ ООО "Газпром трансгаз Чайковский" | C82: Алмазное ЛПУМГ | D82: Обучение рабочих | E82: ВысРаб24 | F82: Высота 1,2 группа 24ч. | G82: (24ч) Обучение персонала безопасным методам и приемам выполнения работ на высоте "Работники 1,2 групп по безопасности работ на высоте" | H82: Повышение квалификации (РАБ) | J82: (РАБ) Курсы целевого назначения (в части получения допуска к работе на опасных производственных объектах) | M82: 3 | N82: 24 | O82: 0 | P82: 0 | Q82: 11.11.2024 | R82: 13.11.2024 | S82: 7 | T82: 20 | U82: 30 | V82: 0 | W82: 0 | X82: 0 | Y82: 0 | Z82: 0 | AA82: 0 | AB82: 14 | AC82: 14 | AH82: 0 | AI82: 12 | AJ82: 0 | AK82: 0 | AL82: 0 | AM82: 0 | AR82: 0 | AW82: 0 | BB82: 0 | BG82: 0 | BL82: 0 | BQ82: 0 | BV82: 0 | CA82: 0 | CF82: 0 | CK82: 0 | CP82: 0 | CU82: 0 | CV82: 2 | CW82: 0 | CX82: 0 | CY82: 0 | CZ82: 0 | DE82: 0 | DJ82: 0 | DO82: 0 | DT82: 0
A83: 40037 | B83: УПЦ ООО "Газпром трансгаз Чайковский" | C83: ООО "Газпром трансгаз Чайковский" | D83: Обучение ИТР | E83: БезЭксплТЭУ | F83: Безопасная эксплуатация ТЭУ | G83: Безопасная эксплуатация объектов теплоснабжения и теплопотребляющих установок | H83: Повышение квалификации | J83: Предаттестационная подготовка по промышленной безопасности, экологической безопасности и др. | M83: 7 | N83: 40 | O83: 0 | P83: 0 | Q83: 23.01.2024 | R83: 31.01.2024 | S83: 7 | T83: 20 | U83: 20 | V83: 16000 | W83: 55540 | X83: 12000 | Y83: 83540 | Z83: 0 | AA83: 83540 | AB83: 12 | AC83: 8 | AH83: 0 | AM83: 0 | AR83: 0 | AS83: 1 | AT83: 2500 | AU83: 10400 | AV83: 2500 | AW83: 15400 | AX83: 1 | AY83: 1500 | AZ83: 2200 | BA83: 0 | BB83: 3700 | BC83: 1 | BD83: 3000 | BE83: 12500 | BF83: 3000 | BG83: 18500 | BH83: 2 | BI83: 5000 | BJ83: 20000 | BK83: 5000 | BL83: 30000 | BQ83: 0 | BR83: 2 | BS83: 0 | BT83: 0 | BU83: 0 | BV83: 0 | CA83: 0 | CB83: 1 | CC83: 0 | CD83: 0 | CE83: 0 | CF83: 0 | CK83: 0 | CL83: 1 | CM83: 2000 | CN83: 4800 | CO83: 1500 | CP83: 8300 | CU83: 0 | CV83: 1 | CW83: 2000 | CX83: 5640 | CY83: 0 | CZ83: 7640 | DA83: 1 | DB83: 0 | DC83: 0 | DD83: 0 | DE83: 0 | DJ83: 0 | DO83: 0 | DP83: 1 | DQ83: 0 | DR83: 0 | DS83: 0 | DT83: 0
A84: 40038 | B84: УПЦ ООО "Газпром трансгаз Чайковский" | C84: ООО "Газпром трансгаз Чайковский" | D84: Обучение ИТР | E84: БезЭксплТЭУ | F84: Безопасная эксплуатация ТЭУ | G84: Безопасная эксплуатация объектов теплоснабжения и теплопотребляющих установок | H84: Повышение квалификации | J84: Предаттестационная подготовка по промышленной безопасности, экологической безопасности и др. | M84: 7 | N84: 40 | O84: 0 | P84: 0 | Q84: 30.01.2024 | R84: 07.02.2024 | S84: 7 | T84: 20 | U84: 20 | V84: 36500 | W84: 111060 | X84: 26900 | Y84: 174460 | Z84: 0 | AA84: 174460 | AB84: 21 | AC84: 19 | AH84: 0 | AI84: 1 | AJ84: 2000 | AK84: 6000 | AL84: 0 | AM84: 8000 | AN84: 1 | AO84: 1500 | AP84: 5000 | AQ84: 0 | AR84: 6500 | AW84: 0 | AX84: 1 | AY84: 1500 | AZ84: 2200 | BA84: 0 | BB84: 3700 | BC84: 4 | BD84: 7500 | BE84: 27500 | BF84: 11400 | BG84: 46400 | BH84: 2 | BI84: 2500 | BJ84: 10000 | BK84: 2500 | BL84: 15000 | BQ84: 0 | BV84: 0 | BW84: 2 | BX84: 4000 | BY84: 12000 | BZ84: 4000 | CA84: 20000 | CB84: 1 | CC84: 2000 | CD84: 6320 | CE84: 500 | CF84: 8820 | CG84: 2 | CH84: 5000 | CI84: 12000 | CJ84: 2000 | CK84: 19000 | CL84: 3 | CM84: 6000 | CN84: 14400 | CO84: 4500 | CP84: 24900 | CU84: 0 | CV84: 1 | CW84: 2000 | CX84: 5640 | CY84: 0 | CZ84: 7640 | DE84: 0 | DF84: 1 | DG84: 2500 | DH84: 10000 | DI84: 2000 | DJ84: 14500 | DK84: 1 | DL84: 0 | DM84: 0 | DN84: 0 | DO84: 0 | DP84: 1 | DQ84: 0 | DR84: 0 | DS84: 0 | DT84: 0
A85: 40039 | B85: УПЦ ООО "Газпром трансгаз Чайковский" | C85: ООО "Газпром трансгаз Чайковский" | D85: Обучение рабочих | E85: ВысРаб32 | F85: Высота 1,2 группа 32ч. | G85: (32ч) Обучение персонала безопасным методам и приемам выполнения работ на высоте "Работники 1,2 групп по безопасности работ на высоте" | H85: Повышение квалификации (РАБ) | J85: (РАБ) Курсы целевого назначения (в части получения допуска к работе на опасных производственных объектах) | M85: 5 | N85: 32 | O85: 0 | P85: 0 | Q85: 05.02.2024 | R85: 08.02.2024 | S85: 7 | T85: 20 | U85: 20 | V85: 57000 | W85: 128600 | X85: 30900 | Y85: 216500 | Z85: 0 | AA85: 216500 | AB85: 30 | AC85: 21 | AH85: 0 | AI85: 2 | AJ85: 6000 | AK85: 11000 | AL85: 3000 | AM85: 20000 | AN85: 5 | AO85: 10000 | AP85: 16500 | AQ85: 0 | AR85: 26500 | AS85: 3 | AT85: 8000 | AU85: 37400 | AV85: 7300 | AW85: 52700 | AX85: 1 | AY85: 2500 | AZ85: 4400 | BA85: 0 | BB85: 6900 | BC85: 3 | BD85: 9000 | BE85: 16500 | BF85: 8400 | BG85: 33900 | BL85: 0 | BM85: 5 | BN85: 0 | BO85: 0 | BP85: 0 | BQ85: 0 | BV85: 0 | BW85: 3 | BX85: 9500 | BY85: 20800 | BZ85: 8200 | CA85: 38500 | CF85: 0 | CG85: 4 | CH85: 12000 | CI85: 22000 | CJ85: 4000 | CK85: 38000 | CP85: 0 | CU85: 0 | CZ85: 0 | DE85: 0 | DJ85: 0 | DK85: 4 | DL85: 0 | DM85: 0 | DN85: 0 | DO85: 0 | DT85: 0
A86: 40040 | B86: УПЦ ООО "Газпром трансгаз Чайковский" | C86: ООО "Газпром трансгаз Чайковский" | D86: Обучение ИТР | E86: СК ОбСтр Р | F86: СК Общестроительные работы | G86: Строительный контроль за качеством строительства, реконструкции и капитального ремонта объектов ООО «Газпром трансгаз Чайковский». Модуль 1 «Проведение строительного контроля за общестроительными работами на объектах магистральных газопроводов» | H86: Повышение квалификации | J86: Другие целевые программы (строительный контроль) | M86: 5 | N86: 40 | O86: 0 | P86: 0 | Q86: 22.01.2024 | R86: 26.01.2024 | S86: 0 | T86: 20 | U86: 9999 | V86: 36500 | W86: 108600 | X86: 20100 | Y86: 165200 | Z86: 0 | AA86: 165200 | AB86: 17 | AC86: 6 | AH86: 0 | AI86: 1 | AJ86: 2500 | AK86: 8000 | AL86: 1500 | AM86: 12000 | AR86: 0 | AS86: 1 | AT86: 3500 | AU86: 15600 | AV86: 2500 | AW86: 21600 | BB86: 0 | BC86: 1 | BD86: 0 | BE86: 0 | BF86: 0 | BG86: 0 | BL86: 0 | BM86: 7 | BN86: 12500 | BO86: 42000 | BP86: 10000 | BQ86: 64500 | BV86: 0 | CA86: 0 | CB86: 1 | CC86: 3000 | CD86: 6500 | CE86: 500 | CF86: 10000 | CG86: 1 | CH86: 3000 | CI86: 7500 | CJ86: 1000 | CK86: 11500 | CL86: 1 | CM86: 3000 | CN86: 8000 | CO86: 1500 | CP86: 12500 | CU86: 0 | CZ86: 0 | DE86: 0 | DJ86: 0 | DK86: 3 | DL86: 9000 | DM86: 21000 | DN86: 3100 | DO86: 33100 | DP86: 1 | DQ86: 0 | DR86: 0 | DS86: 0 | DT86: 0
A87: 40041 | B87: УПЦ ООО "Газпром трансгаз Чайковский" | C87: УПЦ ООО "Газпром трансгаз Чайковский" | D87: Обучение ИТР | E87: ЭксплКЗ | F87: Эксплуатация средств ПКЗ | G87: Эксплуатация средств противокоррозионной защиты | H87: Повышение квалификации | J87: Периодическое обучение по плану общеста/организации (руководители, специалисты, рабочие) | M87: 5 | N87: 40 | O87: 0 | P87: 0 | Q87: 26.02.2024 | R87: 01.03.2024 | S87: 7 | T87: 14 | U87: 20 | V87: 19000 | W87: 84800 | X87: 13300 | Y87: 117100 | Z87: 0 | AA87: 117100 | AB87: 31 | AC87: 23 | AD87: 1 | AE87: 0 | AF87: 0 | AG87: 0 | AH87: 0 | AM87: 0 | AR87: 0 | AS87: 5 | AT87: 13000 | AU87: 59800 | AV87: 7300 | AW87: 80100 | AX87: 3 | AY87: 0 | AZ87: 0 | BA87: 0 | BB87: 0 | BC87: 7 | BD87: 6000 | BE87: 25000 | BF87: 6000 | BG87: 37000 | BL87: 0 | BM87: 2 | BN87: 0 | BO87: 0 | BP87: 0 | BQ87: 0 | BV87: 0 | BW87: 1 | BX87: 0 | BY87: 0 | BZ87: 0 | CA87: 0 | CB87: 2 | CC87: 0 | CD87: 0 | CE87: 0 | CF87: 0 | CG87: 1 | CH87: 0 | CI87: 0 | CJ87: 0 | CK87: 0 | CP87: 0 | CU87: 0 | CV87: 4 | CW87: 0 | CX87: 0 | CY87: 0 | CZ87: 0 | DE87: 0 | DJ87: 0 | DO87: 0 | DP87: 5 | DQ87: 0 | DR87: 0 | DS87: 0 | DT87: 0
A88: 40048 | B88: УПЦ ООО "Газпром трансгаз Чайковский" | C88: ООО "Газпром трансгаз Чайковский" | D88: Обучение ИТР | E88: СК ОП ПБ | F88: СК объектов МГ Общие положения | G88: [DVERB] | H88: Повышение квалификации | J88: Другие целевые программы (строительный контроль) | M88: 5 | N88: 40 | O88: 0 | P88: 0 | Q88: 15.01.2024 | R88: 19.01.2024 | S88: 7 | T88: 15 | U88: 30 | V88: 9000 | W88: 29000 | X88: 5000 | Y88: 43000 | Z88: 0 | AA88: 43000 | AB88: 24 | AC88: 14 | AH88: 0 | AI88: 2 | AJ88: 0 | AK88: 0 | AL88: 0 | AM88: 0 | AR88: 0 | AW88: 0 | AX88: 3 | AY88: 0 | AZ88: 0 | BA88: 0 | BB88: 0 | BC88: 1 | BD88: 0 | BE88: 0 | BF88: 0 | BG88: 0 | BH88: 1 | BI88: 3500 | BJ88: 12000 | BK88: 2500 | BL88: 18000 | BM88: 4 | BN88: 0 | BO88: 0 | BP88: 0 | BQ88: 0 | BV88: 0 | CA88: 0 | CB88: 3 | CC88: 3000 | CD88: 6500 | CE88: 500 | CF88: 10000 | CG88: 1 | CH88: 0 | CI88: 0 | CJ88: 0 | CK88: 0 | CL88: 1 | CM88: 0 | CN88: 0 | CO88: 0 | CP88: 0 | CU88: 0 | CZ88: 0 | DE88: 0 | DF88: 2 | DG88: 2500 | DH88: 10500 | DI88: 2000 | DJ88: 15000 | DK88: 3 | DL88: 0 | DM88: 0 | DN88: 0 | DO88: 0 | DP88: 3 | DQ88: 0 | DR88: 0 | DS88: 0 | DT88: 0
A89: 40049 | B89: УПЦ ООО "Газпром трансгаз Чайковский" | C89: ООО "Газпром трансгаз Чайковский" | D89: Обучение ИТР | E89: СК свар.соед | F89: СК сварочно-монтаж. работы | G89: [DVERB] | H89: Повышение квалификации | J89: Другие целевые программы (строительный контроль) | M89: 7 | N89: 56 | O89: 0 | P89: 0 | Q89: 01.02.2024 | R89: 09.02.2024 | S89: 7 | T89: 15 | U89: 30 | V89: 47500 | W89: 161700 | X89: 24800 | Y89: 234000 | Z89: 0 | AA89: 234000 | AB89: 26 | AC89: 12 | AD89: 3 | AE89: 0 | AF89: 0 | AG89: 0 | AH89: 0 | AI89: 1 | AJ89: 2500 | AK89: 8000 | AL89: 0 | AM89: 10500 | AR89: 0 | AS89: 1 | AT89: 5500 | AU89: 26000 | AV89: 2500 | AW89: 34000 | AX89: 2 | AY89: 6000 | AZ89: 11000 | BA89: 0 | BB89: 17000 | BC89: 2 | BD89: 6000 | BE89: 27500 | BF89: 5800 | BG89: 39300 | BH89: 1 | BI89: 3500 | BJ89: 12000 | BK89: 2500 | BL89: 18000 | BM89: 10 | BN89: 12000 | BO89: 40000 | BP89: 8000 | BQ89: 60000 | BV89: 0 | BW89: 1 | BX89: 3500 | BY89: 15000 | BZ89: 3000 | CA89: 21500 | CB89: 2 | CC89: 2500 | CD89: 5200 | CE89: 500 | CF89: 8200 | CG89: 1 | CH89: 3000 | CI89: 9000 | CJ89: 1000 | CK89: 13000 | CL89: 1 | CM89: 3000 | CN89: 8000 | CO89: 1500 | CP89: 12500 | CU89: 0 | CZ89: 0 | DE89: 0 | DJ89: 0 | DO89: 0 | DP89: 1 | DQ89: 0 | DR89: 0 | DS89: 0 | DT89: 0
A90: 40050 | B90: УПЦ ООО "Газпром трансгаз Чайковский" | C90: ООО "Газпром трансгаз Чайковский" | D90: Обучение ИТР | E90: СКмг | F90: СК Строит.монт.работы | G90: [DVERB] | H90: Повышение квалификации | J90: Другие целевые программы (строительный контроль) | M90: 5 | N90: 40 | O90: 0 | P90: 0 | Q90: 12.02.2024 | R90: 16.02.2024 | S90: 7 | T90: 15 | U90: 30 | V90: 46500 | W90: 151100 | X90: 26500 | Y90: 224100 | Z90: 0 | AA90: 224100 | AB90: 26 | AC90: 14 | AD90: 4 | AE90: 0 | AF90: 0 | AG90: 0 | AH90: 0 | AI90: 1 | AJ90: 2500 | AK90: 8000 | AL90: 0 | AM90: 10500 | AR90: 0 | AS90: 1 | AT90: 3500 | AU90: 15600 | AV90: 2500 | AW90: 21600 | AX90: 2 | AY90: 6000 | AZ90: 11000 | BA90: 0 | BB90: 17000 | BC90: 2 | BD90: 9000 | BE90: 27500 | BF90: 6000 | BG90: 42500 | BH90: 1 | BI90: 3500 | BJ90: 12000 | BK90: 2500 | BL90: 18000 | BM90: 6 | BN90: 9000 | BO90: 30000 | BP90: 7000 | BQ90: 46000 | BV90: 0 | BW90: 2 | BX90: 7000 | BY90: 30000 | BZ90: 6000 | CA90: 43000 | CB90: 3 | CC90: 0 | CD90: 0 | CE90: 0 | CF90: 0 | CG90: 1 | CH90: 3000 | CI90: 9000 | CJ90: 1000 | CK90: 13000 | CL90: 1 | CM90: 3000 | CN90: 8000 | CO90: 1500 | CP90: 12500 | CU90: 0 | CZ90: 0 | DE90: 0 | DJ90: 0 | DO90: 0 | DP90: 2 | DQ90: 0 | DR90: 0 | DS90: 0 | DT90: 0
A91: 40051 | B91: УПЦ ООО "Газпром трансгаз Чайковский" | C91: ООО "Газпром трансгаз Чайковский" | D91: Обучение рабочих | E91: ВысРаб24 | F91: Высота 1,2 группа 24ч. | G91: (24ч) Обучение персонала безопасным методам и приемам выполнения работ на высоте "Работники 1,2 групп по безопасности работ на высоте" | H91: Повышение квалификации (РАБ) | J91: (РАБ) Курсы целевого назначения (в части получения допуска к работе на опасных производственных объектах) | M91: 3 | N91: 24 | O91: 0 | P91: 0 | Q91: 15.01.2024 | R91: 17.01.2024 | S91: 7 | T91: 20 | U91: 30 | V91: 14500 | W91: 25300 | X91: 8900 | Y91: 48700 | Z91: 0 | AA91: 48700 | AB91: 23 | AC91: 6 | AH91: 0 | AM91: 0 | AR91: 0 | AS91: 2 | AT91: 4500 | AU91: 7700 | AV91: 4900 | AW91: 17100 | BB91: 0 | BG91: 0 | BL91: 0 | BM91: 5 | BN91: 0 | BO91: 0 | BP91: 0 | BQ91: 0 | BV91: 0 | CA91: 0 | CF91: 0 | CG91: 4 | CH91: 10000 | CI91: 17600 | CJ91: 4000 | CK91: 31600 | CP91: 0 | CU91: 0 | CZ91: 0 | DA91: 5 | DB91: 0 | DC91: 0 | DD91: 0 | DE91: 0 | DJ91: 0 | DK91: 2 | DL91: 0 | DM91: 0 | DN91: 0 | DO91: 0 | DP91: 5 | DQ91: 0 | DR91: 0 | DS91: 0 | DT91: 0
A92: 40057 | B92: УПЦ ООО "Газпром трансгаз Чайковский" | C92: ООО "Газпром трансгаз Чайковский" | D92: Обучение рабочих | E92: ВысРаб24 | F92: Высота 1,2 группа 24ч. | G92: (24ч) Обучение персонала безопасным методам и приемам выполнения работ на высоте "Работники 1,2 групп по безопасности работ на высоте" | H92: Повышение квалификации (РАБ) | J92: (РАБ) Курсы целевого назначения (в части получения допуска к работе на опасных производственных объектах) | M92: 3 | N92: 24 | O92: 0 | P92: 0 | Q92: 19.02.2024 | R92: 21.02.2024 | S92: 7 | T92: 20 | U92: 30 | V92: 15500 | W92: 26400 | X92: 12600 | Y92: 54500 | Z92: 0 | AA92: 54500 | AB92: 26 | AC92: 7 | AH92: 0 | AM92: 0 | AR92: 0 | AS92: 4 | AT92: 8000 | AU92: 13200 | AV92: 9600 | AW92: 30800 | BB92: 0 | BG92: 0 | BL92: 0 | BM92: 8 | BN92: 0 | BO92: 0 | BP92: 0 | BQ92: 0 | BR92: 2 | BS92: 0 | BT92: 0 | BU92: 0 | BV92: 0 | CA92: 0 | CF92: 0 | CG92: 3 | CH92: 7500 | CI92: 13200 | CJ92: 3000 | CK92: 23700 | CP92: 0 | CU92: 0 | CZ92: 0 | DA92: 6 | DB92: 0 | DC92: 0 | DD92: 0 | DE92: 0 | DJ92: 0 | DK92: 1 | DL92: 0 | DM92: 0 | DN92: 0 | DO92: 0 | DP92: 2 | DQ92: 0 | DR92: 0 | DS92: 0 | DT92: 0
A93: 40059 | B93: УПЦ ООО "Газпром трансгаз Чайковский" | C93: ООО "Газпром трансгаз Чайковский" | D93: Обучение ИТР | E93: ОЗП Спец | F93: Работники 2,3 гр.ОЗП | G93: Работники 2, 3 групп по безопасности работ в ограниченных и замкнутых пространствах» | H93: Повышение квалификации | J93: Предаттестационная подготовка по промышленной безопасности, экологической безопасности и др. | M93: 3 | N93: 24 | O93: 0 | P93: 0 | Q93: 11.03.2024 | R93: 13.03.2024 | S93: 7 | T93: 20 | U93: 30 | V93: 23500 | W93: 77940 | X93: 11800 | Y93: 113240 | Z93: 0 | AA93: 113240 | AB93: 31 | AC93: 15 | AH93: 0 | AI93: 2 | AJ93: 5000 | AK93: 16000 | AL93: 0 | AM93: 21000 | AN93: 2 | AO93: 3000 | AP93: 10000 | AQ93: 0 | AR93: 13000 | AS93: 4 | AT93: 7500 | AU93: 32800 | AV93: 7300 | AW93: 47600 | BB93: 0 | BG93: 0 | BL93: 0 | BM93: 6 | BN93: 0 | BO93: 0 | BP93: 0 | BQ93: 0 | BV93: 0 | CA93: 0 | CB93: 1 | CC93: 0 | CD93: 0 | CE93: 0 | CF93: 0 | CK93: 0 | CL93: 3 | CM93: 6000 | CN93: 14400 | CO93: 4500 | CP93: 24900 | CU93: 0 | CV93: 3 | CW93: 2000 | CX93: 4740 | CY93: 0 | CZ93: 6740 | DA93: 7 | DB93: 0 | DC93: 0 | DD93: 0 | DE93: 0 | DJ93: 0 | DK93: 2 | DL93: 0 | DM93: 0 | DN93: 0 | DO93: 0 | DP93: 1 | DQ93: 0 | DR93: 0 | DS93: 0 | DT93: 0
A94: 40060 | B94: УПЦ ООО "Газпром трансгаз Чайковский" | C94: УПЦ ООО "Газпром трансгаз Чайковский" | D94: Обучение рабочих | E94: СлесЭРГОПК | F94: Слесарь по ЭРГО ПТК | G94: Слесарь по эксплуатации и ремонту газового оборудования ПТК | H94: Повышение квалификации (РАБ) | J94: (РАБ) Повышение квалификации на ПТК | M94: 15 | N94: 120 | O94: 25 | P94: 200 | Q94: 13.05.2024 | R94: 31.05.2024 | S94: 7 | T94: 10 | U94: 20 | V94: 56000 | W94: 121880 | X94: 4500 | Y94: 182380 | Z94: 0 | AA94: 182380 | AB94: 11 | AC94: 7 | AD94: 1 | AE94: 0 | AF94: 0 | AG94: 0 | AH94: 0 | AM94: 0 | AR94: 0 | AW94: 0 | BB94: 0 | BG94: 0 | BL94: 0 | BM94: 1 | BN94: 0 | BO94: 0 | BP94: 0 | BQ94: 0 | BV94: 0 | CA94: 0 | CF94: 0 | CK94: 0 | CL94: 3 | CM94: 30000 | CN94: 62700 | CO94: 4500 | CP94: 97200 | CU94: 0 | CV94: 4 | CW94: 26000 | CX94: 59180 | CY94: 0 | CZ94: 85180 | DA94: 2 | DB94: 0 | DC94: 0 | DD94: 0 | DE94: 0 | DJ94: 0 | DO94: 0 | DT94: 0
A95: 40063 | B95: УПЦ ООО "Газпром трансгаз Чайковский" | C95: УПЦ ООО "Газпром трансгаз Чайковский" | D95: Обучение рабочих | E95: ТрубЛинПК | F95: Трубопроводчик линейный ПТК | G95: Трубопроводчик линейный ПТК | H95: Повышение квалификации (РАБ) | J95: (РАБ) Повышение квалификации на ПТК | M95: 10 | N95: 80 | O95: 10 | P95: 80 | Q95: 29.01.2024 | R95: 09.02.2024 | S95: 7 | T95: 16 | U95: 20 | V95: 50000 | W95: 112000 | X95: 15900 | Y95: 177900 | Z95: 0 | AA95: 177900 | AB95: 8 | AC95: 8 | AH95: 0 | AM95: 0 | AR95: 0 | AS95: 1 | AT95: 6500 | AU95: 13200 | AV95: 2500 | AW95: 22200 | AX95: 2 | AY95: 13000 | AZ95: 26400 | BA95: 500 | BB95: 39900 | BC95: 3 | BD95: 17000 | BE95: 36300 | BF95: 8400 | BG95: 61700 | BL95: 0 | BQ95: 0 | BV95: 0 | BW95: 1 | BX95: 7000 | BY95: 24000 | BZ95: 3000 | CA95: 34000 | CF95: 0 | CK95: 0 | CL95: 1 | CM95: 6500 | CN95: 12100 | CO95: 1500 | CP95: 20100 | CU95: 0 | CZ95: 0 | DE95: 0 | DJ95: 0 | DO95: 0 | DT95: 0
A96: 40064 | B96: УПЦ ООО "Газпром трансгаз Чайковский" | C96: УПЦ ООО "Газпром трансгаз Чайковский" | D96: Обучение рабочих | E96: Труб Лбез ПР | F96: Трубопроводчик линейный ПТК(без пов.раз) | G96: Трубопроводчик линейный ПТК | H96: Повышение квалификации (РАБ) | J96: (РАБ) Повышение квалификации на ПТК | M96: 5 | N96: 40 | O96: 15 | P96: 120 | Q96: 22.04.2024 | R96: 26.04.2024 | S96: 7 | T96: 16 | U96: 20 | V96: 53000 | W96: 129900 | X96: 26000 | Y96: 208900 | Z96: 0 | AA96: 208900 | AB96: 16 | AC96: 16 | AH96: 0 | AI96: 1 | AJ96: 3000 | AK96: 5500 | AL96: 1500 | AM96: 10000 | AR96: 0 | AW96: 0 | AX96: 4 | AY96: 12000 | AZ96: 22000 | BA96: 0 | BB96: 34000 | BC96: 2 | BD96: 7500 | BE96: 18200 | BF96: 3000 | BG96: 28700 | BH96: 1 | BI96: 3500 | BJ96: 6600 | BK96: 2500 | BL96: 12600 | BQ96: 0 | BV96: 0 | BW96: 5 | BX96: 17500 | BY96: 60000 | BZ96: 15000 | CA96: 92500 | CF96: 0 | CG96: 1 | CH96: 3500 | CI96: 6600 | CJ96: 1000 | CK96: 11100 | CL96: 2 | CM96: 6000 | CN96: 11000 | CO96: 3000 | CP96: 20000 | CU96: 0 | CZ96: 0 | DE96: 0 | DJ96: 0 | DO96: 0 | DT96: 0
A97: 40069 | B97: УПЦ ООО "Газпром трансгаз Чайковский" | C97: ООО "Газпром трансгаз Чайковский" | D97: Обучение ИТР | E97: БезЭксплТЭУ | F97: Безопасная эксплуатация ТЭУ | G97: Безопасная эксплуатация объектов теплоснабжения и теплопотребляющих установок | H97: Повышение квалификации | J97: Предаттестационная подготовка по промышленной безопасности, экологической безопасности и др. | M97: 7 | N97: 40 | O97: 0 | P97: 0 | Q97: 26.03.2024 | R97: 03.04.2024 | S97: 7 | T97: 20 | U97: 20 | V97: 26000 | W97: 72920 | X97: 18100 | Y97: 117020 | Z97: 0 | AA97: 117020 | AB97: 18 | AC97: 12 | AH97: 0 | AM97: 0 | AN97: 1 | AO97: 1500 | AP97: 5000 | AQ97: 0 | AR97: 6500 | AS97: 1 | AT97: 2500 | AU97: 6000 | AV97: 2400 | AW97: 10900 | AX97: 2 | AY97: 3000 | AZ97: 4400 | BA97: 0 | BB97: 7400 | BC97: 1 | BD97: 1500 | BE97: 5000 | BF97: 2800 | BG97: 9300 | BH97: 1 | BI97: 2500 | BJ97: 8000 | BK97: 2500 | BL97: 13000 | BQ97: 0 | BV97: 0 | BW97: 3 | BX97: 6000 | BY97: 18000 | BZ97: 6000 | CA97: 30000 | CB97: 1 | CC97: 2000 | CD97: 6320 | CE97: 500 | CF97: 8820 | CG97: 1 | CH97: 2500 | CI97: 6000 | CJ97: 1000 | CK97: 9500 | CP97: 0 | CU97: 0 | CZ97: 0 | DA97: 3 | DB97: 0 | DC97: 0 | DD97: 0 | DE97: 0 | DF97: 1 | DG97: 2500 | DH97: 10000 | DI97: 2000 | DJ97: 14500 | DK97: 3 | DL97: 2000 | DM97: 4200 | DN97: 900 | DO97: 7100 | DT97: 0
A98: 40070 | B98: УПЦ ООО "Газпром трансгаз Чайковский" | C98: УПЦ ООО "Газпром трансгаз Чайковский" | D98: Обучение рабочих | E98: Труб Лбез ПР | F98: Трубопроводчик линейный ПТК(без пов.раз) | G98: Трубопроводчик линейный ПТК | H98: Повышение квалификации (РАБ) | J98: (РАБ) Повышение квалификации на ПТК | M98: 5 | N98: 40 | O98: 15 | P98: 120 | Q98: 09.09.2024 | R98: 13.09.2024 | S98: 7 | T98: 16 | U98: 20 | V98: 38500 | W98: 82300 | X98: 15000 | Y98: 135800 | Z98: 0 | AA98: 135800 | AB98: 12 | AC98: 12 | AH98: 0 | AI98: 2 | AJ98: 6000 | AK98: 11000 | AL98: 3000 | AM98: 20000 | AR98: 0 | AW98: 0 | AX98: 4 | AY98: 12000 | AZ98: 22000 | BA98: 0 | BB98: 34000 | BG98: 0 | BH98: 1 | BI98: 3500 | BJ98: 6600 | BK98: 2500 | BL98: 12600 | BQ98: 0 | BV98: 0 | BW98: 2 | BX98: 7000 | BY98: 24000 | BZ98: 6000 | CA98: 37000 | CF98: 0 | CG98: 2 | CH98: 7000 | CI98: 13200 | CJ98: 2000 | CK98: 22200 | CL98: 1 | CM98: 3000 | CN98: 5500 | CO98: 1500 | CP98: 10000 | CU98: 0 | CZ98: 0 | DE98: 0 | DJ98: 0 | DO98: 0 | DT98: 0
A99: 40071 | B99: УПЦ ООО "Газпром трансгаз Чайковский" | C99: ООО "Газпром трансгаз Чайковский" | D99: Обучение ИТР | E99: БезЭксплТЭУ | F99: Безопасная эксплуатация ТЭУ | G99: Безопасная эксплуатация объектов теплоснабжения и теплопотребляющих установок | H99: Повышение квалификации | J99: Предаттестационная подготовка по промышленной безопасности, экологической безопасности и др. | M99: 7 | N99: 40 | O99: 0 | P99: 0 | Q99: 16.04.2024 | R99: 24.04.2024 | S99: 7 | T99: 20 | U99: 20 | V99: 28500 | W99: 91320 | X99: 20000 | Y99: 139820 | Z99: 0 | AA99: 139820 | AB99: 16 | AC99: 13 | AH99: 0 | AI99: 2 | AJ99: 4500 | AK99: 16000 | AL99: 0 | AM99: 20500 | AR99: 0 | AS99: 2 | AT99: 5000 | AU99: 20800 | AV99: 5000 | AW99: 30800 | BB99: 0 | BC99: 1 | BD99: 1500 | BE99: 5000 | BF99: 2800 | BG99: 9300 | BH99: 2 | BI99: 5000 | BJ99: 18000 | BK99: 5000 | BL99: 28000 | BQ99: 0 | BV99: 0 | BW99: 1 | BX99: 2000 | BY99: 6000 | BZ99: 2000 | CA99: 10000 | CB99: 2 | CC99: 2000 | CD99: 6320 | CE99: 500 | CF99: 8820 | CG99: 1 | CH99: 2500 | CI99: 6000 | CJ99: 1000 | CK99: 9500 | CL99: 2 | CM99: 2000 | CN99: 4800 | CO99: 1500 | CP99: 8300 | CU99: 0 | CZ99: 0 | DA99: 1 | DB99: 0 | DC99: 0 | DD99: 0 | DE99: 0 | DJ99: 0 | DK99: 2 | DL99: 4000 | DM99: 8400 | DN99: 2200 | DO99: 14600 | DT99: 0
A100: 40072 | B100: УПЦ ООО "Газпром трансгаз Чайковский" | C100: УПЦ ООО "Газпром трансгаз Чайковский" | D100: Обучение рабочих | E100: ОбхЛин | F100: Обходчик линейный ПТК (без пов.разряда) | G100: Обходчик линейный ПТК | H100: Повышение квалификации (РАБ) | J100: (РАБ) Повышение квалификации на ПТК | M100: 5 | N100: 40 | O100: 27 | P100: 216 | Q100: 12.02.2024 | R100: 16.02.2024 | S100: 0 | T100: 16 | U100: 20 | V100: 37500 | W100: 85000 | X100: 14500 | Y100: 137000 | Z100: 0 | AA100: 137000 | AB100: 11 | AC100: 10 | AH100: 0 | AM100: 0 | AN100: 2 | AO100: 5000 | AP100: 8800 | AQ100: 0 | AR100: 13800 | AW100: 0 | AX100: 2 | AY100: 6000 | AZ100: 11000 | BA100: 0 | BB100: 17000 | BC100: 1 | BD100: 7500 | BE100: 18200 | BF100: 3000 | BG100: 28700 | BL100: 0 | BQ100: 0 | BV100: 0 | BW100: 3 | BX100: 10500 | BY100: 36000 | BZ100: 9000 | CA100: 55500 | CF100: 0 | CK100: 0 | CL100: 1 | CM100: 3000 | CN100: 5500 | CO100: 1500 | CP100: 10000 | CU100: 0 | CV100: 1 | CW100: 3000 | CX100: 5500 | CY100: 0 | CZ100: 8500 | DE100: 0 | DJ100: 0 | DO100: 0 | DP100: 1 | DQ100: 2500 | DR100: 0 | DS100: 1000 | DT100: 3500
A101: 40073 | B101: УПЦ ООО "Газпром трансгаз Чайковский" | C101: ООО "Газпром трансгаз Чайковский" | D101: Обучение ИТР | E101: ОЗП Спец | F101: Работники 2,3 гр.ОЗП | G101: Работники 2, 3 групп по безопасности работ в ограниченных и замкнутых пространствах» | H101: Повышение квалификации | J101: Предаттестационная подготовка по промышленной безопасности, экологической безопасности и др. | M101: 3 | N101: 24 | O101: 0 | P101: 0 | Q101: 01.04.2024 | R101: 03.04.2024 | S101: 7 | T101: 20 | U101: 30 | V101: 33500 | W101: 114780 | X101: 21800 | Y101: 170080 | Z101: 0 | AA101: 170080 | AB101: 34 | AC101: 13 | AH101: 0 | AI101: 1 | AJ101: 2500 | AK101: 8000 | AL101: 0 | AM101: 10500 | AN101: 2 | AO101: 3000 | AP101: 10000 | AQ101: 0 | AR101: 13000 | AS101: 4 | AT101: 10000 | AU101: 43200 | AV101: 9800 | AW101: 63000 | BB101: 0 | BC101: 3 | BD101: 8500 | BE101: 32500 | BF101: 8400 | BG101: 49400 | BL101: 0 | BQ101: 0 | BV101: 0 | CA101: 0 | CF101: 0 | CK101: 0 | CL101: 1 | CM101: 1500 | CN101: 3200 | CO101: 1500 | CP101: 6200 | CU101: 0 | CV101: 2 | CW101: 4000 | CX101: 9480 | CY101: 0 | CZ101: 13480 | DA101: 15 | DB101: 0 | DC101: 0 | DD101: 0 | DE101: 0 | DJ101: 0 | DK101: 3 | DL101: 4000 | DM101: 8400 | DN101: 2100 | DO101: 14500 | DP101: 3 | DQ101: 0 | DR101: 0 | DS101: 0 | DT101: 0
A102: 40075 | B102: УПЦ ООО "Газпром трансгаз Чайковский" | C102: ООО "Газпром трансгаз Чайковский" | D102: Обучение ИТР | E102: БезопЭксЭУ | F102: Безопасная эксплуатация электрохозяйства | G102: Безопасная эксплуатация объектов электрохозяйства | H102: Повышение квалификации | J102: Предаттестационная подготовка по промышленной безопасности, экологической безопасности и др. | M102: 7 | N102: 40 | O102: 0 | P102: 0 | Q102: 02.04.2024 | R102: 10.04.2024 | S102: 7 | T102: 20 | U102: 20 | V102: 25500 | W102: 78440 | X102: 15600 | Y102: 119540 | Z102: 0 | AA102: 119540 | AB102: 17 | AC102: 13 | AH102: 0 | AM102: 0 | AN102: 2 | AO102: 2000 | AP102: 5000 | AQ102: 0 | AR102: 7000 | AS102: 2 | AT102: 4500 | AU102: 15600 | AV102: 5000 | AW102: 25100 | AX102: 1 | AY102: 1500 | AZ102: 2200 | BA102: 0 | BB102: 3700 | BC102: 2 | BD102: 6000 | BE102: 25000 | BF102: 5600 | BG102: 36600 | BL102: 0 | BM102: 1 | BN102: 0 | BO102: 0 | BP102: 0 | BQ102: 0 | BV102: 0 | BW102: 1 | BX102: 2000 | BY102: 6000 | BZ102: 2000 | CA102: 10000 | CB102: 1 | CC102: 2000 | CD102: 6320 | CE102: 500 | CF102: 8820 | CG102: 1 | CH102: 2500 | CI102: 6000 | CJ102: 1000 | CK102: 9500 | CL102: 1 | CM102: 2000 | CN102: 4800 | CO102: 1500 | CP102: 8300 | CU102: 0 | CV102: 2 | CW102: 3000 | CX102: 7520 | CY102: 0 | CZ102: 10520 | DA102: 1 | DB102: 0 | DC102: 0 | DD102: 0 | DE102: 0 | DJ102: 0 | DO102: 0 | DP102: 2 | DQ102: 0 | DR102: 0 | DS102: 0 | DT102: 0
A103: 40076 | B103: УПЦ ООО "Газпром трансгаз Чайковский" | C103: УПЦ ООО "Газпром трансгаз Чайковский" | D103: Обучение ИТР | E103: ПБОГРГП | F103: Треб. ПБ на объектах газораспределения | G103: Требования промышленной безопасности на объектах газораспределения и газопотребления | H103: Повышение квалификации | J103: Предаттестационная подготовка по промышленной безопасности, экологической безопасности и др. | M103: 7 | N103: 40 | O103: 0 | P103: 0 | Q103: 19.11.2024 | R103: 28.11.2024 | S103: 7 | T103: 10 | U103: 20 | V103: 24500 | W103: 71400 | X103: 5400 | Y103: 101300 | Z103: 0 | AA103: 101300 | AB103: 6 | AC103: 5 | AH103: 0 | AM103: 0 | AR103: 0 | AS103: 1 | AT103: 5000 | AU103: 23400 | AV103: 2400 | AW103: 30800 | AX103: 4 | AY103: 19500 | AZ103: 48000 | BA103: 3000 | BB103: 70500 | BG103: 0 | BL103: 0 | BQ103: 0 | BV103: 0 | CA103: 0 | CF103: 0 | CK103: 0 | CP103: 0 | CU103: 0 | CZ103: 0 | DA103: 1 | DB103: 0 | DC103: 0 | DD103: 0 | DE103: 0 | DJ103: 0 | DO103: 0 | DT103: 0
A104: 40077 | B104: УПЦ ООО "Газпром трансгаз Чайковский" | C104: ООО "Газпром трансгаз Чайковский" | D104: Обучение ИТР | E104: БезопЭксЭУ | F104: Безопасная эксплуатация электрохозяйства | G104: Безопасная эксплуатация объектов электрохозяйства | H104: Повышение квалификации | J104: Предаттестационная подготовка по промышленной безопасности, экологической безопасности и др. | M104: 7 | N104: 40 | O104: 0 | P104: 0 | Q104: 09.04.2024 | R104: 17.04.2024 | S104: 7 | T104: 20 | U104: 20 | V104: 18000 | W104: 59320 | X104: 11500 | Y104: 88820 | Z104: 0 | AA104: 88820 | AB104: 14 | AC104: 11 | AH104: 0 | AI104: 1 | AJ104: 2000 | AK104: 6000 | AL104: 1500 | AM104: 9500 | AR104: 0 | AW104: 0 | AX104: 1 | AY104: 0 | AZ104: 0 | BA104: 0 | BB104: 0 | BG104: 0 | BH104: 2 | BI104: 2500 | BJ104: 10000 | BK104: 2500 | BL104: 15000 | BQ104: 0 | BR104: 2 | BS104: 0 | BT104: 0 | BU104: 0 | BV104: 0 | BW104: 1 | BX104: 3500 | BY104: 15000 | BZ104: 3000 | CA104: 21500 | CB104: 1 | CC104: 0 | CD104: 0 | CE104: 0 | CF104: 0 | CG104: 1 | CH104: 2500 | CI104: 6000 | CJ104: 1000 | CK104: 9500 | CL104: 1 | CM104: 2000 | CN104: 4800 | CO104: 1500 | CP104: 8300 | CU104: 0 | CV104: 2 | CW104: 3000 | CX104: 7520 | CY104: 0 | CZ104: 10520 | DE104: 0 | DF104: 1 | DG104: 2500 | DH104: 10000 | DI104: 2000 | DJ104: 14500 | DK104: 1 | DL104: 0 | DM104: 0 | DN104: 0 | DO104: 0 | DT104: 0
A105: 40078 | B105: УПЦ ООО "Газпром трансгаз Чайковский" | C105: УПЦ ООО "Газпром трансгаз Чайковский" | D105: Обучение ИТР | E105: ТОиРВТУ | F105: Камеры приема-запуска ВТУ | G105: Эксплуатация и ТОиР камер приема-запуска ВТУ со всеми видами затворов и безопасное производство работ по запуску и приему ВТУ в рабочей среде | H105: Повышение квалификации | J105: Прочие технические (ГНВП, сварочное, противопожарные и т.д.) | M105: 2 | N105: 16 | O105: 0 | P105: 0 | Q105: 04.06.2024 | R105: 05.06.2024 | S105: 7 | T105: 10 | U105: 20 | V105: 23500 | W105: 69600 | X105: 18600 | Y105: 111700 | Z105: 0 | AA105: 111700 | AB105: 14 | AC105: 13 | AH105: 0 | AI105: 1 | AJ105: 1500 | AK105: 4000 | AL105: 1500 | AM105: 7000 | AN105: 3 | AO105: 3000 | AP105: 7500 | AQ105: 0 | AR105: 10500 | AS105: 1 | AT105: 2000 | AU105: 7800 | AV105: 2500 | AW105: 12300 | AX105: 1 | AY105: 1500 | AZ105: 2200 | BA105: 0 | BB105: 3700 | BC105: 3 | BD105: 7500 | BE105: 27500 | BF105: 8100 | BG105: 43100 | BH105: 1 | BI105: 3500 | BJ105: 12000 | BK105: 2500 | BL105: 18000 | BQ105: 0 | BV105: 0 | CA105: 0 | CF105: 0 | CK105: 0 | CL105: 2 | CM105: 3000 | CN105: 6400 | CO105: 3000 | CP105: 12400 | CU105: 0 | CV105: 1 | CW105: 1500 | CX105: 2200 | CY105: 1000 | CZ105: 4700 | DE105: 0 | DJ105: 0 | DO105: 0 | DP105: 1 | DQ105: 0 | DR105: 0 | DS105: 0 | DT105: 0
A106: 40079 | B106: УПЦ ООО "Газпром трансгаз Чайковский" | C106: ООО "Газпром трансгаз Чайковский" | D106: Обучение ИТР | E106: БезопЭксЭУ | F106: Безопасная эксплуатация электрохозяйства | G106: Безопасная эксплуатация объектов электрохозяйства | H106: Повышение квалификации | J106: Предаттестационная подготовка по промышленной безопасности, экологической безопасности и др. | M106: 7 | N106: 40 | O106: 0 | P106: 0 | Q106: 14.05.2024 | R106: 22.05.2024 | S106: 7 | T106: 20 | U106: 20 | V106: 22500 | W106: 78260 | X106: 17600 | Y106: 118360 | Z106: 0 | AA106: 118360 | AB106: 13 | AC106: 11 | AH106: 0 | AI106: 1 | AJ106: 2000 | AK106: 6000 | AL106: 1500 | AM106: 9500 | AR106: 0 | AS106: 1 | AT106: 2000 | AU106: 7800 | AV106: 2500 | AW106: 12300 | AX106: 1 | AY106: 1500 | AZ106: 2200 | BA106: 0 | BB106: 3700 | BC106: 1 | BD106: 3000 | BE106: 12500 | BF106: 3000 | BG106: 18500 | BH106: 1 | BI106: 2500 | BJ106: 10000 | BK106: 2500 | BL106: 15000 | BQ106: 0 | BV106: 0 | BW106: 1 | BX106: 3500 | BY106: 15000 | BZ106: 3000 | CA106: 21500 | CB106: 1 | CC106: 2000 | CD106: 6320 | CE106: 500 | CF106: 8820 | CG106: 2 | CH106: 2000 | CI106: 5640 | CJ106: 1100 | CK106: 8740 | CL106: 1 | CM106: 2000 | CN106: 4800 | CO106: 1500 | CP106: 8300 | CU106: 0 | CZ106: 0 | DE106: 0 | DF106: 1 | DG106: 2000 | DH106: 8000 | DI106: 2000 | DJ106: 12000 | DK106: 1 | DL106: 0 | DM106: 0 | DN106: 0 | DO106: 0 | DP106: 1 | DQ106: 0 | DR106: 0 | DS106: 0 | DT106: 0
A107: 40080 | B107: УПЦ ООО "Газпром трансгаз Чайковский" | C107: ООО "Газпром трансгаз Чайковский" | D107: Обучение ИТР | E107: БезопЭксЭУ | F107: Безопасная эксплуатация электрохозяйства | G107: Безопасная эксплуатация объектов электрохозяйства | H107: Повышение квалификации | J107: Предаттестационная подготовка по промышленной безопасности, экологической безопасности и др. | M107: 7 | N107: 40 | O107: 0 | P107: 0 | Q107: 28.05.2024 | R107: 05.06.2024 | S107: 7 | T107: 20 | U107: 20 | V107: 21500 | W107: 67420 | X107: 14200 | Y107: 103120 | Z107: 0 | AA107: 103120 | AB107: 17 | AC107: 11 | AH107: 0 | AI107: 2 | AJ107: 4000 | AK107: 15000 | AL107: 3000 | AM107: 22000 | AN107: 1 | AO107: 1000 | AP107: 2500 | AQ107: 0 | AR107: 3500 | AS107: 2 | AT107: 2000 | AU107: 7800 | AV107: 2500 | AW107: 12300 | AX107: 1 | AY107: 1500 | AZ107: 2200 | BA107: 0 | BB107: 3700 | BG107: 0 | BH107: 1 | BI107: 2500 | BJ107: 10000 | BK107: 2500 | BL107: 15000 | BM107: 1 | BN107: 0 | BO107: 0 | BP107: 0 | BQ107: 0 | BV107: 0 | CA107: 0 | CB107: 1 | CC107: 2000 | CD107: 6320 | CE107: 500 | CF107: 8820 | CG107: 1 | CH107: 2500 | CI107: 6000 | CJ107: 1000 | CK107: 9500 | CL107: 1 | CM107: 2000 | CN107: 4800 | CO107: 1500 | CP107: 8300 | CU107: 0 | CZ107: 0 | DA107: 2 | DB107: 0 | DC107: 0 | DD107: 0 | DE107: 0 | DF107: 1 | DG107: 2500 | DH107: 10000 | DI107: 2000 | DJ107: 14500 | DK107: 2 | DL107: 1500 | DM107: 2800 | DN107: 1200 | DO107: 5500 | DP107: 1 | DQ107: 0 | DR107: 0 | DS107: 0 | DT107: 0
A108: 40082 | B108: УПЦ ООО "Газпром трансгаз Чайковский" | C108: ООО "Газпром трансгаз Чайковский" | D108: Обучение рабочих | E108: ВысРаб32 | F108: Высота 1,2 группа 32ч. | G108: (32ч) Обучение персонала безопасным методам и приемам выполнения работ на высоте "Работники 1,2 групп по безопасности работ на высоте" | H108: Повышение квалификации (РАБ) | J108: (РАБ) Курсы целевого назначения (в части получения допуска к работе на опасных производственных объектах) | M108: 5 | N108: 32 | O108: 0 | P108: 0 | Q108: 03.06.2024 | R108: 06.06.2024 | S108: 7 | T108: 20 | U108: 20 | V108: 21500 | W108: 52600 | X108: 14400 | Y108: 88500 | Z108: 0 | AA108: 88500 | AB108: 21 | AC108: 10 | AH108: 0 | AI108: 2 | AJ108: 6000 | AK108: 11000 | AL108: 3000 | AM108: 20000 | AR108: 0 | AS108: 1 | AT108: 3500 | AU108: 6600 | AV108: 2400 | AW108: 12500 | AX108: 3 | AY108: 0 | AZ108: 0 | BA108: 0 | BB108: 0 | BG108: 0 | BL108: 0 | BM108: 4 | BN108: 0 | BO108: 0 | BP108: 0 | BQ108: 0 | BV108: 0 | BW108: 2 | BX108: 7000 | BY108: 24000 | BZ108: 6000 | CA108: 37000 | CF108: 0 | CK108: 0 | CL108: 2 | CM108: 5000 | CN108: 11000 | CO108: 3000 | CP108: 19000 | CU108: 0 | CZ108: 0 | DE108: 0 | DJ108: 0 | DO108: 0 | DP108: 7 | DQ108: 0 | DR108: 0 | DS108: 0 | DT108: 0
A109: 40083 | B109: УПЦ ООО "Газпром трансгаз Чайковский" | C109: ООО "Газпром трансгаз Чайковский" | D109: Обучение ИТР | E109: ОЗП Спец | F109: Работники 2,3 гр.ОЗП | G109: Работники 2, 3 групп по безопасности работ в ограниченных и замкнутых пространствах» | H109: Повышение квалификации | J109: Предаттестационная подготовка по промышленной безопасности, экологической безопасности и др. | M109: 3 | N109: 24 | O109: 0 | P109: 0 | Q109: 17.06.2024 | R109: 19.06.2024 | S109: 7 | T109: 20 | U109: 30 | V109: 26000 | W109: 83140 | X109: 18900 | Y109: 128040 | Z109: 0 | AA109: 128040 | AB109: 25 | AC109: 11 | AH109: 0 | AI109: 1 | AJ109: 2500 | AK109: 8000 | AL109: 0 | AM109: 10500 | AN109: 1 | AO109: 0 | AP109: 0 | AQ109: 0 | AR109: 0 | AS109: 3 | AT109: 5000 | AU109: 20800 | AV109: 5000 | AW109: 30800 | BB109: 0 | BC109: 3 | BD109: 8500 | BE109: 29000 | BF109: 8800 | BG109: 46300 | BL109: 0 | BQ109: 0 | BV109: 0 | CA109: 0 | CF109: 0 | CK109: 0 | CP109: 0 | CU109: 0 | CV109: 2 | CW109: 2000 | CX109: 4740 | CY109: 0 | CZ109: 6740 | DA109: 9 | DB109: 0 | DC109: 0 | DD109: 0 | DE109: 0 | DF109: 1 | DG109: 2000 | DH109: 8000 | DI109: 2000 | DJ109: 12000 | DK109: 4 | DL109: 6000 | DM109: 12600 | DN109: 3100 | DO109: 21700 | DP109: 1 | DQ109: 0 | DR109: 0 | DS109: 0 | DT109: 0
A110: 40087 | B110: УПЦ ООО "Газпром трансгаз Чайковский" | C110: ООО "Газпром трансгаз Чайковский" | D110: Обучение рабочих | E110: ВысРаб24 | F110: Высота 1,2 группа 24ч. | G110: (24ч) Обучение персонала безопасным методам и приемам выполнения работ на высоте "Работники 1,2 групп по безопасности работ на высоте" | H110: Повышение квалификации (РАБ) | J110: (РАБ) Курсы целевого назначения (в части получения допуска к работе на опасных производственных объектах) | M110: 3 | N110: 24 | O110: 0 | P110: 0 | Q110: 09.09.2024 | R110: 11.09.2024 | S110: 7 | T110: 20 | U110: 30 | V110: 7500 | W110: 13200 | X110: 3000 | Y110: 23700 | Z110: 0 | AA110: 23700 | AB110: 19 | AC110: 14 | AH110: 0 | AM110: 0 | AR110: 0 | AW110: 0 | BB110: 0 | BG110: 0 | BL110: 0 | BQ110: 0 | BV110: 0 | BW110: 11 | BX110: 0 | BY110: 0 | BZ110: 0 | CA110: 0 | CF110: 0 | CG110: 3 | CH110: 7500 | CI110: 13200 | CJ110: 3000 | CK110: 23700 | CP110: 0 | CU110: 0 | CZ110: 0 | DA110: 4 | DB110: 0 | DC110: 0 | DD110: 0 | DE110: 0 | DJ110: 0 | DO110: 0 | DP110: 1 | DQ110: 0 | DR110: 0 | DS110: 0 | DT110: 0
A111: 40091 | B111: УПЦ ООО "Газпром трансгаз Чайковский" | C111: ООО "Газпром трансгаз Чайковский" | D111: Обучение рабочих | E111: ВысРаб32 | F111: Высота 1,2 группа 32ч. | G111: (32ч) Обучение персонала безопасным методам и приемам выполнения работ на высоте "Работники 1,2 групп по безопасности работ на высоте" | H111: Повышение квалификации (РАБ) | J111: (РАБ) Курсы целевого назначения (в части получения допуска к работе на опасных производственных объектах) | M111: 5 | N111: 32 | O111: 0 | P111: 0 | Q111: 14.10.2024 | R111: 17.10.2024 | S111: 7 | T111: 20 | U111: 20 | V111: 34500 | W111: 84400 | X111: 24300 | Y111: 143200 | Z111: 0 | AA111: 143200 | AB111: 20 | AC111: 15 | AH111: 0 | AI111: 2 | AJ111: 6000 | AK111: 11000 | AL111: 3000 | AM111: 20000 | AR111: 0 | AS111: 5 | AT111: 5500 | AU111: 9900 | AV111: 4800 | AW111: 20200 | BB111: 0 | BG111: 0 | BL111: 0 | BQ111: 0 | BV111: 0 | BW111: 3 | BX111: 10500 | BY111: 36000 | BZ111: 9000 | CA111: 55500 | CF111: 0 | CK111: 0 | CL111: 5 | CM111: 12500 | CN111: 27500 | CO111: 7500 | CP111: 47500 | CU111: 0 | CZ111: 0 | DE111: 0 | DJ111: 0 | DK111: 1 | DL111: 0 | DM111: 0 | DN111: 0 | DO111: 0 | DP111: 4 | DQ111: 0 | DR111: 0 | DS111: 0 | DT111: 0
A112: 40096 | B112: УПЦ ООО "Газпром трансгаз Чайковский" | C112: ООО "Газпром трансгаз Чайковский" | D112: Обучение ИТР | E112: СК свар.соед | F112: СК сварочно-монтаж. работы | G112: [DVERB] | H112: Повышение квалификации | J112: Другие целевые программы (строительный контроль) | M112: 7 | N112: 56 | O112: 0 | P112: 0 | Q112: 17.10.2024 | R112: 25.10.2024 | S112: 7 | T112: 15 | U112: 30 | V112: 5500 | W112: 26000 | X112: 2500 | Y112: 34000 | Z112: 0 | AA112: 34000 | AB112: 5 | AC112: 3 | AH112: 0 | AM112: 0 | AR112: 0 | AS112: 1 | AT112: 5500 | AU112: 26000 | AV112: 2500 | AW112: 34000 | BB112: 0 | BG112: 0 | BL112: 0 | BM112: 2 | BN112: 0 | BO112: 0 | BP112: 0 | BQ112: 0 | BV112: 0 | CA112: 0 | CB112: 2 | CC112: 0 | CD112: 0 | CE112: 0 | CF112: 0 | CK112: 0 | CP112: 0 | CU112: 0 | CZ112: 0 | DE112: 0 | DJ112: 0 | DO112: 0 | DT112: 0
A113: 40102 | B113: УПЦ ООО "Газпром трансгаз Чайковский" | C113: УПЦ ООО "Газпром трансгаз Чайковский" | E113: ОперКот2 | F113: Оператор котельной 2см | G113: Оператор котельной 2см | I113: Обучение вторым/смежным профессиям | J113: (РАБ) Обучение вторым (смежным) профессиям | M113: 14 | N113: 112 | O113: 18 | P113: 144 | Q113: 21.05.2024 | R113: 07.06.2024 | S113: 7 | T113: 15 | U113: 20 | V113: 112500 | W113: 263000 | X113: 18000 | Y113: 393500 | Z113: 0 | AA113: 393500 | AB113: 19 | AC113: 18 | AH113: 0 | AM113: 0 | AR113: 0 | AS113: 1 | AT113: 9500 | AU113: 19800 | AV113: 2500 | AW113: 31800 | AX113: 2 | AY113: 18500 | AZ113: 38500 | BA113: 0 | BB113: 57000 | BC113: 1 | BD113: 7500 | BE113: 18200 | BF113: 3000 | BG113: 28700 | BH113: 2 | BI113: 20000 | BJ113: 39600 | BK113: 5000 | BL113: 64600 | BQ113: 0 | BV113: 0 | BW113: 1 | BX113: 10500 | BY113: 38000 | BZ113: 3000 | CA113: 51500 | CB113: 1 | CC113: 0 | CD113: 0 | CE113: 0 | CF113: 0 | CK113: 0 | CL113: 7 | CM113: 40000 | CN113: 88000 | CO113: 4500 | CP113: 132500 | CU113: 0 | CV113: 3 | CW113: 6500 | CX113: 20900 | CY113: 0 | CZ113: 27400 | DE113: 0 | DJ113: 0 | DO113: 0 | DP113: 1 | DQ113: 0 | DR113: 0 | DS113: 0 | DT113: 0
A114: 40103 | B114: УПЦ ООО "Газпром трансгаз Чайковский" | C114: УПЦ ООО "Газпром трансгаз Чайковский" | E114: Строп2 | F114: Стропальщик 2см | G114: Стропальщик 2см | I114: Обучение вторым/смежным профессиям | J114: (РАБ) Обучение вторым (смежным) профессиям | M114: 5 | N114: 40 | O114: 15 | P114: 120 | Q114: 05.02.2024 | R114: 09.02.2024 | S114: 7 | T114: 15 | U114: 20 | V114: 40500 | W114: 98800 | X114: 21800 | Y114: 161100 | Z114: 0 | AA114: 161100 | AB114: 20 | AC114: 14 | AH114: 0 | AI114: 1 | AJ114: 3000 | AK114: 5500 | AL114: 1500 | AM114: 10000 | AR114: 0 | AS114: 3 | AT114: 10500 | AU114: 19800 | AV114: 7500 | AW114: 37800 | AX114: 2 | AY114: 6000 | AZ114: 13000 | BA114: 0 | BB114: 19000 | BC114: 1 | BD114: 3000 | BE114: 5500 | BF114: 2800 | BG114: 11300 | BL114: 0 | BM114: 2 | BN114: 0 | BO114: 0 | BP114: 0 | BQ114: 0 | BV114: 0 | BW114: 2 | BX114: 7000 | BY114: 24000 | BZ114: 6000 | CA114: 37000 | CF114: 0 | CK114: 0 | CL114: 1 | CM114: 0 | CN114: 0 | CO114: 0 | CP114: 0 | CU114: 0 | CV114: 2 | CW114: 6000 | CX114: 11000 | CY114: 0 | CZ114: 17000 | DA114: 2 | DB114: 0 | DC114: 0 | DD114: 0 | DE114: 0 | DF114: 2 | DG114: 5000 | DH114: 20000 | DI114: 4000 | DJ114: 29000 | DO114: 0 | DP114: 2 | DQ114: 0 | DR114: 0 | DS114: 0 | DT114: 0
A115: 40104 | B115: УПЦ ООО "Газпром трансгаз Чайковский" | C115: УПЦ ООО "Газпром трансгаз Чайковский" | E115: Строп2 | F115: Стропальщик 2см | G115: Стропальщик 2см | I115: Обучение вторым/смежным профессиям | J115: (РАБ) Обучение вторым (смежным) профессиям | M115: 5 | N115: 40 | O115: 15 | P115: 120 | Q115: 11.03.2024 | R115: 15.03.2024 | S115: 7 | T115: 15 | U115: 20 | V115: 40000 | W115: 102400 | X115: 23900 | Y115: =SUM(V115,W115,X115) -> 166300 | Z115: 0 | AA115: =Y115+(Z115*AB115) -> 166300 | AB115: =SUM(AD115,AI115,AN115,AS115,AX115,BC115,BH115,BM115,BR115,BW115,CB115,CG115,CL115,CQ115,CV115,DA115,DF115,DK115,DP115) -> 18 | AC115: =SUM(AI115,AN115,AS115,AX115,BC115,BH115,BW115,CB115,CG115,CL115,CV115,DF115) -> 17 | AH115: =SUM(AE115,AF115,AG115) -> 0 | AI115: 2 | AJ115: 6000 | AK115: 11000 | AL115: 3000 | AM115: =SUM(AJ115,AK115,AL115) -> 20000 | AR115: =SUM(AO115,AP115,AQ115) -> 0 | AS115: 1 | AT115: 3000 | AU115: 5500 | AV115: 2400 | AW115: =SUM(AT115,AU115,AV115) -> 10900 | AX115: 3 | AY115: 6000 | AZ115: 11000 | BA115: 0 | BB115: =SUM(AY115,AZ115,BA115) -> 17000 | BG115: =SUM(BD115,BE115,BF115) -> 0 | BH115: 1 | BI115: 3000 | BJ115: 5500 | BK115: 2500 | BL115: =SUM(BI115,BJ115,BK115) -> 11000 | BQ115: =SUM(BN115,BO115,BP115) -> 0 | BV115: =SUM(BS115,BT115,BU115) -> 0 | BW115: 4 | BX115: 14000 | BY115: 41500 | BZ115: 12000 | CA115: =SUM(BX115,BY115,BZ115) -> 67500 | CB115: 1 | CC115: 0 | CD115: 0 | CE115: 0 | CF115: =SUM(CC115,CD115,CE115) -> 0 | CK115: =SUM(CH115,CI115,CJ115) -> 0 | CP115: =SUM(CM115,CN115,CO115) -> 0 | CU115: =SUM(CR115,CS115,CT115) -> 0 | CV115: 1 | CW115: 3000 | CX115: 7900 | CY115: 0 | CZ115: =SUM(CW115,CX115,CY115) -> 10900 | DA115: 1 | DB115: 0 | DC115: 0 | DD115: 0 | DE115: =SUM(DB115,DC115,DD115) -> 0 | DF115: 4 | DG115: 5000 | DH115: 20000 | DI115: 4000 | DJ115: =SUM(DG115,DH115,DI115) -> 29000 | DO115: =SUM(DL115,DM115,DN115) -> 0 | DT115: =SUM(DQ115,DR115,DS115) -> 0
A116: 40105 | B116: УПЦ ООО "Газпром трансгаз Чайковский" | C116: УПЦ ООО "Газпром трансгаз Чайковский" | E116: Строп2 | F116: Стропальщик 2см | G116: Стропальщик 2см | I116: Обучение вторым/смежным профессиям | J116: (РАБ) Обучение вторым (смежным) профессиям | M116: 5 | N116: 40 | O116: 15 | P116: 120 | Q116: 08.04.2024 | R116: 12.04.2024 | S116: 7 | T116: 15 | U116: 20 | V116: 19500 | W116: 41500 | X116: 9000 | Y116: 70000 | Z116: 0 | AA116: 70000 | AB116: 17 | AC116: 10 | AH116: 0 | AM116: 0 | AR116: 0 | AW116: 0 | BB116: 0 | BG116: 0 | BH116: 2 | BI116: 3000 | BJ116: 5500 | BK116: 2500 | BL116: 11000 | BM116: 4 | BN116: 0 | BO116: 0 | BP116: 0 | BQ116: 0 | BV116: 0 | CA116: 0 | CB116: 3 | CC116: 6000 | CD116: 11000 | CE116: 1000 | CF116: 18000 | CK116: 0 | CL116: 1 | CM116: 2500 | CN116: 5500 | CO116: 1500 | CP116: 9500 | CU116: 0 | CV116: 2 | CW116: 3000 | CX116: 5500 | CY116: 0 | CZ116: 8500 | DA116: 2 | DB116: 0 | DC116: 0 | DD116: 0 | DE116: 0 | DF116: 2 | DG116: 5000 | DH116: 14000 | DI116: 4000 | DJ116: 23000 | DO116: 0 | DP116: 1 | DQ116: 0 | DR116: 0 | DS116: 0 | DT116: 0
A117: 40107 | B117: УПЦ ООО "Газпром трансгаз Чайковский" | C117: УПЦ ООО "Газпром трансгаз Чайковский" | D117: Обучение рабочих | E117: ЛаборантПК | F117: Лаборант хим.анализа ПТК | G117: Лаборант химического анализа ПТК | H117: Повышение квалификации (РАБ) | J117: (РАБ) Повышение квалификации на ПТК | M117: 19 | N117: 152 | O117: 33 | P117: 264 | Q117: 30.09.2024 | R117: 11.10.2024 | S117: 7 | T117: 15 | U117: 20 | V117: 184000 | W117: 457800 | X117: 32200 | Y117: 674000 | Z117: 0 | AA117: 674000 | AB117: 19 | AC117: 18 | AH117: 0 | AI117: 1 | AJ117: 13000 | AK117: 27500 | AL117: 1500 | AM117: 42000 | AN117: 1 | AO117: 12500 | AP117: 26400 | AQ117: 0 | AR117: 38900 | AW117: 0 | AX117: 2 | AY117: 26000 | AZ117: 55000 | BA117: 0 | BB117: 81000 | BC117: 4 | BD117: 28000 | BE117: 61600 | BF117: 11200 | BG117: 100800 | BH117: 2 | BI117: 26000 | BJ117: 57200 | BK117: 5000 | BL117: 88200 | BQ117: 0 | BV117: 0 | BW117: 4 | BX117: 42000 | BY117: 152000 | BZ117: 12000 | CA117: 206000 | CB117: 1 | CC117: 0 | CD117: 0 | CE117: 0 | CF117: 0 | CG117: 1 | CH117: 13000 | CI117: 27500 | CJ117: 1000 | CK117: 41500 | CL117: 1 | CM117: 13500 | CN117: 29700 | CO117: 1500 | CP117: 44700 | CU117: 0 | CV117: 1 | CW117: 10000 | CX117: 20900 | CY117: 0 | CZ117: 30900 | DE117: 0 | DJ117: 0 | DO117: 0 | DP117: 1 | DQ117: 0 | DR117: 0 | DS117: 0 | DT117: 0
A118: 40108 | B118: УПЦ ООО "Газпром трансгаз Чайковский" | C118: УПЦ ООО "Газпром трансгаз Чайковский" | D118: Обучение рабочих | E118: ОперКотПК | F118: Оператор котельной ПТК | G118: Оператор котельной ПТК | H118: Повышение квалификации (РАБ) | J118: (РАБ) Повышение квалификации на ПТК | M118: 13 | N118: 104 | O118: 19 | P118: 152 | Q118: 18.06.2024 | R118: 04.07.2024 | S118: 7 | T118: 15 | U118: 20 | V118: 76000 | W118: 158900 | X118: 16500 | Y118: 251400 | Z118: 0 | AA118: 251400 | AB118: 12 | AC118: 10 | AD118: 1 | AE118: 0 | AF118: 0 | AG118: 0 | AH118: 0 | AM118: 0 | AR118: 0 | AW118: 0 | AX118: 1 | AY118: 9000 | AZ118: 18700 | BA118: 0 | BB118: 27700 | BC118: 2 | BD118: 15000 | BE118: 36400 | BF118: 6000 | BG118: 57400 | BH118: 1 | BI118: 10000 | BJ118: 19800 | BK118: 2500 | BL118: 32300 | BM118: 1 | BN118: 0 | BO118: 0 | BP118: 0 | BQ118: 0 | BV118: 0 | BW118: 1 | BX118: 7000 | BY118: 24000 | BZ118: 3000 | CA118: 34000 | CF118: 0 | CK118: 0 | CP118: 0 | CU118: 0 | CV118: 3 | CW118: 16000 | CX118: 26400 | CY118: 1000 | CZ118: 43400 | DE118: 0 | DF118: 2 | DG118: 19000 | DH118: 33600 | DI118: 4000 | DJ118: 56600 | DO118: 0 | DT118: 0
A119: 40110 | B119: УПЦ ООО "Газпром трансгаз Чайковский" | C119: УПЦ ООО "Газпром трансгаз Чайковский" | D119: Обучение рабочих | E119: СлесСантехПК | F119: Слесарь-сантехник ПТК | G119: Слесарь-сантехник ПТК | H119: Повышение квалификации (РАБ) | J119: (РАБ) Повышение квалификации на ПТК | M119: 13 | N119: 152 | O119: 21 | P119: 168 | Q119: 01.10.2024 | R119: 25.10.2024 | S119: 7 | T119: 15 | U119: 20 | V119: 67500 | W119: 165800 | X119: 11500 | Y119: 244800 | Z119: 0 | AA119: 244800 | AB119: 12 | AC119: 7 | AD119: 1 | AE119: 0 | AF119: 0 | AG119: 0 | AH119: 0 | AM119: 0 | AN119: 1 | AO119: 6000 | AP119: 12100 | AQ119: 0 | AR119: 18100 | AW119: 0 | AX119: 2 | AY119: 19000 | AZ119: 40700 | BA119: 500 | BB119: 60200 | BC119: 2 | BD119: 15000 | BE119: 36400 | BF119: 6000 | BG119: 57400 | BH119: 1 | BI119: 13500 | BJ119: 28600 | BK119: 2500 | BL119: 44600 | BM119: 2 | BN119: 0 | BO119: 0 | BP119: 0 | BQ119: 0 | BV119: 0 | BW119: 1 | BX119: 14000 | BY119: 48000 | BZ119: 2500 | CA119: 64500 | CF119: 0 | CK119: 0 | CP119: 0 | CU119: 0 | CZ119: 0 | DA119: 1 | DB119: 0 | DC119: 0 | DD119: 0 | DE119: 0 | DJ119: 0 | DO119: 0 | DP119: 1 | DQ119: 0 | DR119: 0 | DS119: 0 | DT119: 0
A120: 40111 | B120: УПЦ ООО "Газпром трансгаз Чайковский" | C120: УПЦ ООО "Газпром трансгаз Чайковский" | D120: Обучение рабочих | E120: СлесСантехПК | F120: Слесарь-сантехник ПТК | G120: Слесарь-сантехник ПТК | H120: Повышение квалификации (РАБ) | J120: (РАБ) Повышение квалификации на ПТК | M120: 13 | N120: 152 | O120: 21 | P120: 168 | Q120: 11.03.2024 | R120: 22.03.2024 | S120: 7 | T120: 15 | U120: 20 | V120: 70500 | W120: 182900 | X120: 21600 | Y120: 275000 | Z120: 0 | AA120: 275000 | AB120: 18 | AC120: 12 | AD120: 2 | AE120: 0 | AF120: 0 | AG120: 0 | AH120: 0 | AI120: 1 | AJ120: 3000 | AK120: 5500 | AL120: 1500 | AM120: 10000 | AR120: 0 | AW120: 0 | BB120: 0 | BC120: 2 | BD120: 14000 | BE120: 30800 | BF120: 5600 | BG120: 50400 | BL120: 0 | BQ120: 0 | BR120: 1 | BS120: 0 | BT120: 0 | BU120: 0 | BV120: 0 | BW120: 4 | BX120: 28000 | BY120: 96000 | BZ120: 11500 | CA120: 135500 | CF120: 0 | CK120: 0 | CL120: 2 | CM120: 6000 | CN120: 11000 | CO120: 3000 | CP120: 20000 | CU120: 0 | CV120: 3 | CW120: 19500 | CX120: 39600 | CY120: 0 | CZ120: 59100 | DA120: 1 | DB120: 0 | DC120: 0 | DD120: 0 | DE120: 0 | DJ120: 0 | DK120: 1 | DL120: 0 | DM120: 0 | DN120: 0 | DO120: 0 | DP120: 1 | DQ120: 0 | DR120: 0 | DS120: 0 | DT120: 0
A121: 40112 | B121: УПЦ ООО "Газпром трансгаз Чайковский" | C121: УПЦ ООО "Газпром трансгаз Чайковский" | D121: Обучение рабочих | E121: СлесСантехПК | F121: Слесарь-сантехник ПТК | G121: Слесарь-сантехник ПТК | H121: Повышение квалификации (РАБ) | J121: (РАБ) Повышение квалификации на ПТК | M121: 13 | N121: 152 | O121: 21 | P121: 168 | Q121: 12.08.2024 | R121: 23.08.2024 | S121: 7 | T121: 15 | U121: 20 | V121: 70500 | W121: 175400 | X121: 20600 | Y121: 266500 | Z121: 0 | AA121: 266500 | AB121: 12 | AC121: 11 | AH121: 0 | AI121: 1 | AJ121: 3000 | AK121: 5500 | AL121: 1500 | AM121: 10000 | AR121: 0 | AW121: 0 | AX121: 2 | AY121: 19000 | AZ121: 40700 | BA121: 500 | BB121: 60200 | BC121: 2 | BD121: 14000 | BE121: 30800 | BF121: 5600 | BG121: 50400 | BL121: 0 | BQ121: 0 | BV121: 0 | BW121: 3 | BX121: 21000 | BY121: 72000 | BZ121: 9000 | CA121: 102000 | CF121: 0 | CG121: 1 | CH121: 7500 | CI121: 15400 | CJ121: 1000 | CK121: 23900 | CL121: 2 | CM121: 6000 | CN121: 11000 | CO121: 3000 | CP121: 20000 | CU121: 0 | CZ121: 0 | DE121: 0 | DJ121: 0 | DO121: 0 | DP121: 1 | DQ121: 0 | DR121: 0 | DS121: 0 | DT121: 0
A122: 40126 | B122: УПЦ ООО "Газпром трансгаз Чайковский" | C122: ООО "Газпром трансгаз Чайковский" | D122: Обучение ИТР | E122: СК ОП ПБ | F122: СК объектов МГ Общие положения | G122: [DVERB] | H122: Повышение квалификации | J122: Другие целевые программы (строительный контроль) | M122: 5 | N122: 40 | O122: 0 | P122: 0 | Q122: 22.04.2024 | R122: 26.04.2024 | S122: 7 | T122: 15 | U122: 30 | V122: 18500 | W122: 61400 | X122: 9900 | Y122: 89800 | Z122: 0 | AA122: 89800 | AB122: 45 | AC122: 35 | AD122: 6 | AE122: 0 | AF122: 0 | AG122: 0 | AH122: 0 | AI122: 2 | AJ122: 0 | AK122: 0 | AL122: 0 | AM122: 0 | AN122: 5 | AO122: 0 | AP122: 0 | AQ122: 0 | AR122: 0 | AS122: 1 | AT122: 3000 | AU122: 13000 | AV122: 2400 | AW122: 18400 | BB122: 0 | BC122: 5 | BD122: 0 | BE122: 0 | BF122: 0 | BG122: 0 | BH122: 2 | BI122: 7000 | BJ122: 24000 | BK122: 5000 | BL122: 36000 | BM122: 1 | BN122: 0 | BO122: 0 | BP122: 0 | BQ122: 0 | BR122: 1 | BS122: 0 | BT122: 0 | BU122: 0 | BV122: 0 | BW122: 6 | BX122: 0 | BY122: 0 | BZ122: 0 | CA122: 0 | CB122: 4 | CC122: 3000 | CD122: 6500 | CE122: 500 | CF122: 10000 | CG122: 1 | CH122: 0 | CI122: 0 | CJ122: 0 | CK122: 0 | CL122: 5 | CM122: 0 | CN122: 0 | CO122: 0 | CP122: 0 | CU122: 0 | CV122: 3 | CW122: 3000 | CX122: 7900 | CY122: 0 | CZ122: 10900 | DE122: 0 | DF122: 1 | DG122: 2500 | DH122: 10000 | DI122: 2000 | DJ122: 14500 | DO122: 0 | DP122: 2 | DQ122: 0 | DR122: 0 | DS122: 0 | DT122: 0
A123: 40127 | B123: УПЦ ООО "Газпром трансгаз Чайковский" | C123: ООО "Газпром трансгаз Чайковский" | D123: Обучение ИТР | E123: СК свар.соед | F123: СК сварочно-монтаж. работы | G123: [DVERB] | H123: Повышение квалификации | J123: Другие целевые программы (строительный контроль) | M123: 7 | N123: 56 | O123: 0 | P123: 0 | Q123: 23.05.2024 | R123: 31.05.2024 | S123: 7 | T123: 30 | U123: 30 | V123: 65500 | W123: 226800 | X123: 29000 | Y123: 321300 | Z123: 0 | AA123: 321300 | AB123: 29 | AC123: 22 | AD123: 4 | AE123: 0 | AF123: 0 | AG123: 0 | AH123: 0 | AI123: 2 | AJ123: 5000 | AK123: 16000 | AL123: 0 | AM123: 21000 | AN123: 5 | AO123: 12500 | AP123: 50000 | AQ123: 0 | AR123: 62500 | AW123: 0 | BB123: 0 | BC123: 2 | BD123: 6000 | BE123: 25000 | BF123: 6000 | BG123: 37000 | BH123: 1 | BI123: 3500 | BJ123: 12000 | BK123: 2500 | BL123: 18000 | BQ123: 0 | BV123: 0 | BW123: 5 | BX123: 17500 | BY123: 70000 | BZ123: 14500 | CA123: 102000 | CB123: 1 | CC123: 3000 | CD123: 6500 | CE123: 500 | CF123: 10000 | CG123: 1 | CH123: 3000 | CI123: 7500 | CJ123: 1000 | CK123: 11500 | CL123: 3 | CM123: 9000 | CN123: 24000 | CO123: 4500 | CP123: 37500 | CU123: 0 | CV123: 2 | CW123: 6000 | CX123: 15800 | CY123: 0 | CZ123: 21800 | DE123: 0 | DJ123: 0 | DO123: 0 | DP123: 3 | DQ123: 0 | DR123: 0 | DS123: 0 | DT123: 0
A124: 40128 | B124: УПЦ ООО "Газпром трансгаз Чайковский" | C124: ООО "Газпром трансгаз Чайковский" | D124: Обучение ИТР | E124: СКмг | F124: СК Строит.монт.работы | G124: [DVERB] | H124: Повышение квалификации | J124: Другие целевые программы (строительный контроль) | M124: 5 | N124: 40 | O124: 0 | P124: 0 | Q124: 17.06.2024 | R124: 21.06.2024 | S124: 7 | T124: 15 | U124: 30 | V124: 65500 | W124: 231300 | X124: 28000 | Y124: 324800 | Z124: 0 | AA124: 324800 | AB124: 30 | AC124: 22 | AD124: 2 | AE124: 0 | AF124: 0 | AG124: 0 | AH124: 0 | AI124: 2 | AJ124: 5000 | AK124: 16000 | AL124: 0 | AM124: 21000 | AN124: 5 | AO124: 12500 | AP124: 50000 | AQ124: 0 | AR124: 62500 | AW124: 0 | BB124: 0 | BC124: 2 | BD124: 6000 | BE124: 32500 | BF124: 6000 | BG124: 44500 | BH124: 1 | BI124: 3500 | BJ124: 12000 | BK124: 2500 | BL124: 18000 | BM124: 4 | BN124: 3500 | BO124: 12000 | BP124: 2000 | BQ124: 17500 | BV124: 0 | BW124: 4 | BX124: 14000 | BY124: 55000 | BZ124: 11500 | CA124: 80500 | CB124: 2 | CC124: 3000 | CD124: 6500 | CE124: 500 | CF124: 10000 | CG124: 1 | CH124: 3000 | CI124: 7500 | CJ124: 1000 | CK124: 11500 | CL124: 3 | CM124: 9000 | CN124: 24000 | CO124: 4500 | CP124: 37500 | CU124: 0 | CV124: 2 | CW124: 6000 | CX124: 15800 | CY124: 0 | CZ124: 21800 | DE124: 0 | DJ124: 0 | DO124: 0 | DP124: 2 | DQ124: 0 | DR124: 0 | DS124: 0 | DT124: 0
A125: 40129 | B125: УПЦ ООО "Газпром трансгаз Чайковский" | C125: ООО "Газпром трансгаз Чайковский" | D125: Обучение ИТР | E125: СК ОбСтр Р | F125: СК Общестроительные работы | G125: Строительный контроль за качеством строительства, реконструкции и капитального ремонта объектов ООО «Газпром трансгаз Чайковский». Модуль 1 «Проведение строительного контроля за общестроительными работами на объектах магистральных газопроводов» | H125: Повышение квалификации | J125: Другие целевые программы (строительный контроль) | M125: 5 | N125: 40 | O125: 0 | P125: 0 | Q125: 01.07.2024 | R125: 05.07.2024 | S125: 7 | T125: 15 | U125: 30 | V125: 24000 | W125: 88000 | X125: 13800 | Y125: 125800 | Z125: 0 | AA125: 125800 | AB125: 13 | AC125: 7 | AH125: 0 | AM125: 0 | AN125: 1 | AO125: 2500 | AP125: 10000 | AQ125: 0 | AR125: 12500 | AS125: 2 | AT125: 6000 | AU125: 26000 | AV125: 4800 | AW125: 36800 | BB125: 0 | BG125: 0 | BL125: 0 | BM125: 4 | BN125: 3500 | BO125: 12000 | BP125: 2000 | BQ125: 17500 | BR125: 1 | BS125: 0 | BT125: 0 | BU125: 0 | BV125: 0 | BW125: 1 | BX125: 3500 | BY125: 15000 | BZ125: 3000 | CA125: 21500 | CB125: 1 | CC125: 3000 | CD125: 6500 | CE125: 500 | CF125: 10000 | CK125: 0 | CL125: 1 | CM125: 3000 | CN125: 8000 | CO125: 1500 | CP125: 12500 | CU125: 0 | CZ125: 0 | DE125: 0 | DF125: 1 | DG125: 2500 | DH125: 10500 | DI125: 2000 | DJ125: 15000 | DK125: 1 | DL125: 0 | DM125: 0 | DN125: 0 | DO125: 0 | DT125: 0
A126: 40130 | B126: УПЦ ООО "Газпром трансгаз Чайковский" | C126: ООО "Газпром трансгаз Чайковский" | D126: Обучение ИТР | E126: СК ОП ПБ | F126: СК объектов МГ Общие положения | G126: [DVERB] | H126: Повышение квалификации | J126: Другие целевые программы (строительный контроль) | M126: 5 | N126: 40 | O126: 0 | P126: 0 | Q126: 09.09.2024 | R126: 13.09.2024 | S126: 7 | T126: 15 | U126: 30 | V126: 37500 | W126: 132320 | X126: 26500 | Y126: 196320 | Z126: 0 | AA126: 196320 | AB126: 56 | AC126: 44 | AD126: 3 | AE126: 0 | AF126: 0 | AG126: 0 | AH126: 0 | AI126: 9 | AJ126: 0 | AK126: 0 | AL126: 0 | AM126: 0 | AN126: 4 | AO126: 0 | AP126: 0 | AQ126: 0 | AR126: 0 | AW126: 0 | AX126: 1 | AY126: 0 | AZ126: 0 | BA126: 0 | BB126: 0 | BG126: 0 | BH126: 8 | BI126: 28000 | BJ126: 96000 | BK126: 20000 | BL126: 144000 | BM126: 6 | BN126: 0 | BO126: 0 | BP126: 0 | BQ126: 0 | BV126: 0 | BW126: 5 | BX126: 7000 | BY126: 30000 | BZ126: 6000 | CA126: 43000 | CB126: 7 | CC126: 2500 | CD126: 6320 | CE126: 500 | CF126: 9320 | CG126: 3 | CH126: 0 | CI126: 0 | CJ126: 0 | CK126: 0 | CL126: 7 | CM126: 0 | CN126: 0 | CO126: 0 | CP126: 0 | CU126: 0 | CZ126: 0 | DA126: 2 | DB126: 0 | DC126: 0 | DD126: 0 | DE126: 0 | DJ126: 0 | DK126: 1 | DL126: 0 | DM126: 0 | DN126: 0 | DO126: 0 | DT126: 0
A127: 40131 | B127: УПЦ ООО "Газпром трансгаз Чайковский" | C127: ООО "Газпром трансгаз Чайковский" | D127: Обучение ИТР | E127: СКСоорСвязи | F127: СК сооружений связи | G127: Строительный контроль за качеством строительства, реконструкции и капитального ремонта сооружений связи на объектах магистральных газопроводов | H127: Повышение квалификации | J127: Другие целевые программы (строительный контроль) | M127: 5 | N127: 40 | O127: 0 | P127: 0 | Q127: 16.09.2024 | R127: 20.09.2024 | S127: 7 | T127: 15 | U127: 30 | V127: 53000 | W127: 181500 | X127: 25900 | Y127: 260400 | Z127: 0 | AA127: 260400 | AB127: 15 | AC127: 14 | AH127: 0 | AI127: 1 | AJ127: 2500 | AK127: 8000 | AL127: 0 | AM127: 10500 | AR127: 0 | AS127: 4 | AT127: 13000 | AU127: 78000 | AV127: 9800 | AW127: 100800 | AX127: 1 | AY127: 3000 | AZ127: 5500 | BA127: 0 | BB127: 8500 | BC127: 2 | BD127: 15000 | BE127: 30000 | BF127: 5600 | BG127: 50600 | BH127: 2 | BI127: 7000 | BJ127: 24000 | BK127: 5000 | BL127: 36000 | BQ127: 0 | BV127: 0 | BW127: 1 | BX127: 3500 | BY127: 15000 | BZ127: 3000 | CA127: 21500 | CB127: 2 | CC127: 6000 | CD127: 13000 | CE127: 1000 | CF127: 20000 | CK127: 0 | CL127: 1 | CM127: 3000 | CN127: 8000 | CO127: 1500 | CP127: 12500 | CU127: 0 | CZ127: 0 | DA127: 1 | DB127: 0 | DC127: 0 | DD127: 0 | DE127: 0 | DJ127: 0 | DO127: 0 | DT127: 0
A128: 40132 | B128: УПЦ ООО "Газпром трансгаз Чайковский" | C128: ООО "Газпром трансгаз Чайковский" | D128: Обучение ИТР | E128: СК свар.соед | F128: СК сварочно-монтаж. работы | G128: [DVERB] | H128: Повышение квалификации | J128: Другие целевые программы (строительный контроль) | M128: 7 | N128: 56 | O128: 0 | P128: 0 | Q128: 19.09.2024 | R128: 27.09.2024 | S128: 7 | T128: 15 | U128: 30 | V128: 36000 | W128: 124500 | X128: 18800 | Y128: 179300 | Z128: 0 | AA128: 179300 | AB128: 17 | AC128: 13 | AD128: 3 | AE128: 0 | AF128: 0 | AG128: 0 | AH128: 0 | AI128: 3 | AJ128: 7500 | AK128: 26000 | AL128: 0 | AM128: 33500 | AR128: 0 | AW128: 0 | BB128: 0 | BC128: 1 | BD128: 3000 | BE128: 17500 | BF128: 2800 | BG128: 23300 | BH128: 2 | BI128: 7000 | BJ128: 24000 | BK128: 5000 | BL128: 36000 | BM128: 1 | BN128: 3000 | BO128: 10000 | BP128: 2000 | BQ128: 15000 | BV128: 0 | BW128: 1 | BX128: 3500 | BY128: 15000 | BZ128: 3000 | CA128: 21500 | CB128: 2 | CC128: 0 | CD128: 0 | CE128: 0 | CF128: 0 | CK128: 0 | CL128: 4 | CM128: 12000 | CN128: 32000 | CO128: 6000 | CP128: 50000 | CU128: 0 | CZ128: 0 | DE128: 0 | DJ128: 0 | DO128: 0 | DT128: 0
A129: 40133 | B129: УПЦ ООО "Газпром трансгаз Чайковский" | C129: ООО "Газпром трансгаз Чайковский" | D129: Обучение ИТР | E129: СК ОбСтр Р | F129: СК Общестроительные работы | G129: Строительный контроль за качеством строительства, реконструкции и капитального ремонта объектов ООО «Газпром трансгаз Чайковский». Модуль 1 «Проведение строительного контроля за общестроительными работами на объектах магистральных газопроводов» | H129: Повышение квалификации | J129: Другие целевые программы (строительный контроль) | M129: 5 | N129: 40 | O129: 0 | P129: 0 | Q129: 30.09.2024 | R129: 04.10.2024 | S129: 7 | T129: 15 | U129: 30 | V129: 17000 | W129: 61500 | X129: 8700 | Y129: 87200 | Z129: 0 | AA129: 87200 | AB129: 10 | AC129: 6 | AD129: 1 | AE129: 0 | AF129: 0 | AG129: 0 | AH129: 0 | AI129: 1 | AJ129: 2500 | AK129: 8000 | AL129: 0 | AM129: 10500 | AN129: 1 | AO129: 2500 | AP129: 10000 | AQ129: 0 | AR129: 12500 | AS129: 2 | AT129: 3000 | AU129: 13000 | AV129: 2400 | AW129: 18400 | BB129: 0 | BC129: 1 | BD129: 3000 | BE129: 12500 | BF129: 2800 | BG129: 18300 | BL129: 0 | BM129: 3 | BN129: 3000 | BO129: 10000 | BP129: 2000 | BQ129: 15000 | BV129: 0 | CA129: 0 | CF129: 0 | CK129: 0 | CL129: 1 | CM129: 3000 | CN129: 8000 | CO129: 1500 | CP129: 12500 | CU129: 0 | CZ129: 0 | DE129: 0 | DJ129: 0 | DO129: 0 | DT129: 0
A130: 40134 | B130: УПЦ ООО "Газпром трансгаз Чайковский" | C130: ООО "Газпром трансгаз Чайковский" | D130: Обучение ИТР | E130: СКмг | F130: СК Строит.монт.работы | G130: [DVERB] | H130: Повышение квалификации | J130: Другие целевые программы (строительный контроль) | M130: 5 | N130: 40 | O130: 0 | P130: 0 | Q130: 07.10.2024 | R130: 11.10.2024 | S130: 7 | T130: 15 | U130: 30 | V130: 45500 | W130: 148000 | X130: 21300 | Y130: 214800 | Z130: 0 | AA130: 214800 | AB130: 19 | AC130: 15 | AD130: 3 | AE130: 0 | AF130: 0 | AG130: 0 | AH130: 0 | AI130: 3 | AJ130: 7500 | AK130: 26000 | AL130: 0 | AM130: 33500 | AR130: 0 | AS130: 1 | AT130: 3500 | AU130: 15600 | AV130: 2500 | AW130: 21600 | BB130: 0 | BC130: 1 | BD130: 6000 | BE130: 17500 | BF130: 2800 | BG130: 26300 | BH130: 2 | BI130: 7000 | BJ130: 24000 | BK130: 5000 | BL130: 36000 | BM130: 1 | BN130: 3000 | BO130: 10000 | BP130: 2000 | BQ130: 15000 | BV130: 0 | BW130: 1 | BX130: 3500 | BY130: 15000 | BZ130: 3000 | CA130: 21500 | CB130: 2 | CC130: 0 | CD130: 0 | CE130: 0 | CF130: 0 | CK130: 0 | CL130: 4 | CM130: 12000 | CN130: 32000 | CO130: 6000 | CP130: 50000 | CU130: 0 | CV130: 1 | CW130: 3000 | CX130: 7900 | CY130: 0 | CZ130: 10900 | DE130: 0 | DJ130: 0 | DO130: 0 | DT130: 0
A131: 40135 | B131: УПЦ ООО "Газпром трансгаз Чайковский" | C131: ООО "Газпром трансгаз Чайковский" | D131: Обучение ИТР | E131: СКЭХЗ | F131: СК для специалистов по ЭХЗ | G131: Строительный контроль за качеством строительства, реконструкции и капитального ремонта объектов ООО «Газпром трансгаз Чайковский». Модуль 10 «Проведение строительного контроля при выполнении работ по защите магистральных газопроводов от коррозии» | H131: Повышение квалификации | J131: Другие целевые программы (строительный контроль) | M131: 5 | N131: 40 | O131: 0 | P131: 0 | Q131: 28.10.2024 | R131: 01.11.2024 | S131: 7 | T131: 15 | U131: 30 | V131: 52000 | W131: 162510 | X131: 25700 | Y131: 240210 | Z131: 0 | AA131: 240210 | AB131: 19 | AC131: 18 | AH131: 0 | AI131: 2 | AJ131: 5000 | AK131: 18000 | AL131: 0 | AM131: 23000 | AR131: 0 | AS131: 1 | AT131: 3500 | AU131: 15600 | AV131: 2500 | AW131: 21600 | AX131: 1 | AY131: 3000 | AZ131: 5500 | BA131: 0 | BB131: 8500 | BC131: 3 | BD131: 9000 | BE131: 37500 | BF131: 8200 | BG131: 54700 | BH131: 2 | BI131: 7000 | BJ131: 24000 | BK131: 5000 | BL131: 36000 | BQ131: 0 | BV131: 0 | BW131: 1 | BX131: 3500 | BY131: 15000 | BZ131: 3000 | CA131: 21500 | CB131: 3 | CC131: 6000 | CD131: 13000 | CE131: 1000 | CF131: 20000 | CG131: 2 | CH131: 6000 | CI131: 10010 | CJ131: 3000 | CK131: 19010 | CL131: 2 | CM131: 6000 | CN131: 16000 | CO131: 3000 | CP131: 25000 | CU131: 0 | CV131: 1 | CW131: 3000 | CX131: 7900 | CY131: 0 | CZ131: 10900 | DE131: 0 | DJ131: 0 | DO131: 0 | DP131: 1 | DQ131: 0 | DR131: 0 | DS131: 0 | DT131: 0
A132: 40136 | B132: УПЦ ООО "Газпром трансгаз Чайковский" | C132: ООО "Газпром трансгаз Чайковский" | D132: Обучение ИТР | E132: СКмг | F132: СК Строит.монт.работы | G132: [DVERB] | H132: Повышение квалификации | J132: Другие целевые программы (строительный контроль) | M132: 5 | N132: 40 | O132: 0 | P132: 0 | Q132: 11.11.2024 | R132: 15.11.2024 | S132: 7 | T132: 15 | U132: 30 | V132: 0 | W132: 0 | X132: 0 | Y132: 0 | Z132: 0 | AA132: 0 | AB132: 2 | AC132: 0 | AH132: 0 | AM132: 0 | AR132: 0 | AW132: 0 | BB132: 0 | BG132: 0 | BL132: 0 | BM132: 2 | BN132: 0 | BO132: 0 | BP132: 0 | BQ132: 0 | BV132: 0 | CA132: 0 | CF132: 0 | CK132: 0 | CP132: 0 | CU132: 0 | CZ132: 0 | DE132: 0 | DJ132: 0 | DO132: 0 | DT132: 0
A133: 40137 | B133: УПЦ ООО "Газпром трансгаз Чайковский" | C133: ООО "Газпром трансгаз Чайковский" | D133: Обучение ИТР | E133: СКЭлСнаб | F133: СК за работами электроснабжения | G133: [DVERB] | H133: Повышение квалификации | J133: Другие целевые программы (строительный контроль) | M133: 5 | N133: 40 | O133: 0 | P133: 0 | Q133: 18.11.2024 | R133: 22.11.2024 | S133: 7 | T133: 15 | U133: 30 | V133: 50000 | W133: 148700 | X133: 16000 | Y133: 214700 | Z133: 0 | AA133: 214700 | AB133: 21 | AC133: 17 | AD133: 1 | AE133: 0 | AF133: 0 | AG133: 0 | AH133: 0 | AI133: 2 | AJ133: 5000 | AK133: 18000 | AL133: 0 | AM133: 23000 | AN133: 2 | AO133: 5000 | AP133: 20000 | AQ133: 0 | AR133: 25000 | AW133: 0 | AX133: 2 | AY133: 6000 | AZ133: 11000 | BA133: 0 | BB133: 17000 | BC133: 1 | BD133: 3000 | BE133: 12500 | BF133: 3000 | BG133: 18500 | BH133: 1 | BI133: 3500 | BJ133: 12000 | BK133: 2500 | BL133: 18000 | BQ133: 0 | BV133: 0 | BW133: 2 | BX133: 7000 | BY133: 20000 | BZ133: 5000 | CA133: 32000 | CB133: 1 | CC133: 3000 | CD133: 6500 | CE133: 500 | CF133: 10000 | CG133: 1 | CH133: 3000 | CI133: 10000 | CJ133: 1500 | CK133: 14500 | CL133: 1 | CM133: 3000 | CN133: 8000 | CO133: 1500 | CP133: 12500 | CU133: 0 | CV133: 3 | CW133: 9000 | CX133: 23700 | CY133: 0 | CZ133: 32700 | DE133: 0 | DF133: 1 | DG133: 2500 | DH133: 7000 | DI133: 2000 | DJ133: 11500 | DK133: 1 | DL133: 0 | DM133: 0 | DN133: 0 | DO133: 0 | DP133: 2 | DQ133: 0 | DR133: 0 | DS133: 0 | DT133: 0
A134: 40138 | B134: УПЦ ООО "Газпром трансгаз Чайковский" | C134: ООО "Газпром трансгаз Чайковский" | D134: Обучение ИТР | E134: СКЭлСнаб | F134: СК за работами электроснабжения | G134: [DVERB] | H134: Повышение квалификации | J134: Другие целевые программы (строительный контроль) | M134: 5 | N134: 40 | O134: 0 | P134: 0 | Q134: 02.12.2024 | R134: 06.12.2024 | S134: 7 | T134: 15 | U134: 30 | V134: 18000 | W134: 58500 | X134: 9900 | Y134: 86400 | Z134: 0 | AA134: 86400 | AB134: 11 | AC134: 7 | AH134: 0 | AM134: 0 | AR134: 0 | AS134: 1 | AT134: 3000 | AU134: 15000 | AV134: 2400 | AW134: 20400 | AX134: 1 | AY134: 3000 | AZ134: 5500 | BA134: 0 | BB134: 8500 | BG134: 0 | BH134: 1 | BI134: 3500 | BJ134: 12000 | BK134: 2500 | BL134: 18000 | BQ134: 0 | BR134: 1 | BS134: 0 | BT134: 0 | BU134: 0 | BV134: 0 | CA134: 0 | CB134: 1 | CC134: 0 | CD134: 0 | CE134: 0 | CF134: 0 | CK134: 0 | CL134: 2 | CM134: 6000 | CN134: 16000 | CO134: 3000 | CP134: 25000 | CU134: 0 | CZ134: 0 | DA134: 1 | DB134: 0 | DC134: 0 | DD134: 0 | DE134: 0 | DF134: 1 | DG134: 2500 | DH134: 10000 | DI134: 2000 | DJ134: 14500 | DO134: 0 | DP134: 2 | DQ134: 0 | DR134: 0 | DS134: 0 | DT134: 0
A135: 40139 | B135: УПЦ ООО "Газпром трансгаз Чайковский" | C135: ООО "Газпром трансгаз Чайковский" | D135: Обучение рабочих | E135: ОЗП Раб | F135: Работники 1,2 гр.ОЗП | G135: Работники 1, 2 групп по безопасности работ в ограниченных и замкнутых пространствах» | H135: Повышение квалификации (РАБ) | J135: (РАБ) Курсы целевого назначения (в части получения допуска к работе на опасных производственных объектах) | M135: 3 | N135: 24 | O135: 0 | P135: 0 | Q135: 08.04.2024 | R135: 10.04.2024 | S135: 7 | T135: 15 | U135: 22 | V135: 19500 | W135: 45000 | X135: 18300 | Y135: 82800 | Z135: 0 | AA135: 82800 | AB135: 21 | AC135: 10 | AH135: 0 | AM135: 0 | AR135: 0 | AW135: 0 | BB135: 0 | BC135: 3 | BD135: 9000 | BE135: 18500 | BF135: 8800 | BG135: 36300 | BL135: 0 | BM135: 6 | BN135: 0 | BO135: 0 | BP135: 0 | BQ135: 0 | BV135: 0 | CA135: 0 | CF135: 0 | CK135: 0 | CL135: 1 | CM135: 2000 | CN135: 3300 | CO135: 1500 | CP135: 6800 | CU135: 0 | CZ135: 0 | DA135: 2 | DB135: 0 | DC135: 0 | DD135: 0 | DE135: 0 | DF135: 6 | DG135: 8500 | DH135: 23200 | DI135: 8000 | DJ135: 39700 | DK135: 3 | DL135: 0 | DM135: 0 | DN135: 0 | DO135: 0 | DT135: 0
A136: 40140 | B136: УПЦ ООО "Газпром трансгаз Чайковский" | C136: ООО "Газпром трансгаз Чайковский" | D136: Обучение рабочих | E136: ОЗП Раб | F136: Работники 1,2 гр.ОЗП | G136: Работники 1, 2 групп по безопасности работ в ограниченных и замкнутых пространствах» | H136: Повышение квалификации (РАБ) | J136: (РАБ) Курсы целевого назначения (в части получения допуска к работе на опасных производственных объектах) | M136: 3 | N136: 24 | O136: 0 | P136: 0 | Q136: 15.05.2024 | R136: 17.05.2024 | S136: 7 | T136: 15 | U136: 22 | V136: 23500 | W136: 39940 | X136: 20800 | Y136: 84240 | Z136: 0 | AA136: 84240 | AB136: 15 | AC136: 12 | AH136: 0 | AM136: 0 | AR136: 0 | AW136: 0 | BB136: 0 | BC136: 1 | BD136: 3000 | BE136: 5500 | BF136: 2800 | BG136: 11300 | BH136: 5 | BI136: 12500 | BJ136: 22000 | BK136: 12500 | BL136: 47000 | BM136: 1 | BN136: 0 | BO136: 0 | BP136: 0 | BQ136: 0 | BV136: 0 | CA136: 0 | CF136: 0 | CK136: 0 | CL136: 1 | CM136: 2000 | CN136: 3300 | CO136: 1500 | CP136: 6800 | CU136: 0 | CV136: 1 | CW136: 2000 | CX136: 4740 | CY136: 0 | CZ136: 6740 | DA136: 2 | DB136: 0 | DC136: 0 | DD136: 0 | DE136: 0 | DF136: 4 | DG136: 4000 | DH136: 4400 | DI136: 4000 | DJ136: 12400 | DO136: 0 | DT136: 0
A137: 40141 | B137: УПЦ ООО "Газпром трансгаз Чайковский" | C137: ООО "Газпром трансгаз Чайковский" | D137: Обучение рабочих | E137: ОЗП Раб | F137: Работники 1,2 гр.ОЗП | G137: Работники 1, 2 групп по безопасности работ в ограниченных и замкнутых пространствах» | H137: Повышение квалификации (РАБ) | J137: (РАБ) Курсы целевого назначения (в части получения допуска к работе на опасных производственных объектах) | M137: 3 | N137: 24 | O137: 0 | P137: 0 | Q137: 22.05.2024 | R137: 24.05.2024 | S137: 7 | T137: 15 | U137: 22 | V137: 39100 | W137: 74900 | X137: 23500 | Y137: 137500 | Z137: 0 | AA137: 137500 | AB137: 26 | AC137: 18 | AH137: 0 | AI137: 4 | AJ137: 8600 | AK137: 23200 | AL137: 0 | AM137: 31800 | AN137: 4 | AO137: 6000 | AP137: 8800 | AQ137: 0 | AR137: 14800 | AS137: 3 | AT137: 7500 | AU137: 13200 | AV137: 7400 | AW137: 28100 | BB137: 0 | BC137: 2 | BD137: 5500 | BE137: 9900 | BF137: 5600 | BG137: 21000 | BH137: 3 | BI137: 7500 | BJ137: 13200 | BK137: 7500 | BL137: 28200 | BM137: 4 | BN137: 0 | BO137: 0 | BP137: 0 | BQ137: 0 | BV137: 0 | CA137: 0 | CF137: 0 | CK137: 0 | CL137: 2 | CM137: 4000 | CN137: 6600 | CO137: 3000 | CP137: 13600 | CU137: 0 | CZ137: 0 | DA137: 2 | DB137: 0 | DC137: 0 | DD137: 0 | DE137: 0 | DJ137: 0 | DO137: 0 | DP137: 2 | DQ137: 0 | DR137: 0 | DS137: 0 | DT137: 0
A138: 40142 | B138: УПЦ ООО "Газпром трансгаз Чайковский" | C138: ООО "Газпром трансгаз Чайковский" | D138: Обучение рабочих | E138: ОЗП Раб | F138: Работники 1,2 гр.ОЗП | G138: Работники 1, 2 групп по безопасности работ в ограниченных и замкнутых пространствах» | H138: Повышение квалификации (РАБ) | J138: (РАБ) Курсы целевого назначения (в части получения допуска к работе на опасных производственных объектах) | M138: 3 | N138: 24 | O138: 0 | P138: 0 | Q138: 05.06.2024 | R138: 07.06.2024 | S138: 7 | T138: 15 | U138: 22 | V138: 42500 | W138: 71500 | X138: 31700 | Y138: 145700 | Z138: 0 | AA138: 145700 | AB138: 26 | AC138: 18 | AH138: 0 | AM138: 0 | AN138: 4 | AO138: 6000 | AP138: 8800 | AQ138: 0 | AR138: 14800 | AS138: 1 | AT138: 2500 | AU138: 4400 | AV138: 2500 | AW138: 9400 | BB138: 0 | BC138: 4 | BD138: 7500 | BE138: 13200 | BF138: 8400 | BG138: 29100 | BH138: 5 | BI138: 12500 | BJ138: 22000 | BK138: 12500 | BL138: 47000 | BM138: 2 | BN138: 0 | BO138: 0 | BP138: 0 | BQ138: 0 | BV138: 0 | CA138: 0 | CF138: 0 | CG138: 2 | CH138: 4000 | CI138: 6600 | CJ138: 2000 | CK138: 12600 | CL138: 2 | CM138: 4000 | CN138: 6600 | CO138: 3000 | CP138: 13600 | CU138: 0 | CZ138: 0 | DA138: 2 | DB138: 0 | DC138: 0 | DD138: 0 | DE138: 0 | DJ138: 0 | DK138: 3 | DL138: 6000 | DM138: 9900 | DN138: 3300 | DO138: 19200 | DP138: 1 | DQ138: 0 | DR138: 0 | DS138: 0 | DT138: 0
A139: 40143 | B139: УПЦ ООО "Газпром трансгаз Чайковский" | C139: ООО "Газпром трансгаз Чайковский" | D139: Обучение рабочих | E139: ОЗП Раб | F139: Работники 1,2 гр.ОЗП | G139: Работники 1, 2 групп по безопасности работ в ограниченных и замкнутых пространствах» | H139: Повышение квалификации (РАБ) | J139: (РАБ) Курсы целевого назначения (в части получения допуска к работе на опасных производственных объектах) | M139: 3 | N139: 24 | O139: 0 | P139: 0 | Q139: 14.08.2024 | R139: 16.08.2024 | S139: 7 | T139: 15 | U139: 22 | V139: 36000 | W139: 67800 | X139: 36200 | Y139: 140000 | Z139: 0 | AA139: 140000 | AB139: 19 | AC139: 14 | AH139: 0 | AM139: 0 | AR139: 0 | AS139: 2 | AT139: 5000 | AU139: 8800 | AV139: 5000 | AW139: 18800 | BB139: 0 | BC139: 8 | BD139: 22000 | BE139: 43600 | BF139: 23200 | BG139: 88800 | BH139: 2 | BI139: 5000 | BJ139: 8800 | BK139: 5000 | BL139: 18800 | BM139: 2 | BN139: 0 | BO139: 0 | BP139: 0 | BQ139: 0 | BV139: 0 | CA139: 0 | CF139: 0 | CK139: 0 | CL139: 2 | CM139: 4000 | CN139: 6600 | CO139: 3000 | CP139: 13600 | CU139: 0 | CZ139: 0 | DA139: 3 | DB139: 0 | DC139: 0 | DD139: 0 | DE139: 0 | DJ139: 0 | DO139: 0 | DT139: 0
A140: 40144 | B140: УПЦ ООО "Газпром трансгаз Чайковский" | C140: ООО "Газпром трансгаз Чайковский" | D140: Обучение рабочих | E140: ОЗП Раб | F140: Работники 1,2 гр.ОЗП | G140: Работники 1, 2 групп по безопасности работ в ограниченных и замкнутых пространствах» | H140: Повышение квалификации (РАБ) | J140: (РАБ) Курсы целевого назначения (в части получения допуска к работе на опасных производственных объектах) | M140: 3 | N140: 24 | O140: 0 | P140: 0 | Q140: 19.08.2024 | R140: 21.08.2024 | S140: 7 | T140: 15 | U140: 22 | V140: 29000 | W140: 50600 | X140: 28900 | Y140: 108500 | Z140: 0 | AA140: 108500 | AB140: 20 | AC140: 12 | AH140: 0 | AM140: 0 | AR140: 0 | AW140: 0 | BB140: 0 | BC140: 3 | BD140: 7500 | BE140: 13200 | BF140: 8400 | BG140: 29100 | BH140: 7 | BI140: 17500 | BJ140: 30800 | BK140: 17500 | BL140: 65800 | BQ140: 0 | BV140: 0 | CA140: 0 | CF140: 0 | CK140: 0 | CL140: 2 | CM140: 4000 | CN140: 6600 | CO140: 3000 | CP140: 13600 | CU140: 0 | CZ140: 0 | DA140: 4 | DB140: 0 | DC140: 0 | DD140: 0 | DE140: 0 | DJ140: 0 | DO140: 0 | DP140: 4 | DQ140: 0 | DR140: 0 | DS140: 0 | DT140: 0
A141: 40145 | B141: УПЦ ООО "Газпром трансгаз Чайковский" | C141: ООО "Газпром трансгаз Чайковский" | D141: Обучение рабочих | E141: ОЗП Раб | F141: Работники 1,2 гр.ОЗП | G141: Работники 1, 2 групп по безопасности работ в ограниченных и замкнутых пространствах» | H141: Повышение квалификации (РАБ) | J141: (РАБ) Курсы целевого назначения (в части получения допуска к работе на опасных производственных объектах) | M141: 3 | N141: 24 | O141: 0 | P141: 0 | Q141: 04.09.2024 | R141: 06.09.2024 | S141: 7 | T141: 15 | U141: 22 | V141: 44000 | W141: 81100 | X141: 38600 | Y141: 163700 | Z141: 0 | AA141: 163700 | AB141: 23 | AC141: 17 | AH141: 0 | AI141: 3 | AJ141: 7500 | AK141: 13200 | AL141: 0 | AM141: 20700 | AR141: 0 | AW141: 0 | BB141: 0 | BC141: 10 | BD141: 26500 | BE141: 50300 | BF141: 28600 | BG141: 105400 | BH141: 4 | BI141: 10000 | BJ141: 17600 | BK141: 10000 | BL141: 37600 | BM141: 2 | BN141: 0 | BO141: 0 | BP141: 0 | BQ141: 0 | BV141: 0 | CA141: 0 | CF141: 0 | CK141: 0 | CP141: 0 | CU141: 0 | CZ141: 0 | DA141: 3 | DB141: 0 | DC141: 0 | DD141: 0 | DE141: 0 | DJ141: 0 | DO141: 0 | DP141: 1 | DQ141: 0 | DR141: 0 | DS141: 0 | DT141: 0
A142: 40146 | B142: УПЦ ООО "Газпром трансгаз Чайковский" | C142: ООО "Газпром трансгаз Чайковский" | D142: Обучение рабочих | E142: ОЗП Раб | F142: Работники 1,2 гр.ОЗП | G142: Работники 1, 2 групп по безопасности работ в ограниченных и замкнутых пространствах» | H142: Повышение квалификации (РАБ) | J142: (РАБ) Курсы целевого назначения (в части получения допуска к работе на опасных производственных объектах) | M142: 3 | N142: 24 | O142: 0 | P142: 0 | Q142: 11.09.2024 | R142: 13.09.2024 | S142: 7 | T142: 15 | U142: 22 | V142: 22500 | W142: 39600 | X142: 23400 | Y142: 85500 | Z142: 0 | AA142: 85500 | AB142: 18 | AC142: 11 | AH142: 0 | AM142: 0 | AR142: 0 | AS142: 3 | AT142: 7500 | AU142: 13200 | AV142: 7500 | AW142: 28200 | BB142: 0 | BC142: 5 | BD142: 7500 | BE142: 13200 | BF142: 8400 | BG142: 29100 | BH142: 3 | BI142: 7500 | BJ142: 13200 | BK142: 7500 | BL142: 28200 | BQ142: 0 | BV142: 0 | CA142: 0 | CF142: 0 | CK142: 0 | CP142: 0 | CU142: 0 | CZ142: 0 | DA142: 4 | DB142: 0 | DC142: 0 | DD142: 0 | DE142: 0 | DJ142: 0 | DO142: 0 | DP142: 3 | DQ142: 0 | DR142: 0 | DS142: 0 | DT142: 0
A143: 40147 | B143: УПЦ ООО "Газпром трансгаз Чайковский" | C143: ООО "Газпром трансгаз Чайковский" | D143: Обучение рабочих | E143: ОЗП Раб | F143: Работники 1,2 гр.ОЗП | G143: Работники 1, 2 групп по безопасности работ в ограниченных и замкнутых пространствах» | H143: Повышение квалификации (РАБ) | J143: (РАБ) Курсы целевого назначения (в части получения допуска к работе на опасных производственных объектах) | M143: 3 | N143: 24 | O143: 0 | P143: 0 | Q143: 13.11.2024 | R143: 15.11.2024 | S143: 7 | T143: 15 | U143: 22 | V143: 6500 | W143: 12100 | X143: 6900 | Y143: 25500 | Z143: 0 | AA143: 25500 | AB143: 12 | AC143: 10 | AH143: 0 | AM143: 0 | AR143: 0 | AS143: 1 | AT143: 2000 | AU143: 3300 | AV143: 2400 | AW143: 7700 | BB143: 0 | BG143: 0 | BH143: 1 | BI143: 2500 | BJ143: 4400 | BK143: 2500 | BL143: 9400 | BM143: 2 | BN143: 0 | BO143: 0 | BP143: 0 | BQ143: 0 | BV143: 0 | CA143: 0 | CF143: 0 | CK143: 0 | CP143: 0 | CU143: 0 | CZ143: 0 | DE143: 0 | DF143: 8 | DG143: 2000 | DH143: 4400 | DI143: 2000 | DJ143: 8400 | DO143: 0 | DT143: 0
A144: 40149 | B144: УПЦ ООО "Газпром трансгаз Чайковский" | C144: УПЦ ООО "Газпром трансгаз Чайковский" | D144: Обучение рабочих | E144: СтропПК | F144: Стропальщик ПТК | G144: Стропальщик ПТК | H144: Повышение квалификации (РАБ) | J144: (РАБ) Повышение квалификации на ПТК | M144: 5 | N144: 40 | O144: 5 | P144: 40 | Q144: 13.05.2024 | R144: 17.05.2024 | S144: 7 | T144: 15 | U144: 20 | V144: 42000 | W144: 79200 | X144: 19300 | Y144: 140500 | Z144: 0 | AA144: 140500 | AB144: 25 | AC144: 6 | AH144: 0 | AM144: 0 | AR144: 0 | AW144: 0 | BB144: 0 | BC144: 2 | BD144: 6000 | BE144: 11000 | BF144: 5600 | BG144: 22600 | BL144: 0 | BM144: 1 | BN144: 0 | BO144: 0 | BP144: 0 | BQ144: 0 | BV144: 0 | CA144: 0 | CF144: 0 | CG144: 1 | CH144: 3000 | CI144: 5500 | CJ144: 1000 | CK144: 9500 | CL144: 2 | CM144: 6000 | CN144: 11000 | CO144: 3000 | CP144: 20000 | CU144: 0 | CZ144: 0 | DE144: 0 | DF144: 1 | DG144: 6000 | DH144: 13200 | DI144: 2000 | DJ144: 21200 | DK144: 18 | DL144: 21000 | DM144: 38500 | DN144: 7700 | DO144: 67200 | DT144: 0
A145: 40150 | B145: УПЦ ООО "Газпром трансгаз Чайковский" | C145: УПЦ ООО "Газпром трансгаз Чайковский" | D145: Обучение рабочих | E145: ЭлекЭлОбПК | F145: Электромонтер по рем. электрооборуд. ПТК | G145: Электромонтер по ремонту и обслуживанию электрооборудования ПТК | H145: Повышение квалификации (РАБ) | J145: (РАБ) Повышение квалификации на ПТК | M145: 10 | N145: 76 | O145: 43 | P145: 340 | Q145: 22.01.2024 | R145: 02.02.2024 | S145: 7 | T145: 15 | U145: 20 | V145: 91000 | W145: 246700 | X145: 32000 | Y145: 369700 | Z145: 0 | AA145: 369700 | AB145: 18 | AC145: 13 | AD145: 1 | AE145: 0 | AF145: 0 | AG145: 0 | AH145: 0 | AM145: 0 | AR145: 0 | AW145: 0 | AX145: 1 | AY145: 7500 | AZ145: 18200 | BA145: 0 | BB145: 25700 | BC145: 2 | BD145: 14500 | BE145: 30800 | BF145: 5800 | BG145: 51100 | BH145: 2 | BI145: 12000 | BJ145: 24200 | BK145: 5000 | BL145: 41200 | BM145: 2 | BN145: 0 | BO145: 0 | BP145: 0 | BQ145: 0 | BV145: 0 | BW145: 5 | BX145: 35000 | BY145: 120000 | BZ145: 15000 | CA145: 170000 | CF145: 0 | CK145: 0 | CL145: 2 | CM145: 13000 | CN145: 26400 | CO145: 3000 | CP145: 42400 | CU145: 0 | CZ145: 0 | DE145: 0 | DF145: 1 | DG145: 6000 | DH145: 21600 | DI145: 2000 | DJ145: 29600 | DK145: 1 | DL145: 3000 | DM145: 5500 | DN145: 1200 | DO145: 9700 | DP145: 1 | DQ145: 0 | DR145: 0 | DS145: 0 | DT145: 0
A146: 40151 | B146: УПЦ ООО "Газпром трансгаз Чайковский" | C146: УПЦ ООО "Газпром трансгаз Чайковский" | D146: Обучение рабочих | E146: ЭлекЭлОбПК | F146: Электромонтер по рем. электрооборуд. ПТК | G146: Электромонтер по ремонту и обслуживанию электрооборудования ПТК | H146: Повышение квалификации (РАБ) | J146: (РАБ) Повышение квалификации на ПТК | M146: 10 | N146: 76 | O146: 43 | P146: 340 | Q146: 12.02.2024 | R146: 26.02.2024 | S146: 7 | T146: 20 | U146: 20 | V146: 99500 | W146: 277360 | X146: 33300 | Y146: 410160 | Z146: 0 | AA146: 410160 | AB146: 19 | AC146: 16 | AH146: 0 | AI146: 2 | AJ146: 9500 | AK146: 18700 | AL146: 3000 | AM146: 31200 | AR146: 0 | AW146: 0 | BB146: 0 | BC146: 3 | BD146: 18000 | BE146: 41900 | BF146: 8800 | BG146: 68700 | BH146: 2 | BI146: 12000 | BJ146: 24200 | BK146: 5000 | BL146: 41200 | BM146: 1 | BN146: 0 | BO146: 0 | BP146: 0 | BQ146: 0 | BV146: 0 | BW146: 4 | BX146: 28000 | BY146: 96000 | BZ146: 12000 | CA146: 136000 | CF146: 0 | CG146: 1 | CH146: 8000 | CI146: 16500 | CJ146: 1000 | CK146: 25500 | CL146: 1 | CM146: 3000 | CN146: 5500 | CO146: 1500 | CP146: 10000 | CU146: 0 | CV146: 2 | CW146: 15000 | CX146: 50560 | CY146: 0 | CZ146: 65560 | DE146: 0 | DF146: 1 | DG146: 6000 | DH146: 24000 | DI146: 2000 | DJ146: 32000 | DO146: 0 | DP146: 2 | DQ146: 0 | DR146: 0 | DS146: 0 | DT146: 0
A147: 40152 | B147: УПЦ ООО "Газпром трансгаз Чайковский" | C147: УПЦ ООО "Газпром трансгаз Чайковский" | D147: Обучение рабочих | E147: ЭлекЭлОбПК | F147: Электромонтер по рем. электрооборуд. ПТК | G147: Электромонтер по ремонту и обслуживанию электрооборудования ПТК | H147: Повышение квалификации (РАБ) | J147: (РАБ) Повышение квалификации на ПТК | M147: 10 | N147: 76 | O147: 43 | P147: 340 | Q147: 15.04.2024 | R147: 26.04.2024 | S147: 7 | T147: 15 | U147: 20 | V147: 92000 | W147: 244280 | X147: 28400 | Y147: 364680 | Z147: 0 | AA147: 364680 | AB147: 19 | AC147: 16 | AH147: 0 | AI147: 2 | AJ147: 6000 | AK147: 11000 | AL147: 3000 | AM147: 20000 | AR147: 0 | AW147: 0 | AX147: 3 | AY147: 19500 | AZ147: 39600 | BA147: 0 | BB147: 59100 | BC147: 3 | BD147: 18000 | BE147: 36300 | BF147: 8400 | BG147: 62700 | BH147: 2 | BI147: 6000 | BJ147: 12100 | BK147: 2500 | BL147: 20600 | BM147: 1 | BN147: 0 | BO147: 0 | BP147: 0 | BQ147: 0 | BV147: 0 | BW147: 5 | BX147: 35000 | BY147: 120000 | BZ147: 14500 | CA147: 169500 | CF147: 0 | CK147: 0 | CP147: 0 | CU147: 0 | CV147: 1 | CW147: 7500 | CX147: 25280 | CY147: 0 | CZ147: 32780 | DE147: 0 | DJ147: 0 | DO147: 0 | DP147: 2 | DQ147: 0 | DR147: 0 | DS147: 0 | DT147: 0
A148: 40153 | B148: УПЦ ООО "Газпром трансгаз Чайковский" | C148: УПЦ ООО "Газпром трансгаз Чайковский" | D148: Обучение рабочих | E148: ЭлекЭлОбПК | F148: Электромонтер по рем. электрооборуд. ПТК | G148: Электромонтер по ремонту и обслуживанию электрооборудования ПТК | H148: Повышение квалификации (РАБ) | J148: (РАБ) Повышение квалификации на ПТК | M148: 10 | N148: 76 | O148: 43 | P148: 340 | Q148: 03.06.2024 | R148: 17.06.2024 | S148: 7 | T148: 20 | U148: 20 | V148: 82500 | W148: 203980 | X148: 21600 | Y148: 308080 | Z148: 0 | AA148: 308080 | AB148: 19 | AC148: 16 | AH148: 0 | AI148: 1 | AJ148: 3000 | AK148: 5500 | AL148: 1500 | AM148: 10000 | AN148: 2 | AO148: 5000 | AP148: 8800 | AQ148: 0 | AR148: 13800 | AW148: 0 | AX148: 3 | AY148: 16000 | AZ148: 31900 | BA148: 500 | BB148: 48400 | BC148: 2 | BD148: 15000 | BE148: 30800 | BF148: 5600 | BG148: 51400 | BL148: 0 | BM148: 2 | BN148: 0 | BO148: 0 | BP148: 0 | BQ148: 0 | BV148: 0 | BW148: 3 | BX148: 21000 | BY148: 72000 | BZ148: 9000 | CA148: 102000 | CB148: 1 | CC148: 6000 | CD148: 13200 | CE148: 500 | CF148: 19700 | CK148: 0 | CL148: 3 | CM148: 9000 | CN148: 16500 | CO148: 4500 | CP148: 30000 | CU148: 0 | CV148: 1 | CW148: 7500 | CX148: 25280 | CY148: 0 | CZ148: 32780 | DE148: 0 | DJ148: 0 | DO148: 0 | DP148: 1 | DQ148: 0 | DR148: 0 | DS148: 0 | DT148: 0
A149: 40197 | B149: УПЦ ООО "Газпром трансгаз Чайковский" | C149: Гремячинское ЛПУМГ | D149: Обучение ИТР | E149: Обуч.2,3гОЧ | F149: Обучение высота 2,3 гр. ОЧНОЕ | G149: Обучение руководителей и специалистов безопасным методам и приемам выполнения работ на высоте "Работники 2, 3 групп по безопасности работ на высоте" | H149: Повышение квалификации | J149: Прочие технические (ГНВП, сварочное, противопожарные и т.д.) | M149: 5 | N149: 40 | O149: 0 | P149: 0 | Q149: 18.03.2024 | R149: 29.03.2024 | S149: 7 | T149: 25 | U149: 30 | V149: 0 | W149: 0 | X149: 0 | Y149: 0 | Z149: 0 | AA149: 0 | AB149: 21 | AC149: 21 | AH149: 0 | AM149: 0 | AR149: 0 | AS149: 1 | AT149: 0 | AU149: 0 | AV149: 0 | AW149: 0 | BB149: 0 | BG149: 0 | BH149: 20 | BI149: 0 | BJ149: 0 | BK149: 0 | BL149: 0 | BQ149: 0 | BV149: 0 | CA149: 0 | CF149: 0 | CK149: 0 | CP149: 0 | CU149: 0 | CZ149: 0 | DE149: 0 | DJ149: 0 | DO149: 0 | DT149: 0
A150: 40198 | B150: УПЦ ООО "Газпром трансгаз Чайковский" | C150: Горнозаводское ЛПУМГ | D150: Обучение ИТР | E150: Обуч.2,3гОЧ | F150: Обучение высота 2,3 гр. ОЧНОЕ | G150: Обучение руководителей и специалистов безопасным методам и приемам выполнения работ на высоте "Работники 2, 3 групп по безопасности работ на высоте" | H150: Повышение квалификации | J150: Прочие технические (ГНВП, сварочное, противопожарные и т.д.) | M150: 5 | N150: 40 | O150: 0 | P150: 0 | Q150: 18.03.2024 | R150: 29.03.2024 | S150: 7 | T150: 25 | U150: 30 | V150: 6500 | W150: 22560 | X150: 0 | Y150: 29060 | Z150: 0 | AA150: 29060 | AB150: 7 | AC150: 6 | AH150: 0 | AM150: 0 | AR150: 0 | AW150: 0 | BB150: 0 | BC150: 5 | BD150: 0 | BE150: 0 | BF150: 0 | BG150: 0 | BL150: 0 | BQ150: 0 | BR150: 1 | BS150: 0 | BT150: 0 | BU150: 0 | BV150: 0 | CA150: 0 | CF150: 0 | CK150: 0 | CP150: 0 | CU150: 0 | CV150: 1 | CW150: 6500 | CX150: 22560 | CY150: 0 | CZ150: 29060 | DE150: 0 | DJ150: 0 | DO150: 0 | DT150: 0
A151: 40199 | B151: УПЦ ООО "Газпром трансгаз Чайковский" | C151: Воткинское ЛПУМГ | D151: Обучение ИТР | E151: Обуч.2,3гОЧ | F151: Обучение высота 2,3 гр. ОЧНОЕ | G151: Обучение руководителей и специалистов безопасным методам и приемам выполнения работ на высоте "Работники 2, 3 групп по безопасности работ на высоте" | H151: Повышение квалификации | J151: Прочие технические (ГНВП, сварочное, противопожарные и т.д.) | M151: 5 | N151: 40 | O151: 0 | P151: 0 | Q151: 01.04.2024 | R151: 12.04.2024 | S151: 7 | T151: 25 | U151: 30 | V151: 19500 | W151: 66720 | X151: 0 | Y151: 86220 | Z151: 0 | AA151: 86220 | AB151: 14 | AC151: 14 | AH151: 0 | AM151: 0 | AR151: 0 | AW151: 0 | AX151: 10 | AY151: 0 | AZ151: 0 | BA151: 0 | BB151: 0 | BC151: 1 | BD151: 0 | BE151: 0 | BF151: 0 | BG151: 0 | BL151: 0 | BQ151: 0 | BV151: 0 | CA151: 0 | CF151: 0 | CK151: 0 | CP151: 0 | CU151: 0 | CV151: 3 | CW151: 19500 | CX151: 66720 | CY151: 0 | CZ151: 86220 | DE151: 0 | DJ151: 0 | DO151: 0 | DT151: 0
A152: 40200 | B152: УПЦ ООО "Газпром трансгаз Чайковский" | C152: Можгинское ЛПУМГ | D152: Обучение ИТР | E152: Обуч.2,3гОЧ | F152: Обучение высота 2,3 гр. ОЧНОЕ | G152: Обучение руководителей и специалистов безопасным методам и приемам выполнения работ на высоте "Работники 2, 3 групп по безопасности работ на высоте" | H152: Повышение квалификации | J152: Прочие технические (ГНВП, сварочное, противопожарные и т.д.) | M152: 5 | N152: 40 | O152: 0 | P152: 0 | Q152: 08.04.2024 | R152: 19.04.2024 | S152: 7 | T152: 25 | U152: 30 | V152: 25000 | W152: 103960 | X152: 5000 | Y152: 133960 | Z152: 0 | AA152: 133960 | AB152: 26 | AC152: 25 | AH152: 0 | AM152: 0 | AR152: 0 | AS152: 4 | AT152: 12000 | AU152: 59800 | AV152: 5000 | AW152: 76800 | BB152: 0 | BG152: 0 | BL152: 0 | BQ152: 0 | BV152: 0 | CA152: 0 | CB152: 19 | CC152: 0 | CD152: 0 | CE152: 0 | CF152: 0 | CK152: 0 | CP152: 0 | CU152: 0 | CV152: 2 | CW152: 13000 | CX152: 44160 | CY152: 0 | CZ152: 57160 | DE152: 0 | DJ152: 0 | DK152: 1 | DL152: 0 | DM152: 0 | DN152: 0 | DO152: 0 | DT152: 0
A153: 40232 | B153: УПЦ ООО "Газпром трансгаз Чайковский" | C153: УПЦ ООО "Газпром трансгаз Чайковский" | D153: Обучение рабочих | E153: ЕжЗанятВодит | F153: Ежегодные занятия с водителями | G153: Ежегодные занятия с водителями | H153: Повышение квалификации (РАБ) | J153: (РАБ) Курсы целевого назначения (в части получения допуска к работе на опасных производственных объектах) | M153: 3 | N153: 20 | O153: 0 | P153: 0 | Q153: 29.01.2024 | R153: 31.01.2024 | S153: 7 | T153: 20 | U153: 20 | V153: 0 | W153: 0 | X153: 0 | Y153: 0 | Z153: 0 | AA153: 0 | AB153: 19 | AC153: 0 | AH153: 0 | AM153: 0 | AR153: 0 | AW153: 0 | BB153: 0 | BG153: 0 | BL153: 0 | BM153: 1 | BN153: 0 | BO153: 0 | BP153: 0 | BQ153: 0 | BV153: 0 | CA153: 0 | CF153: 0 | CK153: 0 | CP153: 0 | CU153: 0 | CZ153: 0 | DA153: 18 | DB153: 0 | DC153: 0 | DD153: 0 | DE153: 0 | DJ153: 0 | DO153: 0 | DT153: 0
A154: 40233 | B154: УПЦ ООО "Газпром трансгаз Чайковский" | C154: УПЦ ООО "Газпром трансгаз Чайковский" | D154: Обучение рабочих | E154: ЕжЗанятВодит | F154: Ежегодные занятия с водителями | G154: Ежегодные занятия с водителями | H154: Повышение квалификации (РАБ) | J154: (РАБ) Курсы целевого назначения (в части получения допуска к работе на опасных производственных объектах) | M154: 3 | N154: 20 | O154: 0 | P154: 0 | Q154: 10.01.2024 | R154: 12.01.2024 | S154: 7 | T154: 20 | U154: 20 | V154: 0 | W154: 0 | X154: 0 | Y154: 0 | Z154: 0 | AA154: 0 | AB154: 16 | AC154: 0 | AH154: 0 | AM154: 0 | AR154: 0 | AW154: 0 | BB154: 0 | BG154: 0 | BL154: 0 | BQ154: 0 | BV154: 0 | CA154: 0 | CF154: 0 | CK154: 0 | CP154: 0 | CU154: 0 | CZ154: 0 | DA154: 16 | DB154: 0 | DC154: 0 | DD154: 0 | DE154: 0 | DJ154: 0 | DO154: 0 | DT154: 0
A155: 40234 | B155: УПЦ ООО "Газпром трансгаз Чайковский" | C155: УПЦ ООО "Газпром трансгаз Чайковский" | D155: Обучение рабочих | E155: ЕжЗанятВодит | F155: Ежегодные занятия с водителями | G155: Ежегодные занятия с водителями | H155: Повышение квалификации (РАБ) | J155: (РАБ) Курсы целевого назначения (в части получения допуска к работе на опасных производственных объектах) | M155: 3 | N155: 20 | O155: 0 | P155: 0 | Q155: 15.01.2024 | R155: 17.01.2024 | S155: 7 | T155: 20 | U155: 20 | V155: 0 | W155: 0 | X155: 0 | Y155: 0 | Z155: 0 | AA155: 0 | AB155: 20 | AC155: 0 | AH155: 0 | AM155: 0 | AR155: 0 | AW155: 0 | BB155: 0 | BG155: 0 | BL155: 0 | BQ155: 0 | BV155: 0 | CA155: 0 | CF155: 0 | CK155: 0 | CP155: 0 | CU155: 0 | CZ155: 0 | DA155: 20 | DB155: 0 | DC155: 0 | DD155: 0 | DE155: 0 | DJ155: 0 | DO155: 0 | DT155: 0
A156: 40235 | B156: УПЦ ООО "Газпром трансгаз Чайковский" | C156: УПЦ ООО "Газпром трансгаз Чайковский" | D156: Обучение рабочих | E156: ЕжЗанятВодит | F156: Ежегодные занятия с водителями | G156: Ежегодные занятия с водителями | H156: Повышение квалификации (РАБ) | J156: (РАБ) Курсы целевого назначения (в части получения допуска к работе на опасных производственных объектах) | M156: 3 | N156: 20 | O156: 0 | P156: 0 | Q156: 17.01.2024 | R156: 19.01.2024 | S156: 7 | T156: 20 | U156: 20 | V156: 0 | W156: 0 | X156: 0 | Y156: 0 | Z156: 0 | AA156: 0 | AB156: 18 | AC156: 0 | AH156: 0 | AM156: 0 | AR156: 0 | AW156: 0 | BB156: 0 | BG156: 0 | BL156: 0 | BQ156: 0 | BV156: 0 | CA156: 0 | CF156: 0 | CK156: 0 | CP156: 0 | CU156: 0 | CZ156: 0 | DA156: 18 | DB156: 0 | DC156: 0 | DD156: 0 | DE156: 0 | DJ156: 0 | DO156: 0 | DT156: 0
A157: 40236 | B157: УПЦ ООО "Газпром трансгаз Чайковский" | C157: УПЦ ООО "Газпром трансгаз Чайковский" | D157: Обучение рабочих | E157: ЕжЗанятВодит | F157: Ежегодные занятия с водителями | G157: Ежегодные занятия с водителями | H157: Повышение квалификации (РАБ) | J157: (РАБ) Курсы целевого назначения (в части получения допуска к работе на опасных производственных объектах) | M157: 3 | N157: 20 | O157: 0 | P157: 0 | Q157: 05.02.2024 | R157: 07.02.2024 | S157: 7 | T157: 20 | U157: 20 | V157: 0 | W157: 0 | X157: 0 | Y157: 0 | Z157: 0 | AA157: 0 | AB157: 19 | AC157: 0 | AH157: 0 | AM157: 0 | AR157: 0 | AW157: 0 | BB157: 0 | BG157: 0 | BL157: 0 | BQ157: 0 | BV157: 0 | CA157: 0 | CF157: 0 | CK157: 0 | CP157: 0 | CU157: 0 | CZ157: 0 | DA157: 19 | DB157: 0 | DC157: 0 | DD157: 0 | DE157: 0 | DJ157: 0 | DO157: 0 | DT157: 0
A158: 40237 | B158: УПЦ ООО "Газпром трансгаз Чайковский" | C158: УПЦ ООО "Газпром трансгаз Чайковский" | D158: Обучение рабочих | E158: ЕжЗанятВодит | F158: Ежегодные занятия с водителями | G158: Ежегодные занятия с водителями | H158: Повышение квалификации (РАБ) | J158: (РАБ) Курсы целевого назначения (в части получения допуска к работе на опасных производственных объектах) | M158: 3 | N158: 20 | O158: 0 | P158: 0 | Q158: 07.02.2024 | R158: 09.02.2024 | S158: 7 | T158: 20 | U158: 20 | V158: 0 | W158: 0 | X158: 0 | Y158: 0 | Z158: 0 | AA158: 0 | AB158: 19 | AC158: 0 | AH158: 0 | AM158: 0 | AR158: 0 | AW158: 0 | BB158: 0 | BG158: 0 | BL158: 0 | BQ158: 0 | BV158: 0 | CA158: 0 | CF158: 0 | CK158: 0 | CP158: 0 | CU158: 0 | CZ158: 0 | DA158: 19 | DB158: 0 | DC158: 0 | DD158: 0 | DE158: 0 | DJ158: 0 | DO158: 0 | DT158: 0
A159: 40238 | B159: УПЦ ООО "Газпром трансгаз Чайковский" | C159: УПЦ ООО "Газпром трансгаз Чайковский" | D159: Обучение рабочих | E159: ЕжЗанятВодит | F159: Ежегодные занятия с водителями | G159: Ежегодные занятия с водителями | H159: Повышение квалификации (РАБ) | J159: (РАБ) Курсы целевого назначения (в части получения допуска к работе на опасных производственных объектах) | M159: 3 | N159: 20 | O159: 0 | P159: 0 | Q159: 12.02.2024 | R159: 14.02.2024 | S159: 7 | T159: 20 | U159: 20 | V159: 0 | W159: 0 | X159: 0 | Y159: 0 | Z159: 0 | AA159: 0 | AB159: 18 | AC159: 0 | AH159: 0 | AM159: 0 | AR159: 0 | AW159: 0 | BB159: 0 | BG159: 0 | BL159: 0 | BQ159: 0 | BV159: 0 | CA159: 0 | CF159: 0 | CK159: 0 | CP159: 0 | CU159: 0 | CZ159: 0 | DA159: 18 | DB159: 0 | DC159: 0 | DD159: 0 | DE159: 0 | DJ159: 0 | DO159: 0 | DT159: 0
A160: 40239 | B160: УПЦ ООО "Газпром трансгаз Чайковский" | C160: УПЦ ООО "Газпром трансгаз Чайковский" | D160: Обучение рабочих | E160: ЕжЗанятВодит | F160: Ежегодные занятия с водителями | G160: Ежегодные занятия с водителями | H160: Повышение квалификации (РАБ) | J160: (РАБ) Курсы целевого назначения (в части получения допуска к работе на опасных производственных объектах) | M160: 3 | N160: 20 | O160: 0 | P160: 0 | Q160: 14.02.2024 | R160: 16.02.2024 | S160: 7 | T160: 20 | U160: 20 | V160: 0 | W160: 0 | X160: 0 | Y160: 0 | Z160: 0 | AA160: 0 | AB160: 20 | AC160: 0 | AH160: 0 | AM160: 0 | AR160: 0 | AW160: 0 | BB160: 0 | BG160: 0 | BL160: 0 | BQ160: 0 | BV160: 0 | CA160: 0 | CF160: 0 | CK160: 0 | CP160: 0 | CU160: 0 | CZ160: 0 | DA160: 20 | DB160: 0 | DC160: 0 | DD160: 0 | DE160: 0 | DJ160: 0 | DO160: 0 | DT160: 0
A161: 40240 | B161: УПЦ ООО "Газпром трансгаз Чайковский" | C161: УПЦ ООО "Газпром трансгаз Чайковский" | D161: Обучение рабочих | E161: ЕжЗанятВодит | F161: Ежегодные занятия с водителями | G161: Ежегодные занятия с водителями | H161: Повышение квалификации (РАБ) | J161: (РАБ) Курсы целевого назначения (в части получения допуска к работе на опасных производственных объектах) | M161: 3 | N161: 20 | O161: 0 | P161: 0 | Q161: 19.02.2024 | R161: 21.02.2024 | S161: 7 | T161: 20 | U161: 20 | V161: 0 | W161: 0 | X161: 0 | Y161: 0 | Z161: 0 | AA161: 0 | AB161: 17 | AC161: 0 | AH161: 0 | AM161: 0 | AR161: 0 | AW161: 0 | BB161: 0 | BG161: 0 | BL161: 0 | BQ161: 0 | BV161: 0 | CA161: 0 | CF161: 0 | CK161: 0 | CP161: 0 | CU161: 0 | CZ161: 0 | DA161: 17 | DB161: 0 | DC161: 0 | DD161: 0 | DE161: 0 | DJ161: 0 | DO161: 0 | DT161: 0
A162: 40241 | B162: УПЦ ООО "Газпром трансгаз Чайковский" | C162: УПЦ ООО "Газпром трансгаз Чайковский" | D162: Обучение рабочих | E162: ЕжЗанятВодит | F162: Ежегодные занятия с водителями | G162: Ежегодные занятия с водителями | H162: Повышение квалификации (РАБ) | J162: (РАБ) Курсы целевого назначения (в части получения допуска к работе на опасных производственных объектах) | M162: 3 | N162: 20 | O162: 0 | P162: 0 | Q162: 04.03.2024 | R162: 06.03.2024 | S162: 7 | T162: 20 | U162: 20 | V162: 0 | W162: 0 | X162: 0 | Y162: 0 | Z162: 0 | AA162: 0 | AB162: 19 | AC162: 0 | AH162: 0 | AM162: 0 | AR162: 0 | AW162: 0 | BB162: 0 | BG162: 0 | BL162: 0 | BQ162: 0 | BV162: 0 | CA162: 0 | CF162: 0 | CK162: 0 | CP162: 0 | CU162: 0 | CZ162: 0 | DA162: 19 | DB162: 0 | DC162: 0 | DD162: 0 | DE162: 0 | DJ162: 0 | DO162: 0 | DT162: 0
A163: 40242 | B163: УПЦ ООО "Газпром трансгаз Чайковский" | C163: УПЦ ООО "Газпром трансгаз Чайковский" | D163: Обучение рабочих | E163: ЕжЗанятВодит | F163: Ежегодные занятия с водителями | G163: Ежегодные занятия с водителями | H163: Повышение квалификации (РАБ) | J163: (РАБ) Курсы целевого назначения (в части получения допуска к работе на опасных производственных объектах) | M163: 3 | N163: 20 | O163: 0 | P163: 0 | Q163: 31.01.2024 | R163: 02.02.2024 | S163: 7 | T163: 20 | U163: 20 | V163: 0 | W163: 0 | X163: 0 | Y163: 0 | Z163: 0 | AA163: 0 | AB163: 18 | AC163: 0 | AH163: 0 | AM163: 0 | AR163: 0 | AW163: 0 | BB163: 0 | BG163: 0 | BL163: 0 | BQ163: 0 | BV163: 0 | CA163: 0 | CF163: 0 | CK163: 0 | CP163: 0 | CU163: 0 | CZ163: 0 | DA163: 18 | DB163: 0 | DC163: 0 | DD163: 0 | DE163: 0 | DJ163: 0 | DO163: 0 | DT163: 0
A164: 40243 | B164: УПЦ ООО "Газпром трансгаз Чайковский" | C164: УПЦ ООО "Газпром трансгаз Чайковский" | D164: Обучение рабочих | E164: ЕжЗанятВодит | F164: Ежегодные занятия с водителями | G164: Ежегодные занятия с водителями | H164: Повышение квалификации (РАБ) | J164: (РАБ) Курсы целевого назначения (в части получения допуска к работе на опасных производственных объектах) | M164: 3 | N164: 20 | O164: 0 | P164: 0 | Q164: 03.06.2024 | R164: 05.06.2024 | S164: 7 | T164: 20 | U164: 20 | V164: 0 | W164: 0 | X164: 0 | Y164: 0 | Z164: 0 | AA164: 0 | AB164: 15 | AC164: 0 | AH164: 0 | AM164: 0 | AR164: 0 | AW164: 0 | BB164: 0 | BG164: 0 | BL164: 0 | BQ164: 0 | BV164: 0 | CA164: 0 | CF164: 0 | CK164: 0 | CP164: 0 | CU164: 0 | CZ164: 0 | DA164: 15 | DB164: 0 | DC164: 0 | DD164: 0 | DE164: 0 | DJ164: 0 | DO164: 0 | DT164: 0
A165: 40244 | B165: УПЦ ООО "Газпром трансгаз Чайковский" | C165: УПЦ ООО "Газпром трансгаз Чайковский" | D165: Обучение рабочих | E165: ЕжЗанятВодит | F165: Ежегодные занятия с водителями | G165: Ежегодные занятия с водителями | H165: Повышение квалификации (РАБ) | J165: (РАБ) Курсы целевого назначения (в части получения допуска к работе на опасных производственных объектах) | M165: 3 | N165: 20 | O165: 0 | P165: 0 | Q165: 05.06.2024 | R165: 07.06.2024 | S165: 7 | T165: 20 | U165: 20 | V165: 0 | W165: 0 | X165: 0 | Y165: 0 | Z165: 0 | AA165: 0 | AB165: 11 | AC165: 0 | AH165: 0 | AM165: 0 | AR165: 0 | AW165: 0 | BB165: 0 | BG165: 0 | BL165: 0 | BQ165: 0 | BV165: 0 | CA165: 0 | CF165: 0 | CK165: 0 | CP165: 0 | CU165: 0 | CZ165: 0 | DA165: 11 | DB165: 0 | DC165: 0 | DD165: 0 | DE165: 0 | DJ165: 0 | DO165: 0 | DT165: 0
A166: 40245 | B166: УПЦ ООО "Газпром трансгаз Чайковский" | C166: УПЦ ООО "Газпром трансгаз Чайковский" | D166: Обучение рабочих | E166: ЕжЗанятВодит | F166: Ежегодные занятия с водителями | G166: Ежегодные занятия с водителями | H166: Повышение квалификации (РАБ) | J166: (РАБ) Курсы целевого назначения (в части получения допуска к работе на опасных производственных объектах) | M166: 3 | N166: 20 | O166: 0 | P166: 0 | Q166: 20.05.2024 | R166: 22.05.2024 | S166: 7 | T166: 20 | U166: 20 | V166: 0 | W166: 0 | X166: 0 | Y166: 0 | Z166: 0 | AA166: 0 | AB166: 7 | AC166: 0 | AH166: 0 | AM166: 0 | AR166: 0 | AW166: 0 | BB166: 0 | BG166: 0 | BL166: 0 | BQ166: 0 | BV166: 0 | CA166: 0 | CF166: 0 | CK166: 0 | CP166: 0 | CU166: 0 | CZ166: 0 | DA166: 7 | DB166: 0 | DC166: 0 | DD166: 0 | DE166: 0 | DJ166: 0 | DO166: 0 | DT166: 0
A167: 40247 | B167: УПЦ ООО "Газпром трансгаз Чайковский" | C167: УПЦ ООО "Газпром трансгаз Чайковский" | E167: МашТрубУкПП | F167: Машинист трубоукладчика КПП | G167: Машинист трубоукладчика КПП | I167: Переподготовка | J167: (РАБ) Переподготовка | M167: 15 | N167: 120 | O167: 45 | P167: 360 | Q167: 17.06.2024 | R167: 05.07.2024 | S167: 7 | T167: 20 | U167: 20 | V167: 32500 | W167: 89800 | X167: 8300 | Y167: 130600 | Z167: 0 | AA167: 130600 | AB167: 7 | AC167: 5 | AH167: 0 | AM167: 0 | AR167: 0 | AW167: 0 | AX167: 1 | AY167: 9500 | AZ167: 19800 | BA167: 0 | BB167: 29300 | BC167: 1 | BD167: 3000 | BE167: 5500 | BF167: 2800 | BG167: 11300 | BL167: 0 | BQ167: 0 | BV167: 0 | CA167: 0 | CF167: 0 | CK167: 0 | CL167: 1 | CM167: 8000 | CN167: 16500 | CO167: 1500 | CP167: 26000 | CU167: 0 | CZ167: 0 | DA167: 2 | DB167: 0 | DC167: 0 | DD167: 0 | DE167: 0 | DF167: 2 | DG167: 12000 | DH167: 48000 | DI167: 4000 | DJ167: 64000 | DO167: 0 | DT167: 0
A168: 40250 | B168: УПЦ ООО "Газпром трансгаз Чайковский" | C168: УПЦ ООО "Газпром трансгаз Чайковский" | D168: Обучение рабочих | E168: МашбульдПК | F168: Машинист бульдозера ПТК | G168: Машинист бульдозера ПТК | H168: Повышение квалификации (РАБ) | J168: (РАБ) Повышение квалификации на ПТК | M168: 10 | N168: 80 | O168: 30 | P168: 240 | Q168: 11.03.2024 | R168: 22.03.2024 | S168: 7 | T168: 20 | U168: 20 | V168: 49500 | W168: 115600 | X168: 8500 | Y168: 173600 | Z168: 0 | AA168: 173600 | AB168: 10 | AC168: 9 | AH168: 0 | AI168: 1 | AJ168: 6500 | AK168: 13200 | AL168: 1500 | AM168: 21200 | AN168: 2 | AO168: 5000 | AP168: 8800 | AQ168: 0 | AR168: 13800 | AW168: 0 | BB168: 0 | BG168: 0 | BL168: 0 | BQ168: 0 | BV168: 0 | CA168: 0 | CF168: 0 | CK168: 0 | CL168: 2 | CM168: 13000 | CN168: 26400 | CO168: 3000 | CP168: 42400 | CU168: 0 | CV168: 2 | CW168: 13000 | CX168: 26400 | CY168: 0 | CZ168: 39400 | DA168: 1 | DB168: 0 | DC168: 0 | DD168: 0 | DE168: 0 | DF168: 2 | DG168: 12000 | DH168: 40800 | DI168: 4000 | DJ168: 56800 | DO168: 0 | DT168: 0
A169: 40251 | B169: УПЦ ООО "Газпром трансгаз Чайковский" | C169: УПЦ ООО "Газпром трансгаз Чайковский" | D169: Обучение рабочих | E169: ВодитНаГазе | F169: Водители автомобилей, работ. на СПГ | G169: Водители автомобилей, работающих на сжатом и сжиженном газе | H169: Повышение квалификации (РАБ) | J169: (РАБ) Курсы целевого назначения (в части получения допуска к работе на опасных производственных объектах) | M169: 5 | N169: 36 | O169: 0 | P169: 0 | Q169: 26.02.2024 | R169: 01.03.2024 | S169: 7 | T169: 20 | U169: 20 | V169: 44500 | W169: 118900 | X169: 24400 | Y169: 187800 | Z169: 0 | AA169: 187800 | AB169: 32 | AC169: 19 | AH169: 0 | AI169: 1 | AJ169: 3000 | AK169: 5500 | AL169: 1500 | AM169: 10000 | AR169: 0 | AS169: 2 | AT169: 6000 | AU169: 11000 | AV169: 4800 | AW169: 21800 | AX169: 5 | AY169: 9000 | AZ169: 16500 | BA169: 300 | BB169: 25800 | BC169: 1 | BD169: 3000 | BE169: 5500 | BF169: 2800 | BG169: 11300 | BL169: 0 | BQ169: 0 | BV169: 0 | BW169: 3 | BX169: 10500 | BY169: 36000 | BZ169: 9000 | CA169: 55500 | CB169: 1 | CC169: 0 | CD169: 0 | CE169: 0 | CF169: 0 | CG169: 2 | CH169: 6000 | CI169: 11000 | CJ169: 2000 | CK169: 19000 | CP169: 0 | CU169: 0 | CV169: 2 | CW169: 3000 | CX169: 13400 | CY169: 0 | CZ169: 16400 | DA169: 8 | DB169: 0 | DC169: 0 | DD169: 0 | DE169: 0 | DF169: 2 | DG169: 4000 | DH169: 20000 | DI169: 4000 | DJ169: 28000 | DK169: 1 | DL169: 0 | DM169: 0 | DN169: 0 | DO169: 0 | DP169: 4 | DQ169: 0 | DR169: 0 | DS169: 0 | DT169: 0
A170: 40252 | B170: УПЦ ООО "Газпром трансгаз Чайковский" | C170: УПЦ ООО "Газпром трансгаз Чайковский" | D170: Обучение рабочих | E170: ВодитНаГазе | F170: Водители автомобилей, работ. на СПГ | G170: Водители автомобилей, работающих на сжатом и сжиженном газе | H170: Повышение квалификации (РАБ) | J170: (РАБ) Курсы целевого назначения (в части получения допуска к работе на опасных производственных объектах) | M170: 5 | N170: 36 | O170: 0 | P170: 0 | Q170: 27.05.2024 | R170: 31.05.2024 | S170: 7 | T170: 20 | U170: 20 | V170: 31500 | W170: 88100 | X170: 19500 | Y170: 139100 | Z170: 0 | AA170: 139100 | AB170: 20 | AC170: 11 | AH170: 0 | AI170: 1 | AJ170: 3000 | AK170: 5500 | AL170: 1500 | AM170: 10000 | AR170: 0 | AW170: 0 | AX170: 2 | AY170: 3000 | AZ170: 5500 | BA170: 0 | BB170: 8500 | BG170: 0 | BH170: 2 | BI170: 7000 | BJ170: 13200 | BK170: 5000 | BL170: 25200 | BM170: 1 | BN170: 0 | BO170: 0 | BP170: 0 | BQ170: 0 | BV170: 0 | BW170: 3 | BX170: 10500 | BY170: 36000 | BZ170: 9000 | CA170: 55500 | CF170: 0 | CK170: 0 | CP170: 0 | CU170: 0 | CV170: 1 | CW170: 3000 | CX170: 7900 | CY170: 0 | CZ170: 10900 | DA170: 8 | DB170: 0 | DC170: 0 | DD170: 0 | DE170: 0 | DF170: 2 | DG170: 5000 | DH170: 20000 | DI170: 4000 | DJ170: 29000 | DO170: 0 | DT170: 0
A171: 40253 | B171: УПЦ ООО "Газпром трансгаз Чайковский" | C171: УПЦ ООО "Газпром трансгаз Чайковский" | D171: Обучение рабочих | E171: ВодитНаГазе | F171: Водители автомобилей, работ. на СПГ | G171: Водители автомобилей, работающих на сжатом и сжиженном газе | H171: Повышение квалификации (РАБ) | J171: (РАБ) Курсы целевого назначения (в части получения допуска к работе на опасных производственных объектах) | M171: 5 | N171: 36 | O171: 0 | P171: 0 | Q171: 18.11.2024 | R171: 22.11.2024 | S171: 7 | T171: 20 | U171: 20 | V171: 22000 | W171: 57100 | X171: 12000 | Y171: 91100 | Z171: 0 | AA171: 91100 | AB171: 16 | AC171: 7 | AH171: 0 | AI171: 1 | AJ171: 3000 | AK171: 5500 | AL171: 1500 | AM171: 10000 | AR171: 0 | AW171: 0 | AX171: 2 | AY171: 6000 | AZ171: 11000 | BA171: 0 | BB171: 17000 | BG171: 0 | BH171: 1 | BI171: 3500 | BJ171: 6600 | BK171: 2500 | BL171: 12600 | BQ171: 0 | BV171: 0 | BW171: 2 | BX171: 7000 | BY171: 24000 | BZ171: 6000 | CA171: 37000 | CF171: 0 | CK171: 0 | CP171: 0 | CU171: 0 | CZ171: 0 | DA171: 8 | DB171: 0 | DC171: 0 | DD171: 0 | DE171: 0 | DF171: 1 | DG171: 2500 | DH171: 10000 | DI171: 2000 | DJ171: 14500 | DO171: 0 | DP171: 1 | DQ171: 0 | DR171: 0 | DS171: 0 | DT171: 0
A172: 40254 | B172: УПЦ ООО "Газпром трансгаз Чайковский" | C172: УПЦ ООО "Газпром трансгаз Чайковский" | D172: Обучение рабочих | E172: ВодитНаст | F172: Водители наставники | G172: Водители наставники автомобильного транспорта | H172: Повышение квалификации (РАБ) | J172: (РАБ) Курсы целевого назначения (в части получения допуска к работе на опасных производственных объектах) | M172: 4 | N172: 32 | O172: 0 | P172: 0 | Q172: 11.11.2024 | R172: 15.11.2024 | S172: 7 | T172: 15 | U172: 20 | V172: 41000 | W172: 92100 | X172: 24300 | Y172: 157400 | Z172: 0 | AA172: 157400 | AB172: 14 | AC172: 12 | AH172: 0 | AI172: 1 | AJ172: 3000 | AK172: 5500 | AL172: 1500 | AM172: 10000 | AR172: 0 | AS172: 1 | AT172: 3500 | AU172: 6600 | AV172: 2500 | AW172: 12600 | AX172: 1 | AY172: 3000 | AZ172: 5500 | BA172: 0 | BB172: 8500 | BC172: 2 | BD172: 6000 | BE172: 11000 | BF172: 5600 | BG172: 22600 | BL172: 0 | BQ172: 0 | BV172: 0 | BW172: 3 | BX172: 10500 | BY172: 36000 | BZ172: 9000 | CA172: 55500 | CF172: 0 | CG172: 3 | CH172: 9000 | CI172: 16500 | CJ172: 3000 | CK172: 28500 | CL172: 1 | CM172: 3000 | CN172: 5500 | CO172: 1500 | CP172: 10000 | CQ172: 1 | CR172: 0 | CS172: 0 | CT172: 0 | CU172: 0 | CZ172: 0 | DE172: 0 | DJ172: 0 | DK172: 1 | DL172: 3000 | DM172: 5500 | DN172: 1200 | DO172: 9700 | DT172: 0
A173: 40256 | B173: УПЦ ООО "Газпром трансгаз Чайковский" | C173: УПЦ ООО "Газпром трансгаз Чайковский" | D173: Обучение рабочих | E173: МашКрспола | F173: Машинист кранов мост. типа, упр. с пола | G173: Обучение машинистов кранов мостового типа, консольных кранов и электрических талей грузоподъемностью до 10т. включительно, управляемых с пола | H173: Повышение квалификации (РАБ) | J173: (РАБ) Курсы целевого назначения (в части получения допуска к работе на опасных производственных объектах) | M173: 3 | N173: 20 | O173: 0 | P173: 0 | Q173: 16.04.2024 | R173: 18.04.2024 | S173: 7 | T173: 20 | U173: 20 | V173: 3000 | W173: 5500 | X173: 1500 | Y173: 10000 | Z173: 0 | AA173: 10000 | AB173: 23 | AC173: 7 | AH173: 0 | AI173: 1 | AJ173: 3000 | AK173: 5500 | AL173: 1500 | AM173: 10000 | AR173: 0 | AW173: 0 | AX173: 4 | AY173: 0 | AZ173: 0 | BA173: 0 | BB173: 0 | BG173: 0 | BH173: 1 | BI173: 0 | BJ173: 0 | BK173: 0 | BL173: 0 | BM173: 15 | BN173: 0 | BO173: 0 | BP173: 0 | BQ173: 0 | BV173: 0 | CA173: 0 | CB173: 1 | CC173: 0 | CD173: 0 | CE173: 0 | CF173: 0 | CK173: 0 | CP173: 0 | CU173: 0 | CZ173: 0 | DA173: 1 | DB173: 0 | DC173: 0 | DD173: 0 | DE173: 0 | DJ173: 0 | DO173: 0 | DT173: 0
A174: 40257 | B174: УПЦ ООО "Газпром трансгаз Чайковский" | C174: УПЦ ООО "Газпром трансгаз Чайковский" | E174: ППРК | F174: Разработка ППРК | G174: Разработка проектов производства работ и технологических карт для работы с подъемными сооружениями | J174: Прочие технические (ГНВП, сварочное, противопожарные и т.д.) | L174: Краткосрочный семинар (от 16 до 40 час) | M174: 3 | N174: 32 | O174: 0 | P174: 0 | Q174: 25.11.2024 | R174: 29.11.2024 | S174: 7 | T174: 20 | U174: 20 | V174: 17500 | W174: 69400 | X174: 14300 | Y174: 101200 | Z174: 0 | AA174: 101200 | AB174: 10 | AC174: 6 | AH174: 0 | AM174: 0 | AR174: 0 | AW174: 0 | BB174: 0 | BC174: 1 | BD174: 3000 | BE174: 15000 | BF174: 2800 | BG174: 20800 | BH174: 1 | BI174: 2500 | BJ174: 10000 | BK174: 2500 | BL174: 15000 | BQ174: 0 | BV174: 0 | BW174: 2 | BX174: 7000 | BY174: 30000 | BZ174: 6000 | CA174: 43000 | CF174: 0 | CK174: 0 | CL174: 2 | CM174: 5000 | CN174: 14400 | CO174: 3000 | CP174: 22400 | CU174: 0 | CZ174: 0 | DE174: 0 | DJ174: 0 | DO174: 0 | DP174: 4 | DQ174: 0 | DR174: 0 | DS174: 0 | DT174: 0
A175: 40261 | B175: УПЦ ООО "Газпром трансгаз Чайковский" | C175: УПЦ ООО "Газпром трансгаз Чайковский" | D175: Обучение ИТР | E175: ПБ9 | F175: Требования ПБ к подъемным сооружениям | G175: Требования промышленной безопасности к подъемным сооружениям | H175: Повышение квалификации | J175: Предаттестационная подготовка по промышленной безопасности, экологической безопасности и др. | M175: 4 | N175: 32 | O175: 0 | P175: 0 | Q175: 22.04.2024 | R175: 25.04.2024 | S175: 7 | T175: 20 | U175: 20 | V175: 26000 | W175: 80000 | X175: 13000 | Y175: 119000 | Z175: 0 | AA175: 119000 | AB175: 18 | AC175: 10 | AH175: 0 | AI175: 3 | AJ175: 9000 | AK175: 30000 | AL175: 4500 | AM175: 43500 | AR175: 0 | AW175: 0 | AX175: 1 | AY175: 3000 | AZ175: 5500 | BA175: 0 | BB175: 8500 | BG175: 0 | BL175: 0 | BM175: 6 | BN175: 0 | BO175: 0 | BP175: 0 | BQ175: 0 | BV175: 0 | CA175: 0 | CF175: 0 | CK175: 0 | CL175: 3 | CM175: 9000 | CN175: 24000 | CO175: 4500 | CP175: 37500 | CU175: 0 | CV175: 1 | CW175: 0 | CX175: 0 | CY175: 0 | CZ175: 0 | DA175: 1 | DB175: 0 | DC175: 0 | DD175: 0 | DE175: 0 | DF175: 2 | DG175: 5000 | DH175: 20500 | DI175: 4000 | DJ175: 29500 | DO175: 0 | DP175: 1 | DQ175: 0 | DR175: 0 | DS175: 0 | DT175: 0
A176: 40262 | B176: УПЦ ООО "Газпром трансгаз Чайковский" | C176: УПЦ ООО "Газпром трансгаз Чайковский" | D176: Обучение рабочих | E176: ВодОГповтор | F176: Водители, перевозящие ОГ баз.курс(повт.) | G176: Повышение квалификации водителей, осуществляющих перевозки опасных грузов в соответствии с Cоглашением о международной дорожной перевозке опасных грузов (базовый курс) (повторное обучение) | H176: Повышение квалификации (РАБ) | J176: (РАБ) Курсы целевого назначения (в части получения допуска к работе на опасных производственных объектах) | M176: 2 | N176: 15 | O176: 0 | P176: 0 | Q176: 26.03.2024 | R176: 27.03.2024 | S176: 7 | T176: 20 | U176: 20 | V176: 11000 | W176: 22500 | X176: 8800 | Y176: 42300 | Z176: 0 | AA176: 42300 | AB176: 6 | AC176: 6 | AH176: 0 | AM176: 0 | AR176: 0 | AS176: 2 | AT176: 0 | AU176: 0 | AV176: 0 | AW176: 0 | BB176: 0 | BC176: 1 | BD176: 3000 | BE176: 5500 | BF176: 2800 | BG176: 11300 | BL176: 0 | BQ176: 0 | BV176: 0 | BW176: 1 | BX176: 2000 | BY176: 6000 | BZ176: 3000 | CA176: 11000 | CF176: 0 | CK176: 0 | CL176: 2 | CM176: 6000 | CN176: 11000 | CO176: 3000 | CP176: 20000 | CU176: 0 | CZ176: 0 | DE176: 0 | DJ176: 0 | DO176: 0 | DT176: 0
A177: 40263 | B177: УПЦ ООО "Газпром трансгаз Чайковский" | C177: УПЦ ООО "Газпром трансгаз Чайковский" | D177: Обучение рабочих | E177: ВодОГповтор | F177: Водители, перевозящие ОГ баз.курс(повт.) | G177: Повышение квалификации водителей, осуществляющих перевозки опасных грузов в соответствии с Cоглашением о международной дорожной перевозке опасных грузов (базовый курс) (повторное обучение) | H177: Повышение квалификации (РАБ) | J177: (РАБ) Курсы целевого назначения (в части получения допуска к работе на опасных производственных объектах) | M177: 2 | N177: 15 | O177: 0 | P177: 0 | Q177: 09.04.2024 | R177: 10.04.2024 | S177: 7 | T177: 20 | U177: 20 | V177: 3000 | W177: 5500 | X177: 1500 | Y177: 10000 | Z177: 0 | AA177: 10000 | AB177: 5 | AC177: 4 | AH177: 0 | AI177: 1 | AJ177: 3000 | AK177: 5500 | AL177: 1500 | AM177: 10000 | AR177: 0 | AW177: 0 | BB177: 0 | BG177: 0 | BL177: 0 | BQ177: 0 | BV177: 0 | CA177: 0 | CF177: 0 | CK177: 0 | CL177: 1 | CM177: 0 | CN177: 0 | CO177: 0 | CP177: 0 | CU177: 0 | CZ177: 0 | DA177: 1 | DB177: 0 | DC177: 0 | DD177: 0 | DE177: 0 | DF177: 2 | DG177: 0 | DH177: 0 | DI177: 0 | DJ177: 0 | DO177: 0 | DT177: 0
A178: 40264 | B178: УПЦ ООО "Газпром трансгаз Чайковский" | C178: УПЦ ООО "Газпром трансгаз Чайковский" | D178: Обучение ИТР | E178: ОбПС | F178: Обуч по работ с ПС | G178: Ответственный за безопасное производство работ с применением подъемных сооружений | H178: Повышение квалификации | J178: Предаттестационная подготовка по промышленной безопасности, экологической безопасности и др. | M178: 4 | N178: 32 | O178: 0 | P178: 0 | Q178: 07.10.2024 | R178: 11.10.2024 | S178: 0 | T178: 9999 | U178: 9999 | V178: 20500 | W178: 77900 | X178: 12500 | Y178: 110900 | Z178: 0 | AA178: 110900 | AB178: 9 | AC178: 6 | AH178: 0 | AM178: 0 | AR178: 0 | AW178: 0 | BB178: 0 | BG178: 0 | BH178: 1 | BI178: 3500 | BJ178: 10000 | BK178: 2500 | BL178: 16000 | BM178: 3 | BN178: 0 | BO178: 0 | BP178: 0 | BQ178: 0 | BV178: 0 | BW178: 4 | BX178: 14000 | BY178: 60000 | BZ178: 10000 | CA178: 84000 | CF178: 0 | CK178: 0 | CP178: 0 | CU178: 0 | CV178: 1 | CW178: 3000 | CX178: 7900 | CY178: 0 | CZ178: 10900 | DE178: 0 | DJ178: 0 | DO178: 0 | DT178: 0
A179: 40301 | B179: УПЦ ООО "Газпром трансгаз Чайковский" | C179: ООО "Газпром трансгаз Чайковский" | D179: Обучение ИТР | E179: Обуч.2,3гОЧ | F179: Обучение высота 2,3 гр. ОЧНОЕ | G179: Обучение руководителей и специалистов безопасным методам и приемам выполнения работ на высоте "Работники 2, 3 групп по безопасности работ на высоте" | H179: Повышение квалификации | J179: Прочие технические (ГНВП, сварочное, противопожарные и т.д.) | M179: 5 | N179: 40 | O179: 0 | P179: 0 | Q179: 15.04.2024 | R179: 26.04.2024 | S179: 7 | T179: 25 | U179: 30 | V179: 9000 | W179: 25400 | X179: 2000 | Y179: =SUM(V179,W179,X179) -> 36400 | Z179: 0 | AA179: =Y179+(Z179*AB179) -> 36400 | AB179: =SUM(AD179,AI179,AN179,AS179,AX179,BC179,BH179,BM179,BR179,BW179,CB179,CG179,CL179,CQ179,CV179,DA179,DF179,DK179,DP179) -> 12 | AC179: =SUM(AI179,AN179,AS179,AX179,BC179,BH179,BW179,CB179,CG179,CL179,CV179,DF179) -> 4 | AH179: =SUM(AE179,AF179,AG179) -> 0 | AM179: =SUM(AJ179,AK179,AL179) -> 0 | AR179: =SUM(AO179,AP179,AQ179) -> 0 | AW179: =SUM(AT179,AU179,AV179) -> 0 | BB179: =SUM(AY179,AZ179,BA179) -> 0 | BC179: 1 | BD179: 0 | BE179: 0 | BF179: 0 | BG179: =SUM(BD179,BE179,BF179) -> 0 | BL179: =SUM(BI179,BJ179,BK179) -> 0 | BM179: 4 | BN179: 0 | BO179: 0 | BP179: 0 | BQ179: =SUM(BN179,BO179,BP179) -> 0 | BV179: =SUM(BS179,BT179,BU179) -> 0 | CA179: =SUM(BX179,BY179,BZ179) -> 0 | CF179: =SUM(CC179,CD179,CE179) -> 0 | CG179: 2 | CH179: 6000 | CI179: 17500 | CJ179: 2000 | CK179: =SUM(CH179,CI179,CJ179) -> 25500 | CP179: =SUM(CM179,CN179,CO179) -> 0 | CU179: =SUM(CR179,CS179,CT179) -> 0 | CV179: 1 | CW179: 3000 | CX179: 7900 | CY179: 0 | CZ179: =SUM(CW179,CX179,CY179) -> 10900 | DE179: =SUM(DB179,DC179,DD179) -> 0 | DJ179: =SUM(DG179,DH179,DI179) -> 0 | DK179: 4 | DL179: 0 | DM179: 0 | DN179: 0 | DO179: =SUM(DL179,DM179,DN179) -> 0 | DT179: =SUM(DQ179,DR179,DS179) -> 0
A180: 40302 | B180: УПЦ ООО "Газпром трансгаз Чайковский" | C180: ООО "Газпром трансгаз Чайковский" | D180: Обучение ИТР | E180: Обуч.2,3гОЧ | F180: Обучение высота 2,3 гр. ОЧНОЕ | G180: Обучение руководителей и специалистов безопасным методам и приемам выполнения работ на высоте "Работники 2, 3 групп по безопасности работ на высоте" | H180: Повышение квалификации | J180: Прочие технические (ГНВП, сварочное, противопожарные и т.д.) | M180: 5 | N180: 40 | O180: 0 | P180: 0 | Q180: 09.09.2024 | R180: 20.09.2024 | S180: 7 | T180: 25 | U180: 30 | V180: 12000 | W180: 30800 | X180: 2000 | Y180: 44800 | Z180: 0 | AA180: 44800 | AB180: 5 | AC180: 5 | AH180: 0 | AM180: 0 | AR180: 0 | AW180: 0 | BB180: 0 | BC180: 1 | BD180: 0 | BE180: 0 | BF180: 0 | BG180: 0 | BL180: 0 | BQ180: 0 | BV180: 0 | CA180: 0 | CF180: 0 | CG180: 2 | CH180: 6000 | CI180: 15000 | CJ180: 2000 | CK180: 23000 | CP180: 0 | CU180: 0 | CV180: 2 | CW180: 6000 | CX180: 15800 | CY180: 0 | CZ180: 21800 | DE180: 0 | DJ180: 0 | DO180: 0 | DT180: 0
A181: 40303 | B181: УПЦ ООО "Газпром трансгаз Чайковский" | C181: ООО "Газпром трансгаз Чайковский" | D181: Обучение ИТР | E181: Обуч.2,3гОЧ | F181: Обучение высота 2,3 гр. ОЧНОЕ | G181: Обучение руководителей и специалистов безопасным методам и приемам выполнения работ на высоте "Работники 2, 3 групп по безопасности работ на высоте" | H181: Повышение квалификации | J181: Прочие технические (ГНВП, сварочное, противопожарные и т.д.) | M181: 5 | N181: 40 | O181: 0 | P181: 0 | Q181: 07.10.2024 | R181: 18.10.2024 | S181: 7 | T181: 25 | U181: 30 | V181: 14000 | W181: 67600 | X181: 5000 | Y181: 86600 | Z181: 0 | AA181: 86600 | AB181: 2 | AC181: 2 | AH181: 0 | AM181: 0 | AR181: 0 | AS181: 2 | AT181: 14000 | AU181: 67600 | AV181: 5000 | AW181: 86600 | BB181: 0 | BG181: 0 | BL181: 0 | BQ181: 0 | BV181: 0 | CA181: 0 | CF181: 0 | CK181: 0 | CP181: 0 | CU181: 0 | CZ181: 0 | DE181: 0 | DJ181: 0 | DO181: 0 | DT181: 0
A182: 40345 | B182: УПЦ ООО "Газпром трансгаз Чайковский" | C182: ООО "Газпром трансгаз Чайковский" | D182: Обучение ИТР | E182: БезОгневРаб | F182: Без.провед. огневых работ (1,2 группа) | G182: Безопасное проведение огневых работ на газовых объектах магистральных газопроводов (1,2 группы допуска) | H182: Повышение квалификации | J182: Прочие технические (ГНВП, сварочное, противопожарные и т.д.) | M182: 3 | N182: 24 | O182: 0 | P182: 0 | Q182: 15.04.2024 | R182: 17.04.2024 | S182: 0 | T182: 25 | U182: 25 | V182: 11000 | W182: 30500 | X182: 3400 | Y182: 44900 | Z182: 0 | AA182: 44900 | AB182: 10 | AC182: 10 | AH182: 0 | AM182: 0 | AR182: 0 | AS182: 1 | AT182: 2500 | AU182: 10400 | AV182: 2400 | AW182: 15300 | AX182: 2 | AY182: 4000 | AZ182: 6600 | BA182: 0 | BB182: 10600 | BC182: 1 | BD182: 0 | BE182: 0 | BF182: 0 | BG182: 0 | BH182: 1 | BI182: 0 | BJ182: 0 | BK182: 0 | BL182: 0 | BQ182: 0 | BV182: 0 | CA182: 0 | CF182: 0 | CG182: 3 | CH182: 2500 | CI182: 6000 | CJ182: 1000 | CK182: 9500 | CP182: 0 | CU182: 0 | CV182: 2 | CW182: 2000 | CX182: 7500 | CY182: 0 | CZ182: 9500 | DE182: 0 | DJ182: 0 | DO182: 0 | DT182: 0
A183: 40346 | B183: УПЦ ООО "Газпром трансгаз Чайковский" | C183: ООО "Газпром трансгаз Чайковский" | D183: Обучение ИТР | E183: БезОгневРаб | F183: Без.провед. огневых работ (1,2 группа) | G183: Безопасное проведение огневых работ на газовых объектах магистральных газопроводов (1,2 группы допуска) | H183: Повышение квалификации | J183: Прочие технические (ГНВП, сварочное, противопожарные и т.д.) | M183: 3 | N183: 24 | O183: 0 | P183: 0 | Q183: 25.11.2024 | R183: 27.11.2024 | S183: 0 | T183: 25 | U183: 25 | V183: 7000 | W183: 24280 | X183: 2800 | Y183: 34080 | Z183: 0 | AA183: 34080 | AB183: 6 | AC183: 6 | AH183: 0 | AM183: 0 | AR183: 0 | AW183: 0 | BB183: 0 | BC183: 1 | BD183: 3000 | BE183: 13000 | BF183: 2800 | BG183: 18800 | BL183: 0 | BQ183: 0 | BV183: 0 | CA183: 0 | CF183: 0 | CG183: 3 | CH183: 0 | CI183: 0 | CJ183: 0 | CK183: 0 | CP183: 0 | CU183: 0 | CV183: 2 | CW183: 4000 | CX183: 11280 | CY183: 0 | CZ183: 15280 | DE183: 0 | DJ183: 0 | DO183: 0 | DT183: 0
A184: 44170 | B184: УПЦ ООО "Газпром трансгаз Чайковский" | C184: УПЦ ООО "Газпром трансгаз Чайковский" | E184: ПожБез ИТР | F184: Обучение мерам ПБ отв. работников | G184: Обучение мерам пожарной безопасности работников, ответственных за пожарную безопасность организации и проведение противопожарного инструктажа | J184: Прочие технические (ГНВП, сварочное, противопожарные и т.д.) | L184: Краткосрочный семинар (от 16 до 40 час) | M184: 6 | N184: 32 | O184: 0 | P184: 0 | Q184: 18.04.2024 | R184: 25.04.2024 | S184: 7 | T184: 20 | U184: 30 | V184: 0 | W184: 0 | X184: 0 | Y184: 0 | Z184: 0 | AA184: 0 | AB184: 23 | AC184: 22 | AH184: 0 | AM184: 0 | AR184: 0 | AS184: 3 | AT184: 0 | AU184: 0 | AV184: 0 | AW184: 0 | AX184: 6 | AY184: 0 | AZ184: 0 | BA184: 0 | BB184: 0 | BC184: 4 | BD184: 0 | BE184: 0 | BF184: 0 | BG184: 0 | BL184: 0 | BQ184: 0 | BV184: 0 | CA184: 0 | CF184: 0 | CK184: 0 | CL184: 2 | CM184: 0 | CN184: 0 | CO184: 0 | CP184: 0 | CU184: 0 | CV184: 3 | CW184: 0 | CX184: 0 | CY184: 0 | CZ184: 0 | DA184: 1 | DB184: 0 | DC184: 0 | DD184: 0 | DE184: 0 | DF184: 4 | DG184: 0 | DH184: 0 | DI184: 0 | DJ184: 0 | DO184: 0 | DT184: 0
A185: 44171 | B185: УПЦ ООО "Газпром трансгаз Чайковский" | C185: УПЦ ООО "Газпром трансгаз Чайковский" | E185: ПожБез ИТР | F185: Обучение мерам ПБ отв. работников | G185: Обучение мерам пожарной безопасности работников, ответственных за пожарную безопасность организации и проведение противопожарного инструктажа | J185: Прочие технические (ГНВП, сварочное, противопожарные и т.д.) | L185: Краткосрочный семинар (от 16 до 40 час) | M185: 6 | N185: 32 | O185: 0 | P185: 0 | Q185: 01.10.2024 | R185: 08.10.2024 | S185: 7 | T185: 20 | U185: 30 | V185: 0 | W185: 0 | X185: 0 | Y185: 0 | Z185: 0 | AA185: 0 | AB185: 11 | AC185: 11 | AH185: 0 | AM185: 0 | AR185: 0 | AW185: 0 | AX185: 3 | AY185: 0 | AZ185: 0 | BA185: 0 | BB185: 0 | BC185: 1 | BD185: 0 | BE185: 0 | BF185: 0 | BG185: 0 | BL185: 0 | BQ185: 0 | BV185: 0 | BW185: 2 | BX185: 0 | BY185: 0 | BZ185: 0 | CA185: 0 | CF185: 0 | CK185: 0 | CL185: 5 | CM185: 0 | CN185: 0 | CO185: 0 | CP185: 0 | CU185: 0 | CZ185: 0 | DE185: 0 | DJ185: 0 | DO185: 0 | DT185: 0
A186: 44172 | B186: УПЦ ООО "Газпром трансгаз Чайковский" | C186: УПЦ ООО "Газпром трансгаз Чайковский" | E186: ПожБез ИТР | F186: Обучение мерам ПБ отв. работников | G186: Обучение мерам пожарной безопасности работников, ответственных за пожарную безопасность организации и проведение противопожарного инструктажа | J186: Прочие технические (ГНВП, сварочное, противопожарные и т.д.) | L186: Краткосрочный семинар (от 16 до 40 час) | M186: 6 | N186: 32 | O186: 0 | P186: 0 | Q186: 03.12.2024 | R186: 10.12.2024 | S186: 7 | T186: 20 | U186: 30 | V186: 0 | W186: 0 | X186: 0 | Y186: 0 | Z186: 0 | AA186: 0 | AB186: 10 | AC186: 9 | AH186: 0 | AM186: 0 | AR186: 0 | AW186: 0 | BB186: 0 | BG186: 0 | BL186: 0 | BM186: 1 | BN186: 0 | BO186: 0 | BP186: 0 | BQ186: 0 | BV186: 0 | CA186: 0 | CF186: 0 | CK186: 0 | CL186: 4 | CM186: 0 | CN186: 0 | CO186: 0 | CP186: 0 | CU186: 0 | CV186: 1 | CW186: 0 | CX186: 0 | CY186: 0 | CZ186: 0 | DE186: 0 | DF186: 4 | DG186: 0 | DH186: 0 | DI186: 0 | DJ186: 0 | DO186: 0 | DT186: 0
A187: 44680 | B187: УПЦ ООО "Газпром трансгаз Чайковский" | C187: УПЦ ООО "Газпром трансгаз Чайковский" | D187: Обучение рабочих | E187: ВодитНаГазе | F187: Водители автомобилей, работ. на СПГ | G187: Водители автомобилей, работающих на сжатом и сжиженном газе | H187: Повышение квалификации (РАБ) | J187: (РАБ) Курсы целевого назначения (в части получения допуска к работе на опасных производственных объектах) | M187: 5 | N187: 36 | O187: 0 | P187: 0 | Q187: 22.01.2024 | R187: 26.01.2024 | S187: 7 | T187: 20 | U187: 20 | V187: 6000 | W187: 11000 | X187: 4800 | Y187: 21800 | Z187: 0 | AA187: 21800 | AB187: 21 | AC187: 21 | AH187: 0 | AM187: 0 | AN187: 19 | AO187: 0 | AP187: 0 | AQ187: 0 | AR187: 0 | AS187: 2 | AT187: 6000 | AU187: 11000 | AV187: 4800 | AW187: 21800 | BB187: 0 | BG187: 0 | BL187: 0 | BQ187: 0 | BV187: 0 | CA187: 0 | CF187: 0 | CK187: 0 | CP187: 0 | CU187: 0 | CZ187: 0 | DE187: 0 | DJ187: 0 | DO187: 0 | DT187: 0
A188: 44681 | B188: УПЦ ООО "Газпром трансгаз Чайковский" | C188: УПЦ ООО "Газпром трансгаз Чайковский" | D188: Обучение рабочих | E188: ВодОГцистер | F188: Водители, перевозящие ОГ цистерн(повт.) | G188: Повышение квалификации водителей, осуществляющих перевозки опасных грузов в соответствии с Cоглашением о международной дорожной перевозке опасных грузов (специализированный курс по перевозке в цистернах)» (повторное обучение) | H188: Повышение квалификации (РАБ) | J188: (РАБ) Курсы целевого назначения (в части получения допуска к работе на опасных производственных объектах) | M188: 1 | N188: 8 | O188: 0 | P188: 0 | Q188: 28.03.2024 | R188: 28.03.2024 | S188: 7 | T188: 7 | U188: 20 | V188: 3000 | W188: 6500 | X188: 3000 | Y188: 12500 | Z188: 0 | AA188: 12500 | AB188: 5 | AC188: 5 | AH188: 0 | AM188: 0 | AR188: 0 | AW188: 0 | BB188: 0 | BC188: 1 | BD188: 3000 | BE188: 6500 | BF188: 3000 | BG188: 12500 | BL188: 0 | BQ188: 0 | BV188: 0 | CA188: 0 | CF188: 0 | CK188: 0 | CL188: 2 | CM188: 0 | CN188: 0 | CO188: 0 | CP188: 0 | CU188: 0 | CZ188: 0 | DE188: 0 | DF188: 2 | DG188: 0 | DH188: 0 | DI188: 0 | DJ188: 0 | DO188: 0 | DT188: 0
A189: 44682 | B189: УПЦ ООО "Газпром трансгаз Чайковский" | C189: УПЦ ООО "Газпром трансгаз Чайковский" | D189: Обучение рабочих | E189: ВодОГцистер | F189: Водители, перевозящие ОГ цистерн(повт.) | G189: Повышение квалификации водителей, осуществляющих перевозки опасных грузов в соответствии с Cоглашением о международной дорожной перевозке опасных грузов (специализированный курс по перевозке в цистернах)» (повторное обучение) | H189: Повышение квалификации (РАБ) | J189: (РАБ) Курсы целевого назначения (в части получения допуска к работе на опасных производственных объектах) | M189: 1 | N189: 8 | O189: 0 | P189: 0 | Q189: 11.04.2024 | R189: 11.04.2024 | S189: 7 | T189: 7 | U189: 20 | V189: 2500 | W189: 5500 | X189: 0 | Y189: 8000 | Z189: 0 | AA189: 8000 | AB189: 5 | AC189: 4 | AH189: 0 | AI189: 1 | AJ189: 500 | AK189: 1100 | AL189: 0 | AM189: 1600 | AR189: 0 | AS189: 2 | AT189: 2000 | AU189: 4400 | AV189: 0 | AW189: 6400 | BB189: 0 | BG189: 0 | BL189: 0 | BQ189: 0 | BV189: 0 | CA189: 0 | CF189: 0 | CK189: 0 | CL189: 1 | CM189: 0 | CN189: 0 | CO189: 0 | CP189: 0 | CU189: 0 | CZ189: 0 | DA189: 1 | DB189: 0 | DC189: 0 | DD189: 0 | DE189: 0 | DJ189: 0 | DO189: 0 | DT189: 0
A190: 44683 | B190: УПЦ ООО "Газпром трансгаз Чайковский" | C190: УПЦ ООО "Газпром трансгаз Чайковский" | D190: Обучение рабочих | E190: ЗащВож | F190: Защитное вождение | G190: Защитное вождение | H190: Повышение квалификации (РАБ) | J190: (РАБ) Курсы целевого назначения (в части получения допуска к работе на опасных производственных объектах) | M190: 2 | N190: 16 | O190: 0 | P190: 0 | Q190: 01.10.2024 | R190: 02.10.2024 | S190: 0 | T190: 30 | U190: 9999 | V190: 7500 | W190: 11000 | X190: 7500 | Y190: 26000 | Z190: 0 | AA190: 26000 | AB190: 30 | AC190: 21 | AH190: 0 | AI190: 2 | AJ190: 3000 | AK190: 4400 | AL190: 3000 | AM190: 10400 | AN190: 4 | AO190: 0 | AP190: 0 | AQ190: 0 | AR190: 0 | AW190: 0 | AX190: 2 | AY190: 0 | AZ190: 0 | BA190: 0 | BB190: 0 | BC190: 1 | BD190: 0 | BE190: 0 | BF190: 0 | BG190: 0 | BH190: 3 | BI190: 0 | BJ190: 0 | BK190: 0 | BL190: 0 | BM190: 1 | BN190: 0 | BO190: 0 | BP190: 0 | BQ190: 0 | BV190: 0 | BW190: 2 | BX190: 0 | BY190: 0 | BZ190: 0 | CA190: 0 | CB190: 2 | CC190: 0 | CD190: 0 | CE190: 0 | CF190: 0 | CK190: 0 | CL190: 3 | CM190: 4500 | CN190: 6600 | CO190: 4500 | CP190: 15600 | CQ190: 1 | CR190: 0 | CS190: 0 | CT190: 0 | CU190: 0 | CV190: 2 | CW190: 0 | CX190: 0 | CY190: 0 | CZ190: 0 | DA190: 5 | DB190: 0 | DC190: 0 | DD190: 0 | DE190: 0 | DJ190: 0 | DO190: 0 | DP190: 2 | DQ190: 0 | DR190: 0 | DS190: 0 | DT190: 0
A191: 44684 | B191: УПЦ ООО "Газпром трансгаз Чайковский" | C191: УПЦ ООО "Газпром трансгаз Чайковский" | D191: Обучение рабочих | E191: ЗащВож | F191: Защитное вождение | G191: Защитное вождение | H191: Повышение квалификации (РАБ) | J191: (РАБ) Курсы целевого назначения (в части получения допуска к работе на опасных производственных объектах) | M191: 2 | N191: 16 | O191: 0 | P191: 0 | Q191: 05.09.2024 | R191: 06.09.2024 | S191: 0 | T191: 30 | U191: 9999 | V191: 9000 | W191: 13200 | X191: 9000 | Y191: 31200 | Z191: 0 | AA191: 31200 | AB191: 35 | AC191: 24 | AH191: 0 | AI191: 3 | AJ191: 4500 | AK191: 6600 | AL191: 4500 | AM191: 15600 | AR191: 0 | AS191: 2 | AT191: 0 | AU191: 0 | AV191: 0 | AW191: 0 | AX191: 5 | AY191: 0 | AZ191: 0 | BA191: 0 | BB191: 0 | BC191: 2 | BD191: 0 | BE191: 0 | BF191: 0 | BG191: 0 | BL191: 0 | BQ191: 0 | BV191: 0 | BW191: 2 | BX191: 0 | BY191: 0 | BZ191: 0 | CA191: 0 | CB191: 3 | CC191: 0 | CD191: 0 | CE191: 0 | CF191: 0 | CK191: 0 | CL191: 3 | CM191: 4500 | CN191: 6600 | CO191: 4500 | CP191: 15600 | CQ191: 1 | CR191: 0 | CS191: 0 | CT191: 0 | CU191: 0 | CV191: 2 | CW191: 0 | CX191: 0 | CY191: 0 | CZ191: 0 | DA191: 7 | DB191: 0 | DC191: 0 | DD191: 0 | DE191: 0 | DF191: 2 | DG191: 0 | DH191: 0 | DI191: 0 | DJ191: 0 | DK191: 1 | DL191: 0 | DM191: 0 | DN191: 0 | DO191: 0 | DP191: 2 | DQ191: 0 | DR191: 0 | DS191: 0 | DT191: 0
A192: 44685 | B192: УПЦ ООО "Газпром трансгаз Чайковский" | C192: УПЦ ООО "Газпром трансгаз Чайковский" | D192: Обучение рабочих | E192: ЗащВож | F192: Защитное вождение | G192: Защитное вождение | H192: Повышение квалификации (РАБ) | J192: (РАБ) Курсы целевого назначения (в части получения допуска к работе на опасных производственных объектах) | M192: 2 | N192: 16 | O192: 0 | P192: 0 | Q192: 09.09.2024 | R192: 10.09.2024 | S192: 0 | T192: 30 | U192: 30 | V192: 4500 | W192: 6600 | X192: 4500 | Y192: 15600 | Z192: 0 | AA192: 15600 | AB192: 30 | AC192: 21 | AH192: 0 | AM192: 0 | AR192: 0 | AS192: 2 | AT192: 0 | AU192: 0 | AV192: 0 | AW192: 0 | AX192: 4 | AY192: 0 | AZ192: 0 | BA192: 0 | BB192: 0 | BC192: 2 | BD192: 0 | BE192: 0 | BF192: 0 | BG192: 0 | BH192: 2 | BI192: 0 | BJ192: 0 | BK192: 0 | BL192: 0 | BQ192: 0 | BV192: 0 | BW192: 2 | BX192: 0 | BY192: 0 | BZ192: 0 | CA192: 0 | CB192: 3 | CC192: 0 | CD192: 0 | CE192: 0 | CF192: 0 | CK192: 0 | CL192: 3 | CM192: 4500 | CN192: 6600 | CO192: 4500 | CP192: 15600 | CQ192: 1 | CR192: 0 | CS192: 0 | CT192: 0 | CU192: 0 | CV192: 2 | CW192: 0 | CX192: 0 | CY192: 0 | CZ192: 0 | DA192: 6 | DB192: 0 | DC192: 0 | DD192: 0 | DE192: 0 | DF192: 1 | DG192: 0 | DH192: 0 | DI192: 0 | DJ192: 0 | DO192: 0 | DP192: 2 | DQ192: 0 | DR192: 0 | DS192: 0 | DT192: 0
A193: 44686 | B193: УПЦ ООО "Газпром трансгаз Чайковский" | C193: УПЦ ООО "Газпром трансгаз Чайковский" | D193: Обучение рабочих | E193: ЗащВож | F193: Защитное вождение | G193: Защитное вождение | H193: Повышение квалификации (РАБ) | J193: (РАБ) Курсы целевого назначения (в части получения допуска к работе на опасных производственных объектах) | M193: 2 | N193: 16 | O193: 0 | P193: 0 | Q193: 12.09.2024 | R193: 13.09.2024 | S193: 0 | T193: 30 | U193: 9999 | V193: 10500 | W193: 16500 | X193: 10100 | Y193: 37100 | Z193: 0 | AA193: 37100 | AB193: 30 | AC193: 22 | AH193: 0 | AI193: 3 | AJ193: 4500 | AK193: 6600 | AL193: 4500 | AM193: 15600 | AR193: 0 | AS193: 2 | AT193: 0 | AU193: 0 | AV193: 0 | AW193: 0 | AX193: 3 | AY193: 0 | AZ193: 0 | BA193: 0 | BB193: 0 | BC193: 2 | BD193: 0 | BE193: 0 | BF193: 0 | BG193: 0 | BH193: 2 | BI193: 0 | BJ193: 0 | BK193: 0 | BL193: 0 | BQ193: 0 | BV193: 0 | BW193: 2 | BX193: 0 | BY193: 0 | BZ193: 0 | CA193: 0 | CB193: 2 | CC193: 0 | CD193: 0 | CE193: 0 | CF193: 0 | CG193: 1 | CH193: 1500 | CI193: 3300 | CJ193: 1100 | CK193: 5900 | CL193: 3 | CM193: 4500 | CN193: 6600 | CO193: 4500 | CP193: 15600 | CU193: 0 | CV193: 1 | CW193: 0 | CX193: 0 | CY193: 0 | CZ193: 0 | DA193: 6 | DB193: 0 | DC193: 0 | DD193: 0 | DE193: 0 | DF193: 1 | DG193: 0 | DH193: 0 | DI193: 0 | DJ193: 0 | DO193: 0 | DP193: 2 | DQ193: 0 | DR193: 0 | DS193: 0 | DT193: 0
A194: 44687 | B194: УПЦ ООО "Газпром трансгаз Чайковский" | C194: УПЦ ООО "Газпром трансгаз Чайковский" | D194: Обучение рабочих | E194: ЗащВож | F194: Защитное вождение | G194: Защитное вождение | H194: Повышение квалификации (РАБ) | J194: (РАБ) Курсы целевого назначения (в части получения допуска к работе на опасных производственных объектах) | M194: 2 | N194: 16 | O194: 0 | P194: 0 | Q194: 16.09.2024 | R194: 17.09.2024 | S194: 0 | T194: 30 | U194: 9999 | V194: 7500 | W194: 11000 | X194: 7500 | Y194: 26000 | Z194: 0 | AA194: 26000 | AB194: 32 | AC194: 24 | AH194: 0 | AI194: 2 | AJ194: 3000 | AK194: 4400 | AL194: 3000 | AM194: 10400 | AR194: 0 | AS194: 2 | AT194: 0 | AU194: 0 | AV194: 0 | AW194: 0 | AX194: 4 | AY194: 0 | AZ194: 0 | BA194: 0 | BB194: 0 | BC194: 2 | BD194: 0 | BE194: 0 | BF194: 0 | BG194: 0 | BH194: 2 | BI194: 0 | BJ194: 0 | BK194: 0 | BL194: 0 | BQ194: 0 | BV194: 0 | BW194: 2 | BX194: 0 | BY194: 0 | BZ194: 0 | CA194: 0 | CB194: 3 | CC194: 0 | CD194: 0 | CE194: 0 | CF194: 0 | CK194: 0 | CL194: 3 | CM194: 4500 | CN194: 6600 | CO194: 4500 | CP194: 15600 | CU194: 0 | CV194: 2 | CW194: 0 | CX194: 0 | CY194: 0 | CZ194: 0 | DA194: 6 | DB194: 0 | DC194: 0 | DD194: 0 | DE194: 0 | DF194: 2 | DG194: 0 | DH194: 0 | DI194: 0 | DJ194: 0 | DO194: 0 | DP194: 2 | DQ194: 0 | DR194: 0 | DS194: 0 | DT194: 0
A195: 44688 | B195: УПЦ ООО "Газпром трансгаз Чайковский" | C195: УПЦ ООО "Газпром трансгаз Чайковский" | D195: Обучение рабочих | E195: ЗащВож | F195: Защитное вождение | G195: Защитное вождение | H195: Повышение квалификации (РАБ) | J195: (РАБ) Курсы целевого назначения (в части получения допуска к работе на опасных производственных объектах) | M195: 2 | N195: 16 | O195: 0 | P195: 0 | Q195: 19.09.2024 | R195: 20.09.2024 | S195: 0 | T195: 30 | U195: 9999 | V195: 10500 | W195: 16500 | X195: 10100 | Y195: 37100 | Z195: 0 | AA195: 37100 | AB195: 33 | AC195: 24 | AH195: 0 | AI195: 3 | AJ195: 4500 | AK195: 6600 | AL195: 4500 | AM195: 15600 | AR195: 0 | AS195: 2 | AT195: 0 | AU195: 0 | AV195: 0 | AW195: 0 | AX195: 3 | AY195: 0 | AZ195: 0 | BA195: 0 | BB195: 0 | BC195: 2 | BD195: 0 | BE195: 0 | BF195: 0 | BG195: 0 | BH195: 2 | BI195: 0 | BJ195: 0 | BK195: 0 | BL195: 0 | BQ195: 0 | BV195: 0 | BW195: 2 | BX195: 0 | BY195: 0 | BZ195: 0 | CA195: 0 | CB195: 2 | CC195: 0 | CD195: 0 | CE195: 0 | CF195: 0 | CG195: 1 | CH195: 1500 | CI195: 3300 | CJ195: 1100 | CK195: 5900 | CL195: 3 | CM195: 4500 | CN195: 6600 | CO195: 4500 | CP195: 15600 | CU195: 0 | CV195: 2 | CW195: 0 | CX195: 0 | CY195: 0 | CZ195: 0 | DA195: 6 | DB195: 0 | DC195: 0 | DD195: 0 | DE195: 0 | DF195: 2 | DG195: 0 | DH195: 0 | DI195: 0 | DJ195: 0 | DK195: 1 | DL195: 0 | DM195: 0 | DN195: 0 | DO195: 0 | DP195: 2 | DQ195: 0 | DR195: 0 | DS195: 0 | DT195: 0
A196: 44689 | B196: УПЦ ООО "Газпром трансгаз Чайковский" | C196: УПЦ ООО "Газпром трансгаз Чайковский" | D196: Обучение рабочих | E196: ЗащВож | F196: Защитное вождение | G196: Защитное вождение | H196: Повышение квалификации (РАБ) | J196: (РАБ) Курсы целевого назначения (в части получения допуска к работе на опасных производственных объектах) | M196: 2 | N196: 16 | O196: 0 | P196: 0 | Q196: 23.09.2024 | R196: 24.09.2024 | S196: 0 | T196: 30 | U196: 9999 | V196: 7500 | W196: 11000 | X196: 7500 | Y196: 26000 | Z196: 0 | AA196: 26000 | AB196: 30 | AC196: 19 | AH196: 0 | AI196: 2 | AJ196: 3000 | AK196: 4400 | AL196: 3000 | AM196: 10400 | AR196: 0 | AW196: 0 | AX196: 1 | AY196: 0 | AZ196: 0 | BA196: 0 | BB196: 0 | BC196: 2 | BD196: 0 | BE196: 0 | BF196: 0 | BG196: 0 | BH196: 2 | BI196: 0 | BJ196: 0 | BK196: 0 | BL196: 0 | BM196: 2 | BN196: 0 | BO196: 0 | BP196: 0 | BQ196: 0 | BV196: 0 | BW196: 2 | BX196: 0 | BY196: 0 | BZ196: 0 | CA196: 0 | CB196: 3 | CC196: 0 | CD196: 0 | CE196: 0 | CF196: 0 | CK196: 0 | CL196: 3 | CM196: 4500 | CN196: 6600 | CO196: 4500 | CP196: 15600 | CU196: 0 | CV196: 2 | CW196: 0 | CX196: 0 | CY196: 0 | CZ196: 0 | DA196: 6 | DB196: 0 | DC196: 0 | DD196: 0 | DE196: 0 | DF196: 2 | DG196: 0 | DH196: 0 | DI196: 0 | DJ196: 0 | DK196: 1 | DL196: 0 | DM196: 0 | DN196: 0 | DO196: 0 | DP196: 2 | DQ196: 0 | DR196: 0 | DS196: 0 | DT196: 0
A197: 44690 | B197: УПЦ ООО "Газпром трансгаз Чайковский" | C197: УПЦ ООО "Газпром трансгаз Чайковский" | D197: Обучение рабочих | E197: ЗащВож | F197: Защитное вождение | G197: Защитное вождение | H197: Повышение квалификации (РАБ) | J197: (РАБ) Курсы целевого назначения (в части получения допуска к работе на опасных производственных объектах) | M197: 2 | N197: 16 | O197: 0 | P197: 0 | Q197: 26.09.2024 | R197: 27.09.2024 | S197: 0 | T197: 30 | U197: 9999 | V197: 7500 | W197: 11000 | X197: 7500 | Y197: 26000 | Z197: 0 | AA197: 26000 | AB197: 30 | AC197: 19 | AH197: 0 | AI197: 2 | AJ197: 3000 | AK197: 4400 | AL197: 3000 | AM197: 10400 | AR197: 0 | AW197: 0 | AX197: 1 | AY197: 0 | AZ197: 0 | BA197: 0 | BB197: 0 | BC197: 2 | BD197: 0 | BE197: 0 | BF197: 0 | BG197: 0 | BH197: 2 | BI197: 0 | BJ197: 0 | BK197: 0 | BL197: 0 | BM197: 3 | BN197: 0 | BO197: 0 | BP197: 0 | BQ197: 0 | BV197: 0 | BW197: 2 | BX197: 0 | BY197: 0 | BZ197: 0 | CA197: 0 | CB197: 3 | CC197: 0 | CD197: 0 | CE197: 0 | CF197: 0 | CK197: 0 | CL197: 3 | CM197: 4500 | CN197: 6600 | CO197: 4500 | CP197: 15600 | CU197: 0 | CV197: 2 | CW197: 0 | CX197: 0 | CY197: 0 | CZ197: 0 | DA197: 6 | DB197: 0 | DC197: 0 | DD197: 0 | DE197: 0 | DF197: 2 | DG197: 0 | DH197: 0 | DI197: 0 | DJ197: 0 | DO197: 0 | DP197: 2 | DQ197: 0 | DR197: 0 | DS197: 0 | DT197: 0
A198: 44691 | B198: УПЦ ООО "Газпром трансгаз Чайковский" | C198: УПЦ ООО "Газпром трансгаз Чайковский" | D198: Обучение рабочих | E198: ЗащВож | F198: Защитное вождение | G198: Защитное вождение | H198: Повышение квалификации (РАБ) | J198: (РАБ) Курсы целевого назначения (в части получения допуска к работе на опасных производственных объектах) | M198: 2 | N198: 16 | O198: 0 | P198: 0 | Q198: 14.10.2024 | R198: 15.10.2024 | S198: 0 | T198: 30 | U198: 9999 | V198: 4500 | W198: 6600 | X198: 4500 | Y198: 15600 | Z198: 0 | AA198: 15600 | AB198: 25 | AC198: 12 | AH198: 0 | AM198: 0 | AR198: 0 | AW198: 0 | BB198: 0 | BG198: 0 | BH198: 2 | BI198: 0 | BJ198: 0 | BK198: 0 | BL198: 0 | BM198: 4 | BN198: 0 | BO198: 0 | BP198: 0 | BQ198: 0 | BV198: 0 | BW198: 2 | BX198: 0 | BY198: 0 | BZ198: 0 | CA198: 0 | CB198: 3 | CC198: 0 | CD198: 0 | CE198: 0 | CF198: 0 | CK198: 0 | CL198: 3 | CM198: 4500 | CN198: 6600 | CO198: 4500 | CP198: 15600 | CU198: 0 | CV198: 1 | CW198: 0 | CX198: 0 | CY198: 0 | CZ198: 0 | DA198: 6 | DB198: 0 | DC198: 0 | DD198: 0 | DE198: 0 | DF198: 1 | DG198: 0 | DH198: 0 | DI198: 0 | DJ198: 0 | DK198: 1 | DL198: 0 | DM198: 0 | DN198: 0 | DO198: 0 | DP198: 2 | DQ198: 0 | DR198: 0 | DS198: 0 | DT198: 0
A199: 44692 | B199: УПЦ ООО "Газпром трансгаз Чайковский" | C199: УПЦ ООО "Газпром трансгаз Чайковский" | D199: Обучение рабочих | E199: ЗащВож | F199: Защитное вождение | G199: Защитное вождение | H199: Повышение квалификации (РАБ) | J199: (РАБ) Курсы целевого назначения (в части получения допуска к работе на опасных производственных объектах) | M199: 2 | N199: 16 | O199: 0 | P199: 0 | Q199: 17.10.2024 | R199: 18.10.2024 | S199: 0 | T199: 30 | U199: 9999 | V199: 3000 | W199: 6600 | X199: 4500 | Y199: 14100 | Z199: 0 | AA199: 14100 | AB199: 22 | AC199: 10 | AH199: 0 | AM199: 0 | AR199: 0 | AW199: 0 | BB199: 0 | BG199: 0 | BH199: 1 | BI199: 0 | BJ199: 0 | BK199: 0 | BL199: 0 | BM199: 5 | BN199: 0 | BO199: 0 | BP199: 0 | BQ199: 0 | BV199: 0 | BW199: 3 | BX199: 0 | BY199: 0 | BZ199: 0 | CA199: 0 | CF199: 0 | CG199: 1 | CH199: 0 | CI199: 0 | CJ199: 0 | CK199: 0 | CL199: 3 | CM199: 3000 | CN199: 6600 | CO199: 4500 | CP199: 14100 | CU199: 0 | CV199: 1 | CW199: 0 | CX199: 0 | CY199: 0 | CZ199: 0 | DA199: 5 | DB199: 0 | DC199: 0 | DD199: 0 | DE199: 0 | DF199: 1 | DG199: 0 | DH199: 0 | DI199: 0 | DJ199: 0 | DO199: 0 | DP199: 2 | DQ199: 0 | DR199: 0 | DS199: 0 | DT199: 0
A200: 44693 | B200: УПЦ ООО "Газпром трансгаз Чайковский" | C200: УПЦ ООО "Газпром трансгаз Чайковский" | D200: Обучение рабочих | E200: ЗащВож | F200: Защитное вождение | G200: Защитное вождение | H200: Повышение квалификации (РАБ) | J200: (РАБ) Курсы целевого назначения (в части получения допуска к работе на опасных производственных объектах) | M200: 2 | N200: 16 | O200: 0 | P200: 0 | Q200: 21.10.2024 | R200: 22.10.2024 | S200: 0 | T200: 30 | U200: 9999 | V200: 3000 | W200: 6600 | X200: 4500 | Y200: 14100 | Z200: 0 | AA200: 14100 | AB200: 23 | AC200: 11 | AH200: 0 | AM200: 0 | AR200: 0 | AW200: 0 | BB200: 0 | BG200: 0 | BH200: 1 | BI200: 0 | BJ200: 0 | BK200: 0 | BL200: 0 | BM200: 5 | BN200: 0 | BO200: 0 | BP200: 0 | BQ200: 0 | BV200: 0 | BW200: 2 | BX200: 0 | BY200: 0 | BZ200: 0 | CA200: 0 | CB200: 3 | CC200: 0 | CD200: 0 | CE200: 0 | CF200: 0 | CK200: 0 | CL200: 3 | CM200: 3000 | CN200: 6600 | CO200: 4500 | CP200: 14100 | CU200: 0 | CV200: 1 | CW200: 0 | CX200: 0 | CY200: 0 | CZ200: 0 | DA200: 5 | DB200: 0 | DC200: 0 | DD200: 0 | DE200: 0 | DF200: 1 | DG200: 0 | DH200: 0 | DI200: 0 | DJ200: 0 | DO200: 0 | DP200: 2 | DQ200: 0 | DR200: 0 | DS200: 0 | DT200: 0
... 14 more rows

Sheet Перечень мероприятий
A1: Код тип мероприятия | B1: Код мероприятия | C1: Код место обучения | D1: Код учебное заведение | E1: Место обучения | F1: Наименование в ИУСПТ | G1: Образовательная программа | H1: Статус плана | I1: Статус | J1: ЗавершОбрВыполнена | K1: МеткаБлокир | L1: Начальная дата | M1: Конечная дата | N1: МинималКоличУчастн | O1: ОптимКоличУчастник | P1: МаксимКоличУчастник | Q1: Регистрация | R1: Ожидание | S1: Предварительная | T1: Тьютер | U1: Имя пользователя | V1: Дата изменения
A2: 662 | B2: 40233 | C2: 77 | D2: =COUNTIF(План_сводная!A$2:A$208,B2) -> 1 | E2: УПЦ ООО "Газпром трансгаз Чайковский" | F2: Ежегодные занятия с водителями | G2: Ежегодные занятия с водителями | H2: 2 | I2: Запланировано | K2: X | L2: 2024-01-10 | M2: 2024-01-12 | N2: 7 | O2: 20 | P2: 20 | Q2: 16 | R2: 0 | S2: 3 | U2: TCULEA | V2: 2023-03-17
A3: 666 | B3: 40051 | C3: 77 | D3: =COUNTIF(План_сводная!A$2:A$208,B3) -> 1 | E3: ООО "Газпром трансгаз Чайковский" | F3: Высота 1,2 группа 24ч. | G3: (24ч) Обучение персонала безопасным методам и приемам выполнения работ на высоте "Работники 1,2 групп по безопасности работ на в | H3: 2 | I3: Запланировано | K3: X | L3: 2024-01-15 | M3: 2024-01-17 | N3: 7 | O3: 20 | P3: 30 | Q3: 23 | R3: 0 | S3: 7 | U3: TCUPTV | V3: 2023-03-14
A4: 662 | B4: 40234 | C4: 77 | D4: =COUNTIF(План_сводная!A$2:A$208,B4) -> 1 | E4: УПЦ ООО "Газпром трансгаз Чайковский" | F4: Ежегодные занятия с водителями | G4: Ежегодные занятия с водителями | H4: 2 | I4: Запланировано | K4: X | L4: 2024-01-15 | M4: 2024-01-17 | N4: 7 | O4: 20 | P4: 20 | Q4: 20 | R4: 0 | S4: 3 | U4: TCULEA | V4: 2023-03-17
A5: 21995 | B5: 40048 | C5: 77 | D5: =COUNTIF(План_сводная!A$2:A$208,B5) -> 1 | E5: ООО "Газпром трансгаз Чайковский" | F5: СК объектов МГ Общие положения | G5: Строительный контроль за качеством строительства, реконструкции и капитального ремонта объектов магистральных газопроводов ООО « | H5: 2 | I5: Запланировано | L5: 2024-01-15 | M5: 2024-01-19 | N5: 7 | O5: 15 | P5: 30 | Q5: 23 | R5: 1 | S5: 6 | U5: TCUDOV | V5: 2023-03-14
A6: 17559 | B6: 39993 | C6: 77 | D6: =COUNTIF(План_сводная!A$2:A$208,B6) -> 1 | E6: ООО "Газпром трансгаз Чайковский" | F6: Машинист ТК ПТК (без повышения разряда) | G6: Машинист технологических компрессоров ПТК | H6: 2 | I6: Запланировано | K6: X | L6: 2024-01-15 | M6: 2024-01-26 | N6: 7 | O6: 15 | P6: 20 | Q6: 18 | R6: 0 | S6: 6 | U6: TCUBIS02 | V6: 2023-10-09
A7: 16207 | B7: 39906 | C7: 77 | D7: =COUNTIF(План_сводная!A$2:A$208,B7) -> 1 | E7: ООО "Газпром трансгаз Чайковский" | F7: Требования промышленной безопасности | G7: Требования промышленной безопасности | H7: 2 | I7: Запланировано | L7: 2024-01-15 | M7: 2024-02-02 | N7: 7 | O7: 30 | P7: 30 | Q7: 30 | R7: 0 | S7: 15 | U7: TCUPTV | V7: 2023-03-10
A8: 674 | B8: 39786 | C8: 77 | D8: =COUNTIF(План_сводная!A$2:A$208,B8) -> 1 | E8: ООО "Газпром трансгаз Чайковский" | F8: Подготовка к аттест.электрогазосварщиков | G8: Подготовка к аттестации электрогазосварщиков на право выполнения сварочных и наплавочных работ при строительстве, изготовлении, | H8: 2 | I8: Запланировано | L8: 2024-01-16 | M8: 2024-01-25 | N8: 7 | O8: 20 | P8: 20 | Q8: 14 | R8: 0 | S8: 1 | U8: TCUSAA17 | V8: 2023-03-06
A9: 662 | B9: 40235 | C9: 77 | D9: =COUNTIF(План_сводная!A$2:A$208,B9) -> 1 | E9: УПЦ ООО "Газпром трансгаз Чайковский" | F9: Ежегодные занятия с водителями | G9: Ежегодные занятия с водителями | H9: 2 | I9: Запланировано | K9: X | L9: 2024-01-17 | M9: 2024-01-19 | N9: 7 | O9: 20 | P9: 20 | Q9: 18 | R9: 0 | S9: 3 | U9: TCULEA | V9: 2023-03-17
A10: 13993 | B10: 39762 | C10: 77 | D10: =COUNTIF(План_сводная!A$2:A$208,B10) -> 1 | E10: УПЦ ООО "Газпром трансгаз Чайковский" | F10: Обучение мерам ПБ отв. работников | G10: Обучение мерам пожарной безопасности работников, ответственных за пожарную безопасность организации и проведение противопожарног | H10: 2 | I10: Запланировано | K10: X | L10: 2024-01-18 | M10: 2024-01-25 | N10: 7 | O10: 20 | P10: 30 | Q10: 22 | R10: 0 | S10: 2 | U10: TCULEA | V10: 2023-10-13
A11: 661 | B11: 44680 | C11: 77 | D11: =COUNTIF(План_сводная!A$2:A$208,B11) -> 1 | E11: УПЦ ООО "Газпром трансгаз Чайковский" | F11: Водители автомобилей, работ. на СПГ | G11: Водители автомобилей, работающих на сжатом и сжиженном газе | H11: 2 | I11: Запланировано | K11: X | L11: 2024-01-22 | M11: 2024-01-26 | N11: 7 | O11: 20 | P11: 20 | Q11: 20 | R11: 1 | S11: 1 | U11: TCUPAA14 | V11: 2023-10-27
A12: 22072 | B12: 40040 | C12: 77 | D12: =COUNTIF(План_сводная!A$2:A$208,B12) -> 1 | E12: ООО "Газпром трансгаз Чайковский" | F12: СК Общестроительные работы | G12: Строительный контроль за качеством строительства, реконструкции и капитального ремонта объектов ООО «Газпром трансгаз Чайковский | H12: 2 | I12: Запланировано | L12: 2024-01-22 | M12: 2024-01-26 | N12: 0 | O12: 20 | P12: 9999 | Q12: 17 | R12: 0 | S12: 11 | U12: TCUPTV | V12: 2023-03-15
A13: 729 | B13: 40150 | C13: 77 | D13: =COUNTIF(План_сводная!A$2:A$208,B13) -> 1 | E13: УПЦ ООО "Газпром трансгаз Чайковский" | F13: Электромонтер по рем. электрооборуд. ПТК | G13: Электромонтер по ремонту и обслуживанию электрооборудования ПТК | H13: 2 | I13: Запланировано | L13: 2024-01-22 | M13: 2024-02-02 | N13: 7 | O13: 15 | P13: 20 | Q13: 18 | R13: 0 | S13: 1 | U13: TCULNA1 | V13: 2023-03-15
A14: 738 | B14: 40037 | C14: 77 | D14: =COUNTIF(План_сводная!A$2:A$208,B14) -> 1 | E14: ООО "Газпром трансгаз Чайковский" | F14: Безопасная эксплуатация ТЭУ | G14: Безопасная эксплуатация объектов теплоснабжения и теплопотребляющих установок | H14: 2 | I14: Запланировано | L14: 2024-01-23 | M14: 2024-01-31 | N14: 7 | O14: 20 | P14: 20 | Q14: 12 | R14: 0 | S14: 1 | U14: TCUPTV | V14: 2023-03-13
A15: 662 | B15: 40232 | C15: 77 | D15: =COUNTIF(План_сводная!A$2:A$208,B15) -> 1 | E15: УПЦ ООО "Газпром трансгаз Чайковский" | F15: Ежегодные занятия с водителями | G15: Ежегодные занятия с водителями | H15: 2 | I15: Запланировано | K15: X | L15: 2024-01-29 | M15: 2024-01-31 | N15: 7 | O15: 20 | P15: 20 | Q15: 19 | R15: 0 | S15: 3 | U15: TCUPAA14 | V15: 2023-10-27
A16: 672 | B16: 39987 | C16: 77 | D16: =COUNTIF(План_сводная!A$2:A$208,B16) -> 1 | E16: ООО "Газпром трансгаз Чайковский" | F16: Правила ПБ (сосуды под давлением) | G16: Правила промышленной безопасности опасных производственных объектов, на которых используется оборудование, работающие под избыто | H16: 2 | I16: Запланировано | K16: X | L16: 2024-01-29 | M16: 2024-02-01 | N16: 7 | O16: 20 | P16: 20 | Q16: 20 | R16: 3 | S16: 6 | U16: TCUBIS02 | V16: 2023-10-16
A17: 724 | B17: 40063 | C17: 77 | D17: =COUNTIF(План_сводная!A$2:A$208,B17) -> 1 | E17: УПЦ ООО "Газпром трансгаз Чайковский" | F17: Трубопроводчик линейный ПТК | G17: Трубопроводчик линейный ПТК | H17: 2 | I17: Запланировано | K17: X | L17: 2024-01-29 | M17: 2024-02-09 | N17: 7 | O17: 16 | P17: 20 | Q17: 8 | R17: 0 | S17: 0 | U17: TCUSOI | V17: 2023-10-20
A18: 645 | B18: 39765 | C18: 77 | D18: =COUNTIF(План_сводная!A$2:A$208,B18) -> 1 | E18: УПЦ ООО "Газпром трансгаз Чайковский" | F18: Психолого-педагогический минимум знаний | G18: Психолого-педагогический минимум знаний для внештатных преподавателей | H18: 2 | I18: Запланировано | K18: X | L18: 2024-01-29 | M18: 2024-02-15 | N18: 7 | O18: 15 | P18: 20 | Q18: 19 | R18: 0 | S18: 0 | U18: TCULEA | V18: 2023-03-27
A19: 718 | B19: 39886 | C19: 77 | D19: =COUNTIF(План_сводная!A$2:A$208,B19) -> 1 | E19: УПЦ ООО "Газпром трансгаз Чайковский" | F19: Слесарь по КИПиА ПТК | G19: Слесарь по контрольно-измерительным приборам и автоматике ПТК | H19: 2 | I19: Запланировано | K19: X | L19: 2024-01-29 | M19: 2024-02-16 | N19: 7 | O19: 20 | P19: 20 | Q19: 9 | R19: 0 | S19: 1 | U19: TCUKMG01 | V19: 2023-11-01
A20: 738 | B20: 40038 | C20: 77 | D20: =COUNTIF(План_сводная!A$2:A$208,B20) -> 1 | E20: ООО "Газпром трансгаз Чайковский" | F20: Безопасная эксплуатация ТЭУ | G20: Безопасная эксплуатация объектов теплоснабжения и теплопотребляющих установок | H20: 2 | I20: Запланировано | L20: 2024-01-30 | M20: 2024-02-07 | N20: 7 | O20: 20 | P20: 20 | Q20: 20 | R20: 1 | S20: 1 | U20: TCUPTV | V20: 2023-03-13
A21: 625 | B21: 40020 | C21: 77 | D21: =COUNTIF(План_сводная!A$2:A$208,B21) -> 1 | E21: УПЦ ООО "Газпром трансгаз Чайковский" | F21: Оператор ГРС КПП | G21: Оператор газораспределительной станции КПП | H21: 2 | I21: Запланировано | K21: X | L21: 2024-01-30 | M21: 2024-02-22 | N21: 7 | O21: 14 | P21: 20 | Q21: 11 | R21: 0 | S21: 0 | U21: TCUSOI | V21: 2023-03-14
A22: 662 | B22: 40242 | C22: 77 | D22: =COUNTIF(План_сводная!A$2:A$208,B22) -> 1 | E22: УПЦ ООО "Газпром трансгаз Чайковский" | F22: Ежегодные занятия с водителями | G22: Ежегодные занятия с водителями | H22: 2 | I22: Запланировано | K22: X | L22: 2024-01-31 | M22: 2024-02-02 | N22: 7 | O22: 20 | P22: 20 | Q22: 18 | R22: 0 | S22: 3 | U22: TCUPAA14 | V22: 2023-10-27
A23: 11279 | B23: 40049 | C23: 77 | D23: =COUNTIF(План_сводная!A$2:A$208,B23) -> 1 | E23: ООО "Газпром трансгаз Чайковский" | F23: СК сварочно-монтаж. работы | G23: Строительный контроль за качеством строительства, реконструкции и капитального ремонта объектов ООО «Газпром трансгаз Чайковский | H23: 2 | I23: Запланировано | L23: 2024-02-01 | M23: 2024-02-09 | N23: 7 | O23: 15 | P23: 30 | Q23: 26 | R23: 0 | S23: 1 | U23: TCUDOV | V23: 2023-03-14
A24: 666 | B24: 39904 | C24: 83 | D24: =COUNTIF(План_сводная!A$2:A$208,B24) -> 1 | E24: Горнозаводское ЛПУМГ | F24: Высота 1,2 группа 24ч. | G24: (24ч) Обучение персонала безопасным методам и приемам выполнения работ на высоте "Работники 1,2 групп по безопасности работ на в | H24: 2 | I24: Запланировано | K24: X | L24: 2024-02-05 | M24: 2024-02-07 | N24: 7 | O24: 20 | P24: 30 | Q24: 29 | R24: 0 | S24: 7 | U24: TCUPTV | V24: 2023-03-10
A25: 662 | B25: 40236 | C25: 77 | D25: =COUNTIF(План_сводная!A$2:A$208,B25) -> 1 | E25: УПЦ ООО "Газпром трансгаз Чайковский" | F25: Ежегодные занятия с водителями | G25: Ежегодные занятия с водителями | H25: 2 | I25: Запланировано | K25: X | L25: 2024-02-05 | M25: 2024-02-07 | N25: 7 | O25: 20 | P25: 20 | Q25: 19 | R25: 0 | S25: 3 | U25: TCULEA | V25: 2023-03-17
A26: 669 | B26: 40039 | C26: 77 | D26: =COUNTIF(План_сводная!A$2:A$208,B26) -> 1 | E26: ООО "Газпром трансгаз Чайковский" | F26: Высота 1,2 группа 32ч. | G26: (32ч) Обучение персонала безопасным методам и приемам выполнения работ на высоте "Работники 1,2 групп по безопасности работ на в | H26: 2 | I26: Запланировано | K26: X | L26: 2024-02-05 | M26: 2024-02-08 | N26: 7 | O26: 20 | P26: 20 | Q26: 20 | R26: 10 | S26: 4 | U26: TCUPTV | V26: 2023-03-13
A27: 659 | B27: 40103 | C27: 77 | D27: =COUNTIF(План_сводная!A$2:A$208,B27) -> 1 | E27: УПЦ ООО "Газпром трансгаз Чайковский" | F27: Стропальщик 2см | G27: Стропальщик 2см | H27: 2 | I27: Запланировано | K27: X | L27: 2024-02-05 | M27: 2024-02-09 | N27: 7 | O27: 15 | P27: 20 | Q27: 20 | R27: 0 | S27: 6 | U27: TCULNA1 | V27: 2023-03-14
A28: 17559 | B28: 39994 | C28: 77 | D28: =COUNTIF(План_сводная!A$2:A$208,B28) -> 1 | E28: ООО "Газпром трансгаз Чайковский" | F28: Машинист ТК ПТК (без повышения разряда) | G28: Машинист технологических компрессоров ПТК | H28: 2 | I28: Запланировано | K28: X | L28: 2024-02-05 | M28: 2024-02-16 | N28: 7 | O28: 15 | P28: 20 | Q28: 14 | R28: 0 | S28: 6 | U28: TCUBIS02 | V28: 2023-10-09
A29: 17299 | B29: 44947 | C29: 77 | D29: =COUNTIF(План_сводная!A$2:A$208,B29) -> 1 | E29: ООО "Газпром трансгаз Чайковский" | F29: Обучение высота 2,3 гр. ОЧНОЕ | G29: Обучение руководителей и специалистов безопасным методам и приемам выполнения работ на высоте "Работники 2, 3 групп по безопасно | H29: 2 | I29: Запланировано | K29: X | L29: 2024-02-05 | M29: 2024-02-16 | N29: 7 | O29: 30 | P29: 30 | Q29: 15 | R29: 0 | S29: 14 | U29: TCUDOV | V29: 2023-11-29
A30: 662 | B30: 40237 | C30: 77 | D30: =COUNTIF(План_сводная!A$2:A$208,B30) -> 1 | E30: УПЦ ООО "Газпром трансгаз Чайковский" | F30: Ежегодные занятия с водителями | G30: Ежегодные занятия с водителями | H30: 2 | I30: Запланировано | K30: X | L30: 2024-02-07 | M30: 2024-02-09 | N30: 7 | O30: 20 | P30: 20 | Q30: 19 | R30: 0 | S30: 3 | U30: TCULEA | V30: 2023-03-17
A31: 13993 | B31: 45036 | C31: 77 | D31: =COUNTIF(План_сводная!A$2:A$208,B31) -> 1 | E31: УПЦ ООО "Газпром трансгаз Чайковский" | F31: Обучение мерам ПБ отв. работников | G31: Обучение мерам пожарной безопасности работников, ответственных за пожарную безопасность организации и проведение противопожарног | H31: 2 | I31: Запланировано | K31: X | L31: 2024-02-08 | M31: 2024-02-15 | N31: 7 | O31: 20 | P31: 30 | Q31: 22 | R31: 0 | S31: 2 | U31: TCULEA | V31: 2023-11-23
A32: 666 | B32: 39905 | C32: 84 | D32: =COUNTIF(План_сводная!A$2:A$208,B32) -> 1 | E32: Гремячинское ЛПУМГ | F32: Высота 1,2 группа 24ч. | G32: (24ч) Обучение персонала безопасным методам и приемам выполнения работ на высоте "Работники 1,2 групп по безопасности работ на в | H32: 2 | I32: Запланировано | K32: X | L32: 2024-02-12 | M32: 2024-02-14 | N32: 7 | O32: 20 | P32: 30 | Q32: 21 | R32: 0 | S32: 7 | U32: TCUPTV | V32: 2023-03-10
A33: 662 | B33: 40238 | C33: 77 | D33: =COUNTIF(План_сводная!A$2:A$208,B33) -> 1 | E33: УПЦ ООО "Газпром трансгаз Чайковский" | F33: Ежегодные занятия с водителями | G33: Ежегодные занятия с водителями | H33: 2 | I33: Запланировано | K33: X | L33: 2024-02-12 | M33: 2024-02-14 | N33: 7 | O33: 20 | P33: 20 | Q33: 18 | R33: 0 | S33: 3 | U33: TCULEA | V33: 2023-03-17
A34: 21385 | B34: 40072 | C34: 77 | D34: =COUNTIF(План_сводная!A$2:A$208,B34) -> 1 | E34: УПЦ ООО "Газпром трансгаз Чайковский" | F34: Обходчик линейный ПТК (без пов.разряда) | G34: Обходчик линейный ПТК | H34: 2 | I34: Запланировано | K34: X | L34: 2024-02-12 | M34: 2024-02-16 | N34: 0 | O34: 16 | P34: 20 | Q34: 11 | R34: 0 | S34: 0 | U34: TCUSOI | V34: 2023-03-14
A35: 760 | B35: 40050 | C35: 77 | D35: =COUNTIF(План_сводная!A$2:A$208,B35) -> 1 | E35: ООО "Газпром трансгаз Чайковский" | F35: СК Строит.монт.работы | G35: Строительный контроль за качеством строительства, реконструкции и капитального ремонта объектов ООО «Газпром трансгаз Чайковский | H35: 2 | I35: Запланировано | L35: 2024-02-12 | M35: 2024-02-16 | N35: 7 | O35: 15 | P35: 30 | Q35: 26 | R35: 0 | S35: 3 | U35: TCUDOV | V35: 2023-03-14
A36: 729 | B36: 40151 | C36: 77 | D36: =COUNTIF(План_сводная!A$2:A$208,B36) -> 1 | E36: УПЦ ООО "Газпром трансгаз Чайковский" | F36: Электромонтер по рем. электрооборуд. ПТК | G36: Электромонтер по ремонту и обслуживанию электрооборудования ПТК | H36: 2 | I36: Запланировано | K36: X | L36: 2024-02-12 | M36: 2024-02-26 | N36: 7 | O36: 20 | P36: 20 | Q36: 19 | R36: 0 | S36: 1 | U36: TCUBIS02 | V36: 2023-11-07
A37: 674 | B37: 39787 | C37: 77 | D37: =COUNTIF(План_сводная!A$2:A$208,B37) -> 1 | E37: ООО "Газпром трансгаз Чайковский" | F37: Подготовка к аттест.электрогазосварщиков | G37: Подготовка к аттестации электрогазосварщиков на право выполнения сварочных и наплавочных работ при строительстве, изготовлении, | H37: 2 | I37: Запланировано | L37: 2024-02-13 | M37: 2024-02-22 | N37: 7 | O37: 20 | P37: 20 | Q37: 14 | R37: 0 | S37: 1 | U37: TCUSAA17 | V37: 2023-03-06
A38: 662 | B38: 40239 | C38: 77 | D38: =COUNTIF(План_сводная!A$2:A$208,B38) -> 1 | E38: УПЦ ООО "Газпром трансгаз Чайковский" | F38: Ежегодные занятия с водителями | G38: Ежегодные занятия с водителями | H38: 2 | I38: Запланировано | K38: X | L38: 2024-02-14 | M38: 2024-02-16 | N38: 7 | O38: 20 | P38: 20 | Q38: 20 | R38: 0 | S38: 3 | U38: TCULEA | V38: 2023-03-17
A39: 666 | B39: 40057 | C39: 77 | D39: =COUNTIF(План_сводная!A$2:A$208,B39) -> 1 | E39: ООО "Газпром трансгаз Чайковский" | F39: Высота 1,2 группа 24ч. | G39: (24ч) Обучение персонала безопасным методам и приемам выполнения работ на высоте "Работники 1,2 групп по безопасности работ на в | H39: 2 | I39: Запланировано | K39: X | L39: 2024-02-19 | M39: 2024-02-21 | N39: 7 | O39: 20 | P39: 30 | Q39: 26 | R39: 0 | S39: 7 | U39: TCUPTV | V39: 2023-03-14
A40: 662 | B40: 40240 | C40: 77 | D40: =COUNTIF(План_сводная!A$2:A$208,B40) -> 1 | E40: УПЦ ООО "Газпром трансгаз Чайковский" | F40: Ежегодные занятия с водителями | G40: Ежегодные занятия с водителями | H40: 2 | I40: Запланировано | K40: X | L40: 2024-02-19 | M40: 2024-02-21 | N40: 7 | O40: 20 | P40: 20 | Q40: 17 | R40: 0 | S40: 3 | U40: TCULEA | V40: 2023-03-17
A41: 666 | B41: 45042 | C41: 86 | D41: =COUNTIF(План_сводная!A$2:A$208,B41) -> 1 | E41: Можгинское ЛПУМГ | F41: Высота 1,2 группа 24ч. | G41: (24ч) Обучение персонала безопасным методам и приемам выполнения работ на высоте "Работники 1,2 групп по безопасности работ на в | H41: 2 | I41: Запланировано | K41: X | L41: 2024-02-26 | M41: 2024-02-28 | N41: 7 | O41: 30 | P41: 30 | Q41: 28 | R41: 0 | S41: 7 | U41: TCUPTV | V41: 2023-11-24
A42: 661 | B42: 40251 | C42: 77 | D42: =COUNTIF(План_сводная!A$2:A$208,B42) -> 1 | E42: УПЦ ООО "Газпром трансгаз Чайковский" | F42: Водители автомобилей, работ. на СПГ | G42: Водители автомобилей, работающих на сжатом и сжиженном газе | H42: 2 | I42: Запланировано | K42: X | L42: 2024-02-26 | M42: 2024-03-01 | N42: 7 | O42: 20 | P42: 20 | Q42: 20 | R42: 12 | S42: 1 | U42: TCUPAA14 | V42: 2023-05-04
A43: 686 | B43: 39989 | C43: 77 | D43: =COUNTIF(План_сводная!A$2:A$208,B43) -> 1 | E43: ООО "Газпром трансгаз Чайковский" | F43: Обслуживание и эксплуатация ТА | G43: Обслуживание и эксплуатация трубопроводной арматуры | H43: 2 | I43: Запланировано | K43: X | L43: 2024-02-26 | M43: 2024-03-01 | N43: 7 | O43: 20 | P43: 20 | Q43: 16 | R43: 2 | S43: 0 | U43: TCUBIS02 | V43: 2023-10-09
A44: 21995 | B44: 40041 | C44: 77 | D44: =COUNTIF(План_сводная!A$2:A$208,B44) -> 1 | E44: ООО "Газпром трансгаз Чайковский" | F44: СК объектов МГ Общие положения | G44: Строительный контроль за качеством строительства, реконструкции и капитального ремонта объектов магистральных газопроводов ООО « | H44: 2 | I44: Запланировано | L44: 2024-02-26 | M44: 2024-03-01 | N44: 0 | O44: 20 | P44: 30 | Q44: 30 | R44: 1 | S44: 6 | U44: TCUDOV | V44: 2023-04-04
A45: 11294 | B45: 45080 | C45: 77 | D45: =COUNTIF(План_сводная!A$2:A$208,B45) -> 1 | E45: ООО "Газпром трансгаз Чайковский" | F45: СК инженерных систем | G45: Строительный контроль за качеством строительства,реконструкции и капитального ремонта объектов ООО «Газпром трансгаз Чайковский» | H45: 2 | I45: Запланировано | L45: 2024-02-26 | M45: 2024-03-01 | N45: 7 | O45: 30 | P45: 30 | Q45: 4 | R45: 0 | S45: 2 | U45: TCUDOV | V45: 2023-11-30
A46: 23805 | B46: 44742 | C46: 77 | D46: =COUNTIF(План_сводная!A$2:A$208,B46) -> 1 | E46: УПЦ ООО "Газпром трансгаз Чайковский" | F46: Эксплуатация средств ПКЗ | G46: Эксплуатация средств противокоррозионной защиты | H46: 2 | I46: Запланировано | K46: X | L46: 2024-02-26 | M46: 2024-03-01 | N46: 7 | O46: 14 | P46: 20 | Q46: 12 | R46: 0 | S46: 2 | U46: TCUKMG01 | V46: 2023-11-01
A47: 14027 | B47: 39891 | C47: 77 | D47: =COUNTIF(План_сводная!A$2:A$208,B47) -> 1 | E47: УПЦ ООО "Газпром трансгаз Чайковский" | F47: Эксплуатация оборудования КИИ | G47: Эксплуатация оборудования критической информационной инфраструктуры | H47: 2 | I47: Запланировано | K47: X | L47: 2024-02-28 | M47: 2024-02-29 | N47: 7 | O47: 15 | P47: 20 | Q47: 12 | R47: 0 | S47: 0 | U47: TCUKMG01 | V47: 2023-11-01
A48: 662 | B48: 40241 | C48: 77 | D48: =COUNTIF(План_сводная!A$2:A$208,B48) -> 1 | E48: УПЦ ООО "Газпром трансгаз Чайковский" | F48: Ежегодные занятия с водителями | G48: Ежегодные занятия с водителями | H48: 2 | I48: Запланировано | K48: X | L48: 2024-03-04 | M48: 2024-03-06 | N48: 7 | O48: 20 | P48: 20 | Q48: 19 | R48: 0 | S48: 3 | U48: TCULEA | V48: 2023-03-17
A49: 17818 | B49: 39907 | C49: 77 | D49: =COUNTIF(План_сводная!A$2:A$208,B49) -> 1 | E49: ООО "Газпром трансгаз Чайковский" | F49: Поведенческий аудит безопасности | G49: Поведенческий аудит безопасности | H49: 2 | I49: Запланировано | K49: X | L49: 2024-03-04 | M49: 2024-03-06 | N49: 7 | O49: 20 | P49: 30 | Q49: 30 | R49: 18 | S49: 1 | U49: TCUPTV | V49: 2023-03-10
A50: 666 | B50: 39909 | C50: 79 | D50: =COUNTIF(План_сводная!A$2:A$208,B50) -> 1 | E50: Алмазное ЛПУМГ | F50: Высота 1,2 группа 24ч. | G50: (24ч) Обучение персонала безопасным методам и приемам выполнения работ на высоте "Работники 1,2 групп по безопасности работ на в | H50: 2 | I50: Запланировано | K50: X | L50: 2024-03-11 | M50: 2024-03-13 | N50: 7 | O50: 20 | P50: 30 | Q50: 16 | R50: 0 | S50: 7 | U50: TCUPTV | V50: 2023-03-10
A51: 666 | B51: 39908 | C51: 86 | D51: =COUNTIF(План_сводная!A$2:A$208,B51) -> 1 | E51: Можгинское ЛПУМГ | F51: Высота 1,2 группа 24ч. | G51: (24ч) Обучение персонала безопасным методам и приемам выполнения работ на высоте "Работники 1,2 групп по безопасности работ на в | H51: 2 | I51: Запланировано | L51: 2024-03-11 | M51: 2024-03-13 | N51: 7 | O51: 20 | P51: 30 | Q51: 14 | R51: 1 | S51: 7 | U51: TCUPTV | V51: 2023-03-10
A52: 17254 | B52: 40059 | C52: 77 | D52: =COUNTIF(План_сводная!A$2:A$208,B52) -> 1 | E52: ООО "Газпром трансгаз Чайковский" | F52: Работники 2,3 гр.ОЗП | G52: Работники 2, 3 групп по безопасности работ в ограниченных и замкнутых пространствах» | H52: 2 | I52: Запланировано | K52: X | L52: 2024-03-11 | M52: 2024-03-13 | N52: 7 | O52: 20 | P52: 30 | Q52: 29 | R52: 2 | S52: 5 | U52: TCUPTV | V52: 2023-03-14
A53: 659 | B53: 40104 | C53: 77 | D53: =COUNTIF(План_сводная!A$2:A$208,B53) -> 1 | E53: УПЦ ООО "Газпром трансгаз Чайковский" | F53: Стропальщик 2см | G53: Стропальщик 2см | H53: 2 | I53: Запланировано | K53: X | L53: 2024-03-11 | M53: 2024-03-15 | N53: 7 | O53: 15 | P53: 20 | Q53: 18 | R53: 0 | S53: 6 | U53: TCULNA1 | V53: 2023-03-14
A54: 701 | B54: 40250 | C54: 77 | D54: =COUNTIF(План_сводная!A$2:A$208,B54) -> 1 | E54: УПЦ ООО "Газпром трансгаз Чайковский" | F54: Машинист бульдозера ПТК | G54: Машинист бульдозера ПТК | H54: 2 | I54: Запланировано | K54: X | L54: 2024-03-11 | M54: 2024-03-22 | N54: 7 | O54: 20 | P54: 20 | Q54: 10 | R54: 0 | S54: 0 | U54: TCULEA | V54: 2023-03-17
A55: 716 | B55: 40111 | C55: 77 | D55: =COUNTIF(План_сводная!A$2:A$208,B55) -> 1 | E55: УПЦ ООО "Газпром трансгаз Чайковский" | F55: Слесарь-сантехник ПТК | G55: Слесарь-сантехник ПТК | H55: 2 | I55: Запланировано | K55: X | L55: 2024-03-11 | M55: 2024-03-22 | N55: 7 | O55: 15 | P55: 20 | Q55: 18 | R55: 0 | S55: 7 | U55: TCULNA1 | V55: 2023-03-14
A56: 13745 | B56: 39890 | C56: 77 | D56: =COUNTIF(План_сводная!A$2:A$208,B56) -> 1 | E56: УПЦ ООО "Газпром трансгаз Чайковский" | F56: Экспл. АТС Si-2000 | G56: Эксплуатация цифровой АТС Si-2000 | H56: 2 | I56: Запланировано | K56: X | L56: 2024-03-11 | M56: 2024-03-22 | N56: 7 | O56: 15 | P56: 16 | Q56: 7 | R56: 0 | S56: 0 | U56: TCUKMG01 | V56: 2023-03-06
A57: 705 | B57: 39991 | C57: 77 | D57: =COUNTIF(План_сводная!A$2:A$208,B57) -> 1 | E57: ООО "Газпром трансгаз Чайковский" | F57: Машинист ТК ПТК | G57: Машинист технологических компрессоров ПТК | H57: 2 | I57: Запланировано | K57: X | L57: 2024-03-11 | M57: 2024-03-29 | N57: 7 | O57: 15 | P57: 20 | Q57: 17 | R57: 0 | S57: 9 | U57: TCUBIS02 | V57: 2023-10-09
A58: 761 | B58: 39796 | C58: 77 | D58: =COUNTIF(План_сводная!A$2:A$208,B58) -> 1 | E58: ООО "Газпром трансгаз Чайковский" | F58: СП спец. свар. производства II-III ур. | G58: Специальная подготовка специалистов сварочного производства II-III уровень | H58: 2 | I58: Запланировано | K58: X | L58: 2024-03-12 | M58: 2024-03-15 | N58: 7 | O58: 20 | P58: 20 | Q58: 14 | R58: 0 | S58: 0 | U58: TCUSAA17 | V58: 2023-03-06
A59: 13993 | B59: 39763 | C59: 77 | D59: =COUNTIF(План_сводная!A$2:A$208,B59) -> 1 | E59: УПЦ ООО "Газпром трансгаз Чайковский" | F59: Обучение мерам ПБ отв. работников | G59: Обучение мерам пожарной безопасности работников, ответственных за пожарную безопасность организации и проведение противопожарног | H59: 2 | I59: Запланировано | K59: X | L59: 2024-03-12 | M59: 2024-03-19 | N59: 7 | O59: 20 | P59: 30 | Q59: 26 | R59: 2 | S59: 2 | U59: TCULEA | V59: 2023-05-18
A60: 666 | B60: 39910 | C60: 80 | D60: =COUNTIF(План_сводная!A$2:A$208,B60) -> 1 | E60: Бардымское ЛПУМГ | F60: Высота 1,2 группа 24ч. | G60: (24ч) Обучение персонала безопасным методам и приемам выполнения работ на высоте "Работники 1,2 групп по безопасности работ на в | H60: 2 | I60: Запланировано | K60: X | L60: 2024-03-18 | M60: 2024-03-20 | N60: 7 | O60: 20 | P60: 30 | Q60: 9 | R60: 0 | S60: 7 | U60: TCUPTV | V60: 2023-03-10
A61: 21995 | B61: 45075 | C61: 77 | D61: =COUNTIF(План_сводная!A$2:A$208,B61) -> 0 | E61: ООО "Газпром трансгаз Чайковский" | F61: СК объектов МГ Общие положения | G61: Строительный контроль за качеством строительства, реконструкции и капитального ремонта объектов магистральных газопроводов ООО « | H61: 2 | I61: Запланировано | L61: 2024-03-18 | M61: 2024-03-22 | N61: 7 | O61: 30 | P61: 30 | Q61: 0 | R61: 0 | S61: 6 | U61: TCUDOV | V61: 2023-12-11
A62: 17299 | B62: 40197 | C62: 84 | D62: =COUNTIF(План_сводная!A$2:A$208,B62) -> 1 | E62: Гремячинское ЛПУМГ | F62: Обучение высота 2,3 гр. ОЧНОЕ | G62: Обучение руководителей и специалистов безопасным методам и приемам выполнения работ на высоте "Работники 2, 3 групп по безопасно | H62: 2 | I62: Запланировано | K62: X | L62: 2024-03-18 | M62: 2024-03-29 | N62: 7 | O62: 25 | P62: 30 | Q62: 21 | R62: 0 | S62: 14 | U62: TCUPTV | V62: 2023-03-20
A63: 17299 | B63: 40198 | C63: 83 | D63: =COUNTIF(План_сводная!A$2:A$208,B63) -> 1 | E63: Горнозаводское ЛПУМГ | F63: Обучение высота 2,3 гр. ОЧНОЕ | G63: Обучение руководителей и специалистов безопасным методам и приемам выполнения работ на высоте "Работники 2, 3 групп по безопасно | H63: 2 | I63: Запланировано | K63: X | L63: 2024-03-18 | M63: 2024-03-29 | N63: 7 | O63: 25 | P63: 30 | Q63: 7 | R63: 0 | S63: 14 | U63: TCUPTV | V63: 2023-03-20
A64: 22535 | B64: 44695 | C64: 77 | D64: =COUNTIF(План_сводная!A$2:A$208,B64) -> 1 | E64: УПЦ ООО "Газпром трансгаз Чайковский" | F64: Оператор ГРС (без пов.р)) | G64: Оператор газораспределительной станции ПТК | H64: 2 | I64: Запланировано | K64: X | L64: 2024-03-18 | M64: 2024-03-29 | N64: 7 | O64: 16 | P64: 20 | Q64: 14 | R64: 0 | S64: 0 | U64: TCUSOI | V64: 2023-10-27
A65: 718 | B65: 39887 | C65: 77 | D65: =COUNTIF(План_сводная!A$2:A$208,B65) -> 1 | E65: УПЦ ООО "Газпром трансгаз Чайковский" | F65: Слесарь по КИПиА ПТК | G65: Слесарь по контрольно-измерительным приборам и автоматике ПТК | H65: 2 | I65: Запланировано | K65: X | L65: 2024-03-18 | M65: 2024-03-29 | N65: 7 | O65: 20 | P65: 20 | Q65: 16 | R65: 2 | S65: 1 | U65: TCUKMG01 | V65: 2023-03-06
A66: 666 | B66: 39911 | C66: 84 | D66: =COUNTIF(План_сводная!A$2:A$208,B66) -> 1 | E66: Гремячинское ЛПУМГ | F66: Высота 1,2 группа 24ч. | G66: (24ч) Обучение персонала безопасным методам и приемам выполнения работ на высоте "Работники 1,2 групп по безопасности работ на в | H66: 2 | I66: Запланировано | K66: X | L66: 2024-03-25 | M66: 2024-03-27 | N66: 7 | O66: 20 | P66: 30 | Q66: 23 | R66: 0 | S66: 7 | U66: TCUPTV | V66: 2023-03-10
A67: 672 | B67: 39988 | C67: 77 | D67: =COUNTIF(План_сводная!A$2:A$208,B67) -> 1 | E67: ООО "Газпром трансгаз Чайковский" | F67: Правила ПБ (сосуды под давлением) | G67: Правила промышленной безопасности опасных производственных объектов, на которых используется оборудование, работающие под избыто | H67: 2 | I67: Запланировано | K67: X | L67: 2024-03-25 | M67: 2024-03-28 | N67: 7 | O67: 20 | P67: 20 | Q67: 20 | R67: 6 | S67: 6 | U67: TCUBIS02 | V67: 2023-03-20
A68: 17111 | B68: 40262 | C68: 77 | D68: =COUNTIF(План_сводная!A$2:A$208,B68) -> 1 | E68: УПЦ ООО "Газпром трансгаз Чайковский" | F68: Водители, перевозящие ОГ баз.курс(повт.) | G68: Повышение квалификации водителей, осуществляющих перевозки опасных грузов в соответствии с Cоглашением о международной дорожной | H68: 2 | I68: Запланировано | K68: X | L68: 2024-03-26 | M68: 2024-03-27 | N68: 7 | O68: 20 | P68: 20 | Q68: 6 | R68: 0 | S68: 1 | U68: TCUPAA14 | V68: 2023-11-23
A69: 761 | B69: 39797 | C69: 77 | D69: =COUNTIF(План_сводная!A$2:A$208,B69) -> 1 | E69: ООО "Газпром трансгаз Чайковский" | F69: СП спец. свар. производства II-III ур. | G69: Специальная подготовка специалистов сварочного производства II-III уровень | H69: 2 | I69: Запланировано | K69: X | L69: 2024-03-26 | M69: 2024-03-29 | N69: 7 | O69: 20 | P69: 20 | Q69: 14 | R69: 0 | S69: 0 | U69: TCUSAA17 | V69: 2023-03-06
A70: 738 | B70: 40069 | C70: 77 | D70: =COUNTIF(План_сводная!A$2:A$208,B70) -> 1 | E70: ООО "Газпром трансгаз Чайковский" | F70: Безопасная эксплуатация ТЭУ | G70: Безопасная эксплуатация объектов теплоснабжения и теплопотребляющих установок | H70: 2 | I70: Запланировано | L70: 2024-03-26 | M70: 2024-04-03 | N70: 7 | O70: 20 | P70: 20 | Q70: 18 | R70: 0 | S70: 1 | U70: TCUPTV | V70: 2023-03-14
A71: 20144 | B71: 44681 | C71: 77 | D71: =COUNTIF(План_сводная!A$2:A$208,B71) -> 1 | E71: УПЦ ООО "Газпром трансгаз Чайковский" | F71: Водители, перевозящие ОГ цистерн(повт.) | G71: Повышение квалификации водителей, осуществляющих перевозки опасных грузов в соответствии с Cоглашением о международной дорожной | H71: 2 | I71: Запланировано | K71: X | L71: 2024-03-28 | M71: 2024-03-28 | N71: 7 | O71: 7 | P71: 20 | Q71: 5 | R71: 0 | S71: 0 | U71: TCUPAA14 | V71: 2023-11-23
A72: 666 | B72: 39913 | C72: 85 | D72: =COUNTIF(План_сводная!A$2:A$208,B72) -> 1 | E72: Кунгурское ЛПУМГ | F72: Высота 1,2 группа 24ч. | G72: (24ч) Обучение персонала безопасным методам и приемам выполнения работ на высоте "Работники 1,2 групп по безопасности работ на в | H72: 2 | I72: Запланировано | K72: X | L72: 2024-04-01 | M72: 2024-04-03 | N72: 7 | O72: 20 | P72: 30 | Q72: 16 | R72: 0 | S72: 7 | U72: TCUPTV | V72: 2023-03-10
A73: 17254 | B73: 40073 | C73: 77 | D73: =COUNTIF(План_сводная!A$2:A$208,B73) -> 1 | E73: ООО "Газпром трансгаз Чайковский" | F73: Работники 2,3 гр.ОЗП | G73: Работники 2, 3 групп по безопасности работ в ограниченных и замкнутых пространствах» | H73: 2 | I73: Запланировано | K73: X | L73: 2024-04-01 | M73: 2024-04-03 | N73: 7 | O73: 20 | P73: 30 | Q73: 30 | R73: 4 | S73: 5 | U73: TCUPTV | V73: 2023-03-14
A74: 769 | B74: 45003 | C74: 77 | D74: =COUNTIF(План_сводная!A$2:A$208,B74) -> 1 | E74: УПЦ ООО "Газпром трансгаз Чайковский" | F74: Специалисты по БДД | G74: Подготовка специалистов по безопасности движения на автомобильном и городском электротранспорте | H74: 2 | I74: Запланировано | K74: X | L74: 2024-04-01 | M74: 2024-04-05 | N74: 7 | O74: 30 | P74: 30 | Q74: 16 | R74: 0 | S74: 2 | U74: TCUPAA14 | V74: 2023-11-23
A75: 17559 | B75: 39995 | C75: 77 | D75: =COUNTIF(План_сводная!A$2:A$208,B75) -> 1 | E75: ООО "Газпром трансгаз Чайковский" | F75: Машинист ТК ПТК (без повышения разряда) | G75: Машинист технологических компрессоров ПТК | H75: 2 | I75: Запланировано | K75: X | L75: 2024-04-01 | M75: 2024-04-12 | N75: 7 | O75: 15 | P75: 20 | Q75: 16 | R75: 0 | S75: 6 | U75: TCUBIS02 | V75: 2023-10-09
A76: 709 | B76: 39893 | C76: 77 | D76: =COUNTIF(План_сводная!A$2:A$208,B76) -> 1 | E76: УПЦ ООО "Газпром трансгаз Чайковский" | F76: Монтер ЭХЗ ПТК | G76: Монтер по защите подземных трубопроводов от коррозии ПТК | H76: 2 | I76: Запланировано | K76: X | L76: 2024-04-01 | M76: 2024-04-12 | N76: 7 | O76: 20 | P76: 20 | Q76: 15 | R76: 0 | S76: 1 | U76: TCUKMG01 | V76: 2023-03-06
A77: 17299 | B77: 40199 | C77: 82 | D77: =COUNTIF(План_сводная!A$2:A$208,B77) -> 1 | E77: Воткинское ЛПУМГ | F77: Обучение высота 2,3 гр. ОЧНОЕ | G77: Обучение руководителей и специалистов безопасным методам и приемам выполнения работ на высоте "Работники 2, 3 групп по безопасно | H77: 2 | I77: Запланировано | K77: X | L77: 2024-04-01 | M77: 2024-04-12 | N77: 7 | O77: 25 | P77: 30 | Q77: 14 | R77: 0 | S77: 14 | U77: TCUPTV | V77: 2023-03-20
A78: 22535 | B78: 44696 | C78: 77 | D78: =COUNTIF(План_сводная!A$2:A$208,B78) -> 1 | E78: УПЦ ООО "Газпром трансгаз Чайковский" | F78: Оператор ГРС (без пов.р)) | G78: Оператор газораспределительной станции ПТК | H78: 2 | I78: Запланировано | K78: X | L78: 2024-04-01 | M78: 2024-04-12 | N78: 7 | O78: 16 | P78: 20 | Q78: 16 | R78: 0 | S78: 0 | U78: TCUSOI | V78: 2023-10-27
A79: 16207 | B79: 39918 | C79: 77 | D79: =COUNTIF(План_сводная!A$2:A$208,B79) -> 1 | E79: ООО "Газпром трансгаз Чайковский" | F79: Требования промышленной безопасности | G79: Требования промышленной безопасности | H79: 2 | I79: Запланировано | L79: 2024-04-01 | M79: 2024-04-19 | N79: 7 | O79: 30 | P79: 30 | Q79: 30 | R79: 0 | S79: 15 | U79: TCUPTV | V79: 2023-03-10
A80: 735 | B80: 40075 | C80: 77 | D80: =COUNTIF(План_сводная!A$2:A$208,B80) -> 1 | E80: ООО "Газпром трансгаз Чайковский" | F80: Безопасная эксплуатация электрохозяйства | G80: Безопасная эксплуатация объектов электрохозяйства | H80: 2 | I80: Запланировано | L80: 2024-04-02 | M80: 2024-04-10 | N80: 7 | O80: 20 | P80: 20 | Q80: 17 | R80: 0 | S80: 0 | U80: TCUDOV | V80: 2023-10-26
A81: 666 | B81: 39914 | C81: 82 | D81: =COUNTIF(План_сводная!A$2:A$208,B81) -> 1 | E81: Воткинское ЛПУМГ | F81: Высота 1,2 группа 24ч. | G81: (24ч) Обучение персонала безопасным методам и приемам выполнения работ на высоте "Работники 1,2 групп по безопасности работ на в | H81: 2 | I81: Запланировано | K81: X | L81: 2024-04-08 | M81: 2024-04-10 | N81: 7 | O81: 20 | P81: 30 | Q81: 14 | R81: 0 | S81: 7 | U81: TCUPTV | V81: 2023-03-10
A82: 17255 | B82: 40139 | C82: 77 | D82: =COUNTIF(План_сводная!A$2:A$208,B82) -> 1 | E82: ООО "Газпром трансгаз Чайковский" | F82: Работники 1,2 гр.ОЗП | G82: Работники 1, 2 групп по безопасности работ в ограниченных и замкнутых пространствах» | H82: 2 | I82: Запланировано | K82: X | L82: 2024-04-08 | M82: 2024-04-10 | N82: 7 | O82: 15 | P82: 22 | Q82: 14 | R82: 7 | S82: 5 | U82: TCUDOV | V82: 2023-03-14
A83: 659 | B83: 40105 | C83: 77 | D83: =COUNTIF(План_сводная!A$2:A$208,B83) -> 1 | E83: УПЦ ООО "Газпром трансгаз Чайковский" | F83: Стропальщик 2см | G83: Стропальщик 2см | H83: 2 | I83: Запланировано | K83: X | L83: 2024-04-08 | M83: 2024-04-12 | N83: 7 | O83: 15 | P83: 20 | Q83: 17 | R83: 0 | S83: 6 | U83: TCULNA1 | V83: 2023-03-14
A84: 17299 | B84: 40200 | C84: 86 | D84: =COUNTIF(План_сводная!A$2:A$208,B84) -> 1 | E84: Можгинское ЛПУМГ | F84: Обучение высота 2,3 гр. ОЧНОЕ | G84: Обучение руководителей и специалистов безопасным методам и приемам выполнения работ на высоте "Работники 2, 3 групп по безопасно | H84: 2 | I84: Запланировано | K84: X | L84: 2024-04-08 | M84: 2024-04-19 | N84: 7 | O84: 25 | P84: 30 | Q84: 26 | R84: 0 | S84: 14 | U84: TCUPTV | V84: 2023-03-20
A85: 11288 | B85: 39999 | C85: 77 | D85: =COUNTIF(План_сводная!A$2:A$208,B85) -> 1 | E85: ООО "Газпром трансгаз Чайковский" | F85: Треб. ПБ к оборудованию под давлением | G85: Требования промышленной безопасности к оборудованию, работающему под давлением | H85: 2 | I85: Запланировано | K85: X | L85: 2024-04-08 | M85: 2024-04-19 | N85: 7 | O85: 30 | P85: 30 | Q85: 17 | R85: 0 | S85: 0 | U85: TCUBIS02 | V85: 2023-03-20
A86: 17111 | B86: 40263 | C86: 77 | D86: =COUNTIF(План_сводная!A$2:A$208,B86) -> 1 | E86: УПЦ ООО "Газпром трансгаз Чайковский" | F86: Водители, перевозящие ОГ баз.курс(повт.) | G86: Повышение квалификации водителей, осуществляющих перевозки опасных грузов в соответствии с Cоглашением о международной дорожной | H86: 2 | I86: Запланировано | K86: X | L86: 2024-04-09 | M86: 2024-04-10 | N86: 7 | O86: 20 | P86: 20 | Q86: 5 | R86: 0 | S86: 1 | U86: TCUPAA14 | V86: 2023-11-23
A87: 735 | B87: 40077 | C87: 77 | D87: =COUNTIF(План_сводная!A$2:A$208,B87) -> 1 | E87: ООО "Газпром трансгаз Чайковский" | F87: Безопасная эксплуатация электрохозяйства | G87: Безопасная эксплуатация объектов электрохозяйства | H87: 2 | I87: Запланировано | L87: 2024-04-09 | M87: 2024-04-17 | N87: 7 | O87: 20 | P87: 20 | Q87: 14 | R87: 0 | S87: 0 | U87: TCUDOV | V87: 2023-10-26
A88: 674 | B88: 39788 | C88: 77 | D88: =COUNTIF(План_сводная!A$2:A$208,B88) -> 1 | E88: ООО "Газпром трансгаз Чайковский" | F88: Подготовка к аттест.электрогазосварщиков | G88: Подготовка к аттестации электрогазосварщиков на право выполнения сварочных и наплавочных работ при строительстве, изготовлении, | H88: 2 | I88: Запланировано | K88: X | L88: 2024-04-09 | M88: 2024-04-18 | N88: 7 | O88: 20 | P88: 20 | Q88: 11 | R88: 0 | S88: 1 | U88: TCUSAA17 | V88: 2023-03-06
A89: 20144 | B89: 44682 | C89: 77 | D89: =COUNTIF(План_сводная!A$2:A$208,B89) -> 1 | E89: УПЦ ООО "Газпром трансгаз Чайковский" | F89: Водители, перевозящие ОГ цистерн(повт.) | G89: Повышение квалификации водителей, осуществляющих перевозки опасных грузов в соответствии с Cоглашением о международной дорожной | H89: 2 | I89: Запланировано | K89: X | L89: 2024-04-11 | M89: 2024-04-11 | N89: 7 | O89: 7 | P89: 20 | Q89: 5 | R89: 0 | S89: 0 | U89: TCUPAA14 | V89: 2023-11-23
A90: 666 | B90: 39916 | C90: 84 | D90: =COUNTIF(План_сводная!A$2:A$208,B90) -> 1 | E90: Гремячинское ЛПУМГ | F90: Высота 1,2 группа 24ч. | G90: (24ч) Обучение персонала безопасным методам и приемам выполнения работ на высоте "Работники 1,2 групп по безопасности работ на в | H90: 2 | I90: Запланировано | K90: X | L90: 2024-04-15 | M90: 2024-04-17 | N90: 7 | O90: 20 | P90: 30 | Q90: 20 | R90: 0 | S90: 7 | U90: TCUPTV | V90: 2023-03-10
A91: 22476 | B91: 40345 | C91: 77 | D91: =COUNTIF(План_сводная!A$2:A$208,B91) -> 1 | E91: ООО "Газпром трансгаз Чайковский" | F91: Без.провед. огневых работ (1,2 группа) | G91: Безопасное проведение огневых работ на газовых объектах магистральных газопроводов (1,2 группы допуска) | H91: 2 | I91: Запланировано | K91: X | L91: 2024-04-15 | M91: 2024-04-17 | N91: 0 | O91: 25 | P91: 25 | Q91: 10 | R91: 0 | S91: 0 | U91: TCUPTV | V91: 2023-03-31
A92: 17559 | B92: 39996 | C92: 77 | D92: =COUNTIF(План_сводная!A$2:A$208,B92) -> 1 | E92: ООО "Газпром трансгаз Чайковский" | F92: Машинист ТК ПТК (без повышения разряда) | G92: Машинист технологических компрессоров ПТК | H92: 2 | I92: Запланировано | K92: X | L92: 2024-04-15 | M92: 2024-04-26 | N92: 7 | O92: 15 | P92: 20 | Q92: 18 | R92: 0 | S92: 6 | U92: TCUBIS02 | V92: 2023-10-09
A93: 17299 | B93: 40301 | C93: 77 | D93: =COUNTIF(План_сводная!A$2:A$208,B93) -> 1 | E93: ООО "Газпром трансгаз Чайковский" | F93: Обучение высота 2,3 гр. ОЧНОЕ | G93: Обучение руководителей и специалистов безопасным методам и приемам выполнения работ на высоте "Работники 2, 3 групп по безопасно | H93: 2 | I93: Запланировано | K93: X | L93: 2024-04-15 | M93: 2024-04-26 | N93: 7 | O93: 25 | P93: 30 | Q93: 12 | R93: 0 | S93: 14 | U93: TCUPTV | V93: 2023-03-20
A94: 727 | B94: 39894 | C94: 77 | D94: =COUNTIF(План_сводная!A$2:A$208,B94) -> 1 | E94: УПЦ ООО "Газпром трансгаз Чайковский" | F94: Электромонтер по ремонту ЛЭП ПТК | G94: Электромонтер по ремонту воздушных линий электропередачи ПТК | H94: 2 | I94: Запланировано | K94: X | L94: 2024-04-15 | M94: 2024-04-26 | N94: 7 | O94: 20 | P94: 20 | Q94: 14 | R94: 0 | S94: 0 | U94: TCUKMG01 | V94: 2023-03-06
A95: 729 | B95: 40152 | C95: 77 | D95: =COUNTIF(План_сводная!A$2:A$208,B95) -> 1 | E95: УПЦ ООО "Газпром трансгаз Чайковский" | F95: Электромонтер по рем. электрооборуд. ПТК | G95: Электромонтер по ремонту и обслуживанию электрооборудования ПТК | H95: 2 | I95: Запланировано | K95: X | L95: 2024-04-15 | M95: 2024-04-26 | N95: 7 | O95: 15 | P95: 20 | Q95: 19 | R95: 0 | S95: 1 | U95: TCULNA1 | V95: 2023-11-07
A96: 668 | B96: 40256 | C96: 77 | D96: =COUNTIF(План_сводная!A$2:A$208,B96) -> 1 | E96: УПЦ ООО "Газпром трансгаз Чайковский" | F96: Машинист кранов мост. типа, упр. с пола | G96: Обучение машинистов кранов мостового типа, консольных кранов и электрических талей грузоподъемностью до 10т. включительно, управ | H96: 2 | I96: Запланировано | K96: X | L96: 2024-04-16 | M96: 2024-04-18 | N96: 7 | O96: 20 | P96: 20 | Q96: 20 | R96: 3 | S96: 0 | U96: TCUPAA14 | V96: 2023-10-27
A97: 738 | B97: 40071 | C97: 77 | D97: =COUNTIF(План_сводная!A$2:A$208,B97) -> 1 | E97: ООО "Газпром трансгаз Чайковский" | F97: Безопасная эксплуатация ТЭУ | G97: Безопасная эксплуатация объектов теплоснабжения и теплопотребляющих установок | H97: 2 | I97: Запланировано | L97: 2024-04-16 | M97: 2024-04-24 | N97: 7 | O97: 20 | P97: 20 | Q97: 16 | R97: 0 | S97: 1 | U97: TCUPTV | V97: 2023-03-14
A98: 676 | B98: 40021 | C98: 77 | D98: =COUNTIF(План_сводная!A$2:A$208,B98) -> 1 | E98: УПЦ ООО "Газпром трансгаз Чайковский" | F98: Запуск и прием ВТУ | G98: Технология и безопасное проведение работ по запуску и приему ВТУ в в рабочей среде на камерах запуска-приема со всеми видами зат | H98: 2 | I98: Запланировано | K98: X | L98: 2024-04-17 | M98: 2024-04-18 | N98: 7 | O98: 16 | P98: 20 | Q98: 18 | R98: 0 | S98: 2 | U98: TCUSOI | V98: 2023-03-14
A99: 13993 | B99: 44170 | C99: 77 | D99: =COUNTIF(План_сводная!A$2:A$208,B99) -> 1 | E99: УПЦ ООО "Газпром трансгаз Чайковский" | F99: Обучение мерам ПБ отв. работников | G99: Обучение мерам пожарной безопасности работников, ответственных за пожарную безопасность организации и проведение противопожарног | H99: 2 | I99: Запланировано | K99: X | L99: 2024-04-18 | M99: 2024-04-25 | N99: 7 | O99: 20 | P99: 30 | Q99: 23 | R99: 0 | S99: 2 | U99: TCULEA | V99: 2023-10-13
A100: 666 | B100: 39915 | C100: 85 | D100: =COUNTIF(План_сводная!A$2:A$208,B100) -> 1 | E100: Кунгурское ЛПУМГ | F100: Высота 1,2 группа 24ч. | G100: (24ч) Обучение персонала безопасным методам и приемам выполнения работ на высоте "Работники 1,2 групп по безопасности работ на в | H100: 2 | I100: Запланировано | K100: X | L100: 2024-04-22 | M100: 2024-04-24 | N100: 7 | O100: 20 | P100: 30 | Q100: 13 | R100: 0 | S100: 7 | U100: TCUPTV | V100: 2023-03-10
A101: 666 | B101: 39917 | C101: 88 | D101: =COUNTIF(План_сводная!A$2:A$208,B101) -> 1 | E101: Пермское ЛПУМГ | F101: Высота 1,2 группа 24ч. | G101: (24ч) Обучение персонала безопасным методам и приемам выполнения работ на высоте "Работники 1,2 групп по безопасности работ на в | H101: 2 | I101: Запланировано | K101: X | L101: 2024-04-22 | M101: 2024-04-24 | N101: 7 | O101: 20 | P101: 30 | Q101: 11 | R101: 0 | S101: 7 | U101: TCUPTV | V101: 2023-03-10
A102: 11290 | B102: 40261 | C102: 77 | D102: =COUNTIF(План_сводная!A$2:A$208,B102) -> 1 | E102: УПЦ ООО "Газпром трансгаз Чайковский" | F102: Требования ПБ к подъемным сооружениям | G102: Требования промышленной безопасности к подъемным сооружениям | H102: 2 | I102: Запланировано | K102: X | L102: 2024-04-22 | M102: 2024-04-25 | N102: 7 | O102: 20 | P102: 20 | Q102: 18 | R102: 0 | S102: 2 | U102: TCUPAA14 | V102: 2023-10-27
A103: 21995 | B103: 40126 | C103: 77 | D103: =COUNTIF(План_сводная!A$2:A$208,B103) -> 1 | E103: ООО "Газпром трансгаз Чайковский" | F103: СК объектов МГ Общие положения | G103: Строительный контроль за качеством строительства, реконструкции и капитального ремонта объектов магистральных газопроводов ООО « | H103: 2 | I103: Запланировано | L103: 2024-04-22 | M103: 2024-04-26 | N103: 7 | O103: 15 | P103: 30 | Q103: 30 | R103: 15 | S103: 6 | U103: TCUDOV | V103: 2023-03-14
A104: 20123 | B104: 40064 | C104: 77 | D104: =COUNTIF(План_сводная!A$2:A$208,B104) -> 1 | E104: УПЦ ООО "Газпром трансгаз Чайковский" | F104: Трубопроводчик линейный ПТК(без пов.раз) | G104: Трубопроводчик линейный ПТК | H104: 2 | I104: Запланировано | K104: X | L104: 2024-04-22 | M104: 2024-04-26 | N104: 7 | O104: 16 | P104: 20 | Q104: 16 | R104: 0 | S104: 0 | U104: TCUSOI | V104: 2023-03-14
A105: 666 | B105: 39919 | C105: 83 | D105: =COUNTIF(План_сводная!A$2:A$208,B105) -> 0 | E105: Горнозаводское ЛПУМГ | F105: Высота 1,2 группа 24ч. | G105: (24ч) Обучение персонала безопасным методам и приемам выполнения работ на высоте "Работники 1,2 групп по безопасности работ на в | H105: 2 | I105: Запланировано | K105: X | L105: 2024-05-13 | M105: 2024-05-15 | N105: 7 | O105: 20 | P105: 30 | Q105: 0 | R105: 0 | S105: 7 | U105: TCUPTV | V105: 2023-03-10
A106: 722 | B106: 40149 | C106: 77 | D106: =COUNTIF(План_сводная!A$2:A$208,B106) -> 1 | E106: УПЦ ООО "Газпром трансгаз Чайковский" | F106: Стропальщик ПТК | G106: Стропальщик ПТК | H106: 2 | I106: Запланировано | K106: X | L106: 2024-05-13 | M106: 2024-05-17 | N106: 7 | O106: 15 | P106: 20 | Q106: 19 | R106: 6 | S106: 0 | U106: TCULNA1 | V106: 2023-03-15
A107: 17299 | B107: 44948 | C107: 77 | D107: =COUNTIF(План_сводная!A$2:A$208,B107) -> 1 | E107: ООО "Газпром трансгаз Чайковский" | F107: Обучение высота 2,3 гр. ОЧНОЕ | G107: Обучение руководителей и специалистов безопасным методам и приемам выполнения работ на высоте "Работники 2, 3 групп по безопасно | H107: 2 | I107: Запланировано | K107: X | L107: 2024-05-13 | M107: 2024-05-24 | N107: 7 | O107: 30 | P107: 30 | Q107: 10 | R107: 0 | S107: 14 | U107: TCUDOV | V107: 2023-11-29
A108: 730 | B108: 39895 | C108: 77 | D108: =COUNTIF(План_сводная!A$2:A$208,B108) -> 1 | E108: УПЦ ООО "Газпром трансгаз Чайковский" | F108: Эл.монтер станц.оборуд. телеф. связи ПТК | G108: Электромонтер станционного оборудования телефонной связи ПТК | H108: 2 | I108: Запланировано | K108: X | L108: 2024-05-13 | M108: 2024-05-24 | N108: 7 | O108: 20 | P108: 20 | Q108: 11 | R108: 0 | S108: 2 | U108: TCUKMG01 | V108: 2023-03-06
A109: 717 | B109: 40060 | C109: 77 | D109: =COUNTIF(План_сводная!A$2:A$208,B109) -> 1 | E109: УПЦ ООО "Газпром трансгаз Чайковский" | F109: Слесарь по ЭРГО ПТК | G109: Слесарь по эксплуатации и ремонту газового оборудования ПТК | H109: 2 | I109: Запланировано | K109: X | L109: 2024-05-13 | M109: 2024-05-31 | N109: 7 | O109: 10 | P109: 20 | Q109: 11 | R109: 0 | S109: 0 | U109: TCUSOI | V109: 2023-03-14
A110: 621 | B110: 39985 | C110: 77 | D110: =COUNTIF(План_сводная!A$2:A$208,B110) -> 1 | E110: ООО "Газпром трансгаз Чайковский" | F110: Машинист ТК КПП | G110: Машинист технологических компрессоров КПП | H110: 2 | I110: Запланировано | K110: X | L110: 2024-05-13 | M110: 2024-06-07 | N110: 7 | O110: 15 | P110: 20 | Q110: 5 | R110: 0 | S110: 0 | U110: TCUBIS02 | V110: 2023-10-16
A111: 22452 | B111: 39761 | C111: 77 | D111: =COUNTIF(План_сводная!A$2:A$208,B111) -> 0 | E111: УПЦ ООО "Газпром трансгаз Чайковский" | F111: Менеджмент качества | G111: Функционирование системы менеджмента качества | H111: 2 | I111: Запланировано | K111: X | L111: 2024-05-14 | M111: 2024-05-15 | N111: 7 | O111: 20 | P111: 30 | Q111: 20 | R111: 4 | S111: 3 | U111: TCULEA | V111: 2023-10-17
A112: 735 | B112: 40079 | C112: 77 | D112: =COUNTIF(План_сводная!A$2:A$208,B112) -> 1 | E112: ООО "Газпром трансгаз Чайковский" | F112: Безопасная эксплуатация электрохозяйства | G112: Безопасная эксплуатация объектов электрохозяйства | H112: 2 | I112: Запланировано | L112: 2024-05-14 | M112: 2024-05-22 | N112: 7 | O112: 20 | P112: 20 | Q112: 14 | R112: 0 | S112: 0 | U112: TCUDOV | V112: 2023-10-26
A113: 17255 | B113: 40140 | C113: 77 | D113: =COUNTIF(План_сводная!A$2:A$208,B113) -> 1 | E113: ООО "Газпром трансгаз Чайковский" | F113: Работники 1,2 гр.ОЗП | G113: Работники 1, 2 групп по безопасности работ в ограниченных и замкнутых пространствах» | H113: 2 | I113: Запланировано | K113: X | L113: 2024-05-15 | M113: 2024-05-17 | N113: 7 | O113: 15 | P113: 22 | Q113: 8 | R113: 7 | S113: 5 | U113: TCUDOV | V113: 2023-03-14
A114: 13993 | B114: 39764 | C114: 77 | D114: =COUNTIF(План_сводная!A$2:A$208,B114) -> 1 | E114: УПЦ ООО "Газпром трансгаз Чайковский" | F114: Обучение мерам ПБ отв. работников | G114: Обучение мерам пожарной безопасности работников, ответственных за пожарную безопасность организации и проведение противопожарног | H114: 2 | I114: Запланировано | K114: X | L114: 2024-05-16 | M114: 2024-05-23 | N114: 7 | O114: 20 | P114: 30 | Q114: 18 | R114: 0 | S114: 2 | U114: TCULEA | V114: 2023-11-07
A115: 666 | B115: 39920 | C115: 89 | D115: =COUNTIF(План_сводная!A$2:A$208,B115) -> 1 | E115: Увинское ЛПУМГ | F115: Высота 1,2 группа 24ч. | G115: (24ч) Обучение персонала безопасным методам и приемам выполнения работ на высоте "Работники 1,2 групп по безопасности работ на в | H115: 2 | I115: Запланировано | K115: X | L115: 2024-05-20 | M115: 2024-05-22 | N115: 7 | O115: 20 | P115: 30 | Q115: 11 | R115: 0 | S115: 7 | U115: TCUPTV | V115: 2023-03-10
A116: 662 | B116: 40245 | C116: 77 | D116: =COUNTIF(План_сводная!A$2:A$208,B116) -> 1 | E116: УПЦ ООО "Газпром трансгаз Чайковский" | F116: Ежегодные занятия с водителями | G116: Ежегодные занятия с водителями | H116: 2 | I116: Запланировано | K116: X | L116: 2024-05-20 | M116: 2024-05-22 | N116: 7 | O116: 20 | P116: 20 | Q116: 7 | R116: 0 | S116: 3 | U116: TCULEA | V116: 2023-03-17
A117: 13747 | B117: 40000 | C117: 77 | D117: =COUNTIF(План_сводная!A$2:A$208,B117) -> 1 | E117: ООО "Газпром трансгаз Чайковский" | F117: Обслуживание и эксплуатация трубопроводн | G117: Обслуживание и эксплуатация трубопроводной арматуры | H117: 2 | I117: Запланировано | K117: X | L117: 2024-05-20 | M117: 2024-05-24 | N117: 7 | O117: 20 | P117: 21 | Q117: 19 | R117: 2 | S117: 1 | U117: TCUBIS02 | V117: 2023-10-18
A118: 658 | B118: 40102 | C118: 77 | D118: =COUNTIF(План_сводная!A$2:A$208,B118) -> 1 | E118: УПЦ ООО "Газпром трансгаз Чайковский" | F118: Оператор котельной 2см | G118: Оператор котельной 2см | H118: 2 | I118: Запланировано | K118: X | L118: 2024-05-21 | M118: 2024-06-07 | N118: 7 | O118: 15 | P118: 20 | Q118: 19 | R118: 0 | S118: 0 | U118: TCULNA1 | V118: 2023-03-14
A119: 662 | B119: 40246 | C119: 77 | D119: =COUNTIF(План_сводная!A$2:A$208,B119) -> 0 | E119: УПЦ ООО "Газпром трансгаз Чайковский" | F119: Ежегодные занятия с водителями | G119: Ежегодные занятия с водителями | H119: 2 | I119: Запланировано | K119: X | L119: 2024-05-22 | M119: 2024-05-24 | N119: 7 | O119: 20 | P119: 20 | Q119: 0 | R119: 0 | S119: 3 | U119: TCULEA | V119: 2023-03-17
A120: 17255 | B120: 40141 | C120: 77 | D120: =COUNTIF(План_сводная!A$2:A$208,B120) -> 1 | E120: ООО "Газпром трансгаз Чайковский" | F120: Работники 1,2 гр.ОЗП | G120: Работники 1, 2 групп по безопасности работ в ограниченных и замкнутых пространствах» | H120: 2 | I120: Запланировано | K120: X | L120: 2024-05-22 | M120: 2024-05-24 | N120: 7 | O120: 15 | P120: 22 | Q120: 22 | R120: 4 | S120: 5 | U120: TCUDOV | V120: 2023-03-14
A121: 11279 | B121: 40127 | C121: 77 | D121: =COUNTIF(План_сводная!A$2:A$208,B121) -> 1 | E121: ООО "Газпром трансгаз Чайковский" | F121: СК сварочно-монтаж. работы | G121: Строительный контроль за качеством строительства, реконструкции и капитального ремонта объектов ООО «Газпром трансгаз Чайковский | H121: 2 | I121: Запланировано | L121: 2024-05-23 | M121: 2024-05-31 | N121: 7 | O121: 30 | P121: 30 | Q121: 29 | R121: 0 | S121: 1 | U121: TCUDOV | V121: 2023-03-14
A122: 666 | B122: 39921 | C122: 93 | D122: =COUNTIF(План_сводная!A$2:A$208,B122) -> 1 | E122: УАВР №2 | F122: Высота 1,2 группа 24ч. | G122: (24ч) Обучение персонала безопасным методам и приемам выполнения работ на высоте "Работники 1,2 групп по безопасности работ на в | H122: 2 | I122: Запланировано | K122: X | L122: 2024-05-27 | M122: 2024-05-29 | N122: 7 | O122: 20 | P122: 30 | Q122: 11 | R122: 0 | S122: 7 | U122: TCUPTV | V122: 2023-03-10
A123: 661 | B123: 40252 | C123: 77 | D123: =COUNTIF(План_сводная!A$2:A$208,B123) -> 1 | E123: УПЦ ООО "Газпром трансгаз Чайковский" | F123: Водители автомобилей, работ. на СПГ | G123: Водители автомобилей, работающих на сжатом и сжиженном газе | H123: 2 | I123: Запланировано | K123: X | L123: 2024-05-27 | M123: 2024-05-31 | N123: 7 | O123: 20 | P123: 20 | Q123: 20 | R123: 0 | S123: 1 | U123: TCULEA | V123: 2023-03-17
A124: 735 | B124: 40080 | C124: 77 | D124: =COUNTIF(План_сводная!A$2:A$208,B124) -> 1 | E124: ООО "Газпром трансгаз Чайковский" | F124: Безопасная эксплуатация электрохозяйства | G124: Безопасная эксплуатация объектов электрохозяйства | H124: 2 | I124: Запланировано | L124: 2024-05-28 | M124: 2024-06-05 | N124: 7 | O124: 20 | P124: 20 | Q124: 17 | R124: 0 | S124: 0 | U124: TCUDOV | V124: 2023-11-16
A125: 674 | B125: 39789 | C125: 77 | D125: =COUNTIF(План_сводная!A$2:A$208,B125) -> 1 | E125: ООО "Газпром трансгаз Чайковский" | F125: Подготовка к аттест.электрогазосварщиков | G125: Подготовка к аттестации электрогазосварщиков на право выполнения сварочных и наплавочных работ при строительстве, изготовлении, | H125: 2 | I125: Запланировано | K125: X | L125: 2024-05-28 | M125: 2024-06-06 | N125: 7 | O125: 20 | P125: 20 | Q125: 10 | R125: 0 | S125: 1 | U125: TCUSAA17 | V125: 2023-03-30
A126: 662 | B126: 40243 | C126: 77 | D126: =COUNTIF(План_сводная!A$2:A$208,B126) -> 1 | E126: УПЦ ООО "Газпром трансгаз Чайковский" | F126: Ежегодные занятия с водителями | G126: Ежегодные занятия с водителями | H126: 2 | I126: Запланировано | K126: X | L126: 2024-06-03 | M126: 2024-06-05 | N126: 7 | O126: 20 | P126: 20 | Q126: 15 | R126: 0 | S126: 3 | U126: TCUPAA14 | V126: 2023-10-27
A127: 17818 | B127: 39924 | C127: 77 | D127: =COUNTIF(План_сводная!A$2:A$208,B127) -> 1 | E127: ООО "Газпром трансгаз Чайковский" | F127: Поведенческий аудит безопасности | G127: Поведенческий аудит безопасности | H127: 2 | I127: Запланировано | K127: X | L127: 2024-06-03 | M127: 2024-06-05 | N127: 7 | O127: 20 | P127: 30 | Q127: 30 | R127: 12 | S127: 1 | U127: TCUPTV | V127: 2023-03-10
A128: 669 | B128: 40082 | C128: 77 | D128: =COUNTIF(План_сводная!A$2:A$208,B128) -> 1 | E128: ООО "Газпром трансгаз Чайковский" | F128: Высота 1,2 группа 32ч. | G128: (32ч) Обучение персонала безопасным методам и приемам выполнения работ на высоте "Работники 1,2 групп по безопасности работ на в | H128: 2 | I128: Запланировано | K128: X | L128: 2024-06-03 | M128: 2024-06-06 | N128: 7 | O128: 20 | P128: 20 | Q128: 20 | R128: 1 | S128: 4 | U128: TCUDOV | V128: 2023-11-16
A129: 729 | B129: 40153 | C129: 77 | D129: =COUNTIF(План_сводная!A$2:A$208,B129) -> 1 | E129: УПЦ ООО "Газпром трансгаз Чайковский" | F129: Электромонтер по рем. электрооборуд. ПТК | G129: Электромонтер по ремонту и обслуживанию электрооборудования ПТК | H129: 2 | I129: Запланировано | K129: X | L129: 2024-06-03 | M129: 2024-06-17 | N129: 7 | O129: 20 | P129: 20 | Q129: 19 | R129: 0 | S129: 1 | U129: TCULNA1 | V129: 2023-03-15
A130: 16363 | B130: 40078 | C130: 77 | D130: =COUNTIF(План_сводная!A$2:A$208,B130) -> 1 | E130: УПЦ ООО "Газпром трансгаз Чайковский" | F130: Камеры приема-запуска ВТУ | G130: Эксплуатация и ТОиР камер приема-запуска ВТУ со всеми видами затворов и безопасное производство работ по запуску и приему ВТУ в | H130: 2 | I130: Запланировано | K130: X | L130: 2024-06-04 | M130: 2024-06-05 | N130: 7 | O130: 10 | P130: 20 | Q130: 14 | R130: 0 | S130: 4 | U130: TCUSOI | V130: 2023-03-14
A131: 662 | B131: 40244 | C131: 77 | D131: =COUNTIF(План_сводная!A$2:A$208,B131) -> 1 | E131: УПЦ ООО "Газпром трансгаз Чайковский" | F131: Ежегодные занятия с водителями | G131: Ежегодные занятия с водителями | H131: 2 | I131: Запланировано | K131: X | L131: 2024-06-05 | M131: 2024-06-07 | N131: 7 | O131: 20 | P131: 20 | Q131: 11 | R131: 0 | S131: 3 | U131: TCUPAA14 | V131: 2023-10-27
A132: 17255 | B132: 40142 | C132: 77 | D132: =COUNTIF(План_сводная!A$2:A$208,B132) -> 1 | E132: ООО "Газпром трансгаз Чайковский" | F132: Работники 1,2 гр.ОЗП | G132: Работники 1, 2 групп по безопасности работ в ограниченных и замкнутых пространствах» | H132: 2 | I132: Запланировано | K132: X | L132: 2024-06-05 | M132: 2024-06-07 | N132: 7 | O132: 15 | P132: 22 | Q132: 21 | R132: 5 | S132: 5 | U132: TCUDOV | V132: 2023-03-14
A133: 676 | B133: 40022 | C133: 77 | D133: =COUNTIF(План_сводная!A$2:A$208,B133) -> 1 | E133: УПЦ ООО "Газпром трансгаз Чайковский" | F133: Запуск и прием ВТУ | G133: Технология и безопасное проведение работ по запуску и приему ВТУ в в рабочей среде на камерах запуска-приема со всеми видами зат | H133: 2 | I133: Запланировано | K133: X | L133: 2024-06-06 | M133: 2024-06-07 | N133: 7 | O133: 16 | P133: 20 | Q133: 17 | R133: 0 | S133: 2 | U133: TCUSOI | V133: 2023-03-14
A134: 756 | B134: 35273 | C134: 77 | D134: =COUNTIF(План_сводная!A$2:A$208,B134) -> 0 | E134: УПЦ ООО "Газпром трансгаз Чайковский" | F134: Экологический менеджмент 16ч | G134: Функционирование системы экологического менеджмента ПАО Газпром в соответствии с требованиями ISO14001:2015 | H134: 2 | I134: Запланировано | K134: X | L134: 2024-06-06 | M134: 2024-06-07 | N134: 7 | O134: 20 | P134: 30 | Q134: 28 | R134: 0 | S134: 3 | U134: TCULEA | V134: 2023-03-14
A135: 17254 | B135: 40083 | C135: 77 | D135: =COUNTIF(План_сводная!A$2:A$208,B135) -> 1 | E135: ООО "Газпром трансгаз Чайковский" | F135: Работники 2,3 гр.ОЗП | G135: Работники 2, 3 групп по безопасности работ в ограниченных и замкнутых пространствах» | H135: 2 | I135: Запланировано | K135: X | L135: 2024-06-17 | M135: 2024-06-19 | N135: 7 | O135: 20 | P135: 30 | Q135: 23 | R135: 2 | S135: 5 | U135: TCUPTV | V135: 2023-03-14
A136: 760 | B136: 40128 | C136: 77 | D136: =COUNTIF(План_сводная!A$2:A$208,B136) -> 1 | E136: ООО "Газпром трансгаз Чайковский" | F136: СК Строит.монт.работы | G136: Строительный контроль за качеством строительства, реконструкции и капитального ремонта объектов ООО «Газпром трансгаз Чайковский | H136: 2 | I136: Запланировано | L136: 2024-06-17 | M136: 2024-06-21 | N136: 7 | O136: 15 | P136: 30 | Q136: 30 | R136: 0 | S136: 3 | U136: TCUDOV | V136: 2023-11-16
A137: 17559 | B137: 39997 | C137: 77 | D137: =COUNTIF(План_сводная!A$2:A$208,B137) -> 1 | E137: ООО "Газпром трансгаз Чайковский" | F137: Машинист ТК ПТК (без повышения разряда) | G137: Машинист технологических компрессоров ПТК | H137: 2 | I137: Запланировано | K137: X | L137: 2024-06-17 | M137: 2024-06-28 | N137: 7 | O137: 15 | P137: 20 | Q137: 16 | R137: 0 | S137: 6 | U137: TCUBIS02 | V137: 2023-10-16
A138: 622 | B138: 40247 | C138: 77 | D138: =COUNTIF(План_сводная!A$2:A$208,B138) -> 1 | E138: УПЦ ООО "Газпром трансгаз Чайковский" | F138: Машинист трубоукладчика КПП | G138: Машинист трубоукладчика КПП | H138: 2 | I138: Запланировано | K138: X | L138: 2024-06-17 | M138: 2024-07-05 | N138: 7 | O138: 20 | P138: 20 | Q138: 7 | R138: 0 | S138: 0 | U138: TCUPAA14 | V138: 2023-10-27
A139: 674 | B139: 39790 | C139: 77 | D139: =COUNTIF(План_сводная!A$2:A$208,B139) -> 1 | E139: ООО "Газпром трансгаз Чайковский" | F139: Подготовка к аттест.электрогазосварщиков | G139: Подготовка к аттестации электрогазосварщиков на право выполнения сварочных и наплавочных работ при строительстве, изготовлении, | H139: 2 | I139: Запланировано | K139: X | L139: 2024-06-18 | M139: 2024-06-27 | N139: 7 | O139: 20 | P139: 20 | Q139: 10 | R139: 0 | S139: 1 | U139: TCUSAA17 | V139: 2023-03-30
A140: 713 | B140: 40108 | C140: 77 | D140: =COUNTIF(План_сводная!A$2:A$208,B140) -> 1 | E140: УПЦ ООО "Газпром трансгаз Чайковский" | F140: Оператор котельной ПТК | G140: Оператор котельной ПТК | H140: 2 | I140: Запланировано | L140: 2024-06-18 | M140: 2024-07-04 | N140: 7 | O140: 15 | P140: 20 | Q140: 12 | R140: 0 | S140: 0 | U140: TCULNA1 | V140: 2023-03-14
A141: 22072 | B141: 40129 | C141: 77 | D141: =COUNTIF(План_сводная!A$2:A$208,B141) -> 1 | E141: ООО "Газпром трансгаз Чайковский" | F141: СК Общестроительные работы | G141: Строительный контроль за качеством строительства, реконструкции и капитального ремонта объектов ООО «Газпром трансгаз Чайковский | H141: 2 | I141: Запланировано | L141: 2024-07-01 | M141: 2024-07-05 | N141: 7 | O141: 15 | P141: 30 | Q141: 13 | R141: 0 | S141: 11 | U141: TCUDOV | V141: 2023-03-14
A142: 674 | B142: 39791 | C142: 77 | D142: =COUNTIF(План_сводная!A$2:A$208,B142) -> 1 | E142: ООО "Газпром трансгаз Чайковский" | F142: Подготовка к аттест.электрогазосварщиков | G142: Подготовка к аттестации электрогазосварщиков на право выполнения сварочных и наплавочных работ при строительстве, изготовлении, | H142: 2 | I142: Запланировано | K142: X | L142: 2024-07-09 | M142: 2024-07-18 | N142: 7 | O142: 20 | P142: 20 | Q142: 12 | R142: 0 | S142: 1 | U142: TCUSAA17 | V142: 2023-03-30
A143: 716 | B143: 40112 | C143: 77 | D143: =COUNTIF(План_сводная!A$2:A$208,B143) -> 1 | E143: УПЦ ООО "Газпром трансгаз Чайковский" | F143: Слесарь-сантехник ПТК | G143: Слесарь-сантехник ПТК | H143: 2 | I143: Запланировано | K143: X | L143: 2024-08-12 | M143: 2024-08-23 | N143: 7 | O143: 15 | P143: 20 | Q143: 12 | R143: 0 | S143: 7 | U143: TCULNA1 | V143: 2023-11-07
A144: 17255 | B144: 40143 | C144: 77 | D144: =COUNTIF(План_сводная!A$2:A$208,B144) -> 1 | E144: ООО "Газпром трансгаз Чайковский" | F144: Работники 1,2 гр.ОЗП | G144: Работники 1, 2 групп по безопасности работ в ограниченных и замкнутых пространствах» | H144: 2 | I144: Запланировано | K144: X | L144: 2024-08-14 | M144: 2024-08-16 | N144: 7 | O144: 15 | P144: 22 | Q144: 19 | R144: 0 | S144: 5 | U144: TCUDOV | V144: 2023-10-26
A145: 17255 | B145: 40144 | C145: 77 | D145: =COUNTIF(План_сводная!A$2:A$208,B145) -> 1 | E145: ООО "Газпром трансгаз Чайковский" | F145: Работники 1,2 гр.ОЗП | G145: Работники 1, 2 групп по безопасности работ в ограниченных и замкнутых пространствах» | H145: 2 | I145: Запланировано | K145: X | L145: 2024-08-19 | M145: 2024-08-21 | N145: 7 | O145: 15 | P145: 22 | Q145: 20 | R145: 0 | S145: 5 | U145: TCUDOV | V145: 2023-03-14
A146: 649 | B146: 39897 | C146: 77 | D146: =COUNTIF(План_сводная!A$2:A$208,B146) -> 1 | E146: УПЦ ООО "Газпром трансгаз Чайковский" | F146: Орг. тех. экспуат. цифровых систем связи | G146: Организация технической экспуатации цифровых систем связи | H146: 2 | I146: Запланировано | K146: X | L146: 2024-09-02 | M146: 2024-09-06 | N146: 7 | O146: 15 | P146: 20 | Q146: 12 | R146: 0 | S146: 0 | U146: TCUKMG01 | V146: 2023-11-01
A147: 718 | B147: 39888 | C147: 77 | D147: =COUNTIF(План_сводная!A$2:A$208,B147) -> 1 | E147: УПЦ ООО "Газпром трансгаз Чайковский" | F147: Слесарь по КИПиА ПТК | G147: Слесарь по контрольно-измерительным приборам и автоматике ПТК | H147: 2 | I147: Запланировано | K147: X | L147: 2024-09-02 | M147: 2024-09-13 | N147: 7 | O147: 20 | P147: 20 | Q147: 18 | R147: 0 | S147: 1 | U147: TCUKMG01 | V147: 2023-03-06
A148: 673 | B148: 40016 | C148: 77 | D148: =COUNTIF(План_сводная!A$2:A$208,B148) -> 1 | E148: УПЦ ООО "Газпром трансгаз Чайковский" | F148: Рабочие люльки | G148: Рабочий люльки по управлению подъемником (вышкой) из люльки | H148: 2 | I148: Запланировано | K148: X | L148: 2024-09-03 | M148: 2024-09-05 | N148: 7 | O148: 14 | P148: 30 | Q148: 14 | R148: 0 | S148: 1 | U148: TCUSOI | V148: 2023-03-14
A149: 17255 | B149: 40145 | C149: 77 | D149: =COUNTIF(План_сводная!A$2:A$208,B149) -> 1 | E149: ООО "Газпром трансгаз Чайковский" | F149: Работники 1,2 гр.ОЗП | G149: Работники 1, 2 групп по безопасности работ в ограниченных и замкнутых пространствах» | H149: 2 | I149: Запланировано | K149: X | L149: 2024-09-04 | M149: 2024-09-06 | N149: 7 | O149: 15 | P149: 22 | Q149: 19 | R149: 4 | S149: 5 | U149: TCUDOV | V149: 2023-03-14
A150: 23674 | B150: 44684 | C150: 77 | D150: =COUNTIF(План_сводная!A$2:A$208,B150) -> 1 | E150: УПЦ ООО "Газпром трансгаз Чайковский" | F150: Защитное вождение | G150: Защитное вождение | H150: 2 | I150: Запланировано | K150: X | L150: 2024-09-05 | M150: 2024-09-06 | N150: 0 | O150: 30 | P150: 9999 | Q150: 35 | R150: 0 | S150: 0 | U150: TCUPAA14 | V150: 2023-10-27
A151: 23674 | B151: 44685 | C151: 77 | D151: =COUNTIF(План_сводная!A$2:A$208,B151) -> 1 | E151: УПЦ ООО "Газпром трансгаз Чайковский" | F151: Защитное вождение | G151: Защитное вождение | H151: 2 | I151: Запланировано | K151: X | L151: 2024-09-09 | M151: 2024-09-10 | N151: 0 | O151: 30 | P151: 30 | Q151: 30 | R151: 0 | S151: 0 | U151: TCUPAA14 | V151: 2023-10-27
A152: 666 | B152: 39975 | C152: 83 | D152: =COUNTIF(План_сводная!A$2:A$208,B152) -> 1 | E152: Горнозаводское ЛПУМГ | F152: Высота 1,2 группа 24ч. | G152: (24ч) Обучение персонала безопасным методам и приемам выполнения работ на высоте "Работники 1,2 групп по безопасности работ на в | H152: 2 | I152: Запланировано | K152: X | L152: 2024-09-09 | M152: 2024-09-11 | N152: 7 | O152: 20 | P152: 30 | Q152: 30 | R152: 0 | S152: 7 | U152: TCUPTV | V152: 2023-03-13
A153: 666 | B153: 40087 | C153: 77 | D153: =COUNTIF(План_сводная!A$2:A$208,B153) -> 1 | E153: ООО "Газпром трансгаз Чайковский" | F153: Высота 1,2 группа 24ч. | G153: (24ч) Обучение персонала безопасным методам и приемам выполнения работ на высоте "Работники 1,2 групп по безопасности работ на в | H153: 2 | I153: Запланировано | K153: X | L153: 2024-09-09 | M153: 2024-09-11 | N153: 7 | O153: 20 | P153: 30 | Q153: 19 | R153: 0 | S153: 7 | U153: TCUPTV | V153: 2023-03-14
A154: 21995 | B154: 40130 | C154: 77 | D154: =COUNTIF(План_сводная!A$2:A$208,B154) -> 1 | E154: ООО "Газпром трансгаз Чайковский" | F154: СК объектов МГ Общие положения | G154: Строительный контроль за качеством строительства, реконструкции и капитального ремонта объектов магистральных газопроводов ООО « | H154: 2 | I154: Запланировано | L154: 2024-09-09 | M154: 2024-09-13 | N154: 7 | O154: 15 | P154: 30 | Q154: 28 | R154: 28 | S154: 6 | U154: TCUDOV | V154: 2023-03-14
A155: 20123 | B155: 40070 | C155: 77 | D155: =COUNTIF(План_сводная!A$2:A$208,B155) -> 1 | E155: УПЦ ООО "Газпром трансгаз Чайковский" | F155: Трубопроводчик линейный ПТК(без пов.раз) | G155: Трубопроводчик линейный ПТК | H155: 2 | I155: Запланировано | K155: X | L155: 2024-09-09 | M155: 2024-09-13 | N155: 7 | O155: 16 | P155: 20 | Q155: 12 | R155: 0 | S155: 0 | U155: TCUSOI | V155: 2023-03-14
A156: 17299 | B156: 40302 | C156: 77 | D156: =COUNTIF(План_сводная!A$2:A$208,B156) -> 1 | E156: ООО "Газпром трансгаз Чайковский" | F156: Обучение высота 2,3 гр. ОЧНОЕ | G156: Обучение руководителей и специалистов безопасным методам и приемам выполнения работ на высоте "Работники 2, 3 групп по безопасно | H156: 2 | I156: Запланировано | K156: X | L156: 2024-09-09 | M156: 2024-09-20 | N156: 7 | O156: 25 | P156: 30 | Q156: 5 | R156: 0 | S156: 14 | U156: TCUPTV | V156: 2023-03-20
A157: 725 | B157: 39794 | C157: 77 | D157: =COUNTIF(План_сводная!A$2:A$208,B157) -> 1 | E157: ООО "Газпром трансгаз Чайковский" | F157: Сварщик РД сварки плав.покр.электр. ПТК | G157: Сварщик ручной дуговой сварки плавящимся покрытым электродом ПТК | H157: 2 | I157: Запланировано | K157: X | L157: 2024-09-09 | M157: 2024-09-20 | N157: 7 | O157: 20 | P157: 20 | Q157: 3 | R157: 0 | S157: 0 | U157: TCUSAA17 | V157: 2023-03-06
A158: 16207 | B158: 40026 | C158: 77 | D158: =COUNTIF(План_сводная!A$2:A$208,B158) -> 1 | E158: ООО "Газпром трансгаз Чайковский" | F158: Требования промышленной безопасности | G158: Требования промышленной безопасности | H158: 2 | I158: Запланировано | L158: 2024-09-09 | M158: 2024-09-27 | N158: 7 | O158: 30 | P158: 30 | Q158: 19 | R158: 0 | S158: 15 | U158: TCUPTV | V158: 2023-03-13
A159: 17255 | B159: 40146 | C159: 77 | D159: =COUNTIF(План_сводная!A$2:A$208,B159) -> 1 | E159: ООО "Газпром трансгаз Чайковский" | F159: Работники 1,2 гр.ОЗП | G159: Работники 1, 2 групп по безопасности работ в ограниченных и замкнутых пространствах» | H159: 2 | I159: Запланировано | K159: X | L159: 2024-09-11 | M159: 2024-09-13 | N159: 7 | O159: 15 | P159: 22 | Q159: 15 | R159: 3 | S159: 5 | U159: TCUDOV | V159: 2023-03-14
A160: 23674 | B160: 44686 | C160: 77 | D160: =COUNTIF(План_сводная!A$2:A$208,B160) -> 1 | E160: УПЦ ООО "Газпром трансгаз Чайковский" | F160: Защитное вождение | G160: Защитное вождение | H160: 2 | I160: Запланировано | K160: X | L160: 2024-09-12 | M160: 2024-09-13 | N160: 0 | O160: 30 | P160: 9999 | Q160: 30 | R160: 0 | S160: 0 | U160: TCUPAA14 | V160: 2023-10-27
A161: 23674 | B161: 44687 | C161: 77 | D161: =COUNTIF(План_сводная!A$2:A$208,B161) -> 1 | E161: УПЦ ООО "Газпром трансгаз Чайковский" | F161: Защитное вождение | G161: Защитное вождение | H161: 2 | I161: Запланировано | K161: X | L161: 2024-09-16 | M161: 2024-09-17 | N161: 0 | O161: 30 | P161: 9999 | Q161: 32 | R161: 0 | S161: 0 | U161: TCUPAA14 | V161: 2023-10-27
A162: 686 | B162: 39990 | C162: 77 | D162: =COUNTIF(План_сводная!A$2:A$208,B162) -> 1 | E162: ООО "Газпром трансгаз Чайковский" | F162: Обслуживание и эксплуатация ТА | G162: Обслуживание и эксплуатация трубопроводной арматуры | H162: 2 | I162: Запланировано | K162: X | L162: 2024-09-16 | M162: 2024-09-20 | N162: 7 | O162: 20 | P162: 20 | Q162: 16 | R162: 2 | S162: 0 | U162: TCUBIS02 | V162: 2023-10-24
A163: 11286 | B163: 40131 | C163: 77 | D163: =COUNTIF(План_сводная!A$2:A$208,B163) -> 1 | E163: ООО "Газпром трансгаз Чайковский" | F163: СК сооружений связи | G163: Строительный контроль за качеством строительства, реконструкции и капитального ремонта сооружений связи на объектах магистральны | H163: 2 | I163: Запланировано | L163: 2024-09-16 | M163: 2024-09-20 | N163: 7 | O163: 15 | P163: 30 | Q163: 15 | R163: 0 | S163: 1 | U163: TCUDOV | V163: 2023-03-14
A164: 22535 | B164: 44697 | C164: 77 | D164: =COUNTIF(План_сводная!A$2:A$208,B164) -> 1 | E164: УПЦ ООО "Газпром трансгаз Чайковский" | F164: Оператор ГРС (без пов.р)) | G164: Оператор газораспределительной станции ПТК | H164: 2 | I164: Запланировано | K164: X | L164: 2024-09-16 | M164: 2024-09-27 | N164: 7 | O164: 16 | P164: 20 | Q164: 13 | R164: 0 | S164: 0 | U164: TCUSOI | V164: 2023-10-27
A165: 726 | B165: 39898 | C165: 77 | D165: =COUNTIF(План_сводная!A$2:A$208,B165) -> 1 | E165: УПЦ ООО "Газпром трансгаз Чайковский" | F165: Эл.монтер лин. сооруж. телеф. связи. ПТК | G165: Электромонтер линейных сооружений телефонной связи и радиофикации ПТК | H165: 2 | I165: Запланировано | K165: X | L165: 2024-09-16 | M165: 2024-09-27 | N165: 7 | O165: 20 | P165: 20 | Q165: 12 | R165: 0 | S165: 0 | U165: TCUKMG01 | V165: 2023-03-06
A166: 20158 | B166: 35262 | C166: 77 | D166: =COUNTIF(План_сводная!A$2:A$208,B166) -> 0 | E166: УПЦ ООО "Газпром трансгаз Чайковский" | F166: Энергетический менеджмент 16ч. | G166: Функционирование системы энергетического менеджмента ПАО Газпром в соответствии с требованиями ISO 50001:2018 | H166: 2 | I166: Запланировано | K166: X | L166: 2024-09-18 | M166: 2024-09-19 | N166: 7 | O166: 20 | P166: 30 | Q166: 11 | R166: 0 | S166: 2 | U166: TCULEA | V166: 2023-03-14
A167: 23674 | B167: 44688 | C167: 77 | D167: =COUNTIF(План_сводная!A$2:A$208,B167) -> 1 | E167: УПЦ ООО "Газпром трансгаз Чайковский" | F167: Защитное вождение | G167: Защитное вождение | H167: 2 | I167: Запланировано | K167: X | L167: 2024-09-19 | M167: 2024-09-20 | N167: 0 | O167: 30 | P167: 9999 | Q167: 33 | R167: 0 | S167: 0 | U167: TCUPAA14 | V167: 2023-10-27
A168: 11279 | B168: 40132 | C168: 77 | D168: =COUNTIF(План_сводная!A$2:A$208,B168) -> 1 | E168: ООО "Газпром трансгаз Чайковский" | F168: СК сварочно-монтаж. работы | G168: Строительный контроль за качеством строительства, реконструкции и капитального ремонта объектов ООО «Газпром трансгаз Чайковский | H168: 2 | I168: Запланировано | L168: 2024-09-19 | M168: 2024-09-27 | N168: 7 | O168: 15 | P168: 30 | Q168: 17 | R168: 0 | S168: 1 | U168: TCUDOV | V168: 2023-03-14
A169: 23674 | B169: 44689 | C169: 77 | D169: =COUNTIF(План_сводная!A$2:A$208,B169) -> 1 | E169: УПЦ ООО "Газпром трансгаз Чайковский" | F169: Защитное вождение | G169: Защитное вождение | H169: 2 | I169: Запланировано | K169: X | L169: 2024-09-23 | M169: 2024-09-24 | N169: 0 | O169: 30 | P169: 9999 | Q169: 30 | R169: 0 | S169: 0 | U169: TCUPAA14 | V169: 2023-10-27
A170: 23674 | B170: 44690 | C170: 77 | D170: =COUNTIF(План_сводная!A$2:A$208,B170) -> 1 | E170: УПЦ ООО "Газпром трансгаз Чайковский" | F170: Защитное вождение | G170: Защитное вождение | H170: 2 | I170: Запланировано | K170: X | L170: 2024-09-26 | M170: 2024-09-27 | N170: 0 | O170: 30 | P170: 9999 | Q170: 30 | R170: 0 | S170: 0 | U170: TCUPAA14 | V170: 2023-10-27
A171: 22072 | B171: 40133 | C171: 77 | D171: =COUNTIF(План_сводная!A$2:A$208,B171) -> 1 | E171: ООО "Газпром трансгаз Чайковский" | F171: СК Общестроительные работы | G171: Строительный контроль за качеством строительства, реконструкции и капитального ремонта объектов ООО «Газпром трансгаз Чайковский | H171: 2 | I171: Запланировано | L171: 2024-09-30 | M171: 2024-10-04 | N171: 7 | O171: 15 | P171: 30 | Q171: 10 | R171: 0 | S171: 11 | U171: TCUDOV | V171: 2023-03-14
